Workbook

Sheet Design Regulator
A1: LM5140-Q1 Dual Synchronous Buck Controller Design Tool
O2: http://www.ti.com/product/lm5175
A3: About | C3: xx | F3: = Input Box | O3: TERMS OF USE
A5: Step 1: Operating Specifications
D6: Input Voltage – Min, VIN(min) | E6: 6 | F6: V
D7: Input Voltage – Nom, VIN(nom) | E7: 12 | F7: V
D8: Input Voltage – Max, VIN(max) | E8: 28 | F8: V
D9: Output Voltage, VOUT2 | E9: 3.3 | F9: V | I9: Output Voltage, VOUT2 | J9: 5 | K9: V
D10: Full Load Output Current, IOUT1 | E10: 25 | F10: A | I10: Full Load Output Current, IOUT2 | J10: 7 | K10: A
D12: Switching Frequency, FSW | E12: =IF(OSC = 1, 2200, 440) -> 440 | F12: kHz
D13: Ambient Temperature, TA | E13: 25 | F13: °C
A15: Step 2: Current Sense Resistors
D17: Required IOCP Setpoint at VIN(nom) | E17: =25*1.4 -> 35 | F17: A | I17: Required IOCP Setpoint at VIN(nom) | J17: =7*1.4 -> 9.8 | K17: A
D18: Recommended Sense Resistance | E18: =Rs_ideal*1000 -> 1.268326526 | F18: mΩ | I18: Recommended Sense Resistance | J18: =Rs2_ideal*1000 -> 4.565782947 | K18: mΩ
D19: Sense Resistance, RS | E19: 3 | F19: mΩ | I19: Sense Resistance, RS2 | J19: 5 | K19: mΩ
D20: Min Inductor Sat Current, ILO1(SAT) | E20: ='Variable Management'!B95 -> 16 | F20: A | I20: Min Inductor Sat Current, ILO2(SAT) | J20: ='Variable Management'!D95 -> 9.6 | K20: A
D21: Max power loss in shunt | E21: ='Variable Management'!B105 -> 0.6118359606 | F21: W | I21: Max power loss in shunt RS2 | J21: ='Variable Management'!D105 -> 0.4415756421 | K21: W
D22: VIN(min) | E22: ='Variable Management'!B97 -> 14.24494949 | F22: A | I22: VIN(min) | J22: ='Variable Management'!D97 -> 9.396881185 | K22: A
C23: IOUT1(typ) at OCP Inception: | D23: VIN(nom) | E23: ='Variable Management'!B98 -> 13.15485601 | F23: A | H23: IOUT2(typ) at OCP Inception: | I23: VIN(nom) | J23: ='Variable Management'!D98 -> 8.887016672 | K23: A
D24: VIN(max) | E24: ='Variable Management'!B99 -> 12.52584392 | F24: A | I24: VIN(max) | J24: ='Variable Management'!D99 -> 8.59433183 | K24: A
A26: Step 3: Buck Inductances
D27: Ch1 Recommended Inductance | E27: =Lopt*1000000 -> 0.9375 | F27: µH | I27: Ch2 Recommended Inductance | J27: =Lopt2*1000000 -> 2.367424242 | K27: µH
D28: Ch1 Inductance, LO1 | E28: 1 | F28: µH | I28: Ch2 Inductance, LO2 | J28: 4.7 | K28: µH
D29: Ch1 Inductor DCR | E29: 4 | F29: mΩ | I29: Ch2 Inductor DCR | J29: 5 | K29: mΩ
D30: DIL as a % at VIN(nom) | E30: ='Variable Management'!B68*100 -> 22.76115189 | F30: % | I30: DIL2 as a % at VIN(nom) | J30: ='Variable Management'!D68*100 -> 20.37095223 | K30: %
A32: Step 4: Output Capacitors
D33: =IF(MODE=1, "Ch1 Output Voltage Ripple Spec", "Output Voltage Ripple Spec") -> Ch1 Output Voltage Ripple Spec | E33: 50 | F33: mVpk-pk | I33: Ch2 Output Voltage Ripple Spec | J33: 33 | K33: mVpk-pk
D34: =IF(MODE=1, "Ch1 Minimum Output Capacitance", "Minimum Output Capacitance") -> Ch1 Minimum Output Capacitance | E34: ='Variable Management'!B121 -> 32.33118166 | F34: µF | I34: Ch2 Minimum Output Capacitance | J34: ='Variable Management'!D121 -> 12.27588375 | K34: µF
D35: Ch1 Output Cap (derated), COUT | E35: 40 | F35: µF | I35: Ch2 Output Cap (derated), COUT2 | J35: 40 | K35: µF | L35: =CHOOSE(SCH_MODE, "", "** For Single-Output Operation in 2-Phase Mode, tie MODE to VDDA and use FB1 to set VOUT **", "** For Single-Output Operation in 3-Phase Mode, tie both MODE pins to VDDA. Use FB1 of master IC to set VOUT. Connect FB2 of master IC to AGND. Connect FB2 of slave IC to VDDA to configure it as a slave **", "** For Single-Output Operation in 4-Phase Mode, tie both MODE pins to VDDA. Use FB1 of master IC to set VOUT. Connect FB2 of master IC to AGND. Connect FB2 of slave IC to VDDA to configure it as a slave **") -> 
D36: =IF(MODE=1, "Ch1 Maximum Permitted ESR", "Maximum Permitted ESR") -> Ch1 Maximum Permitted ESR | E36: ='Variable Management'!B125 -> 5.173718229 | F36: mΩ | I36: Ch2 Maximum Permitted ESR | J36: ='Variable Management'!D125 -> 22.0254163 | K36: mΩ
D37: =IF(MODE=1, "Ch1 Output Capacitor ESR", "Output Capacitor ESR") -> Ch1 Output Capacitor ESR | E37: 8 | F37: mΩ | I37: Ch2 Output Capacitor ESR | J37: 10 | K37: mΩ | L37: =CHOOSE(SCH_MODE, "", "** Tie VCCX to GND if not used **", "** Slave controller (CNTRL2) not shown **","** Slave controller (CNTRL2) not shown **") ->  | Q37: =IF(SCH_MODE=1, "** Tie VCCX to GND if not used **", "") -> ** Tie VCCX to GND if not used **
D38: Resulting Output Voltage Ripple (max) | E38: ='Variable Management'!B127*1000 -> 60.87339062 | F38: mVpk-pk | I38: Resulting Output Voltage Ripple (max) | J38: ='Variable Management'!D127*1000 -> 17.49018167 | K38: mVpk-pk | L38: =IF(OR(SCH_MODE=3, SCH_MODE=4),"** Tie VCCX to GND if not used **", "") -> 
D39: Output Capacitor RMS Current (max) | E39: ='Variable Management'!B114 -> 2.005804945 | F39: A (rms) | I39: Output Capacitor RMS Current (max) | J39: ='Variable Management'!D114 -> 0.5806227889 | K39: A (rms)
A41: Step 5: Input Capacitors
D42: Input Voltage Ripple Spec | E42: 50 | F42: mVpk-pk
D43: Minimum Input Capacitance | E43: ='Variable Management'!B145 -> 284.0909091 | F43: µF
D44: Input Capacitance (derated), CIN | E44: 300 | F44: µF
D45: Maximum Permitted ESR | E45: ='Variable Management'!B150 -> 0.09312006103 | F45: mΩ
D46: Input Capacitor ESR | E46: 10 | F46: mΩ
D47: Resulting Input Voltage Ripple (max) | E47: ='Variable Management'!B155*1000 -> 332.0900456 | F47: mVpk-pk
D48: Input Capacitor RMS Current (max) | E48: ='Variable Management'!B138 -> 12.39337836 | F48: A (rms)
A50: Step 6: Soft-start, Hiccup, Diode Emulation Mode (DEM)
D51: Soft-Start Time, tSS | E51: 2.5 | F51: ms
D52: Soft-Start Capacitance, CSS | E52: =IF(Tss>1/1000,Css_u*1000000000,"N/A") -> 47 | F52: nF
D53: Hiccup Fault Time, tRES | E53: 12 | F53: ms
D54: RES Capacitance, CRES | E54: =IF(Tres>1/1000,Cres_u*1000000000,"N/A") -> 220 | F54: nF
D55: =IF(DEMB=1, "* Tie DEMB to VDDA", "*Tie DEMB to AGND") -> *Tie DEMB to AGND
A60: Step 7: Compensation Design
D61: =IF(MODE=1, "Ch1 Load Pole Frequency", "Load Pole Frequency") -> Ch1 Load Pole Frequency | E61: =Fp_dominant -> 34694.15036 | F61: Hz | I61: Ch2 Load Pole Frequency | J61: =Fp_dominant_Ch2 -> 7316.834297 | K61: Hz
D62: =IF(MODE=1, "Ch1 ESR Zero Frequency", "ESR Zero Frequency") -> Ch1 ESR Zero Frequency | E62: =Fesr/1000 -> 497.3591977 | F62: kHz | I62: Ch2 ESR Zero Frequency | J62: =Fesr_Ch2/1000 -> 397.8873582 | K62: kHz
D63: =IF(MODE=1, "Ch1 Desired Crossover Frequency", "Desired Crossover Frequency") -> Ch1 Desired Crossover Frequency | E63: 100 | F63: =" kHz " -> kHz | I63: Ch2 Desired Crossover Frequency | J63: 100 | K63: =" kHz " -> kHz
D64: =IF(MODE=1, "Ch1 Error Amp Pole Frequency", "Error Amp Pole Frequency") -> Ch1 Error Amp Pole Frequency | E64: =Fp1_u -> 0.3032580898 | F64: Hz | I64: Ch2 Error Amp Pole Frequency | J64: =Fp1_u_Ch2 -> 0.9208657667 | K64: Hz
D65: =CHOOSE(Ch1_VOUT, "* Tie FB1 to VDDA for Ch1 3.3V Out", "* Tie FB1 to AGND for Ch1 5V Out", IF(MODE=1, "Ch1 Upper Feedback Resistor", "Upper Feedback Resistor")) -> * Tie FB1 to VDDA for Ch1 3.3V Out | E65: 390.9 | F65: kΩ | I65: =CHOOSE(Ch2_VOUT, "* Tie FB2 to VDDA for Ch2 5V Out", "* Tie FB2 to AGND for Ch2 8V Out", "Ch2 Upper Feedback Resistor") -> * Tie FB2 to VDDA for Ch2 5V Out | J65: 100 | K65: kΩ
D66: =IF(Ch1_VOUT=3, IF(MODE=1,"Ch1 Lower Feedback Resistor","Lower Feedback Resistor"),"") ->  | E66: =IF(Vout=Vref,"OPEN",Rfb2_u/1000) -> 221 | F66: =IF(Vout=Vref,"","kΩ") -> kΩ | I66: =IF(Ch2_VOUT=3, "Ch2 Lower Feedback Resistor","") ->  | J66: =IF(Vout2=Vref,"OPEN",Rfb4_u/1000) -> 31.6 | K66: =IF(Vout=Vref,"","kΩ") -> kΩ
A68: Compensation Components
B69: Calculated / | C69: Std Values | D69: =C69 -> Std Values | F69: Actual P/Z Frequencies
A70: RC1 | B70: =Rcea1/1000 -> 2.073451149 | C70: ='Standard Value Calculator'!O30 -> 2.05 | D70: 2.05 | E70: kΩ | F70: =Fp1_u -> 0.3032580898 | G70: Hz (FPEA)
A71: CC1 | B71: =Cc1ea*1000000000 -> 7.675847263 | C71: ='Standard Value Calculator'!O31 -> 8.2 | D71: 8.2 | E71: nF | F71: =Fz1_u/1000 -> 9.46787289 | G71: kHz (FZCOMP)
A72: CC2 | B72: =IF(Cc2ea<0, "N/A", Cc2ea*1000000000000) -> 317.0711597 | C72: ='Standard Value Calculator'!O32 -> 330 | D72: 330 | E72: pF | F72: =Fp2_u/1000 -> 214.5658059 | G72: kHz (FPCOMP)
A73: RC2 | B73: =Rcea2/1000 -> 5.23598775 | C73: ='Standard Value Calculator'!O34 -> 5.23 | D73: 11.8 | E73: kΩ | F73: =Fp1_u_Ch2 -> 0.9208657667 | G73: Hz (FPEA2)
A74: CC3 | B74: =Cc3ea*1000000000 -> 3.039635516 | C74: ='Standard Value Calculator'!O35 -> 3.3 | D74: 2.7 | E74: nF | F74: =Fz1_u_Ch2/1000 -> 4.995447058 | G74: kHz (FZCOMP2)
A75: CC4 | B75: =IF(Cc4ea<0, "N/A", Cc4ea*1000000000000) -> 106.3342621 | C75: =IF(1, 'Standard Value Calculator'!O36) -> 100 | D75: 27 | E75: pF | F75: =Fp2_u_Ch2/1000 -> 229.2619479 | G75: kHz (FPCOMP2) | N75: ** Specify Inductor Core Loss ** | O75: 0.15 | P75: W
A77: Efficiency / Power Loss Analyzer
A79: Step 8: Efficiency
F80: =IF(MODE=1, "Ch1 Power MOSFETs", "Power MOSFETs") -> Ch1 Power MOSFETs | G80: (Q1, Q2) | I80: =IF(MODE=1, "Ch2 Power MOSFETs ", "Power MOSFETs ") -> Ch2 Power MOSFETs | J80: (Q3, Q4)
E81: CSD18534Q5A | H81: CSD18543Q3A
E82: High-side | F82: Low-side | H82: High-side | I82: Low-side
D83: On-State Resistance, RDS(on) | E83: 9.9 | F83: 9.9 | G83: mΩ | H83: 12 | I83: 12 | J83: mΩ
D84: Total Gate Charge, QG | E84: 17 | F84: 17 | G84: nC | H84: 11.1 | I84: 11.1 | J84: nC
D85: Gate-Drain Charge, QGD | E85: 3.5 | F85: 3.5 | G85: nC | H85: 1.7 | I85: 1.7 | J85: nC
D86: Gate-Source Charge, QGS | E86: 3.2 | F86: 3.2 | G86: nC | H86: 3.1 | I86: 3.1 | J86: nC
D87: Output Charge, QOSS | F87: 19 | G87: nC | I87: 24 | J87: nC
D88: Output Capacitance, COSS | E88: 167 | F88: 167 | G88: pF | H88: 168 | I88: 168 | J88: pF
D89: Gate Resistance, RG | E89: 0.5 | F89: 0.5 | G89: Ω | H89: 0.5 | I89: 0.5 | J89: Ω
D90: Transconductance, gFS | E90: 72 | F90: 72 | G90: S | H90: 40 | I90: 40 | J90: S
D91: Gate-Source Threshold Voltage, VTH | E91: 1.9 | F91: 1.9 | G91: V | H91: 2.9 | I91: 2.9 | J91: V
D92: Body Diode Forward Voltage, VBD | E92: 0.8 | F92: 0.8 | G92: V | H92: 0.8 | I92: 0.8 | J92: V
D93: Body Diode Rev Recovery Charge, QRR | F93: 54 | G93: nC | I93: 37 | J93: nC
D94: Thermal Resistance, θJA | E94: 50 | F94: 50 | G94: °C/W | H94: 50 | I94: 50 | J94: °C/W
A96: External Schottky Diode (if applicable) | E96: =CHOOSE(MODE, "Ch1", "") -> Ch1 | F96: =CHOOSE(MODE, "Ch2", "") -> Ch2
D97: Schottky Fwd Voltage, VFWDsch | E97: 0 | F97: 0 | G97: V
D98: Schottky Rev Recovery Charge, QRRsch | E98: 0 | F98: 0 | G98: nC
A102: Step 9: IC Power Loss
D103: IC Power Dissipation | E103: ='Variable Management'!B322 -> 0.12364 | F103: W
D104: IC Junction Temperature (estimate) | E104: ='Variable Management'!B324 -> 29.302672 | F104: °C
E105: =CHOOSE(Ext_VCC, "* Connect a 2.2µF Capacitor From VCCX to PGND", "* Tie VCCX to PGND") -> * Connect a 2.2µF Capacitor From VCCX to PGND

Sheet BOM & Schematic
A37: ** Tie DEMB to VDDA for FPWM, AGND for DCM **
A38: ** Tie ILSET to VDDA for 73mV, AGND for 48mV CS threshold ** | I38: =IF(OR(SCH_MODE=3, SCH_MODE=4),"** Tie VCCX to GND if not used **", "") -> 
A39: ** Tie OSC to VDDA for 2.2MHz, AGND for 440kHz **
A40: =IF(OR(SCH_MODE=3, SCH_MODE=4), "** Slave controller (CNTRL2) not shown **"," ** Tie VCCX to GND if not used **") -> ** Tie VCCX to GND if not used **
A41: ** Tie FB1 to VDDA or AGND for fixed 3.3V and 5V outputs, respectively. Tie FB2 to VDDA or AGND for 5V and 8V outputs, respectively **
A42: ="VIN = "&VIN_min&" V to "&VIN_max&" V, VOUT1 = "& Vout &" V, IOUT1 = " &Iout &"A"&", VOUT2 = "& Vout2 &" V, IOUT2 = " &Iout2 & " A, Fsw = " & Fsw/1000 &" kHz, Current Limit = "&ROUNDUP(Ilimit_DC,0)&" A" -> VIN = 6 V to 28 V, VOUT1 = 3.3 V, IOUT1 = 25A, VOUT2 = 5 V, IOUT2 = 7 A, Fsw = 440 kHz, Current Limit = 35 A
A43: LM5140-Q1 High Efficiency Dual Synchronous Buck Regulator BOM
A44: Count | B44: Ref Des | C44: Value | D44: Description | H44: Size | I44: Part Number | J44: MFR
A45: 2 | B45: CBOOT1, CBOOT2 | C45: 0.1 | D45: =C45 -> 0.1 | H45: 0603 | I45: Std | J45: Std
A46: 1 | B46: CC1 | C46: ='Design Regulator'!D71 -> 8.2 | D46: 8.2 | H46: 0603 | I46: Std | J46: Std
A47: 1 | B47: CC2 | C47: ='Design Regulator'!D72 -> 330 | D47: 330 | H47: 0603 | I47: Std | J47: Std
A48: 1 | B48: CC3 | C48: ='Design Regulator'!D74 -> 2.7 | D48: =C48 -> 2.7 | H48: 0603 | I48: Std | J48: Std
A49: 1 | B49: CC4 | C49: ='Design Regulator'!$D$75 -> 27 | D49: 27 | H49: 0603 | I49: Std | J49: Std
A50: 1 | B50: CRES | C50: =Cres_u*1000000000 -> 220 | D50: =C50 -> 220 | H50: 0603 | I50: Std | J50: Std
A51: =ROUNDUP('Design Regulator'!E44/10,0) -> 30 | B51: CIN | C51: 10 | D51: =C51 -> 10 | H51: 1210 | I51: Std | J51: Std
A52: =ROUNDUP('Design Regulator'!E35/47,0) -> 1 | B52: COUT | C52: 47 | D52: =C52 -> 47 | H52: 1210 | I52: Std | J52: Std
A53: 2 | B53: CSS1, CSS2 | C53: ='Design Regulator'!E52 -> 47 | D53: =C53 -> 47 | H53: 0603 | I53: Std | J53: Std
A54: 3 | B54: CVCC1, CVCC2, CVCCX | C54: 2.2 | D54: 2.2 | H54: 0603 | I54: Std | J54: Std
A55: 1 | B55: CVDDA | C55: 0.47 | D55: 0.47 | H55: 0603 | I55: Std | J55: Std
A56: 2 | B56: DBOOT1, DBOOT2 | C56: See description | D56: Schottky Diode, 60V, 200mA | H56: - | I56: - | J56: Various
A57: 1 | B57: LO1 | C57: ='Design Regulator'!E28 -> 1 | D57: ="Inductor, "&Lf*1000000&"µH, "&Rdcr*1000&"mΩ, >"&ROUNDUP(Ilimit_DC*1.1,0)&"A" -> Inductor, 1µH, 4mΩ, >39A | H57: - | I57: - | J57: Various
A58: 1 | B58: LO2 | C58: ='Design Regulator'!J28 -> 4.7 | D58: ="Inductor, "&Lo_2*1000000&"µH, "&Rdcr2*1000&"mΩ, >"&ROUNDUP(Ilimit2_DC*1.1,0)&"A" -> Inductor, 4.7µH, 5mΩ, >11A | H58: - | I58: - | J58: Various
A59: 2 | B59: Q1, Q2 | C59: See description | D59: ='Design Regulator'!E83 -> 9.9 | H59: Std | I59: ='Design Regulator'!E81 -> CSD18534Q5A | J59: -
A60: 2 | B60: Q3, Q4 | C60: See description | D60: ='Design Regulator'!H83 -> 12 | H60: Std | I60: ='Design Regulator'!H81 -> CSD18543Q3A | J60: -
A61: 1 | B61: RC1 | C61: ='Design Regulator'!D70 -> 2.05 | D61: =C61 -> 2.05 | H61: 0603 | I61: Std | J61: Std
A62: 1 | B62: RC2 | C62: ='Design Regulator'!D73 -> 11.8 | D62: =C62 -> 11.8 | H62: 0603 | I62: Std | J62: Std
A63: 1 | B63: RS1 | C63: =Rs*1000 -> 3 | D63: 3 | H63: 0508 | I63: Std | J63: Std
A64: 1 | B64: RS2 | C64: =Rs_Ch2*1000 -> 5 | D64: =C64 -> 5 | H64: 0508 | I64: Std | J64: Std
A65: 1 | B65: RFB1 | C65: ='Design Regulator'!E65 -> 390.9 | D65: 390.9 | H65: 0603 | I65: Std | J65: Std
A66: 1 | B66: RFB2 | C66: ='Design Regulator'!E66 -> 221 | D66: 221 | H66: 0603 | I66: Std | J66: Std
A67: 1 | B67: RFB3 | C67: ='Design Regulator'!J65 -> 100 | D67: =C67 -> 100 | H67: 0603 | I67: Std | J67: Std
A68: 1 | B68: RFB4 | C68: ='Design Regulator'!J66 -> 31.6 | D68: 31.6 | H68: 0603 | I68: Std | J68: Std
A69: 2 | B69: RPG1, RPG2 | C69: 100 | D69: 100 | H69: 0603 | I69: Std | J69: Std
A70: 1 | B70: RVIN | C70: 2.2 | D70: 2.2 | H70: 0603 | I70: Std | J70: Std
A71: 1 | B71: U1 | C71: LM5140-Q1 | D71: IC, LM5140-Q1, Buck PWM Controller, 3.8V–65V Input | H71: VQFNP-40 | I71: LM5140QRGWQ1 | J71: TI
A74: NOTES:
A75: ** For information on TI NexFETTM MOSFETs, see ** | D75: http://www.ti.com/nexfet | E75: **
A76: ** Inductor saturation current should be higher than the peak inductor current at the OCP setpoint for all input voltages and operating temperatures **
A77: ** Effective input and output capacitances should be appropriately derated for applied voltage and temperature, particularly with ceramics **

Sheet EVM (hidden)
A1: LM5143-Q1 Quickstart Design Tool
B6: LM5143-Q1EVM-2100 PCB Layout

Sheet Variable Management (hidden)
A1: EXCEL Variables Names/Calculations
B2: Input from user =
B3: Output =
B4: Constant
A5: Variable Name | B5: Value | C5: STD Units | E5: Notes | I5: Iteration
A6: Step 1: Operational Specs
A7: VIN_min | B7: ='Design Regulator'!E6 -> 6 | C7: V | D7: Minimum input voltage | I7: 1
A8: VIN_nom | B8: ='Design Regulator'!E7 -> 12 | C8: V | D8: Nominal input voltage | K8: =CHOOSE(SCH_MODE, "Efficiency vs. IOUT (Ch1)", "Efficiency vs. IOUT - 2 Ph", "Efficiency vs. IOUT - 3 Ph", "Efficiency vs. IOUT - 4 Ph") -> Efficiency vs. IOUT (Ch1) | L8: 1 | N8: DITHER Enabled | O8: 1 | T8: Dual Outputs | U8: 1 | W8: FPWM | X8: 1 | Z8: =CHOOSE(SCH_MODE, "Bode Plot (Ch1)", "Bode Plot - 2 Ph", "Bode Plot - 3 Ph", "Bode Plot - 4 Ph") -> Bode Plot (Ch1) | AA8: 1
A9: VIN_max | B9: ='Design Regulator'!E8 -> 28 | C9: V | D9: Maximum input voltage | K9: =IF(MODE=1, "Efficiency vs. IOUT (Ch2)", "N/A - Do Not Use") -> Efficiency vs. IOUT (Ch2) | L9: 2 | N9: DITHER Disabled | O9: 2 | T9: Single Output – 2 Phases | U9: 2 | W9: DEM | X9: 2 | Z9: =IF(MODE=1, "Bode Plot (Ch2)", "N/A - Do Not Use") -> Bode Plot (Ch2) | AA9: 2
K10: PLOT_TYPE | L10: 1 | N10: DITHER Yes/No | O10: 2 | P10: 1 = Yes, 2 = No | T10: Single Output – 3 Phases | U10: 3 | W10: FPWM/DEM | X10: 2 | Z10: BODE_PLOT_TYPE | AA10: 1
A11: Vout | B11: ='Design Regulator'!E9 -> 3.3 | C11: V | D11: Output voltage - channel 1 | T11: Single Output – 4 Phases | U11: 4
A12: Iout | B12: ='Design Regulator'!E10 -> 25 | C12: A | D12: Output current - channel 1 | I12: 1 | T12: Single/Dual Yes/No | U12: 1
A13: Vout2 | B13: ='Design Regulator'!J9 -> 5 | C13: V | D13: Output voltage - channel 2 | I13: 1 | K13: 3.3V | L13: 1 | N13: 5V | O13: 1 | T13: MODE (Single/Dual), DUAL = 1, SINGLE = 2 | U13: =IF(U12=1, 1, 2) -> 1 | W13: VCCX Connected | X13: 1
A14: Iout2 | B14: ='Design Regulator'!J10 -> 7 | C14: A | D14: Output current - channel 2 | K14: 5V | L14: 2 | N14: 8V | O14: 2 | T14: SINGLE OUTPUT (1 = YES) | U14: =IF(U12=1, 2, 1) -> 2 | W14: No External VCC | X14: 2
K15: Adjustable | L15: 3 | N15: Adjustable | O15: 3 | T15: Number of Phases | U15: =SCH_MODE -> 1 | W15: Ext_VCC | X15: 1
A16: Rout | B16: =Vout/Iout -> 0.132 | C16: W | D16: Load resistance - Channel 1 | K16: Ch1 Output Setting | L16: =IF(Vout=3.3, 1, IF(Vout=5, 2, 3)) -> 1 | N16: Ch2 Output Setting | O16: =IF(Vout2=5, 1, IF(Vout2=8, 2, 3)) -> 1
A17: Rout2 | B17: =Vout2/Iout2 -> 0.7142857143 | C17: W
A18: Pout | B18: =CHOOSE(MODE, Vout*Iout+Vout2*Iout2, Vout*Iout) -> 117.5 | C18: W | D18: Output power | W18: ILSET Tied to VDDA - 73mV | X18: 1
W19: ILSET Tied to AGND - 48mV | X19: 2
A20: Efficiency | B20: 0.9 | D20: Estimate of efficiency | W20: ILIM Setting | X20: 2
A21: Pin | B21: =Pout/Efficiency -> 130.5555556 | C21: W | D21: Calculate input power assuming finite efficiency | L21: =Vout -> 3.3
A23: Iin_Vinmin | B23: =Pin/VIN_min -> 21.75925926 | C23: A | W23: OSC Tied to VDDA - 2.2MHz | X23: 1
A24: Iin_Vinnom | B24: =Pin/VIN_nom -> 10.87962963 | C24: A | D24: Input currents at min, nom, max Vin | W24: OSC Tied to AGND - 440kHz | X24: 2
A25: Iin_Vinmax | B25: =Pin/VIN_max -> 4.662698413 | C25: A | W25: OSC Setting | X25: 2
A27: Fsw | B27: ='Design Regulator'!E12*1000 -> 440000 | C27: Hz | D27: Nominal switching frequency - determines RT resistor (SYNCIN must be 80-120% of this)
A28: Tsw | B28: =1/Fsw -> 2.272727273e-06 | C28: sec | D28: Switching period | I28: 1
A29: Vref | B29: 1.2 | C29: V | D29: Reference voltage
A30: Rt | B30: =22*1000/(Fsw/1000000) -> 50000 | C30: W | D30: Frequency set resistor
A33: Step 2: Buck Inductor | B33: Channel 1 | D33: Channel 2
A34: Don1 | B34: =Vout/VIN_nom -> 0.275 | F34: Ideal Duty Cycle at VIN(nom)
A35: Doff1 | B35: =1-34:34 -> 0.725 | F35: Ideal 1- Duty Cycle at VIN(nom)
A37: D_Vinmin | B37: =Vout/VIN_min -> 0.55 | D37: =Vout2/VIN_min -> 0.8333333333
A38: D_Vinnom | B38: =Vout/VIN_nom -> 0.275 | D38: =Vout2/VIN_nom -> 0.4166666667
A39: D_Vinmax | B39: =Vout/VIN_max -> 0.1178571429 | D39: =Vout2/VIN_max -> 0.1785714286
A41: L_Vinnom | B41: =(VIN_nom-Vout)*D1_Vinnom/(Fsw*(Iout/Number_of_Phases)*0.35) -> 6.214285714e-07 | C41: H | D41: =(VIN_nom-Vout2)*D2_Vinnom/(Fsw*Iout2*0.35) -> 2.705627706e-06 | E41: H | F41: Calculated inductance for 35% ripple at VIN(nom)
A42: L_slopecomp | B42: =1000*Vout*Rs/24/Fsw -> 9.375e-07 | C42: H | D42: =1000*Vout2*Rs_Ch2/24/Fsw -> 2.367424242e-06 | E42: H | F42: Calculated inductance based on one times inductor downslope
A44: Lopt | B44: =B42 -> 9.375e-07 | C44: H | D44: =D42 -> 2.367424242e-06 | E44: H | F44: min of calculated inductances at VIN(min) and VIN(nom)
A46: Lo | B46: ='Design Regulator'!E28/1000000 -> 1e-06 | C46: H | D46: ='Design Regulator'!J28/1000000 -> 4.7e-06 | E46: H | F46: Chosen inductance
A47: Rdcr | B47: ='Design Regulator'!E29/1000 -> 0.004 | C47: W | D47: ='Design Regulator'!J29/1000 -> 0.005 | E47: W | F47: Chosen inductor DCR
A49: Don2 | B49: =(Vout+Iout*(Rdcr+Rs))/(Vin+Iout*Rs) -> 0.2877846791
A50: Doff2 | B50: =1-_Don2 -> 0.7122153209
A52: D_Vinmin_2 | B52: =CHOOSE(MODE, (Vout+Iout*(Rdcr+Rs))/(VIN_min+Iout*Rs), (Vout+Iout/Number_of_Phases*(Rdcr+Rs))/(VIN_min+Iout/Number_of_Phases*Rs)) -> 0.5720164609 | D52: =(Vout2+Iout2*(Rdcr2+Rs_Ch2))/(VIN_min+Iout2*Rs_Ch2) -> 0.84009942 | F52: Duty cycles adjusted for DCR/shunt voltage drops
A53: D_Vinnom_2 | B53: =CHOOSE(MODE, (Vout+Iout*(Rdcr+Rs))/(VIN_nom+Iout*Rs), (Vout+Iout/Number_of_Phases*(Rdcr+Rs))/(VIN_nom+Iout/Number_of_Phases*Rs)) -> 0.2877846791 | D53: =(Vout2+Iout2*(Rdcr2+Rs_Ch2))/(VIN_nom+Iout2*Rs_Ch2) -> 0.4212712921 | F53: need to include RDS(on) later
A54: D_Vinmax_2 | B54: =CHOOSE(MODE, (Vout+Iout*(Rdcr+Rs))/(VIN_max+Iout*Rs), (Vout+Iout/Number_of_Phases*(Rdcr+Rs))/(VIN_max+Iout/Number_of_Phases*Rs)) -> 0.1237756011 | D54: =(Vout2+Iout2*(Rdcr2+Rs_Ch2))/(VIN_max+Iout2*Rs_Ch2) -> 0.1808453719
A56: Iripple_Vinmin | B56: =(VIN_min-Vout)*D1_Vinmin_2/(Fsw*Lf) -> 3.51010101 | C56: A | D56: =(VIN_min-Vout2)*D2_Vinmin_2/(Fsw*Lo_2) -> 0.4062376306 | E56: A
A57: Iripple_Vinnom | B57: =(VIN_nom-Vout)*D1_Vinnom_2/(Fsw*Lf) -> 5.690287973 | C57: A | D57: =(VIN_nom-Vout2)*D2_Vinnom_2/(Fsw*Lo_2) -> 1.425966656 | E57: A
A58: Iripple_Vinmax | B58: =(VIN_max-Vout)*D1_Vinmax_2/(Fsw*Lf) -> 6.948312151 | C58: A | D58: =(VIN_max-Vout2)*D2_Vinmax_2/(Fsw*Lo_2) -> 2.011336341 | E58: A
A60: Ishunt_rms_Vinmin | B60: =SQRT((Iout/Number_of_Phases)^2+(Iripple_Vinmin^2)/12) -> 25.02052626 | C60: A | D60: =SQRT(Iout2^2+(Iripple2_Vinmin^2)/12) -> 7.000982247 | E60: A
A61: Ishunt_rms_Vinnom | B61: =SQRT((Iout/Number_of_Phases)^2+(Iripple_Vinnom^2)/12) -> 25.05390751 | C61: A | D61: =SQRT(Iout2^2+(Iripple2_Vinnom^2)/12) -> 7.012093012 | E61: A
A62: Ishunt_rms_Vinmax | B62: =SQRT((Iout/Number_of_Phases)^2+(Iripple_Vinmax^2)/12) -> 25.08033599 | C62: A | D62: =SQRT(Iout2^2+(Iripple2_Vinmax^2)/12) -> 7.024038925 | E62: A
A63: Max shunt power loss at full load | B63: =B61^2*Rs -> 1.883094844 | C63: W | D63: =D61^2*Rs -> 0.1475083452 | E63: W | F63: Note this is power loss at full load - not loss near OCP!
A65: Max inductor ripple current | B65: =MAX(B56:B58) -> 6.948312151 | C65: A | D65: =MAX(D56:D58) -> 2.011336341 | E65: A | F65: Ripple current at Vin(max)
B67: =B56/(Iout/Number_of_Phases) -> 0.1404040404 | D67: =D56/Iout2 -> 0.05803394723
A68: % ripple current | B68: =B57/(Iout/Number_of_Phases) -> 0.2276115189 | D68: =D57/Iout2 -> 0.2037095223
B69: =B58/(Iout/Number_of_Phases) -> 0.277932486 | D69: =D58/Iout2 -> 0.287333763
A71: Inductor copper temerature | B71: 100 | C71: °C | D71: 100 | E71: °C
A72: DCR at hot | B72: =Rdcr*(1+0.0039*(B71-25)) -> 0.00517 | C72: W | D72: =Rdcr2*(1+0.0039*(D71-25)) -> 0.0064625 | E72: W
A75: Step 3: Sense Resistors, Slope Comp, Current Limit
A77: Ilimit_DC | B77: ='Design Regulator'!E17 -> 35 | C77: A | D77: ='Design Regulator'!J17 -> 9.8 | E77: A | F77: Chosen OCP level - based on output current
A79: Ilimit_inductor_Vinmin | B79: =CHOOSE(MODE, Ilimit_DC+Iripple_Vinmin/2, Ilimit_DC/Number_of_Phases+Iripple_Vinmin/2) -> 36.75505051 | C79: A | D79: =Ilimit2_DC+Iripple2_Vinmin/2 -> 10.00311882 | E79: A | F79: Peak inductor current at current limit inception
A80: Ilimit_inductor_Vinnom | B80: =CHOOSE(MODE, Ilimit_DC+Iripple_Vinnom/2, Ilimit_DC/Number_of_Phases+Iripple_Vinnom/2) -> 37.84514399 | C80: A | D80: =Ilimit2_DC+Iripple2_Vinnom/2 -> 10.51298333 | E80: A
A81: Ilimit_inductor_Vinmax | B81: =CHOOSE(MODE, Ilimit_DC+Iripple_Vinmax/2, Ilimit_DC/Number_of_Phases+Iripple_Vinmax/2) -> 38.47415608 | C81: A | D81: =Ilimit2_DC+Iripple2_Vinmax/2 -> 10.80566817 | E81: A
A84: CS threshold_min | B84: =IF(ILIM_Setting=1, 0.066, 0.044) -> 0.044 | C84: V
A85: CS threshold | B85: =IF(ILIM_Setting=1, 0.073, 0.048) -> 0.048 | C85: V
A86: CS threshold_max | B86: =IF(ILIM_Setting=1, 0.08, 0.053) -> 0.053 | C86: V
A88: Shunt required to get OCP at VIN(min) | B88: =Buck_CS_threshold/B79 -> 0.001305942975 | C88: W | D88: =Buck_CS_threshold/D79 -> 0.004798503435 | E88: W
A89: Shunt required to get OCP at VIN(nom) | B89: =Buck_CS_threshold/B80 -> 0.001268326526 | C89: W | D89: =Buck_CS_threshold/D80 -> 0.004565782947 | E89: W
A90: Shunt required to get OCP at VIN(max) | B90: =Buck_CS_threshold/B81 -> 0.001247590718 | C90: W | D90: =Buck_CS_threshold/D81 -> 0.004442113088 | E90: W
A92: Rs_ideal | B92: =B89 -> 0.001268326526 | C92: W | D92: =D89 -> 0.004565782947 | E92: W | F92: Ideal Rs for the required OCP -- based on 73mV CL threshold
A93: Rs | B93: ='Design Regulator'!E19/1000 -> 0.003 | C93: W | D93: ='Design Regulator'!J19/1000 -> 0.005 | E93: W | F93: Selected (starndard value) current limit sense resistor
A95: Current limit - peak | B95: =Buck_CS_threshold/Rs -> 16 | C95: A | D95: =Buck_CS_threshold/Rs_Ch2 -> 9.6 | E95: A | F95: Peak inductor current limit = min sat current
A97: Iout_OCP_Vinmin | B97: =Number_of_Phases*(Buck_CS_threshold/Rs-Iripple_Vinmin/2) -> 14.24494949 | C97: A | D97: =Buck_CS_threshold/Rs_Ch2-Iripple2_Vinmin/2 -> 9.396881185 | E97: A | F97: Current limit setpoints (i.e. IOUT) after standard components are selected
A98: Iout_OCP_Vinnom | B98: =Number_of_Phases*(Buck_CS_threshold/Rs-Iripple_Vinnom/2) -> 13.15485601 | C98: A | D98: =Buck_CS_threshold/Rs_Ch2-Iripple2_Vinnom/2 -> 8.887016672 | E98: A
A99: Iout_OCP_Vinmax | B99: =Number_of_Phases*(Buck_CS_threshold/Rs-Iripple_Vinmax/2) -> 12.52584392 | C99: A | D99: =Buck_CS_threshold/Rs_Ch2-Iripple2_Vinmax/2 -> 8.59433183 | E99: A
A101: Irms_OCP_Vinmin | B101: =SQRT((Iout_OCP_Vinmin/Number_of_Phases)^2+(Iripple_Vinmin^2)/12) -> 14.28094255 | C101: A | D101: =SQRT(Iout2_OCP_Vinmin^2+(Iripple2_Vinmin^2)/12) -> 9.397612911 | E101: A
A102: Irms_OCP_Vinnom | B102: =SQRT((Iout_OCP_Vinnom/Number_of_Phases)^2+(Iripple_Vinnom^2)/12) -> 13.2570177 | C102: A | D102: =SQRT(Iout2_OCP_Vinnom^2+(Iripple2_Vinnom^2)/12) -> 8.896545045 | E102: A
A103: Irms_OCP_Vinmax | B103: =SQRT((Iout_OCP_Vinmax/Number_of_Phases)^2+(Iripple_Vinmax^2)/12) -> 12.68542548 | C103: A | D103: =SQRT(Iout2_OCP_Vinmax^2+(Iripple2_Vinmax^2)/12) -> 8.613922592 | E103: A
A105: Pshunt_Vinmin | B105: =B101^2*Rs -> 0.6118359606 | C105: W | D105: =D101^2*Rs_Ch2 -> 0.4415756421 | E105: W | F105: Max power dissipations in shunt
A106: Pshunt_Vinnom | B106: =B102^2*Rs -> 0.5272455545 | C106: W | D106: =D102^2*Rs_Ch2 -> 0.3957425687 | E106: W
A107: Pshunt_Vinmax | B107: =B103^2*Rs -> 0.4827600585 | C107: W | D107: =D103^2*Rs_Ch2 -> 0.3709983121 | E107: W
A110: Step 4: Output Capacitor
A111: Icoutrms_VINmin | B111: =Iripple_Vinmin/SQRT(12) -> 1.013278882 | C111: A | D111: =Iripple2_Vinmin/SQRT(12) -> 0.1172707027 | E111: A | F111: Output Cap RMS current
A112: Icoutrms_VINnom | B112: =Iripple_Vinnom/SQRT(12) -> 1.642644646 | C112: A | D112: =Iripple2_Vinnom/SQRT(12) -> 0.4116411163 | E112: A
A113: Icoutrms_VINmax | B113: =Iripple_Vinmax/SQRT(12) -> 2.005804945 | C113: A | D113: =Iripple2_Vinmax/SQRT(12) -> 0.5806227889 | E113: A
A114: Max Cout rms current | B114: =MAX(B111:B113) -> 2.005804945 | C114: A | D114: =MAX(D111:D113) -> 0.5806227889 | E114: A
A116: Vripple1 | B116: ='Design Regulator'!E33/1000 -> 0.05 | C116: V | D116: ='Design Regulator'!J33/1000 -> 0.033 | E116: V | F116: Output voltage ripple spec(pk-pk)
A118: Output Ripple Spec (pk-pk) | B118: =Vo1_ripple*1000 -> 50 | C118: mV | D118: =Vo2_ripple*1000 -> 33 | E118: mV | F118: Vout ripple spec at Vin(nom)
A120: Coutmin | B120: =Iripple_Vinnom/(Fsw*8*Vo1_ripple) -> 3.233118166e-05 | C120: F | D120: =Iripple2_Vinnom/(Fsw*8*Vo2_ripple) -> 1.227588375e-05 | E120: F | F120: Minimum output capacitnace | H120: =Vo2_ripple -> 0.033 | I120: 1
A121: Reported Coutmin | B121: =IF(Cout_min*1000000<2, 2.2,Cout_min*1000000) -> 32.33118166 | C121: uF | D121: =IF(Cout2_min*1000000<2, 2.2,Cout2_min*1000000) -> 12.27588375 | E121: uF
A122: Cout | B122: ='Design Regulator'!E35/1000000 -> 4e-05 | C122: F | D122: ='Design Regulator'!J35/1000000 -> 4e-05 | E122: F | F122: Chosen output capacitance | I122: 1
A123: Resrmax | B123: =SQRT((Vo1_ripple/Iripple_Vinnom)^2-(1/(Fsw*Cout*8))^2) -> 0.005173718229 | C123: W | D123: =SQRT((Vo2_ripple/Iripple2_Vinnom)^2-(1/(Fsw*Cout2*8))^2) -> 0.0220254163 | E123: W | F123: Max ESR before ripple exceeds Vripple1 | I123: 1
A125: Reported Cout ESR max | B125: =IF(OR(CoutEsrMax>0.3, CoutEsrMax<0, (ISERROR(CoutEsrMax))), "N/A", CoutEsrMax*1000) -> 5.173718229 | C125: mΩ | D125: =IF(OR(Cout2EsrMax>0.3, Cout2EsrMax<0, (ISERROR(Cout2EsrMax))), "N/A", Cout2EsrMax*1000) -> 22.0254163 | E125: mΩ
A126: CoutEsr | B126: ='Design Regulator'!E37/1000 -> 0.008 | C126: W | D126: ='Design Regulator'!J37/1000 -> 0.01 | E126: W | F126: Chosen ESR | I126: 1 | K126: =ISERROR(CoutEsrMax) -> FALSE | L126: =ISERROR(B125) -> FALSE
A127: Vripple | B127: =Iripple_Vinnom*SQRT(Cout_ESR^2+(1/(8*Fsw*Cout))^2) -> 0.06087339062 | C127: Vp-p | D127: =Iripple2_Vinnom*SQRT(Cout2_ESR^2+(1/(8*Fsw*Cout2))^2) -> 0.01749018167 | E127: Vp-p | L127: =OR(CoutEsrMax>0.3,CoutEsrMax<0) -> FALSE
K128: =OR(TRUE, FALSE, TRUE) -> TRUE
A129: Step 5: Input Capacitor
K130: Two channels operating at full load
A131: Icinrms_VINmin | B131: =SQRT(D1_Vinmin_2*(Iout^2*(1-D1_Vinmin_2)+Iripple_Vinmin^2/12)) -> 12.39337836 | C131: A | D131: =SQRT(D2_Vinmin_2*(Iout2^2*(1-D2_Vinmin_2)+Iripple2_Vinmin^2/12)) -> 2.567847394 | E131: A | F131: Calculate input cap rms current with one output unloaded | K131: =SQRT(Iout^2*D1_Vinmin*(1-D1_Vinmin)+Iout2^2*D2_Vinmin*(1-D2_Vinmin)-2*Iout*Iout2*D1_Vinmin*D2_Vinmin) -> 1.037491633 | L131: A | M131: =SQRT(Iout^2*D1_Vinmin*(1-D1_Vinmin)+Iout2^2*D2_Vinmin*(1-D2_Vinmin)-2*Iout*Iout2*(0.5-D2_Vinmin*(1-D1_Vinmin))) -> 10.85094722 | N131: A
A132: Icinrms_VINnom | B132: =SQRT(D1_Vinnom_2*(Iout^2*(1-D1_Vinnom_2)+Iripple_Vinnom^2/12)) -> 11.35250787 | C132: A | D132: =SQRT(D2_Vinnom_2*(Iout2^2*(1-D2_Vinnom_2)+Iripple2_Vinnom^2/12)) -> 3.466651336 | E132: A | K132: =SQRT(Iout^2*D1_Vinnom*(1-D1_Vinnom)+Iout2^2*D2_Vinnom*(1-D2_Vinnom)-2*Iout*Iout2*D1_Vinnom*D2_Vinnom) -> 9.819110477 | L132: A
A133: Icinrms_VINmax | B133: =SQRT(D1_Vinmax_2*(Iout^2*(1-D1_Vinmax_2)+Iripple_Vinmax^2/12)) -> 8.263321466 | C133: A | D133: =SQRT(D2_Vinmax_2*(Iout2^2*(1-D2_Vinmax_2)+Iripple2_Vinmax^2/12)) -> 2.705520827 | E133: A | K133: =SQRT(Iout^2*D1_Vinmax*(1-D1_Vinmax)+Iout2^2*D2_Vinmax*(1-D2_Vinmax)-2*Iout*Iout2*D1_Vinmax*D2_Vinmax) -> 8.049888293 | L133: A
A134: Max Cin rms current | B134: =MAX(B131:B133, D131:D133) -> 12.39337836 | C134: A | K134: =MAX(K131:K133) -> 9.819110477 | L134: A
F135: =Number_of_Phases*D1_Vinnom -> 0.275 | G135: N*D
A136: Icinrms - multiphase | B136: =Iout*SQRT((D1_Vinnom-F136/Number_of_Phases)*((F136+1)/Number_of_Phases-D1_Vinnom)) -> 11.16285694 | C136: A | F136: =FLOOR(Number_of_Phases*D1_Vinnom,1) -> 0 | G136: floor(N*D)
A137: Icinrms - multiphase - max | B137: =Iout/2/Number_of_Phases -> 12.5 | C137: A
A138: Final result | B138: =CHOOSE(MODE, B134, B137) -> 12.39337836 | C138: A | D138: …report this
A140: Vinripple1 | B140: ='Design Regulator'!E42/1000 -> 0.05 | C140: Vp-p | F140: Input voltage ripple spec (pk-pk)
A142: Cinmin_Vinmax | B142: =Iout/Number_of_Phases*D1_Vinmax*(1-D1_Vinmax)/(Vinripple1*Fsw) -> 0.0001181441327 | C142: F | F142: Calculate cap at Vinmax and 50% duty cycle (Vin = 2*Vout)
A143: Cinmin_50%D | B143: =MAX(Iout/Number_of_Phases*0.5*(1-0.5)/(Vinripple1*Fsw), Iout2*0.5*(1-0.5)/(Vinripple1*Fsw)) -> 0.0002840909091 | C143: F | F143: Buck 50% typically worst case
A144: Cinmin | B144: =IF(VIN_max<2*Vout, B142,B143) -> 0.0002840909091 | C144: F
A145: Reported Cinmin | B145: =IF(Cinmin*1000000<10, 10,Cinmin*1000000) -> 284.0909091 | C145: uF | F145: …report this
A146: Cin | B146: ='Design Regulator'!E44/1000000 -> 0.0003 | C146: F | F146: Input capacitance
A147: CinEsrMax_Vinmax | B147: =-(Iout/Number_of_Phases*D1_Vinmax*(1-D1_Vinmax)/(Cin*Fsw)-Vinripple1)/(Iout/Number_of_Phases+Iripple_Vinmax/2) -> 0.001064449852 | C147: W
A148: CinEsrMax_50%D | B148: =-(Iout/Number_of_Phases*0.5*(1-0.5)/(Cin*Fsw)-Vinripple1)/(Iout/Number_of_Phases+Iripple_Vinmax/2) -> 9.312006103e-05 | C148: W | F148: Calculate ESR at Vinmax and 50% duty cycle (Vin = 2*Vout)
A149: CinEsrMax | B149: =IF(VIN_max<2*Vout, B147,B148) -> 9.312006103e-05 | C149: W
A150: Reported Cin ESR max | B150: =IF(OR(CinEsrMax>0.3, CinEsrMax<0), "N/A",CinEsrMax*1000) -> 0.09312006103 | C150: mΩ | F150: …report this
A151: RCinEsr | B151: ='Design Regulator'!E46/1000 -> 0.01 | C151: W | F151: Input capacitance series resistance (ESR)
A153: Vinripple2_Vinmax | B153: =Iout/Number_of_Phases*D1_Vinmax_2*(1-D1_Vinmax_2)/(Cin*Fsw)+(Iout/Number_of_Phases +Iripple_Vinmax/2)*RCinEsr -> 0.3052823186 | C153: Vp-p
A154: Vinripple2_50%D | B154: =Iout/Number_of_Phases*0.5*(1-0.5)/(Cin*Fsw)+(Iout/Number_of_Phases +Iripple_Vinmax/2)*RCinEsr -> 0.3320900456 | C154: Vp-p | F154: Calculate ripple at Vinmax and 50% duty cycle (Vin = 2*Vout)
A155: Vinripple2 | B155: =IF(VIN_max<2*Vout, B153,B154) -> 0.3320900456 | C155: Vp-p | F155: …report highest of these
B157: =Iout*D1_Vinmax_2*(1-D1_Vinmax_2)/(Cin*Fsw) -> 0.02054075789 | C157: Vp-p
A159: Step 6a: Soft Start
A160: Tss | B160: ='Design Regulator'!E51/1000 -> 0.0025 | C160: s | D160: Soft-start time
A161: Iss | B161: =Cout*Vout/Tss -> 0.0528 | C161: A | D161: Load cap current during soft start
A162: Css | B162: =0.000022*Tss/1.2 -> 4.583333333e-08 | C162: F
A163: Css_u | B163: ='Standard Value Calculator'!B4 -> 4.7e-08 | C163: F
A165: Step 6b: Other Components - Dither, Hiccup, DEMB, MODE
A166: Tres | B166: ='Design Regulator'!E53/1000 -> 0.012 | C166: s | D166: Hiccup time
A167: Cres | B167: =0.00002*Tres/1.2 -> 2e-07 | C167: F
A168: Cres_u | B168: ='Standard Value Calculator'!G4 -> 2.2e-07 | C168: F
A170: RPG1/2 | B170: 100 | C170: kΩ
A171: RFB1/2 | C171: W | E171: Tie to VDDA or AGND for 3.3V/5V output, respectively.
A172: R_MODE | C172: W | E172: Tie to VDDA or AGND for Single/Dual operation, respectively.
A173: R_DEMB | C173: W | E173: Tie to VDDA or AGND for FPWM/DEM, respectively.
A175: Dither Modulation Frequency | B175: ='Design Regulator'!#REF!*1000 ->  | C175: Hz
A176: Cdither_calculated | B176: =10*10^-6/Fdither/0.12 ->  | C176: F
A177: Cdither_stdvalue | B177: ='Standard Value Calculator'!O22 ->  | C177: F
A180: Step 7: Compensation
A181: Pi | B181: 3.14159265 | D181: p
A182: CS Amp Gain | B182: 12
A183: Ri | B183: =Rs*CSAmp_gain -> 0.036 | C183: W | D183: =Rs_Ch2*CSAmp_gain -> 0.06 | E183: W | F183: Current Sense effective resistance = shunt resistor Rs * CS amp gain
A184: gm | B184: 0.0012 | C184: S | F184: Error Amp Transconductance
A186: Se_ext | B186: =B190/Ri*1000 -> 3555555.556 | C186: A/s | D186: =D190/Ri_Ch2*1000 -> 2133333.333 | E186: A/s | F186: Slope Comp Slope - referred to inductor current | K186: 8888888.889
A187: Sn | B187: =(Vin-Vout)/Lf -> 8700000 | C187: A/s | D187: =(Vin-Vout2)/Lo_2 -> 1489361.702 | E187: A/s | F187: On-time Slope | K187: 15263157.89
A188: Sf | B188: =Vout/Lf -> 3300000 | C188: A/s | D188: =Vout2/Lo_2 -> 1063829.787 | E188: A/s | F188: Off-time Slope | K188: 5789473.684
A190: Se_int | B190: =Fsw/220*64/1000 -> 128 | C190: mV/μs | D190: =Fsw/220*64/1000 -> 128 | E190: mV/μs | F190: Slope Comp Slope - referred to IC | K190: 640
A191: Sn_int | B191: =Sn*Ri/1000 -> 313.2 | C191: mV/μs | D191: =Sn_Ch2*Ri_Ch2/1000 -> 89.36170213 | E191: mV/μs | F191: etc | K191: 1098.947368
A192: Sf_int | B192: =Sf*Ri/1000 -> 118.8 | C192: mV/μs | D192: =Sf_Ch2*Ri_Ch2/1000 -> 63.82978723 | E192: mV/μs | F192: etc | K192: 416.8421053
A194: mc_buck | B194: =1+Se_ext/Sn -> 1.408684547 | D194: =1+Se_ext2/Sn_Ch2 -> 2.432380952 | F194: mc = 1 + Se/Sn for peak current-mode buck | K194: 1.582375479
A195: k_buck | B195: =mc_buck*(1-D1_Vinnom_2) -> 1.003286716 | D195: =mc_buck_Ch2*(1-D2_Vinnom_2) -> 1.407688686 | F195: mc*(1-d) | K195: 0.9161536156
A197: mc | B197: =1+Se_ext/Sn -> 1.408684547 | D197: =1+Se_ext2/Sn_Ch2 -> 2.432380952 | K197: 1.582375479
A198: k | B198: =mc_buck*(1-D1_Vinnom_2) -> 1.003286716 | D198: =mc_buck_Ch2*(1-D2_Vinnom_2) -> 1.407688686 | K198: 0.9161536156
A199: Q | B199: =1/Pi/(k-0.5) -> 0.6324623245 | D199: =1/Pi/(k_Ch2-0.5) -> 0.3506817828 | F199: 1/(Pi*(k-0.5)) | H199: Q = 2/Pi = 0.636 gives ideal one-cycle damping | K199: 0.7648855485
A201: Error Amp (EA)
A202: GBW | B202: 6 | C202: MHz | F202: EA gain-bandwidth product
A203: Cbw | B203: =gm/(2*Pi*GBW*1000000) -> 3.183098865e-11 | C203: F | F203: EA effective bandwidth limiting capacitance = gm/(2*Pi*GBW)
A204: RoEA | B204: 64000000 | C204: W | F204: EA output resistance
A205: AEA | B205: =gm*RoEA -> 76800 | C205: V/V | F205: EA DC gain = gm*RoEA
A206: Afb | B206: =Vref/Vout -> 0.3636363636 | C206: V/V | D206: =Vref/Vout2 -> 0.24 | E206: V/V | F206: Feedback gain from Vout to FB
A207: Acs | B207: =1/Ri -> 27.77777778 | D207: =1/Ri_Ch2 -> 16.66666667 | F207: Acs = 1/Ri
A208: Am_buck | B208: =(Ro/Number_of_Phases)/Ri/((1+Ro/Number_of_Phases*(k-0.5)/(Fsw*Lf))) -> 3.185674386 | D208: =Ro_Ch2/Ri_Ch2/((1+Ro_Ch2*(k_Ch2-0.5)/(Fsw*Lo_2))) -> 9.063285706
A209: Am | B209: =(Ro*Number_of_Phases)/Ri/((1+Ro*Number_of_Phases*(k-0.5)/(Fsw*Lf))) -> 3.185674386 | D209: =Ro_Ch2/Ri_Ch2/((1+Ro_Ch2*(k_Ch2-0.5)/(Fsw*Lo_2))) -> 9.063285706 | F209: Buck modulator gain
A211: Scaling factor to calculate Rcomp - buck | B211: =2*Pi*Ri/gm -> 188.495559 | F211: 2*Pi*Ri/gm -- scaling factor to calculate Rcomp given desired buck crossover frequency
A212: DC Gain is Adc = AEA*Afb*Am
A214: Ro | B214: =Rout -> 0.132 | C214: W | D214: =Rout2 -> 0.7142857143 | E214: W | F214: Output Resistance
A216: Fp_load_buck | B216: =1/(2*Pi*Ro*Cout)+(k-0.5)/(2*Pi*Fsw*Lf*Cout/Number_of_Phases) -> 34694.15036 | C216: Hz | D216: =1/(2*Pi*Ro_Ch2*Cout2)+(k_Ch2-0.5)/(2*Pi*Fsw*Lo_2*Cout2) -> 7316.834297 | E216: Hz | F216: Buck dominant pole frequency -- note slope comp influence
A217: Fp_dominant | B217: =Fload_u -> 34694.15036 | C217: Hz | D217: =Fload_u_Ch2 -> 7316.834297 | E217: Hz
B218: =Cbw -> 3.183098865e-11
A219: Fp_EA | B219: =1/(2*Pi*(RoEA+Rcea1_u)*Cc1ea_u) -> 0.3032580898 | C219: Hz | D219: =1/(2*Pi*(RoEA+Rcea2_u)*Cc3ea_u) -> 0.9208657667 | E219: Hz | F219: Error Amp LF pole -- related to amplifier ouptut resistance and comp cap
A220: Fp_HF | B220: =1/(2*Pi*Rcea1_u*(Cc2ea_u+Cbw)) -> 214565.8059 | C220: Hz | D220: =1/(2*Pi*Rcea2_u*(Cc4ea_u+Cbw)) -> 229261.9479 | E220: Hz | F220: Error Amp HF pole cancels zero related to Output Cap ESR
A221: Fesr | B221: =1/(2*Pi*Cout*Cout_ESR) -> 497359.1977 | C221: Hz | D221: =1/(2*Pi*Cout2*Cout2_ESR) -> 397887.3582 | E221: Hz | F221: Cout ESR zero frequency
A222: F_mod | B222: =Fsw/2 -> 220000 | C222: Hz | F222: Zero-order sample-and-hold effects of current-mode control modeled as pole at Fsw/2
A224: Desired Crossover Frequency | B224: ='Design Regulator'!E63*1000 -> 100000 | C224: Hz | D224: ='Design Regulator'!J63*1000 -> 100000 | E224: Hz
A225: Rcea1 | B225: =Fcross*Cout/Number_of_Phases*2*Pi*Ri/(gm*Afb) -> 2073.451149 | C225: W | D225: =Fcross_Ch2*Cout2*2*Pi*Ri_Ch2/(gm*Afb_Ch2) -> 5235.98775 | E225: W | F225: This component will largely determine the crossover frequency | K225: =Fcross/Fp_dominant/(gm*Afb*Am) -> 2073.451149
A226: Cc1ea, Cc3ea | B226: =10/(Rcea1*Fcross*2*Pi) -> 7.675847263e-09 | C226: F | D226: =10/(Rcea2*Fcross_Ch2*2*Pi) -> 3.039635516e-09 | E226: F | F226: This along with Rcea1 will set a zero at Fcrossover/5 to optimize phase margin
A227: Cc2ea, Cc4ea | B227: =MAX(1/(Rcea1*2*Pi*Fesr)-Cbw, 1/(Rcea1*2*Pi*(Fsw/2))-Cbw) -> 3.170711597e-10 | C227: F | D227: =MAX(1/(Rcea2*2*Pi*Fesr_Ch2)-Cbw, 1/(Rcea2*2*Pi*(Fsw/2))-Cbw) -> 1.063342621e-10 | E227: F | F227: This along with Rcea1 places a pole at the output cap ESR zero
A229: Chosen Compensation Components from the standard value sheet
A230: Rcea1_u | B230: ='Design Regulator'!D70*1000 -> 2050 | C230: W | D230: ='Design Regulator'!D73*1000 -> 11800 | E230: W | F230: =1/(Rcea1*2*Pi*(Fsw/2))-Cbw -> 3.170711597e-10
A231: Cc1ea_u | B231: ='Design Regulator'!D71*0.000000001 -> 8.2e-09 | C231: F | D231: ='Design Regulator'!D74*0.000000001 -> 2.7e-09 | E231: F
A232: Cc2ea_u | B232: ='Design Regulator'!D72*0.000000000001 -> 3.3e-10 | C232: F | D232: ='Design Regulator'!D75*0.000000000001 -> 2.7e-11 | E232: F
A234: Resulting Pole/Zero Locations | F234: =Cout -> 4e-05 | G234: =Cout_ESR -> 0.008
A235: Fz1 | B235: =1/(2*Pi*Rcea1_u*Cc1ea_u) -> 9467.87289 | C235: Hz | D235: =1/(2*Pi*Rcea2_u*Cc3ea_u) -> 4995.447058 | E235: Hz | F235: This zero is set at or close to the dominant load pole
A236: Fp2 | B236: =1/(2*Pi*Rcea1_u*(Cc1ea_u*(Cc2ea_u+Cbw)/(Cc1ea_u+Cc2ea_u+Cbw))) -> 224033.6788 | C236: Hz | D236: =1/(2*Pi*Rcea2_u*(Cc3ea_u*(Cc4ea_u+Cbw)/(Cc3ea_u+Cc4ea_u+Cbw))) -> 234257.395 | E236: Hz | F236: This pole cancels the zero from the Output Cap ESR
A238: Rfb1 | B238: ='Design Regulator'!E65*1000 -> 390900 | C238: W | D238: ='Design Regulator'!J65*1000 -> 100000 | E238: W | F238: Upper Feedback Resistance - chosen by user
A239: Rfb2 | B239: =IF(Vout=Vref,100000000,Vref*B238/((Vout-Vref))) -> 223371.4286 | C239: W | D239: =IF(Vout2=Vref,100000000,Vref*D238/((Vout2-Vref))) -> 31578.94737 | E239: W | F239: Lower Feedback Resistance
A240: Rfb2_u | B240: =IF(Vout=Vref,"N/A",'Standard Value Calculator'!O11) -> 221000 | C240: W | D240: =IF(Vout2=Vref,"N/A",'Standard Value Calculator'!O13) -> 31600 | E240: W | F240: Std Value Lower Feedback Resistance
A243: Other Input Variables
A244: Rfets | B244: 0 | C244: W | D244: Series resistance due to FETs
A245: Diode loss eq res | B245: =0.00000002*Fsw*0.6*4/Iripple1 -> 
A246: Fet loss eq res | B246: =_Don2*RdsonTop+Doff2*RdsonBot -> 
A247: cap loss eq res | B247: =B248*Vin^2*Fsw/2/(((Iripple1/SQRT(3))^2)) -> 
A248: Sw cap | B248: 5e-09
A250: Step 8: Efficiency
A251: VAR | B251: 0
A252: Design
A253: Ta | B253: ='Design Regulator'!E13 -> 25 | C253: °C | D253: Ambient Temperature
A254: Components
A255: LTc | B255: =4000/1000000 -> 0.004 | C255: %/°C | D255: Inductor DCR Temp Co
A256: θCA | B256: 20 | C256: °C/W | D256: Inductor Core to Ambient Thermal Resistance
A257: RCinEsr | B257: =RCinEsr -> 0.01 | C257: W | D257: Input Capacitor ESR
A259: Controller Characteristics
... 106 more rows

Sheet Stability Calculations (hidden)
A2: Divider Network & EA Poles/Zeros | E2: Modulator | J2: Power Stage Poles/Zeros | M2: Complex Pole Pair | P2: Total System
B3: Afb1 | C3: =Afb -> 0.3636363636 | D3: V/V | E3: Acs | F3: =Acs -> 27.77777778 | G3: A/V | H3: gm | I3: =gm -> 0.0012 | J3: z_ESR | K3: =Fesr -> 497359.1977 | L3: Hz | M3: p3 | N3: =Fsw/2 -> 220000 | O3: Hz | P3: Adc | Q3: =Am*Afb*AEA -> 88967.1974 | R3: V/V
B4: EA zero, z1 | C4: =Fz1_u -> 9467.87289 | D4: Hz | E4: Am | F4: =Am -> 3.185674386 | G4: V/V | J4: p_dom | K4: =Fp_dominant -> 34694.15036 | L4: Hz | M4: pterm1 | N4: =Q*pole3 -> 139141.7114 | P4: Crossover | Q4: =AE7 -> 82.70275 | R4: kHz
B5: EA pole, p1 | C5: =Fp1_u -> 0.3032580898 | D5: Hz | E5: Q | F5: =Q -> 0.6324623245 | M5: pterm2 | N5: =pole3^2 -> 48400000000 | P5: Phase Margin | Q5: =AE9 -> 59.89896031 | R5: °
B6: Aea | C6: =AEA -> 76800 | D6: V/V | E6: mc | F6: =mc -> 1.408684547 | P6: radconv | Q6: =180/Pi -> 57.29577958 | AD6: XOVER SEARCH
B7: EA pole, p2 | C7: =Fp2_u -> 214565.8059 | D7: Hz | E7: k | F7: =k -> 1.003286716 | AD7: xover | AE7: =SUM(AD12:AD613)/1000 -> 82.70275
AD9: phase margin | AE9: =SUM(AE13:AE613) -> 59.89896031
A10: Freq (Hz) | C10: Power Stage | I10: Error Amplifier | O10: Sampling Double Pole | Q10: System Response | X10: ERROR AMP Response | AA10: PLANT Response
C11: p_dom | E11: z_ESR | G11: z_RHP | I11: p1 | K11: z1 | M11: p2 | O11: p3
C12: Gain(V/V) | D12: Phase(rad) | E12: Gain(V/V) | F12: Phase(rad) | G12: Gain(V/V) | H12: Phase(rad) | I12: Gain(V/V) | J12: Phase(rad) | K12: Gain(V/V) | L12: Phase(rad) | M12: Gain(V/V) | N12: Phase(rad) | O12: Gain(V/V) | P12: Phase(rad) | Q12: Gain (dB) | R12: Phase (°) | S12: Phase Margin (°) | V12: Fsquare | X12: Gain(dB) | Y12: Phase(Deg) | AA12: Gain(dB) | AB12: Phase(Deg)
A13: 1 | B13: =A13/1000 -> 0.001 | C13: =SQRT(1+(A13/pole1)^2) -> 1 | D13: =ATAN(A13/pole1) -> 2.882330275e-05 | E13: =SQRT(1+(A13/Zero1)^2) -> 1 | F13: =ATAN(A13/Zero1) -> 2.010619296e-06 | G13: =IF(VIN_nom>Vout, 1, SQRT(1+(A13/z_RHP)^2)) -> 1 | H13: =IF(VIN_nom>Vout, 0, -ATAN(A13/z_RHP)) -> 0 | I13: =SQRT(1+(A13/Pole2)^2) -> 3.445815796 | J13: =ATAN(A13/Pole2) -> 1.276353146 | K13: =SQRT(1+(A13/Zero2)^2) -> 1.000000006 | L13: =ATAN(A13/Zero2) -> 0.0001056203445 | M13: =SQRT(1+(A13/pole4)^2) -> 1 | N13: =ATAN(A13/pole4) -> 4.660574855e-06 | O13: =SQRT((1-(V13/pterm2))^2+(A13/pterm1)^2) -> 1 | P13: =IF((ATAN((A13/pterm1)/(1-A13^2/pterm2))>0),ATAN((A13/pterm1)/(1-A13^2/pterm2)),PI()+ATAN((A13/pterm1)/(1-A13^2/pterm2))) -> 7.186917496e-06 | Q13: =20*LOG10(((E13*K13*G13)/(C13*I13*O13*M13))*Adc) -> 88.23875709 | R13: =((F13+L13+H13)-(D13+J13+P13+N13))*radconv -> -73.12581198 | S13: =IF(R13>0,R13,R13+180) -> 106.874188 | U13: =IF(Q13<0,A13,1000000000) -> 1000000000 | V13: =A13^2 -> 1 | X13: =20*LOG10((K13/(I13*M13))*AEA) -> 86.9613833 | Y13: =(L13-(J13+N13))*radconv -> -73.12386395 | AA13: =20*LOG10((E13*G13/(C13*O13))*Acs*Am) -> 38.93797765 | AB13: =(F13+H13-(D13+P13))*radconv -> -0.001948033642 | AD13: =SUM((Q14<0)*(Q13>0))*A13 -> 0 | AE13: =IF(AD13>0,S11,0) -> 0
A14: 1.0965 | B14: =A14/1000 -> 0.0010965 | C14: 1 | D14: 3.160475147e-05 | E14: 1 | F14: 2.204644058e-06 | G14: 1 | H14: 0 | I14: 3.751468831 | J14: 1.300971861 | K14: 1.000000007 | L14: 0.0001158127077 | M14: 1 | N14: 5.110320329e-06 | O14: 1 | P14: 7.880455035e-06 | Q14: 87.5005714 | R14: -74.53599025 | S14: 105.4640097 | U14: =IF(Q14<0,A14,1000000000) -> 1000000000 | V14: =A14^2 -> 1.20231225 | X14: 86.22319761 | Y14: -74.53385423 | AA14: 38.93797765 | AB14: -0.002136018888 | AD14: =SUM((Q15<0)*(Q14>0))*A14 -> 0 | AE14: 0
A15: 1.2023 | B15: 0.0012023 | C15: 1.000000001 | D15: 3.46542569e-05 | E15: 1 | F15: 2.41736758e-06 | G15: 1 | H15: 0 | I15: 4.088781115 | J15: 1.323718411 | K15: 1.000000008 | L15: 0.00012698734 | M15: 1 | N15: 5.603409149e-06 | O15: 1 | P15: 8.640830906e-06 | Q15: 86.75272102 | R15: -75.83886561 | S15: 104.1611344 | U15: 1000000000 | V15: 1.44552529 | X15: 85.47534723 | Y15: -75.83652349 | AA15: 38.93797765 | AB15: -0.002342120848 | AD15: 0 | AE15: 0
A16: 1.3183 | B16: 0.0013183 | C16: 1.000000001 | D16: 3.799776001e-05 | E16: 1 | F16: 2.650599418e-06 | G16: 1 | H16: 0 | I16: 4.460658265 | J16: 1.344692573 | K16: 1.00000001 | L16: 0.0001392392998 | M16: 1 | N16: 6.144035832e-06 | O16: 1 | P16: 9.474513335e-06 | Q16: 85.99661922 | R16: -77.04015155 | S16: 102.9598485 | U16: 1000000000 | V16: 1.73791489 | X16: 84.71924543 | Y16: -77.03758346 | AA16: 38.93797765 | AB16: -0.00256809275 | AD16: 0 | AE16: 0
A17: 1.4454 | B17: 0.0014454 | C17: 1.000000001 | D17: 4.166120179e-05 | E17: 1 | F17: 2.90614913e-06 | G17: 1 | H17: 0 | I17: 4.870012054 | J17: 1.363986965 | K17: 1.000000012 | L17: 0.0001526636453 | M17: 1 | N17: 6.736394896e-06 | O17: 1 | P17: 1.038797055e-05 | Q17: 85.23399757 | R17: -78.14515119 | S17: 101.8548488 | U17: 1000000000 | V17: 2.08918116 | X17: 83.95662378 | Y17: -78.14233551 | AA17: 38.93797765 | AB17: -0.002815687826 | AD17: 0 | AE17: 0
A18: 1.5849 | B18: 0.0015849 | C18: 1.000000001 | D18: 4.568205252e-05 | E18: 1 | F18: 3.186630522e-06 | G18: 1 | H18: 0 | I18: 5.321052503 | J18: 1.381739364 | K18: 1.000000014 | L18: 0.0001673976831 | M18: 1 | N18: 7.386545088e-06 | O18: 1 | P18: 1.139054554e-05 | Q18: 84.46464743 | R18: -79.16175352 | S18: 100.8382465 | U18: 1000000000 | V18: 2.51190801 | X18: 83.18727364 | Y18: -79.15866608 | AA18: 38.93797765 | AB18: -0.003087438518 | AD18: 0 | AE18: 0
A19: 1.7378 | B19: 0.0017378 | C19: 1.000000001 | D19: 5.00891355e-05 | E19: 1 | F19: 3.494054213e-06 | G19: 1 | H19: 0 | I19: 5.817031556 | J19: 1.398029149 | K19: 1.000000017 | L19: 0.0001835470333 | M19: 1 | N19: 8.099146984e-06 | O19: 1 | P19: 1.248942523e-05 | Q19: 83.69056994 | R19: -80.09450281 | S19: 99.90549719 | U19: 1000000000 | V19: 3.01994884 | X19: 82.41319615 | Y19: -80.09111751 | AA19: 38.93797765 | AB19: -0.003385292862 | AD19: 0 | AE19: 0
A20: 1.9055 | B20: 0.0019055 | C20: 1.000000002 | D20: 5.492280336e-05 | E20: 1 | F20: 3.831235069e-06 | G20: 1 | H20: 0 | I20: 6.362503595 | J20: 1.412971102 | K20: 1.00000002 | L20: 0.0002012595645 | M20: 1 | N20: 8.880725387e-06 | O20: 1 | P20: 1.369467129e-05 | Q20: 82.91203755 | R20: -80.94997027 | S20: 99.05002973 | U20: 1000000000 | V20: 3.63093025 | X20: 81.63466376 | Y20: -80.94625829 | AA20: 38.93797765 | AB20: -0.003711978103 | AD20: 0 | AE20: 0
A21: 2.0893 | B21: 0.0020893 | C21: 1.000000002 | D21: 6.022052639e-05 | E21: 1 | F21: 4.200786895e-06 | G21: 1 | H21: 0 | I21: 6.961706997 | J21: 1.426654781 | K21: 1.000000024 | L21: 0.000220672583 | M21: 1 | N21: 9.737339045e-06 | O21: 1 | P21: 1.501562673e-05 | Q21: 82.13028358 | R21: -81.73328218 | S21: 98.26671782 | U21: 1000000000 | V21: 4.36517449 | X21: 80.8529098 | Y21: -81.72921215 | AA21: 38.93797764 | AB21: -0.004070026685 | AD21: 0 | AE21: 0
A22: 2.2909 | B22: 0.0022909 | C22: 1.000000002 | D22: 6.60313042e-05 | E22: 1 | F22: 4.606127745e-06 | G22: 1 | H22: 0 | I22: 7.620191571 | J22: 1.43918642 | K22: 1.000000029 | L22: 0.0002419656434 | M22: 1 | N22: 1.067691094e-05 | O22: 1 | P22: 1.646450929e-05 | Q22: 81.34528064 | R22: -82.45051875 | S22: 97.54948125 | U22: 1000000000 | V22: 5.24822281 | X22: 80.06790686 | Y22: -82.446056 | AA22: 38.93797764 | AB22: -0.004462750266 | AD22: 0 | AE22: 0
A23: 2.5119 | B23: 0.0025119 | C23: 1.000000003 | D23: 7.240125408e-05 | E23: 1 | F23: 5.05047461e-06 | G23: 1 | H23: 0 | I23: 8.343189582 | J23: 1.450649237 | K23: 1.000000035 | L23: 0.0002653077381 | M23: 1 | N23: 1.170689798e-05 | O23: 1 | P23: 1.805281806e-05 | Q23: 80.55795624 | R23: -83.10644196 | S23: 96.89355804 | U23: 1000000000 | V23: 6.30964161 | X23: 79.28058246 | Y23: -83.10154869 | AA23: 38.93797764 | AB23: -0.004893265699 | AD23: 0 | AE23: 0
A24: 2.7542 | B24: 0.0027542 | C24: 1.000000003 | D24: 7.93851403e-05 | E24: 1 | F24: 5.537647665e-06 | G24: 1 | H24: 0 | I24: 9.136920963 | J24: 1.461130582 | K24: 1.000000042 | L24: 0.0002908995457 | M24: 1 | N24: 1.283615527e-05 | O24: 1 | P24: 1.979420817e-05 | Q24: 79.76860117 | R24: -83.70604916 | S24: 96.29395084 | U24: 1000000000 | V24: 7.58561764 | X24: 78.4912274 | Y24: -83.70068389 | AA24: 38.93797763 | AB24: -0.005365274249 | AD24: 0 | AE24: 0
A25: 3.02 | B25: 0.00302 | C25: 1.000000004 | D25: 8.704637412e-05 | E25: 1 | F25: 6.072070274e-06 | G25: 1 | H25: 0 | I25: 10.00859658 | J25: 1.47071523 | K25: 1.000000051 | L25: 0.0003189734308 | M25: 1 | N25: 1.407493606e-05 | O25: 1 | P25: 2.170449084e-05 | Q25: 78.97713492 | R25: -84.2541893 | S25: 95.7458107 | U25: 1000000000 | V25: 9.1204 | X25: 77.69976115 | Y25: -84.24830624 | AA25: 38.93797763 | AB25: -0.005883061588 | AD25: 0 | AE25: 0
A26: 3.3113 | B26: 0.0033113 | C26: 1.000000005 | D26: 9.544260215e-05 | E26: 1 | F26: 6.657763675e-06 | G26: 1 | H26: 0 | I26: 10.96477794 | J26: 1.479468304 | K26: 1.000000061 | L26: 0.0003497406338 | M26: 1 | N26: 1.543256152e-05 | O26: 1 | P26: 2.379803991e-05 | Q26: 78.18460187 | R26: -84.75458593 | S26: 95.24541407 | U26: 1000000000 | V26: 10.96470769 | X26: 76.90722811 | Y26: -84.74813541 | AA26: 38.93797762 | AB26: -0.006450523784 | AD26: 0 | AE26: 0
A27: 3.6308 | B27: 0.0036308 | C27: 1.000000005 | D27: 0.0001046516473 | E27: 1 | F27: 7.30015654e-06 | G27: 1 | H27: 0 | I27: 12.01432951 | J27: 1.487465979 | K27: 1.000000074 | L27: 0.0003834863294 | M27: 1 | N27: 1.692161518e-05 | O27: 1 | P27: 2.609426005e-05 | Q27: 77.39060801 | R27: -85.21159314 | S27: 94.78840686 | U27: 1000000000 | V27: 13.18270864 | X27: 76.11323426 | Y27: -85.20452022 | AA27: 38.93797761 | AB27: -0.007072920528 | AD27: 0 | AE27: 0
A28: 3.9811 | B28: 0.0039811 | C28: 1.000000007 | D28: 0.0001147484501 | E28: 1 | F28: 8.004476479e-06 | G28: 1 | H28: 0 | I28: 13.16579404 | J28: 1.494768705 | K28: 1.000000088 | L28: 0.0004204851303 | M28: 1 | N28: 1.855421455e-05 | O28: 1 | P28: 2.861183725e-05 | Q28: 76.59565777 | R28: -85.62866459 | S28: 94.37133541 | U28: 1000000000 | V28: 15.84915721 | X28: 75.31828403 | Y28: -85.62090927 | AA28: 38.9379776 | AB28: -0.007755316706 | AD28: 0 | AE28: 0
A29: 4.3652 | B29: 0.0043652 | C29: 1.000000008 | D29: 0.0001258194806 | E29: 1 | F29: 8.776755351e-06 | G29: 1 | H29: 0 | I29: 14.42903389 | J29: 1.501436017 | K29: 1.000000106 | L29: 0.0004610538969 | M29: 1 | N29: 2.034434136e-05 | O29: 1 | P29: 3.137233226e-05 | Q29: 75.79985398 | R29: -86.00919985 | S29: 93.99080015 | U29: 1000000000 | V29: 19.05497104 | X29: 74.52248025 | Y29: -86.00069629 | AA29: 38.93797759 | AB29: -0.008503556418 | AD29: 0 | AE29: 0
A30: 4.7863 | B30: 0.0047863 | C30: 1.00000001 | D30: 0.0001379569731 | E30: 1 | F30: 9.623427136e-06 | G30: 1 | H30: 0 | I30: 15.81457411 | J30: 1.5075213 | K30: 1.000000128 | L30: 0.0005055306137 | M30: 1 | N30: 2.230690943e-05 | O30: 1 | P30: 3.439874322e-05 | Q30: 75.00344921 | R30: -86.35624531 | S30: 93.64375469 | U30: 1000000000 | V30: 22.90866769 | X30: 73.72607549 | Y30: -86.34692144 | AA30: 38.93797757 | AB30: -0.009323873373 | AD30: 0 | AE30: 0
A31: 5.2481 | B31: 0.0052481 | C31: 1.000000011 | D31: 0.0001512675741 | E31: 1 | F31: 1.055193113e-05 | G31: 1 | H31: 0 | I31: 17.33458946 | J31: 1.513076155 | K31: 1.000000154 | L31: 0.0005543060753 | M31: 1 | N31: 2.445916289e-05 | O31: 1 | P31: 3.771766172e-05 | Q31: 74.20632822 | R31: -86.67274333 | S31: 93.32725667 | U31: 1000000000 | V31: 27.54255361 | X31: 72.92895452 | Y31: -86.66251986 | AA31: 38.93797756 | AB31: -0.01022347529 | AD31: 0 | AE31: 0
A32: 5.7544 | B32: 0.0057544 | C32: 1.000000014 | D32: 0.0001658608119 | E32: 1 | F32: 1.156990768e-05 | G32: 1 | H32: 0 | I32: 19.00158821 | J32: 1.518144824 | K32: 1.000000185 | L32: 0.0006077816378 | M32: 1 | N32: 2.681881194e-05 | O32: 1 | P32: 4.135639805e-05 | Q32: 73.40880164 | R32: -86.96121424 | S32: 93.03878576 | U32: 1000000000 | V32: 33.11311936 | X32: 72.13142796 | Y32: -86.95000447 | AA32: 38.93797754 | AB32: -0.01120976471 | AD32: 0 | AE32: 0
A33: 6.3096 | B33: 0.0063096 | C33: 1.000000017 | D33: 0.0001818635091 | E33: 1 | F33: 1.268620351e-05 | G33: 1 | H33: 0 | I33: 20.8300578 | J33: 1.522770319 | K33: 1.000000222 | L33: 0.0006664220295 | M33: 1 | N33: 2.94063631e-05 | O33: 1 | P33: 4.534657464e-05 | Q33: 72.61079048 | R33: -87.22410555 | S33: 92.77589445 | U33: 1000000000 | V33: 39.81105216 | X33: 71.33341683 | Y33: -87.21181423 | AA33: 38.93797751 | AB33: -0.01229131296 | AD33: 0 | AE33: 0
A34: 6.9183 | B34: 0.0069183 | C34: 1.00000002 | D34: 0.0001994082529 | E34: 1 | F34: 1.391006747e-05 | G34: 1 | H34: 0 | I34: 22.83514795 | J34: 1.526990177 | K34: 1.000000267 | L34: 0.000730713102 | M34: 1.000000001 | N34: 3.224325501e-05 | O34: 1 | P34: 4.972125132e-05 | Q34: 71.81252374 | R34: -87.46355033 | S34: 92.53644967 | U34: 1000000000 | V34: 47.86287489 | X34: 70.53515012 | Y34: -87.45007325 | AA34: 38.93797748 | AB34: -0.013477081 | AD34: 0 | AE34: 0
A35: 7.5858 | B35: 0.0075858 | C35: 1.000000024 | D35: 0.0002186478066 | E35: 1 | F35: 1.525215585e-05 | G35: 1 | H35: 0 | I35: 25.03431738 | J35: 1.530840529 | K35: 1.000000321 | L35: 0.0008012146408 | M35: 1.000000001 | N35: 3.535418872e-05 | O35: 1 | P35: 5.451851875e-05 | Q35: 71.0138857 | R35: -87.68159833 | S35: 92.31840167 | U35: 1000000000 | V35: 57.54436164 | X35: 69.73651211 | Y35: -87.66682094 | AA35: 38.93797745 | AB35: -0.01477739341 | AD35: 0 | AE35: 0
A36: 8.3176 | B36: 0.0083176 | C36: 1.000000029 | D36: 0.0002397406985 | E36: 1 | F36: 1.672352705e-05 | G36: 1 | H36: 0 | I36: 27.44568673 | J36: 1.534352663 | K36: 1.000000386 | L36: 0.0008785075547 | M36: 1.000000001 | N36: 3.87647974e-05 | O36: 1 | P36: 5.977790498e-05 | Q36: 70.21511925 | R36: -87.8800212 | S36: 92.1199788 | U36: 1000000000 | V36: 69.18246976 | X36: 68.93774571 | Y36: -87.86381824 | AA36: 38.93797741 | AB36: -0.01620296436 | AD36: 0 | AE36: 0
A37: 9.1201 | B37: 0.0091201 | C37: 1.000000035 | D37: 0.0002628713975 | E37: 1 | F37: 1.833704904e-05 | G37: 1 | H37: 0 | I37: 30.09034491 | J37: 1.537556955 | K37: 1.000000464 | L37: 0.0009632678095 | M37: 1.000000001 | N37: 4.250490871e-05 | O37: 1 | P37: 6.554540628e-05 | Q37: 69.4160586 | R37: -88.06053481 | S37: 91.93946519 | U37: 1000000000 | V37: 83.17622401 | X37: 68.1386851 | Y37: -88.04276855 | AA37: 38.93797736 | AB37: -0.01776626128 | AD37: 0 | AE37: 0
A38: 10 | B38: 0.01 | C38: 1.000000042 | D38: 0.0002882330196 | E38: 1 | F38: 2.010619296e-05 | G38: 1 | H38: 0 | I38: 32.99037208 | J38: 1.540479809 | K38: 1.000000558 | L38: 0.001056203056 | M38: 1.000000001 | N38: 4.660574852e-05 | O38: 1.000000001 | P38: 7.186917499e-05 | Q38: 68.6168584 | R38: -88.22462626 | S38: 91.77537374 | U38: 1000000000 | V38: 100 | X38: 67.33948496 | Y38: -88.20514592 | AA38: 38.93797729 | AB38: -0.01948033597 | AD38: 0 | AE38: 0
A39: 10.965 | B39: 0.010965 | C39: 1.00000005 | D39: 0.0003160475043 | E39: 1 | F39: 2.204644058e-05 | G39: 1 | H39: 0 | I39: 36.17114649 | J39: 1.543146459 | K39: 1.000000671 | L39: 0.001158126564 | M39: 1.000000001 | N39: 5.110320325e-05 | O39: 1.000000001 | P39: 7.880455038e-05 | Q39: 67.81735808 | R39: -88.37371178 | S39: 91.62628822 | U39: 1000000000 | V39: 120.231225 | X39: 66.53998472 | Y39: -88.35235159 | AA39: 38.93797722 | AB39: -0.02136018829 | AD39: 0 | AE39: 0
A40: 12.023 | B40: 0.012023 | C40: 1.00000006 | D40: 0.0003465425552 | E40: 1 | F40: 2.417367579e-05 | G40: 1 | H40: 0 | I40: 39.65870775 | J40: 1.545578511 | K40: 1.000000806 | L40: 0.001269872724 | M40: 1.000000002 | N40: 5.603409143e-05 | O40: 1.000000001 | P40: 8.64083091e-05 | Q40: 67.01783348 | R40: -88.50899905 | S40: 91.49100095 | U40: 1000000000 | V40: 144.552529 | X40: 65.74046021 | Y40: -88.48557784 | AA40: 38.93797713 | AB40: -0.02342120769 | AD40: 0 | AE40: 0
A41: 13.183 | B41: 0.013183 | C41: 1.000000072 | D41: 0.000379977582 | E41: 1 | F41: 2.650599417e-05 | G41: 1 | H41: 0 | I41: 43.48272319 | J41: 1.547796659 | K41: 1.000000969 | L41: 0.001392392107 | M41: 1.000000002 | N41: 6.144035824e-05 | O41: 1.000000001 | P41: 9.474513341e-05 | Q41: 66.21827127 | R41: -88.63163924 | S41: 91.36836076 | U41: 1000000000 | V41: 173.791489 | X41: 64.94089811 | Y41: -88.60595831 | AA41: 38.93797703 | AB41: -0.02568092647 | AD41: 0 | AE41: 0
A42: 14.454 | B42: 0.014454 | C42: 1.000000087 | D42: 0.000416611994 | E42: 1 | F42: 2.90614913e-05 | G42: 1 | H42: 0 | I42: 47.67286168 | J42: 1.549818493 | K42: 1.000001165 | L42: 0.001526635279 | M42: 1.000000002 | N42: 6.736394886e-05 | O42: 1.000000001 | P42: 0.0001038797056 | Q42: 65.41918309 | R42: -88.74260557 | S42: 91.25739443 | U42: 1000000000 | V42: 208.918116 | X42: 64.14181006 | Y42: -88.7144487 | AA42: 38.9379769 | AB42: -0.02815687689 | AD42: 0 | AE42: 0
A43: 15.849 | B43: 0.015849 | C43: 1.000000104 | D43: 0.0004568204937 | E43: 1.000000001 | F43: 3.186630521e-05 | G43: 1 | H43: 0 | I43: 52.27198077 | J43: 1.551664452 | K43: 1.000001401 | L43: 0.001673975283 | M43: 1.000000003 | N43: 7.386545075e-05 | O43: 1.000000001 | P43: 0.0001139054555 | Q43: 64.61923028 | R43: -88.84301925 | S43: 91.15698075 | U43: 1000000000 | V43: 251.190801 | X43: 63.3418574 | Y43: -88.81214486 | AA43: 38.93797675 | AB43: -0.03087438339 | AD43: 0 | AE43: 0
A44: 17.378 | B44: 0.017378 | C44: 1.000000125 | D44: 0.0005008913135 | E44: 1.000000001 | F44: 3.494054211e-05 | G44: 1 | H44: 0 | I44: 57.31304924 | J44: 1.553347408 | K44: 1.000001684 | L44: 0.001835468292 | M44: 1.000000003 | N44: 8.099146966e-05 | O44: 1.000000002 | P44: 0.0001248942524 | Q44: 63.8195414 | R44: -88.9335795 | S44: 91.0664205 | U44: 1000000000 | V44: 301.994884 | X44: 62.5421687 | Y44: -88.89972658 | AA44: 38.93797656 | AB44: -0.03385292625 | AD44: 0 | AE44: 0
A45: 19.055 | B45: 0.019055 | C45: 1.000000151 | D45: 0.0005492279789 | E45: 1.000000001 | F45: 3.831235067e-05 | G45: 1 | H45: 0 | I45: 62.84222466 | J45: 1.554882788 | K45: 1.000002025 | L45: 0.002012592955 | M45: 1.000000004 | N45: 8.880725364e-05 | O45: 1.000000002 | P45: 0.0001369467131 | Q45: 63.01958342 | R45: -89.01511644 | S45: 90.98488356 | U45: 1000000000 | V45: 363.093025 | X45: 61.74221094 | Y45: -88.97799666 | AA45: 38.93797634 | AB45: -0.03711977791 | AD45: 0 | AE45: =IF(AD45>0,S43,0) -> 0
A46: 20.893 | B46: 0.020893 | C46: 1.000000181 | D46: 0.0006022051918 | E46: 1.000000001 | F46: 4.200786893e-05 | G46: 1 | H46: 0 | I46: 68.90236883 | J46: 1.556282528 | K46: 1.000002435 | L46: 0.002206722284 | M46: 1.000000005 | N46: 9.737339015e-05 | O46: 1.000000002 | P46: 0.0001501562675 | Q46: 62.21993466 | R46: -89.08826417 | S46: 90.91173583 | U46: 1000000000 | V46: 436.517449 | X46: 60.94256245 | Y46: -89.0475639 | AA46: 38.93797607 | AB46: -0.04070026274 | AD46: 0 | AE46: 0
A47: 22.909 | B47: 0.022909 | C47: 1.000000218 | D47: 0.000660312947 | E47: 1.000000001 | F47: 4.606127742e-05 | G47: 1 | H47: 0 | I47: 75.54953314 | J47: 1.557559591 | K47: 1.000002927 | L47: 0.002419651759 | M47: 1.000000006 | N47: 0.000106769109 | O47: 1.000000003 | P47: 0.0001646450932 | Q47: 61.41998597 | R47: -89.15370009 | S47: 90.84629991 | U47: 1000000000 | V47: 524.822281 | X47: 60.14261408 | Y47: -89.1090726 | AA47: 38.93797575 | AB47: -0.04462749724 | AD47: 0 | AE47: 0
A48: 25.119 | B48: 0.025119 | C48: 1.000000262 | D48: 0.0007240124156 | E48: 1.000000001 | F48: 5.050474605e-05 | G48: 1 | H48: 0 | I48: 82.83647288 | J48: 1.558724057 | K48: 1.000003519 | L48: 0.002653071219 | M48: 1.000000007 | N48: 0.0001170689793 | O48: 1.000000003 | P48: 0.000180528181 | Q48: 60.62019444 | R48: -89.21194039 | S48: 90.78805961 | U48: 1000000000 | V48: 630.964161 | X48: 59.34282294 | Y48: -89.16300774 | AA48: 38.93797536 | AB48: -0.04893264984 | AD48: 0 | AE48: 0
A49: 27.542 | B49: 0.027542 | C49: 1.000000315 | D49: 0.0007938512379 | E49: 1.000000002 | F49: 5.537647659e-05 | G49: 1 | H49: 0 | I49: 90.82583591 | J49: 1.559786021 | K49: 1.000004231 | L49: 0.002908987334 | M49: 1.000000008 | N49: 0.000128361552 | O49: 1.000000004 | P49: 0.0001979420822 | Q49: 59.82044405 | R49: -89.26349067 | S49: 90.73650933 | U49: 1000000000 | V49: 758.561764 | X49: 58.54307301 | Y49: -89.20983794 | AA49: 38.9379749 | AB49: -0.05365273306 | AD49: 0 | AE49: 0
A50: 30.2 | B50: 0.0302 | C50: 1.000000379 | D50: 0.0008704635236 | E50: 1.000000002 | F50: 6.072070266e-05 | G50: 1 | H50: 0 | I50: 99.59016293 | J50: 1.560755006 | K50: 1.000005087 | L50: 0.003189723598 | M50: 1.00000001 | N50: 0.0001407493597 | O50: 1.000000005 | P50: 0.0002170449091 | Q50: 59.02031013 | R50: -89.30881203 | S50: 90.69118797 | U50: 1000000000 | V50: 912.04 | X50: 57.74293964 | Y50: -89.24998143 | AA50: 38.93797434 | AB50: -0.05883060345 | AD50: 0 | AE50: 0
A51: 33.113 | B51: 0.033113 | C51: 1.000000455 | D51: 0.0009544257346 | E51: 1.000000002 | F51: 6.657763665e-05 | G51: 1 | H51: 0 | I51: 109.1954007 | J51: 1.561638304 | K51: 1.000006116 | L51: 0.003497392221 | M51: 1.000000012 | N51: 0.000154325614 | O51: 1.000000006 | P51: 0.0002379804 | Q51: 58.2205603 | R51: -89.34824566 | S51: 90.65175434 | U51: 1000000000 | V51: 1096.470769 | X51: 56.94319049 | Y51: -89.28374044 | AA51: 38.93797367 | AB51: -0.06450522146 | AD51: 0 | AE51: 0
A52: 36.308 | B52: 0.036308 | C52: 1.000000548 | D52: 0.001046516095 | E52: 1.000000003 | F52: 7.300156527e-05 | G52: 1 | H52: 0 | I52: 119.7305782 | J52: 1.562444144 | K52: 1.000007353 | L52: 0.003834844684 | M52: 1.000000014 | N52: 0.0001692161502 | O52: 1.000000007 | P52: 0.0002609426016 | Q52: 57.42055555 | R52: -89.38215944 | S52: 90.61784056 | U52: 1000000000 | V52: 1318.270864 | X52: 56.14318655 | Y52: -89.31143026 | AA52: 38.93797287 | AB52: -0.07072918368 | AD52: 0 | AE52: 0
A53: 39.811 | B53: 0.039811 | C53: 1.000000658 | D53: 0.001147484003 | E53: 1.000000003 | F53: 8.004476462e-05 | G53: 1 | H53: 0 | I53: 131.2814278 | J53: 1.563179029 | K53: 1.00000884 | L53: 0.004204826769 | M53: 1.000000017 | N53: 0.0001855421434 | O53: 1.000000008 | P53: 0.000286118374 | Q53: 56.62060325 | R53: -89.41082621 | S53: 90.58917379 | U53: 1000000000 | V53: 1584.915721 | X53: 55.34323521 | Y53: -89.33327307 | AA53: 38.9379719 | AB53: -0.07755313859 | AD53: 0 | AE53: 0
A54: 43.652 | B54: 0.043652 | C54: 1.000000792 | D54: 0.001258194148 | E54: 1.000000004 | F54: 8.776755328e-05 | G54: 1 | H54: 0 | I54: 143.9468718 | J54: 1.563849263 | K54: 1.000010628 | L54: 0.004610506627 | M54: 1.000000021 | N54: 0.0002034434108 | O54: 1.00000001 | P54: 0.0003137233246 | Q54: 55.82063878 | R54: -89.43449209 | S54: 90.56550791 | U54: 1000000000 | V54: 1905.497104 | X54: 54.54327191 | Y54: -89.34945657 | AA54: 38.93797073 | AB54: -0.08503552665 | AD54: 0 | AE54: 0
A55: 47.863 | B55: 0.047863 | C55: 1.000000952 | D55: 0.001379568865 | E55: 1.000000005 | F55: 9.623427107e-05 | G55: 1 | H55: 0 | I55: 157.8324283 | J55: 1.564460451 | K55: 1.000012778 | L55: 0.005055263504 | M55: 1.000000025 | N55: 0.0002230690906 | O55: 1.000000012 | P55: 0.0003439874348 | Q55: 55.02077587 | R55: -89.45335549 | S55: 90.54664451 | U55: 1000000000 | V55: 2290.866769 | X55: 53.74341041 | Y55: -89.3601168 | AA55: 38.93796933 | AB55: -0.09323868426 | AD55: 0 | AE55: 0
A56: 52.481 | B56: 0.052481 | C56: 1.000001144 | D56: 0.001512674599 | E56: 1.000000006 | F56: 0.0001055193109 | G56: 1 | H56: 0 | I56: 173.0601027 | J56: 1.565017955 | K56: 1.000015363 | L56: 0.00554300455 | M56: 1.00000003 | N56: 0.0002445916241 | O56: 1.000000014 | P56: 0.0003771766207 | Q56: 54.22078222 | R56: -89.46758179 | S56: 90.53241821 | U56: 1000000000 | V56: 2754.255361 | X56: 52.94341843 | Y56: -89.3653471 | AA56: 38.93796765 | AB56: -0.1022346877 | AD56: 0 | AE56: 0
A57: 57.544 | B57: 0.057544 | C57: 1.000001375 | D57: 0.001658606613 | E57: 1.000000007 | F57: 0.0001156990763 | G57: 1 | H57: 0 | I57: 189.7551987 | J57: 1.565526355 | K57: 1.00001847 | L57: 0.00607774229 | M57: 1.000000036 | N57: 0.0002681881131 | O57: 1.000000017 | P57: 0.0004135639851 | Q57: 53.42087261 | R57: -89.47728756 | S57: 90.52271244 | U57: 1000000000 | V57: 3311.311936 | X57: 52.14351085 | Y57: -89.36519 | AA57: 38.93796562 | AB57: -0.1120975611 | AD57: 0 | AE57: 0
A58: 63.096 | B58: 0.063096 | C58: 1.000001654 | D58: 0.001818633106 | E58: 1.000000008 | F58: 0.0001268620344 | G58: 1 | H58: 0 | I58: 208.0628049 | J58: 1.565990067 | K58: 1.000022206 | L58: 0.006664122627 | M58: 1.000000043 | N58: 0.0002940636226 | O58: 1.000000021 | P58: 0.0004534657526 | Q58: 52.62088724 | R58: -89.48255723 | S58: 90.51744277 | U58: 1000000000 | V58: 3981.105216 | X58: 51.34352792 | Y58: -89.35964422 | AA58: 38.93796319 | AB58: -0.1229130162 | AD58: 0 | AE58: 0
A59: 69.183 | B59: 0.069183 | C59: 1.000001988 | D59: 0.001994079912 | E59: 1.00000001 | F59: 0.0001391006739 | G59: 1 | H59: 0 | I59: 228.1346054 | J59: 1.566412936 | K59: 1.000026697 | L59: 0.007307002272 | M59: 1.000000052 | N59: 0.0003224325391 | O59: 1.000000025 | P59: 0.0004972125213 | Q59: 51.82098887 | R59: -89.48343458 | S59: 90.51656542 | U59: 1000000000 | V59: 4786.287489 | X59: 50.54363247 | Y59: -89.34866392 | AA59: 38.93796026 | AB59: -0.1347706606 | AD59: 0 | AE59: 0
A60: 75.858 | B60: 0.075858 | C60: 1.00000239 | D60: 0.002186474617 | E60: 1.000000012 | F60: 0.0001525215574 | G60: 1 | H60: 0 | I60: 250.145367 | J60: 1.566798641 | K60: 1.000032097 | L60: 0.008011976684 | M60: 1.000000062 | N60: 0.0003535418727 | O60: 1.00000003 | P60: 0.0005451851982 | Q60: 51.02100625 | R60: -89.4799273 | S60: 90.5200727 | U60: 1000000000 | V60: 5754.436164 | X60: 49.74365337 | Y60: -89.33215357 | AA60: 38.93795674 | AB60: -0.1477737371 | AD60: 0 | AE60: 0
A61: 83.176 | B61: 0.083176 | C61: 1.000002874 | D61: 0.002397402438 | E61: 1.000000014 | F61: 0.000167235269 | G61: 1 | H61: 0 | I61: 274.2764518 | J61: 1.567150362 | K61: 1.000038588 | L61: 0.008784851814 | M61: 1.000000075 | N61: 0.0003876479548 | O61: 1.000000036 | P61: 0.0005977790639 | Q61: 50.22113711 | R61: -89.47200677 | S61: 90.52799323 | U61: 1000000000 | V61: 6918.246976 | X61: 48.94378846 | Y61: -89.30997738 | AA61: 38.93795251 | AB61: -0.162029384 | AD61: 0 | AE61: 0
A62: 91.201 | B62: 0.091201 | C62: 1.000003455 | D62: 0.00262870798 | E62: 1.000000017 | F62: 0.0001833704884 | G62: 1 | H62: 0 | I62: 300.7388995 | J62: 1.567471177 | K62: 1.000046393 | L62: 0.009632383157 | M62: 1.00000009 | N62: 0.0004250490618 | O62: 1.000000043 | P62: 0.0006554540814 | Q62: 49.42117801 | R62: -89.45960395 | S62: 90.54039605 | U62: 1000000000 | V62: 8317.622401 | X62: 48.14383445 | Y62: -89.28194168 | AA62: 38.93794742 | AB62: -0.1776622705 | AD62: 0 | AE62: 0
A63: 100 | B63: 0.1 | C63: 1.000004154 | D63: 0.002882322294 | E63: 1.00000002 | F63: 0.0002010619269 | G63: 1 | H63: 0 | I63: 329.7536429 | J63: 1.567763755 | K63: 1.000055777 | L63: 0.01056164176 | M63: 1.000000109 | N63: 0.0004660574518 | O63: 1.000000052 | P63: 0.0007186917744 | Q63: 48.62125332 | R63: -89.44261508 | S63: 90.55738492 | U63: 1000000000 | V63: 10000 | X63: 47.34391587 | Y63: -89.24781218 | AA63: 38.9379413 | AB63: -0.1948029085 | AD63: 0 | AE63: 0
A64: 109.65 | B64: 0.10965 | C64: 1.000004994 | D64: 0.003160464625 | E64: 1.000000024 | F64: 0.0002204644022 | G64: 1 | H64: 0 | I64: 361.5745896 | J64: 1.568030642 | K64: 1.000067061 | L64: 0.01158075308 | M64: 1.000000131 | N64: 0.0005110319884 | O64: 1.000000062 | P64: 0.0007880455361 | Q64: 47.82117778 | R64: -89.42089104 | S64: 90.57910896 | U64: 1000000000 | V64: 12023.1225 | X64: 46.54384769 | Y64: -89.20728975 | AA64: 38.93793395 | AB64: -0.2136012881 | AD64: 0 | AE64: 0
A65: 120.23 | B65: 0.12023 | C65: 1.000006005 | D65: 0.003465411819 | E65: 1.000000029 | F65: 0.0002417367532 | G65: 1 | H65: 0 | I65: 396.4622429 | J65: 1.568274016 | K65: 1.000080626 | L65: 0.01269805154 | M65: 1.000000157 | N65: 0.0005603408562 | O65: 1.000000075 | P65: 0.0008640831336 | Q65: 47.02120789 | R65: -89.39425403 | S65: 90.60574597 | U65: 1000000000 | V65: 14455.2529 | X65: 45.74388664 | Y65: -89.16004273 | AA65: 38.93792511 | AB65: -0.2342112928 | AD65: 0 | AE65: 0
A66: 131.83 | B66: 0.13183 | C66: 1.000007219 | D66: 0.003799757716 | E66: 1.000000035 | F66: 0.0002650599356 | G66: 1 | H66: 0 | I66: 434.7133787 | J66: 1.568495958 | K66: 1.000096933 | L66: 0.01392303033 | M66: 1.000000189 | N66: 0.0006144035059 | O66: 1.00000009 | P66: 0.0009474513902 | Q66: 46.22131517 | R66: -89.36247879 | S66: 90.63752121 | U66: 1000000000 | V66: 17379.1489 | X66: 44.94400455 | Y66: -89.10567056 | AA66: 38.93791448 | AB66: -0.2568082309 | AD66: 0 | AE66: 0
A67: 144.54 | B67: 0.14454 | C67: 1.000008678 | D67: 0.004166096078 | E67: 1.000000042 | F67: 0.0002906149049 | G67: 1 | H67: 0 | I67: 476.6247728 | J67: 1.568698239 | K67: 1.000116524 | L67: 0.01526517881 | M67: 1.000000227 | N67: 0.0006736393877 | O67: 1.000000108 | P67: 0.00103879713 | Q67: 45.42200011 | R67: -89.32532229 | S67: 90.67467771 | U67: 1000000000 | V67: 20891.8116 | X67: 44.14470226 | Y67: -89.04375489 | AA67: 38.93790171 | AB67: -0.2815674064 | AD67: 0 | AE67: 0
A68: 158.49 | B68: 0.15849 | C68: 1.000010434 | D68: 0.004568173478 | E68: 1.000000051 | F68: 0.0003186630414 | G68: 1 | H68: 0 | I68: 522.6251021 | J68: 1.568882908 | K68: 1.0001401 | L68: 0.01673820512 | M68: 1.000000273 | N68: 0.0007386543745 | O68: 1.00000013 | P68: 0.001139054653 | Q68: 44.62191601 | R68: -89.2824046 | S68: 90.7175954 | U68: 1000000000 | V68: 25119.0801 | X68: 43.34463353 | Y68: -88.97366256 | AA68: 38.93788634 | AB68: -0.3087420376 | AD68: 0 | AE68: 0
A69: 173.78 | B69: 0.17378 | C69: 1.000012545 | D69: 0.005008871665 | E69: 1.000000061 | F69: 0.000349405407 | G69: 1 | H69: 0 | I69: 573.0441181 | J69: 1.56905126 | K69: 1.000168433 | L69: 0.01835264275 | M69: 1.000000328 | N69: 0.0008099145213 | O69: 1.000000156 | P69: 0.001248942652 | Q69: 43.82218725 | R69: -89.23341772 | S69: 90.76658228 | U69: 1000000000 | V69: 30199.4884 | X69: 42.54492324 | Y69: -88.89489083 | AA69: 38.93786787 | AB69: -0.3385268946 | AD69: 0 | AE69: 0
A70: 190.55 | B70: 0.19055 | C70: 1.000015082 | D70: 0.005492225117 | E70: 1.000000073 | F70: 0.0003831234881 | G70: 1 | H70: 0 | I70: 628.3434729 | J70: 1.56920484 | K70: 1.000202507 | L70: 0.02012324001 | M70: 1.000000394 | N70: 0.0008880723052 | O70: 1.000000188 | P70: 0.0013694673 | Q70: 43.02227939 | R70: -89.17791535 | S70: 90.82208465 | U70: 1000000000 | V70: 36309.3025 | X70: 41.74503758 | Y70: -88.80672069 | AA70: 38.93784566 | AB70: -0.3711946574 | AD70: 0 | AE70: 0
A71: 208.93 | B71: 0.20893 | C71: 1.000018132 | D71: 0.006021979851 | E71: 1.000000088 | F71: 0.0004200786648 | G71: 1 | H71: 0 | I71: 688.9518438 | J71: 1.569344846 | K71: 1.000243452 | L71: 0.02206367772 | M71: 1.000000474 | N71: 0.0009737335968 | O71: 1.000000225 | P71: 0.001501562898 | Q71: 42.2227724 | R71: -89.1154701 | S71: 90.8845299 | U71: 1000000000 | V71: 43651.7449 | X71: 40.94555729 | Y71: -88.70847159 | AA71: 38.93781897 | AB71: -0.4069985124 | AD71: 0 | AE71: 0
A72: 229.09 | B72: 0.22909 | C72: 1.0000218 | D72: 0.006603034464 | E72: 1.000000106 | F72: 0.0004606127419 | G72: 1 | H72: 0 | I72: 755.4298087 | J72: 1.569472577 | K72: 1.000292694 | L72: 0.02419184432 | M72: 1.00000057 | N72: 0.001067690688 | O72: 1.000000271 | P72: 0.001646451227 | Q72: 41.42306204 | R72: -89.04550795 | S72: 90.95449205 | U72: 1000000000 | V72: 52482.2281 | X72: 40.14587903 | Y72: -88.5992384 | AA72: 38.93778687 | AB72: -0.4462695476 | AD72: 0 | AE72: 0
A73: 251.19 | B73: 0.25119 | C73: 1.000026209 | D73: 0.007239998917 | E73: 1.000000128 | F73: 0.000505047418 | G73: 1 | H73: 0 | I73: 828.3049704 | J73: 1.569589042 | K73: 1.000351879 | L73: 0.02652455222 | M73: 1.000000685 | N73: 0.001170689263 | O73: 1.000000326 | P73: 0.001805282198 | Q73: 40.62361337 | R73: -88.96747777 | S73: 91.03252223 | U73: 1000000000 | V73: 63096.4161 | X73: 39.34646895 | Y73: -88.47815842 | AA73: 38.93774829 | AB73: -0.4893193475 | AD73: 0 | AE73: 0
A74: 275.42 | B74: 0.27542 | C74: 1.00003151 | D74: 0.007938347291 | E74: 1.000000153 | F74: 0.0005537647099 | G74: 1 | H74: 0 | I74: 908.2038576 | J74: 1.569695252 | K74: 1.000423023 | L74: 0.029081754 | M74: 1.000000824 | N74: 0.001283614822 | O74: 1.000000392 | P74: 0.001979421334 | Q74: 39.824322 | R74: -88.88071502 | S74: 91.11928498 | U74: 1000000000 | V74: 75856.1764 | X74: 38.54722396 | Y74: -88.34419712 | AA74: 38.9377019 | AB74: -0.5365179043 | AD74: 0 | AE74: 0
A75: 302 | B75: 0.302 | C75: 1.000037885 | D75: 0.008704417592 | E75: 1.000000184 | F75: 0.0006072069528 | G75: 1 | H75: 0 | I75: 995.8519243 | J75: 1.569792161 | K75: 1.000508591 | L75: 0.03188653287 | M75: 1.000000991 | N75: 0.001407492677 | O75: 1.000000471 | P75: 0.002170449766 | Q75: 39.02477915 | R75: -88.78443889 | S75: 91.21556111 | U75: 1000000000 | V75: 91204 | X75: 37.7477369 | Y75: -88.19614529 | AA75: 38.93764611 | AB75: -0.5882936074 | AD75: 0 | AE75: 0
A76: 331.13 | B76: 0.33113 | C76: 1.000045545 | D76: 0.009543970455 | E76: 1.000000222 | F76: 0.0006657762691 | G76: 1 | H76: 0 | I76: 1091.908675 | J76: 1.569880499 | K76: 1.000611406 | L76: 0.03495981534 | M76: 1.000001191 | N76: 0.001543254927 | O76: 1.000000566 | P76: 0.002379804889 | Q76: 38.22577192 | R76: -88.677935 | S76: 91.322065 | U76: 1000000000 | V76: 109647.0769 | X76: 36.94879671 | Y76: -88.03289916 | AA76: 38.93757907 | AB76: -0.6450358335 | AD76: 0 | AE76: 0
A77: 363.08 | B77: 0.36308 | C77: =SQRT(1+(A77/pole1)^2) -> 1.000054758 | D77: =ATAN(A77/pole1) -> 0.01046478275 | E77: =SQRT(1+(A77/Zero1)^2) -> 1.000000266 | F77: =ATAN(A77/Zero1) -> 0.0007300155243 | G77: =IF(VIN_nom>Vout, 1, SQRT(1+(A77/z_RHP)^2)) -> 1 | H77: =IF(VIN_nom>Vout, 0, -ATAN(A77/z_RHP)) -> 0 | I77: =SQRT(1+(A77/Pole2)^2) -> 1197.264439 | J77: =ATAN(A77/Pole2) -> 1.569961089 | K77: =SQRT(1+(A77/Zero2)^2) -> 1.000735039 | L77: =ATAN(A77/Zero2) -> 0.03832985267 | M77: =SQRT(1+(A77/pole4)^2) -> 1.000001432 | N77: =ATAN(A77/pole4) -> 0.001692159903 | O77: =SQRT((1-(V77/pterm2))^2+(A77/pterm1)^2) -> 1.000000681 | P77: =IF((ATAN((A77/pterm1)/(1-A77^2/pterm2))>0),ATAN((A77/pterm1)/(1-A77^2/pterm2)),PI()+ATAN((A77/pterm1)/(1-A77^2/pterm2))) -> 0.002609427189 | Q77: =20*LOG10(((E77*K77*G77)/(C77*I77*O77*M77))*Adc) -> 37.42668701 | R77: =((F77+L77+H77)-(D77+J77+P77+N77))*radconv -> -88.56022959 | S77: =IF(R77>0,R77,R77+180) -> 91.43977041 | U77: 1000000000 | V77: 131827.0864 | X77: =20*LOG10((K77/(I77*M77))*AEA) -> 36.14979242 | Y77: =(L77-(J77+N77))*radconv -> -87.85295935 | AA77: =20*LOG10((E77*G77/(C77*O77))*Acs*Am) -> 38.93749845 | AB77: =(F77+H77-(D77+P77))*radconv -> -0.707270242 | AD77: 0 | AE77: =IF(AD77>0,S75,0) -> 0
A78: 398.11 | B78: =A78/1000 -> 0.39811 | C78: 1.000065834 | D78: 0.01147434146 | E78: 1.00000032 | F78: 0.000800447477 | G78: 1 | H78: 0 | I78: 1312.776572 | J78: 1.570034582 | K78: 1.000883648 | L78: 0.04202376008 | M78: 1.000001721 | N78: 0.001855419327 | O78: 1.000000819 | P78: 0.002861185286 | Q78: 36.62786264 | R78: -88.43038189 | S78: 91.56961811 | U78: =IF(Q78<0,A78,1000000000) -> 1000000000 | V78: =A78^2 -> 158491.5721 | X78: 35.35106498 | Y78: -87.65487897 | AA78: 38.93740152 | AB78: -0.7755029186 | AD78: =SUM((Q79<0)*(Q78>0))*A78 -> 0 | AE78: 0
A79: 436.52 | B79: 0.43652 | C79: 1.00007915 | D79: 0.01258128425 | E79: 1.000000385 | F79: 0.0008776753097 | G79: 1 | H79: 0 | I79: 1439.43433 | J79: 1.570101609 | K79: 1.001062289 | L79: 0.0460727657 | M79: 1.000002069 | N79: 0.002034431329 | O79: 1.000000984 | P79: 0.003137235284 | Q79: 35.82927247 | R79: -88.28730277 | S79: 91.71269723 | U79: 1000000000 | V79: 190549.7104 | X79: 34.55259133 | Y79: -87.43698503 | AA79: 38.937285 | AB79: -0.8503177397 | AD79: 0 | AE79: 0
A80: 478.63 | B80: 0.47863 | C80: 1.000095156 | D80: 0.0137948223 | E80: 1.000000463 | F80: 0.0009623424166 | G80: 1 | H80: 0 | I80: 1578.29292 | J80: 1.570162731 | K80: 1.001276991 | L80: 0.05051006691 | M80: 1.000002488 | N80: 0.002230687243 | O80: 1.000001183 | P80: 0.003439877035 | Q80: 35.03107641 | R80: -88.12983041 | S80: 91.87016959 | U80: 1000000000 | V80: 229086.6769 | X80: 33.75453535 | Y80: -87.19749303 | AA80: 38.93714493 | AB80: -0.932337375 | AD80: 0 | AE80: 0
A81: 524.81 | B81: 0.52481 | C81: 1.000114403 | D81: 0.01512560392 | E81: 1.000000557 | F81: 0.001055192721 | G81: 1 | H81: 0 | I81: 1730.572424 | J81: 1.570218483 | K81: 1.001535098 | L81: 0.05537394647 | M81: 1.000002991 | N81: 0.002445911412 | O81: 1.000001423 | P81: 0.003771769749 | Q81: 34.23309895 | R81: -87.95662074 | S81: 92.04337926 | U81: 1000000000 | V81: 275425.5361 | X81: 32.9567263 | Y81: -86.93433908 | AA81: 38.9369765 | AB81: -1.022281667 | AD81: 0 | AE81: 0
A82: 575.44 | B82: 0.57544 | C82: 1.00013754 | D82: 0.01658456066 | E82: 1.000000669 | F82: 0.001156990251 | G82: 1 | H82: 0 | I82: 1897.525901 | J82: 1.570269325 | K82: 1.001845291 | L82: 0.06070349879 | M82: 1.000003596 | N82: 0.002681874765 | O82: 1.00000171 | P82: 0.00413564452 | Q82: 33.43562232 | R82: -87.76630058 | S82: 92.23369942 | U82: 1000000000 | V82: 331131.1936 | X82: 32.15945213 | Y82: -86.64541093 | AA82: 38.93677405 | AB82: -1.12088965 | AD82: 0 | AE82: 0
A83: 630.96 | B83: 0.63096 | C83: 1.000165358 | D83: 0.0181843465 | E83: 1.000000805 | F83: 0.00126861967 | G83: 1 | H83: 0 | I83: 2080.604258 | J83: 1.570315697 | K83: 1.002218132 | L83: 0.06654381809 | M83: 1.000004324 | N83: 0.002940627835 | O83: 1.000002056 | P83: 0.004534663681 | Q83: 32.63856907 | R83: -87.55728453 | S83: 92.44271547 | U83: 1000000000 | V83: 398110.5216 | X83: 31.3626423 | Y83: -86.32826768 | AA83: 38.93653063 | AB83: -1.229016847 | AD83: 0 | AE83: 0
A84: 691.83 | B84: 0.69183 | C84: 1.000198799 | D84: 0.01993818311 | E84: 1.000000967 | F84: 0.00139100585 | G84: 1 | H84: 0 | I84: 2281.324356 | J84: 1.570357985 | K84: 1.002666155 | L84: 0.07294168548 | M84: 1.000005198 | N84: 0.003224314329 | O84: 1.000002472 | P84: 0.004972133327 | Q84: 31.84219977 | R84: -87.32793107 | S84: 92.67206893 | U84: 1000000000 | V84: 478628.7489 | X84: 30.56656562 | Y84: -85.98037383 | AA84: 38.93623802 | AB84: -1.347557235 | AD84: 0 | AE84: 0
A85: 758.58 | B85: 0.75858 | C85: 1.000239006 | D85: 0.02186129772 | E85: 1.000001163 | F85: 0.001525214403 | G85: 1 | H85: 0 | I85: 2501.433882 | J85: 1.570396556 | K85: 1.003204591 | L85: 0.07995069324 | M85: 1.00000625 | N85: 0.003535404144 | O85: 1.000002972 | P85: 0.005451862678 | Q85: 31.04646213 | R85: -87.07636184 | S85: 92.92363816 | U85: 1000000000 | V85: 575443.6164 | X85: 29.77117978 | Y85: -85.59882137 | AA85: 38.93588622 | AB85: -1.47754047 | AD85: 0 | AE85: 0
A86: 831.76 | B86: 0.83176 | C86: 1.000287337 | D86: 0.02396947881 | E86: 1.000001398 | F86: 0.001672351147 | G86: 1 | H86: 0 | I86: 2742.74647 | J86: 1.570431729 | K86: 1.003851463 | L86: 0.08762581516 | M86: 1.000007514 | N86: 0.003876460325 | O86: 1.000003573 | P86: 0.005977804739 | Q86: 30.25169446 | R86: -86.80065989 | S86: 93.19934011 | U86: 1000000000 | V86: 691824.6976 | X86: 28.97683497 | Y86: -85.1806256 | AA86: 38.93546335 | AB86: -1.620034294 | AD86: 0 | AE86: 0
A87: 912.01 | B87: 0.91201 | C87: 1.000345447 | D87: 0.02628108794 | E87: 1.000001681 | F87: 0.001833702849 | G87: 1 | H87: 0 | I87: 3007.372536 | J87: 1.570463811 | K87: 1.004628715 | L87: 0.09603052437 | M87: 1.000009033 | N87: 0.004250465277 | O87: 1.000004296 | P87: 0.006554559401 | Q87: 29.45786418 | R87: -86.49861887 | S87: 93.50138113 | U87: 1000000000 | V87: 831762.2401 | X87: 28.1835131 | Y87: -84.72233829 | AA87: 38.93495495 | AB87: -1.776280578 | AD87: 0 | AE87: 0
A88: 1000 | B88: 1 | C88: 1.000415305 | D88: 0.02881532477 | E88: 1.000002021 | F88: 0.002010616587 | G88: 1 | H88: 0 | I88: 3297.521417 | J88: 1.570493069 | K88: 1.005562359 | L88: 0.1052301982 | M88: 1.00001086 | N88: 0.004660541112 | O88: 1.000005165 | P88: 0.007186942247 | Q88: 28.66529768 | R88: -86.1679859 | S88: 93.8320141 | U88: 1000000000 | V88: 1000000 | X88: 27.39155773 | Y88: -84.22040779 | AA88: 38.93434381 | AB88: -1.947578111 | AD88: 0 | AE88: 0
A89: 1096.5 | B89: 1.0965 | C89: 1.000499306 | D89: 0.03159423487 | E89: 1.00000243 | F89: 0.002204640486 | G89: 1 | H89: 0 | I89: 3615.732206 | J89: 1.570519758 | K89: 1.006683954 | L89: 0.115299053 | M89: 1.000013058 | N89: 0.005110275844 | O89: 1.00000621 | P89: 0.007880487664 | Q89: 27.87405389 | R89: -85.80622037 | S89: 94.19377963 | U89: 1000000000 | V89: 1202312.25 | X89: 26.60104876 | Y89: -83.67080197 | AA89: 38.933609 | AB89: -2.135418406 | AD89: 0 | AE89: 0
A90: 1202.3 | B90: 1.2023 | C90: 1.000600279 | D90: 0.0346403946 | E90: 1.000002922 | F90: 0.002417362871 | G90: 1 | H90: 0 | I90: 3964.609944 | J90: 1.570544095 | K90: 1.008030647 | L90: 0.1263112797 | M90: 1.000015699 | N90: 0.005603350504 | O90: 1.000007466 | P90: 0.00864087392 | Q90: 27.08467538 | R90: -85.41082272 | S90: 94.58917728 | U90: 1000000000 | V90: 1445525.29 | X90: 25.81255344 | Y90: -83.06949339 | AA90: 38.9327258 | AB90: -2.341329331 | AD90: 0 | AE90: =IF(AD90>0,S90,0) -> 0
A91: 1318.3 | B91: 1.3183 | C91: 1.000721654 | D91: 0.03797948843 | E91: 1.000003513 | F91: 0.002650593211 | G91: 1 | H91: 0 | I91: 4347.1224 | J91: 1.57056629 | K91: 1.009647257 | L91: 0.1383497875 | M91: 1.000018874 | N91: 0.006143958523 | O91: 1.000008976 | P91: 0.009474570039 | Q91: 26.29747687 | R91: -84.97903338 | S91: 95.02096662 | U91: 1000000000 | V91: 1737914.89 | X91: 25.02641648 | Y91: -82.41198391 | AA91: 38.93166425 | AB91: -2.56704947 | AD91: 0 | AE91: 0
A92: 1445.4 | B92: 1.4454 | C92: 1.000867452 | D92: 0.04163712372 | E92: 1.000004223 | F92: 0.002906140949 | G92: 1 | H92: 0 | I92: 4766.237342 | J92: 1.570586518 | K92: 1.011585977 | L92: 0.1514939575 | M92: 1.000022689 | N92: 0.006736293002 | O92: 1.000010791 | P92: 0.01038804528 | Q92: 25.51335546 | R92: -84.5082887 | S92: 95.4917113 | U92: 1000000000 | V92: 2089181.16 | X92: 24.24357004 | Y92: -81.69397569 | AA92: 38.93038929 | AB92: -2.814313004 | AD92: 0 | AE92: 0
A93: 1584.9 | B93: 1.5849 | C93: 1.001042881 | D93: 0.04565031508 | E93: 1.000005077 | F93: 0.003186619736 | G93: 1 | H93: 0 | I93: 5226.24155 | J93: 1.570604985 | K93: 1.01391419 | L93: 0.1658598537 | M93: 1.00002728 | N93: 0.007386410754 | O93: 1.000012975 | P93: 0.01139064407 | Q93: 24.73147348 | R93: -83.99480391 | S93: 96.00519609 | U93: 1000000000 | V93: 2511908.01 | X93: 23.46322191 | Y93: -80.90917755 | AA93: 38.92885543 | AB93: -3.08562636 | AD93: 0 | AE93: 0
A94: 1737.8 | B94: 1.7378 | C94: 1.001253675 | D94: 0.05004730858 | E94: 1.000006104 | F94: 0.003494039994 | G94: 1 | H94: 0 | I94: 5730.432543 | J94: 1.57062182 | K94: 1.016705225 | L94: 0.1815265194 | M94: 1.000032798 | N94: 0.0080989699 | O94: 1.000015599 | P94: 0.01248955511 | Q94: 23.95350141 | R94: -83.43623956 | S94: 96.56376044 | U94: 1000000000 | V94: 3019948.84 | X94: 22.68709255 | Y94: -80.05333495 | AA94: 38.92701273 | AB94: -3.382904612 | AD94: 0 | AE94: 0
A95: 1905.5 | B95: 1.9055 | C95: 1.001507121 | D95: 0.05486767801 | E95: 1.000007339 | F95: 0.003831216323 | G95: 1 | H95: 0 | I95: 6283.426852 | J95: 1.570637178 | K95: 1.020051672 | L95: 0.1986063883 | M95: 1.000039433 | N95: 0.008880491932 | O95: 1.000018755 | P95: 0.01369484252 | Q95: 23.17958787 | R95: -82.82921895 | S95: 97.17078105 | U95: 1000000000 | V95: 3630930.25 | X95: 21.91539407 | Y95: -79.12038841 | AA95: 38.92479766 | AB95: -3.708830537 | AD95: 0 | AE95: 0
A96: 2089.3 | B96: 2.0893 | C96: 1.001811615 | D96: 0.06014788764 | E96: 1.000008823 | F96: 0.004200762186 | G96: 1 | H96: 0 | I96: 6889.511253 | J96: 1.570651179 | K96: 1.024058783 | L96: 0.2171917506 | M96: 1.000047407 | N96: 0.009737031312 | O96: 1.000022549 | P96: 0.01501585243 | Q96: 22.41107542 | R96: -82.171283 | S96: 97.828717 | U96: 1000000000 | V96: 4365174.49 | X96: 21.1495421 | Y96: -78.10540386 | AA96: 38.92213719 | AB96: -4.065879139 | AD96: 0 | AE96: 0
A97: 2290.9 | B97: 2.2909 | C97: 1.002177695 | D97: 0.06593558615 | E97: 1.000010608 | F97: 0.00460609517 | G97: 1 | H97: 0 | I97: 7554.291534 | J97: 1.570663952 | K97: 1.028857315 | L97: 0.2374027431 | M97: 1.000056997 | N97: 0.01067650525 | O97: 1.000027111 | P97: 0.01646480683 | Q97: 21.64829332 | R97: -81.45924396 | S97: 98.54075604 | U97: 1000000000 | V97: 5248222.81 | X97: 20.38995752 | Y97: -77.00195902 | AA97: 38.91893966 | AB97: -4.45728494 | AD97: 0 | AE97: 0
A98: 2511.9 | B98: 2.5119 | C98: 1.002617545 | D98: 0.0722751429 | E98: 1.000012754 | F98: 0.005050431669 | G98: 1 | H98: 0 | I98: 8283.043728 | J98: 1.570675598 | K98: 1.034595669 | L98: 0.2593332596 | M98: 1.000068523 | N98: 0.01170636321 | O98: 1.000032596 | P98: 0.01805321027 | Q98: 20.89273873 | R98: -80.69117178 | S98: 99.30882822 | U98: 1000000000 | V98: 6309641.61 | X98: 19.63824328 | Y98: -75.80510679 | AA98: 38.91509931 | AB98: -4.886064993 | AD98: 0 | AE98: 0
A99: 2754.2 | B99: 2.7542 | C99: 1.003146051 | D99: 0.07921900647 | E99: 1.000015333 | F99: 0.005537591061 | G99: 1 | H99: 0 | I99: 9082.033125 | J99: 1.570686219 | K99: 1.041452135 | L99: 0.2830869924 | M99: 1.00008238 | N99: 0.01283545035 | O99: 1.000039189 | P99: 0.01979472515 | Q99: 20.14551678 | R99: -79.86520697 | S99: 100.134793 | U99: 1000000000 | V99: 7585617.64 | X99: 18.89563355 | Y99: -74.50941862 | AA99: 38.91048709 | AB99: -5.355788346 | AD99: 0 | AE99: 0
A100: 3020 | B100: 3.02 | C100: 1.003781386 | D100: 0.08682751627 | E100: 1.000018435 | F100: 0.00607199565 | G100: 1 | H100: 0 | I100: 9958.514273 | J100: 1.57069591 | K100: 1.049639965 | L100: 0.308771464 | M100: 1.000099047 | N100: 0.01407400674 | O100: 1.000047121 | P100: 0.02170517238 | Q100: 19.40762217 | R100: -78.97989138 | S100: 101.0201086 | U100: 1000000000 | V100: 9120400 | X100: 18.16328029 | Y100: -73.1093261 | AA100: 38.90494574 | AB100: -5.870565282 | AD100: 0 | AE100: 0
A101: 3311.3 | B101: 3.3113 | C101: 1.00454432 | D101: 0.09515437136 | E101: 1.000022163 | F101: 0.006657665307 | G101: 1 | H101: 0 | I101: 10919.08221 | J101: 1.570704744 | K101: 1.059395356 | L101: 0.3364437522 | M101: 1.000119075 | N101: 0.01543133653 | O101: 1.000056654 | P101: 0.02379893825 | Q101: 18.68132095 | R101: -78.03616267 | S101: 101.9638373 | U101: 1000000000 | V101: 10964707.69 | X101: 17.44362877 | Y101: -71.60209619 | AA101: 38.89829604 | AB101: -6.434066483 | AD101: 0 | AE101: 0
A102: 3630.8 | B102: 3.6308 | C102: 1.005461072 | D102: 0.1042720916 | E102: 1.000026646 | F102: 0.007300026863 | G102: 1 | H102: 0 | I102: 11972.64025 | J102: 1.570712803 | K102: 1.071009701 | L102: 0.3661899199 | M102: 1.00014316 | N102: 0.01692000034 | O102: 1.00006812 | P102: 0.02609544424 | Q102: 17.9677588 | R102: -77.03477108 | S102: 102.9652289 | U102: 1000000000 | V102: 13182708.64 | X102: 16.73805044 | Y102: -69.98352222 | AA102: 38.89031222 | AB102: -7.051248865 | AD102: 0 | AE102: 0
A103: 3981.1 | B103: 3.9811 | C103: 1.006562073 | D103: 0.1142487536 | E103: 1.000032035 | F103: 0.008004305533 | G103: 1 | H103: 0 | I103: 13127.76195 | J103: 1.570720152 | K103: 1.084807709 | L103: 0.3980403266 | M103: 1.000172115 | N103: 0.01855208585 | O103: 1.000081907 | P103: 0.02861339819 | Q103: 17.26910035 | R103: -75.97934647 | S103: 104.0206535 | U103: 1000000000 | V103: 15849157.21 | X103: 16.04897096 | Y103: -68.25256103 | AA103: 38.88073326 | AB103: -7.726785436 | AD103: 0 | AE103: 0
A104: 4365.2 | B104: 4.3652 | C104: 1.007884191 | D104: 0.1251617868 | E104: 1.000038515 | F104: 0.008776529999 | G104: 1 | H104: 0 | I104: 14394.33986 | J104: 1.570726855 | K104: 1.101167892 | L104: 0.4320082585 | M104: 1.000206925 | N104: 0.02034153527 | O104: 1.000098487 | P104: 0.0313743898 | Q104: 16.58730327 | R104: -74.87525797 | S104: 105.124742 | U104: 1000000000 | V104: 19054971.04 | X104: 15.378663 | Y104: -66.40925383 | AA104: 38.86924413 | AB104: -8.466004143 | AD104: 0 | AE104: 0
A105: 4786.3 | B105: 4.7863 | C105: 1.009471211 | D105: 0.1370916295 | E105: 1.000046304 | F105: 0.009623130077 | G105: 1 | H105: 0 | I105: 15782.92607 | J105: 1.570732967 | K105: 1.120518293 | L105: 0.4680623391 | M105: 1.000248768 | N105: 0.02230321058 | O105: 1.000118422 | P105: 0.03440145518 | Q105: 15.92456115 | R105: -73.73071833 | S105: 106.2692817 | U105: 1000000000 | V105: 22908667.69 | X105: 14.72969247 | Y105: -64.45625309 | AA105: 38.85547254 | AB105: -9.274465237 | AD105: 0 | AE105: 0
A106: 5248.1 | B106: 5.2481 | C106: 1.01137623 | D106: 0.1501293989 | E106: 1.00005567 | F106: 0.01055153952 | G106: 1 | H106: 0 | I106: 17305.72138 | J106: 1.570738542 | K106: 1.143352653 | L106: 0.5061432498 | M106: 1.000299081 | N106: 0.02445428708 | O106: 1.000142402 | P106: 0.03772123632 | Q106: 15.28280261 | R106: -72.55643457 | S106: 107.4435654 | U106: 1000000000 | V106: 27542553.61 | X106: 14.10443693 | Y106: -62.39794467 | AA106: 38.83896954 | AB106: -10.1584899 | AD106: 0 | AE106: 0
A107: 5370.3 | B107: 5.3703 | C107: 1.011909026 | D107: 0.1535710084 | E107: 1.000058293 | F107: 0.01079720921 | G107: 1 | H107: 0 | I107: 17708.67848 | J107: 1.570739857 | K107: 1.149665394 | L107: 0.5159624046 | M107: 1.000313169 | N107: 0.02502346083 | O107: 1.000149118 | P107: 0.03859973304 | Q107: 15.12596638 | R107: -72.25997306 | S107: 107.7400269 | U107: 1000000000 | V107: 28840122.09 | X107: 13.95221079 | Y107: -61.86803513 | AA107: 38.83435945 | AB107: -10.39193792 | AD107: 0 | AE107: 0
A108: 5432.85 | B108: 5.43285 | C108: 1.01218638 | D108: 0.155331238 | E108: 1.000059658 | F108: 0.01092295861 | G108: 1 | H108: 0 | I108: 17914.93844 | J108: 1.570740507 | K108: 1.152939204 | L108: 0.5209466432 | M108: 1.000320505 | N108: 0.02531479515 | O108: 1.000152616 | P108: 0.03904941004 | Q108: 15.0476194 | R108: -72.11054011 | S108: 107.8894599 | U108: 1000000000 | V108: 29515859.12 | X108: 13.87626271 | Y108: -61.59918877 | AA108: 38.83196054 | AB108: -10.51135134 | AD108: 0 | AE108: 0
A109: 5495.4 | B109: 5.4954 | C109: 1.012466868 | D109: 0.1570904978 | E109: 1.00006104 | F109: 0.01104870767 | G109: 1 | H109: 0 | I109: 18121.19839 | J109: 1.570741143 | K109: 1.156241494 | L109: 0.5259025339 | M109: 1.000327926 | N109: 0.02560612517 | O109: 1.000156154 | P109: 0.03949909019 | Q109: 14.97054058 | R109: -71.96267492 | S109: 108.0373251 | U109: 1000000000 | V109: 30199421.16 | X109: 13.80160925 | Y109: -61.33196554 | AA109: 38.82953519 | AB109: -10.63070938 | AD109: 0 | AE109: 0
A110: 5559.4 | B110: 5.5594 | C110: 1.0127571 | D110: 0.1588895254 | E110: 1.00006247 | F110: 0.01117737141 | G110: 1 | H110: 0 | I110: 18332.23975 | J110: 1.570741778 | K110: 1.159649559 | L110: 0.5309439678 | M110: 1.000335608 | N110: 0.02590420415 | O110: 1.000159817 | P110: 0.03995919787 | Q110: 14.89295703 | R110: -71.81300413 | S110: 108.1869959 | U110: 1000000000 | V110: 30906928.36 | X110: 13.72653461 | Y110: -61.06022772 | AA110: 38.82702627 | AB110: -10.75277641 | AD110: 0 | AE110: 0
A111: 5623.4 | B111: 5.6234 | C111: 1.013050608 | D111: 0.1606875164 | E111: 1.000063917 | F111: 0.01130603479 | G111: 1 | H111: 0 | I111: 18543.28111 | J111: 1.570742399 | K111: 1.163086925 | L111: 0.5359557297 | M111: 1.000343378 | N111: 0.02620227852 | O111: 1.000163523 | P111: 0.04041930892 | Q111: 14.81664009 | R111: -71.66497314 | S111: 108.3350269 | U111: 1000000000 | V111: 31622627.56 | X111: 13.6527542 | Y111: -60.79018889 | AA111: 38.82448976 | AB111: -10.87478426 | AD111: 0 | AE111: 0
A112: 5688.9 | B112: 5.6889 | C112: 1.013354384 | D112: 0.1625265633 | E112: 1.000065414 | F112: 0.01143771332 | G112: 1 | H112: 0 | I112: 18759.26876 | J112: 1.57074302 | K112: 1.166634922 | L112: 0.5410542437 | M112: 1.000351422 | N112: 0.02650733419 | O112: 1.000167359 | P112: 0.04089020736 | Q112: 14.73981527 | R112: -71.51516928 | S112: 108.4848307 | U112: 1000000000 | V112: 32363583.21 | X112: 13.57855386 | Y112: -60.51557953 | AA112: 38.82186527 | AB112: -10.99958975 | AD112: 0 | AE112: 0
A113: 5754.4 | B113: 5.7544 | C113: 1.013661585 | D113: 0.1643645017 | E113: 1.000066929 | F113: 0.01156939146 | G113: 1 | H113: 0 | I113: 18975.2564 | J113: 1.570743627 | K113: 1.170213062 | L113: 0.5461217095 | M113: 1.00035956 | N113: 0.02681238492 | O113: 1.00017124 | P113: 0.04136110941 | Q113: 14.66425574 | R113: -71.36707997 | S113: 108.63292 | U113: 1000000000 | V113: 33113119.36 | X113: 13.50564764 | Y113: -60.24274801 | AA113: 38.81921197 | AB113: -11.12433196 | AD113: 0 | AE113: 0
A114: 5821.4 | B114: 5.8214 | C114: 1.013979362 | D114: 0.1662433715 | E114: 1.000068497 | F114: 0.01170408471 | G114: 1 | H114: 0 | I114: 19196.19032 | J114: 1.570744233 | K114: 1.173904042 | L114: 0.5512731272 | M114: 1.00036798 | N114: 0.02712441639 | O114: 1.000175256 | P114: 0.04184279925 | Q114: 14.58824407 | R114: -71.21737107 | S114: 108.7826289 | U114: 1000000000 | V114: 33888697.96 | X114: 13.43237977 | Y114: -59.96550636 | AA114: 38.81646816 | AB114: -11.25186472 | AD114: 0 | AE114: 0
A115: 5888.4 | B115: 5.8884 | C115: 1.014300716 | D115: 0.1681210575 | E115: 1.000070082 | F115: 0.01183877754 | G115: 1 | H115: 0 | I115: 19417.12425 | J115: 1.570744826 | K115: 1.177625978 | L115: 0.5563921175 | M115: 1.000376497 | N115: 0.02743644257 | O115: 1.000179319 | P115: 0.04232449297 | Q115: 14.51349462 | R115: -71.06945144 | S115: 108.9305486 | U115: 1000000000 | V115: 34673254.56 | X115: 13.36040416 | Y115: -59.69012156 | AA115: 38.81369432 | AB115: -11.37932988 | AD115: 0 | AE115: 0
A116: 5957 | B116: 5.957 | C116: 1.014633447 | D116: 0.1700423443 | E116: 1.000071725 | F116: 0.01197668646 | G116: 1 | H116: 0 | I116: 19643.33421 | J116: 1.570745419 | K116: 1.181468564 | L116: 0.5615997953 | M116: 1.000385319 | N116: 0.02775591458 | O116: 1.000183527 | P116: 0.04281769387 | Q116: 14.43823683 | R116: -70.91985022 | S116: 109.0801498 | U116: 1000000000 | V116: 35485849 | X116: 13.28801751 | Y116: -59.41008198 | AA116: 38.81082319 | AB116: -11.50976824 | AD116: 0 | AE116: 0
A117: 6025.6 | B117: 6.0256 | C117: 1.014969921 | D117: 0.1719623645 | E117: 1.000073386 | F117: 0.01211459494 | G117: 1 | H117: 0 | I117: 19869.54416 | J117: 1.570745999 | K117: 1.185342984 | L117: 0.5667735691 | M117: 1.000394243 | N117: 0.02807538093 | O117: 1.000187784 | P117: 0.04331089891 | Q117: 14.36424015 | R117: -70.77211815 | S117: 109.2278819 | U117: 1000000000 | V117: 36307855.36 | X117: 13.21692332 | Y117: -59.13198386 | AA117: 38.8079207 | AB117: -11.64013429 | AD117: 0 | AE117: 0
A118: 6095.8 | B118: 6.0958 | C118: 1.015318114 | D118: 0.1739258415 | E118: 1.000075106 | F118: 0.01225571945 | G118: 1 | H118: 0 | I118: 20101.03016 | J118: 1.570746578 | K118: 1.1893404 | L118: 0.5720329725 | M118: 1.000403481 | N118: 0.02840229245 | O118: 1.000192191 | P118: 0.04381561163 | Q118: 14.2897919 | R118: -70.6228714 | S118: 109.3771286 | U118: 1000000000 | V118: 37158777.64 | X118: 13.14547765 | Y118: -58.84940609 | AA118: 38.80491812 | AB118: -11.7734653 | AD118: 0 | AE118: 0
A119: 6166 | B119: 6.166 | C119: 1.015670218 | D119: 0.1758879648 | E119: 1.000076846 | F119: 0.01239684348 | G119: 1 | H119: 0 | I119: 20332.51615 | J119: 1.570747144 | K119: 1.193370494 | L119: 0.577256997 | M119: 1.000412825 | N119: 0.02872919791 | O119: 1.00019665 | P119: 0.04432032879 | Q119: 14.21660175 | R119: -70.47557333 | S119: 109.5244267 | U119: 1000000000 | V119: 38019556 | X119: 13.07532278 | Y119: -58.56885429 | AA119: 38.80188283 | AB119: -11.90671904 | AD119: 0 | AE119: 0
A120: 6237.8 | B120: 6.2378 | C120: 1.01603439 | D120: 0.177893394 | E120: 1.000078646 | F120: 0.01254118351 | G120: 1 | H120: 0 | I120: 20569.27818 | J120: 1.570747711 | K120: 1.197525901 | L120: 0.5825635665 | M120: 1.000422494 | N120: 0.02906354784 | O120: 1.000201263 | P120: 0.04483655412 | Q120: 14.14301347 | R120: -70.32692867 | S120: 109.6730713 | U120: 1000000000 | V120: 38910148.84 | X120: 13.00487272 | Y120: -58.28399954 | AA120: 38.79874461 | AB120: -12.04292913 | AD120: 0 | AE120: 0
A121: 6309.6 | B121: 6.3096 | C121: 1.016402645 | D121: 0.1798973782 | E121: 1.000080467 | F121: 0.012685523 | G121: 1 | H121: 0 | I121: 20806.0402 | J121: 1.570748264 | K121: 1.201714797 | L121: 0.5878332885 | M121: 1.000432274 | N121: 0.02939789127 | O121: 1.000205931 | P121: 0.04535278421 | Q121: 14.07067849 | R121: -70.18031159 | S121: 109.8196884 | U121: 1000000000 | V121: 39811052.16 | X121: 12.93571004 | Y121: -58.00125487 | AA121: 38.79557232 | AB121: -12.17905673 | AD121: 0 | AE121: 0
A122: 6383.05 | B122: 6.38305 | C122: 1.016783583 | D122: 0.1819459045 | E122: 1.000082351 | F122: 0.01283317895 | G122: 1 | H122: 0 | I122: 21048.24314 | J122: 1.570748817 | K122: 1.206034243 | L122: 0.593186081 | M122: 1.000442394 | N122: 0.02973991128 | O122: 1.000210761 | P122: 0.04588088251 | Q122: 13.9979465 | R122: -70.03241682 | S122: 109.9675832 | U122: 1000000000 | V122: 40743327.3 | X122: 12.8662584 | Y122: -57.71419044 | AA122: 38.79229196 | AB122: -12.31822638 | AD122: 0 | AE122: 0
A123: 6456.5 | B123: 6.4565 | C123: 1.017168785 | D123: 0.1839928877 | E123: 1.000084257 | F123: 0.01298083434 | G123: 1 | H123: 0 | I123: 21290.44608 | J123: 1.570749357 | K123: 1.210387997 | L123: 0.598500517 | M123: 1.000452632 | N123: 0.03008192434 | O123: 1.000215647 | P123: 0.0464089859 | Q123: 13.92646298 | R123: -69.8866305 | S123: 110.1133695 | U123: 1000000000 | V123: 41686392.25 | X123: 12.79809073 | Y123: -57.42932256 | AA123: 38.78897611 | AB123: -12.45730794 | AD123: 0 | AE123: 0
A124: 6531.7 | B124: 6.5317 | C124: 1.017567577 | D124: 0.1860870273 | E124: 1.000086231 | F124: 0.01313200713 | G124: 1 | H124: 0 | I124: 21538.41967 | J124: 1.570749898 | K124: 1.214880643 | L124: 0.603901954 | M124: 1.000463234 | N124: 0.0304320788 | O124: 1.000220708 | P124: 0.04694967707 | Q124: 13.85453799 | R124: -69.73954743 | S124: 110.2604526 | U124: 1000000000 | V124: 42663104.89 | X124: 12.72959728 | Y124: -57.13993637 | AA124: 38.78554458 | AB124: -12.59961106 | AD124: 0 | AE124: 0
A125: 6606.9 | B125: 6.6069 | C125: 1.017970827 | D125: 0.1881795169 | E125: 1.000088228 | F125: 0.01328317933 | G125: 1 | H125: 0 | I125: 21786.39327 | J125: 1.570750427 | K125: 1.219408471 | L125: 0.6092634339 | M125: 1.00047396 | N125: 0.03078222581 | O125: 1.000225828 | P125: 0.0474903737 | Q125: 13.78385815 | R125: -69.59465842 | S125: 110.4053416 | U125: 1000000000 | V125: 43651127.61 | X125: 12.66238598 | Y125: -56.85283843 | AA125: 38.78207602 | AB125: -12.74181999 | AD125: 0 | AE125: 0
A126: 6683.85 | B126: 6.68385 | C126: 1.018388072 | D126: 0.1903189764 | E126: 1.000090295 | F126: 0.01343786887 | G126: 1 | H126: 0 | I126: 22040.13754 | J126: 1.570750955 | K126: 1.224077681 | L126: 0.6147084625 | M126: 1.000485062 | N126: 0.03114051336 | O126: 1.000231128 | P126: 0.04804365876 | Q126: 13.71279046 | R126: -69.44865974 | S126: 110.5513403 | U126: 1000000000 | V126: 44673850.82 | X126: 12.59490581 | Y126: -56.56141991 | AA126: 38.77848851 | AB126: -12.88723983 | AD126: 0 | AE126: 0
A127: 6760.8 | B127: 6.7608 | C127: 1.018809975 | D127: 0.1924566736 | E127: 1.000092386 | F127: 0.01359255776 | G127: 1 | H127: 0 | I127: 22293.8818 | J127: 1.570751471 | K127: 1.228782906 | L127: 0.6201119503 | M127: 1.000496292 | N127: 0.03149879292 | O127: 1.00023649 | P127: 0.04859694966 | Q127: 13.64296263 | R127: -69.30493943 | S127: 110.6950606 | U127: 1000000000 | V127: 45708416.64 | X127: 12.52870407 | Y127: -56.27238036 | AA127: 38.77486242 | AB127: -13.03255907 | AD127: 0 | AE127: 0
A128: 6839.55 | B128: 6.83955 | C128: 1.019246563 | D128: 0.194642533 | E128: 1.000094551 | F128: 0.01375086444 | G128: 1 | H128: 0 | I128: 22553.5616 | J128: 1.570751988 | K128: 1.233635054 | L128: 0.6255989945 | M128: 1.000507918 | N128: 0.03186544491 | O128: 1.000242041 | P128: 0.04916318917 | Q128: 13.57275295 | R128: -69.1602055 | S128: 110.8397945 | U128: 1000000000 | V128: 46779444.2 | X128: 12.46224514 | Y128: -55.97903308 | AA128: 38.77111167 | AB128: -13.18117242 | AD128: 0 | AE128: 0
A129: 6918.3 | B129: 6.9183 | C129: 1.019688017 | D129: 0.1968265101 | E129: 1.00009674 | F129: 0.01390917043 | G129: 1 | H129: 0 | I129: 22813.24139 | J129: 1.570752493 | K129: 1.238524052 | L129: 0.631042882 | M129: 1.000519679 | N129: 0.03223208833 | O129: 1.000247657 | P129: 0.04972943495 | Q129: 13.50377754 | R129: -69.01783566 | S129: 110.9821643 | U129: 1000000000 | V129: 47862874.89 | X129: 12.39706068 | Y129: -55.68815734 | AA129: 38.76732072 | AB129: -13.32967832 | AD129: 0 | AE129: 0
A130: 6998.9 | B130: 6.9989 | C130: 1.020144874 | D130: 0.199059825 | E130: 1.000099007 | F130: 0.01407119463 | G130: 1 | H130: 0 | I130: 23079.02161 | J130: 1.570752997 | K130: 1.243565608 | L130: 0.6365701649 | M130: 1.000531855 | N130: 0.03260733598 | O130: 1.000253472 | P130: 0.05030898957 | Q130: 13.43442751 | R130: -68.87455697 | S130: 111.125443 | U130: 1000000000 | V130: 48984601.21 | X130: 12.33163218 | Y130: -55.39299639 | AA130: 38.7633992 | AB130: -13.48156057 | AD130: 0 | AE130: 0
A131: 7079.5 | B131: 7.0795 | C131: 1.020606814 | D131: 0.2012911295 | E131: 1.000101301 | F131: 0.01423321809 | G131: 1 | H131: 0 | I131: 23344.80182 | J131: 1.570753491 | K131: 1.248644849 | L131: 0.6420526462 | M131: 1.000544172 | N131: 0.03298257445 | O131: 1.000259356 | P131: 0.05088855092 | Q131: 13.36630577 | R131: -68.73372925 | S131: 111.2662707 | U131: 1000000000 | V131: 50119320.25 | X131: 12.26747384 | Y131: -55.10040119 | AA131: 38.75943579 | AB131: -13.63332806 | AD131: 0 | AE131: 0
A132: 7161.95 | B132: 7.16195 | C132: 1.021084609 | D132: 0.2035715482 | E132: 1.000103674 | F132: 0.01439895967 | G132: 1 | H132: 0 | I132: 23616.68245 | J132: 1.570753984 | K132: 1.253879187 | L132: 0.6476148367 | M132: 1.000556917 | N132: 0.0333664161 | O132: 1.000265444 | P132: 0.05148142188 | Q132: 13.29785883 | R132: -68.59219105 | S132: 111.407809 | U132: 1000000000 | V132: 51293527.8 | X132: 12.2031245 | Y132: -54.80373192 | AA132: 38.7553382 | AB132: -13.78845913 | AD132: 0 | AE132: 0
A133: 7244.4 | B133: 7.2444 | C133: 1.02156771 | D133: 0.2058498218 | E133: 1.000106075 | F133: 0.01456470047 | G133: 1 | H133: 0 | I133: 23888.56308 | J133: 1.570754466 | K133: 1.259151994 | L133: 0.6531306124 | M133: 1.00056981 | N133: 0.03375024791 | O133: 1.000271603 | P133: 0.05207430003 | Q133: 13.23063227 | R133: -68.45318857 | S133: 111.5468114 | U133: 1000000000 | V133: 52481331.36 | X133: 12.14003911 | Y133: -54.50972081 | AA133: 38.75119702 | AB133: -13.94346777 | AD133: 0 | AE133: 0
A134: 7328.75 | B134: 7.32875 | C134: 1.022067425 | D134: 0.2081783555 | E134: 1.000108559 | F134: 0.01473425981 | G134: 1 | H134: 0 | I134: 24166.709 | J134: 1.570754948 | K134: 1.264585617 | L134: 0.6587257212 | M134: 1.000583153 | N134: 0.03414291454 | O134: 1.000277978 | P134: 0.05268084816 | Q134: 13.16308677 | R134: -68.31359096 | S134: 111.686409 | U134: 1000000000 | V134: 53710576.56 | X134: 12.07677519 | Y134: -54.21167043 | AA134: 38.74691545 | AB134: -14.10192053 | AD134: 0 | AE134: 0
A135: 7413.1 | B135: 7.4131 | C135: 1.022572677 | D135: 0.2105046007 | E135: 1.000111072 | F135: 0.01490381831 | G135: 1 | H135: 0 | I135: 24444.85492 | J135: 1.570755418 | K135: 1.270058489 | L135: 0.6642727821 | M135: 1.000596649 | N135: 0.03453557065 | O135: 1.000284427 | P135: 0.05328740398 | Q135: 13.09675333 | R135: -68.17661443 | S135: 111.8233856 | U135: 1000000000 | V135: 54954051.61 | X135: 12.01476867 | Y135: -53.91637176 | AA135: 38.74258853 | AB135: -14.26024267 | AD135: 0 | AE135: 0
A136: 7499.45 | B136: 7.49945 | C136: 1.023095635 | D136: 0.2128836097 | E136: 1.000113675 | F136: 0.01507739627 | G136: 1 | H136: 0 | I136: 24729.59588 | J136: 1.570755889 | K136: 1.275701254 | L136: 0.6699018892 | M136: 1.000610626 | N136: 0.03493752588 | O136: 1.000291106 | P136: 0.05390834975 | Q136: 13.03006978 | R136: -68.03908714 | S136: 111.9609129 | U136: 1000000000 | V136: 56241750.3 | X136: 11.95256145 | Y136: -53.61690501 | AA136: 38.73811218 | AB136: -14.42218213 | AD136: 0 | AE136: 0
A137: 7585.8 | B137: 7.5858 | C137: 1.023624377 | D137: 0.2152601744 | E137: 1.000116307 | F137: 0.01525097333 | G137: 1 | H137: 0 | I137: 25014.33684 | J137: 1.57075635 | K137: 1.281384086 | L137: 0.6754812426 | M137: 1.000624764 | N137: 0.03533946982 | O137: 1.000297864 | P137: 0.05452930378 | Q137: 12.96459086 | R137: -67.90426974 | S137: 112.0957303 | U137: 1000000000 | V137: 57544361.64 | X137: 11.89160611 | Y137: -53.32028767 | AA137: 38.73358861 | AB137: -14.58398207 | AD137: 0 | AE137: 0
A138: 7674.15 | B138: 7.67415 | C138: 1.024171343 | D138: 0.2176892301 | E138: 1.000119032 | F138: 0.01542856974 | G138: 1 | H138: 0 | I138: 25305.67284 | J138: 1.57075681 | K138: 1.287239456 | L138: 0.6811386543 | M138: 1.000639397 | N138: 0.03575071158 | O138: 1.000304858 | P138: 0.05516464872 | Q138: 12.8988092 | R138: -67.76911442 | S138: 112.2308856 | U138: 1000000000 | V138: 58892578.22 | X138: 11.83050152 | Y138: -53.01973065 | AA138: 38.72891154 | AB138: -14.74938377 | AD138: 0 | AE138: 0
A139: 7762.5 | B139: 7.7625 | C139: 1.024724346 | D139: 0.2201156785 | E139: 1.000121789 | F139: 0.01560616519 | G139: 1 | H139: 0 | I139: 25597.00885 | J139: 1.57075726 | K139: 1.293135652 | L139: 0.6867446528 | M139: 1.000654199 | N139: 0.03616194124 | O139: 1.000311935 | P139: 0.05580000249 | Q139: 12.83422277 | R139: -67.63675472 | S139: 112.3632453 | U139: 1000000000 | V139: 60256406.25 | X139: 11.7706413 | Y139: -52.72211808 | AA139: 38.72418534 | AB139: -14.91463664 | AD139: 0 | AE139: 0
A140: 7852.9 | B140: 7.8529 | C140: 1.025296418 | D140: 0.2225957038 | E140: 1.000124642 | F140: 0.01578788039 | G140: 1 | H140: 0 | I140: 25895.10477 | J140: 1.570757709 | K140: 1.299210337 | L140: 0.6924278771 | M140: 1.00066952 | N140: 0.03658270007 | O140: 1.00031926 | P140: 0.05645010774 | Q140: 12.7693418 | R140: -67.50419519 | S140: 112.4958048 | U140: 1000000000 | V140: 61668038.41 | X140: 11.71064687 | Y140: -52.42062679 | AA140: 38.7192988 | AB140: -15.0835684 | AD140: 0 | AE140: 0
A141: 7943.3 | B141: 7.9433 | C141: =SQRT(1+(A141/pole1)^2) -> 1.025874789 | D141: =ATAN(A141/pole1) -> 0.225072948 | E141: =SQRT(1+(A141/Zero1)^2) -> 1.000127528 | F141: =ATAN(A141/Zero1) -> 0.01596959455 | G141: =IF(VIN_nom>Vout, 1, SQRT(1+(A141/z_RHP)^2)) -> 1 | H141: =IF(VIN_nom>Vout, 0, -ATAN(A141/z_RHP)) -> 0 | I141: =SQRT(1+(A141/Pole2)^2) -> 26193.20069 | J141: =ATAN(A141/Pole2) -> 1.570758149 | K141: =SQRT(1+(A141/Zero2)^2) -> 1.305326594 | L141: =ATAN(A141/Zero2) -> 0.6980580231 | M141: =SQRT(1+(A141/pole4)^2) -> 1.000685018 | N141: =ATAN(A141/pole4) -> 0.03700344594 | O141: =SQRT((1-(V141/pterm2))^2+(A141/pterm1)^2) -> 1.000326671 | P141: =IF((ATAN((A141/pterm1)/(1-A141^2/pterm2))>0),ATAN((A141/pterm1)/(1-A141^2/pterm2)),PI()+ATAN((A141/pterm1)/(1-A141^2/pterm2))) -> 0.05710022246 | Q141: =20*LOG10(((E141*K141*G141)/(C141*I141*O141*M141))*Adc) -> 12.70564607 | R141: =((F141+L141+H141)-(D141+J141+P141+N141))*radconv -> -67.37451674 | S141: =IF(R141>0,R141,R141+180) -> 112.6254833 | U141: 1000000000 | V141: 63096014.89 | X141: =20*LOG10((K141/(I141*M141))*AEA) -> 11.65188876 | Y141: =(L141-(J141+N141))*radconv -> -52.12217533 | AA141: =20*LOG10((E141*G141/(C141*O141))*Acs*Am) -> 38.71436117 | AB141: =(F141+H141-(D141+P141))*radconv -> -15.25234141 | AD141: 0 | AE141: 0
A142: 8035.8 | B142: =A142/1000 -> 8.0358 | C142: 1.026473105 | D142: 0.2276048332 | E142: 1.000130515 | F142: 0.01615552886 | G142: 1 | H142: 0 | I142: 26498.22141 | J142: 1.570758588 | K142: 1.311627357 | L142: 0.7037644205 | M142: 1.00070106 | N142: 0.03743395221 | O142: 1.000334342 | P142: 0.05776544932 | Q142: 12.64166433 | R142: -67.2447834 | S142: 112.7552166 | U142: =IF(Q142<0,A142,1000000000) -> 1000000000 | V142: =A142^2 -> 64574081.64 | X142: 11.59301204 | Y142: -51.81991421 | AA142: 38.70925615 | AB142: -15.42486919 | AD142: =SUM((Q143<0)*(Q142>0))*A142 -> 0 | AE142: 0
A143: 8128.3 | B143: 8.1283 | C143: 1.027077993 | D143: 0.2301337524 | E143: 1.000133537 | F143: 0.01634146204 | G143: 1 | H143: 0 | I143: 26803.24212 | J143: 1.570759018 | K143: 1.317970421 | L143: 0.7094160736 | M143: 1.000717287 | N143: 0.03786444459 | O143: 1.000342103 | P143: 0.05843068632 | Q143: 12.5788572 | R143: -67.11801601 | S143: 112.881984 | U143: 1000000000 | V143: 66069260.89 | X143: 11.53536304 | Y143: -51.52078835 | AA143: 38.70409802 | AB143: -15.59722767 | AD143: 0 | AE143: 0
A144: 8222.95 | B144: 8.22295 | C144: 1.027703733 | D144: 0.2327183532 | E144: 1.000136664 | F144: 0.01653171575 | G144: 1 | H144: 0 | I144: 27115.35251 | J144: 1.570759447 | K144: 1.324504072 | L144: 0.7151428683 | M144: 1.000734083 | N144: 0.03830492848 | O144: 1.000350138 | P144: 0.05911139621 | Q144: 12.5157728 | R144: -66.99134511 | S144: 113.0086549 | U144: 1000000000 | V144: 67616906.7 | X144: 11.47761144 | Y144: -51.21792965 | AA144: 38.69876522 | AB144: -15.77341546 | AD144: 0 | AE144: 0
A145: 8270.275 | B145: 8.270275 | C145: 1.028019174 | D145: 0.2340094695 | E145: 1.000138242 | F145: 0.01662684215 | G145: 1 | H145: 0 | I145: 27271.4077 | J145: 1.570759658 | K145: 1.327787066 | L145: 0.7179850842 | M145: 1.000742553 | N145: 0.03852516486 | O145: 1.00035419 | P145: 0.05945175521 | Q145: 12.48466887 | R145: -66.92915515 | S145: 113.0708449 | U145: 1000000000 | V145: 68397448.58 | X145: 11.44919462 | Y145: -51.06771339 | AA145: 38.69607811 | AB145: -15.86144176 | AD145: 0 | AE145: 0
A146: 8317.6 | B146: 8.3176 | C146: 1.028336329 | D146: 0.2352997914 | E146: 1.000139828 | F146: 0.01672196826 | G146: 1 | H146: 0 | I146: 27427.4629 | J146: 1.570759867 | K146: 1.331080734 | L146: 0.720813257 | M146: 1.000751073 | N146: 0.0387453975 | O146: 1.000358266 | P146: 0.05979211695 | Q146: 12.45385171 | R146: -66.8677241 | S146: 113.1322759 | U146: 1000000000 | V146: 69182469.76 | X146: 11.42107834 | Y146: -50.91830137 | AA146: 38.69337723 | AB146: -15.94942273 | AD146: 0 | AE146: 0
A147: 8366.05 | B147: 8.36605 | C147: 1.028662795 | D147: 0.2366199602 | E147: 1.000141462 | F147: 0.01681935537 | G147: 1 | H147: 0 | I147: 27587.2278 | J147: 1.570760078 | K147: 1.334463673 | L147: 0.7236941744 | M147: 1.000759845 | N147: 0.03897086156 | O147: 1.000362464 | P147: 0.06014057255 | Q147: 12.42259491 | R147: -66.80561519 | S147: 113.1943848 | U147: 1000000000 | V147: 69990792.6 | X147: 11.39260087 | Y147: -50.7661672 | AA147: 38.6905979 | AB147: -16.03944799 | AD147: 0 | AE147: 0
A148: 8414.5 | B148: 8.4145 | C148: 1.028991053 | D148: 0.2379392889 | E148: 1.000143105 | F148: 0.01691674216 | G148: 1 | H148: 0 | I148: 27746.99271 | J148: 1.570760287 | K148: =SQRT(1+(A148/Zero2)^2) -> 1.337857631 | L148: =ATAN(A148/Zero2) -> 0.7265604986 | M148: 1.000768668 | N148: 0.03919632167 | O148: 1.000366686 | P148: 0.06048903104 | Q148: 12.39163033 | R148: -66.7442941 | S148: 113.2557059 | U148: 1000000000 | V148: 70803810.25 | X148: 11.36443 | Y148: -50.61486879 | AA148: 38.68780419 | AB148: -16.12942531 | AD148: 0 | AE148: 0
A149: 8462.95 | B149: 8.46295 | C149: 1.0293211 | D149: 0.2392577738 | E149: 1.000144758 | F149: 0.01701412863 | G149: 1 | H149: 0 | I149: 27906.75761 | J149: 1.570760493 | K149: 1.341262524 | L149: 0.7294122933 | M149: 1.000777542 | N149: 0.03942177778 | O149: 1.000370932 | P149: 0.06083749244 | Q149: 12.36095385 | R149: -66.68375696 | S149: 113.316243 | U149: 1000000000 | V149: 71621522.7 | X149: 11.33656158 | Y149: -50.4644025 | AA149: 38.68499612 | AB149: -16.21935447 | AD149: 0 | AE149: 0
A150: 8511.4 | B150: 8.5114 | C150: 1.029652937 | D150: 0.2405754112 | E150: 1.00014642 | F150: 0.01711151477 | G150: 1 | H150: 0 | I150: 28066.52252 | J150: 1.570760697 | K150: 1.344678271 | L150: 0.7322496228 | M150: 1.000786467 | N150: 0.03964722989 | O150: 1.000375203 | P150: 0.06118595677 | Q150: 12.33056142 | R150: -66.62399988 | S150: 113.3760001 | U150: 1000000000 | V150: 72443929.96 | X150: 11.30899154 | Y150: -50.31476464 | AA150: 38.68217374 | AB150: -16.30923525 | AD150: 0 | AE150: 0
A151: 8560.95 | B151: 8.56095 | C151: 1.029994154 | D151: 0.2419220835 | E151: 1.000148129 | F151: 0.01721111162 | G151: 1 | H151: 0 | I151: 28229.9147 | J151: 1.570760903 | K151: 1.348182708 | L151: 0.735136476 | M151: 1.000795647 | N151: 0.03987779645 | O151: 1.000379597 | P151: 0.06154233561 | Q151: 12.29976861 | R151: -66.56368885 | S151: 113.4363112 | U151: 1000000000 | V151: 73289864.9 | X151: 11.28109998 | Y151: -50.16258244 | AA151: 38.67927249 | AB151: -16.40110641 | AD151: 0 | AE151: 0
A152: 8610.5 | B152: 8.6105 | C152: 1.030337239 | D152: 0.2432678613 | E152: 1.000149849 | F152: 0.01731070813 | G152: 1 | H152: 0 | I152: 28393.30688 | J152: 1.570761107 | K152: 1.351698321 | L152: 0.7380083363 | M152: 1.00080488 | N152: 0.04010835877 | O152: 1.000384017 | P152: 0.06189871756 | Q152: 12.26926453 | R152: -66.50418541 | S152: 113.4958146 | U152: 1000000000 | V152: 74140710.25 | X152: 11.25351208 | Y152: -50.01125889 | AA152: 38.67635632 | AB152: -16.49292652 | AD152: 0 | AE152: 0
A153: 8660.05 | B153: 8.66005 | C153: 1.030682188 | D153: 0.2446127408 | E153: 1.000151578 | F153: 0.01741030429 | G153: 1 | H153: 0 | I153: 28556.69906 | J153: 1.570761309 | K153: 1.355225026 | L153: 0.7408652732 | M153: 1.000814166 | N153: 0.04033891682 | O153: 1.000388462 | P153: 0.06225510262 | Q153: 12.23904508 | R153: -66.44548537 | S153: 113.5545146 | U153: 1000000000 | V153: 74996466 | X153: 11.22622368 | Y153: -49.86079001 | AA153: 38.67342526 | AB153: -16.58469536 | AD153: 0 | AE153: 0
A154: 8709.6 | B154: 8.7096 | C154: 1.031029 | D154: 0.245956718 | E154: 1.000153318 | F154: 0.01750990011 | G154: 1 | H154: 0 | I154: 28720.09123 | J154: 1.570761508 | K154: 1.358762734 | L154: 0.7437073564 | M154: 1.000823506 | N154: 0.04056947058 | O154: 1.000392933 | P154: 0.06261149081 | Q154: 12.20910618 | R154: -66.38758451 | S154: 113.6124155 | U154: 1000000000 | V154: 75857132.16 | X154: 11.1992307 | Y154: -49.71117181 | AA154: 38.67047934 | AB154: -16.6764127 | AD154: 0 | AE154: =IF(AD154>0,S154,0) -> 0
A155: 8760.325 | B155: 8.760325 | C155: 1.031385964 | D155: 0.2473316266 | E155: 1.000155109 | F155: 0.01761185732 | G155: 1 | H155: 0 | I155: 28887.358 | J155: 1.57076171 | K155: 1.362395642 | L155: 0.7466015219 | M155: 1.000833122 | N155: 0.04080548709 | O155: 1.000397537 | P155: 0.06297633345 | Q155: 12.17874379 | R155: -66.32913403 | S155: 113.670866 | U155: 1000000000 | V155: 76743294.11 | X155: 11.17189945 | Y155: -49.55888264 | AA155: 38.6674482 | AB155: -16.77025138 | AD155: 0 | AE155: 0
A156: 8811.05 | B156: 8.81105 | C156: 1.031744877 | D156: 0.2487055812 | E156: 1.00015691 | F156: 0.01771381417 | G156: 1 | H156: 0 | I156: 29054.62477 | J156: 1.570761909 | K156: 1.366039901 | L156: 0.7494802696 | M156: 1.000842794 | N156: 0.04104149905 | O156: 1.000402168 | P156: 0.06334117941 | Q156: 12.14866704 | R156: -66.27151208 | S156: 113.7284879 | U156: 1000000000 | V156: 77634602.1 | X156: 11.14486935 | Y156: -49.40747646 | AA156: 38.66440155 | AB156: -16.86403562 | AD156: 0 | AE156: 0
A157: 8861.775 | B157: 8.861775 | C157: 1.032105736 | D157: 0.2500785777 | E157: 1.000158722 | F157: 0.01781577065 | G157: 1 | H157: 0 | I157: 29221.89153 | J157: 1.570762106 | K157: 1.369695421 | L157: 0.752343675 | M157: 1.000852521 | N157: 0.04127750643 | O157: 1.000406826 | P157: 0.06370602871 | Q157: 12.11887181 | R157: -66.2147141 | S157: 113.7852859 | U157: 1000000000 | V157: 78531056.15 | X157: 11.11813624 | Y157: -49.25694893 | AA157: 38.66133944 | AB157: -16.95776518 | AD157: 0 | AE157: 0
A158: 8912.5 | B158: 8.9125 | C158: 1.032468539 | D158: 0.2514506119 | E158: 1.000160544 | F158: 0.01791772676 | G158: 1 | H158: 0 | I158: 29389.1583 | J158: 1.570762301 | K158: =SQRT(1+(A158/Zero2)^2) -> 1.373362111 | L158: =ATAN(A158/Zero2) -> 0.7551918139 | M158: 1.000862305 | N158: 0.04151350922 | O158: 1.000411511 | P158: 0.06407088137 | Q158: 12.08935403 | R158: -66.15873552 | S158: 113.8412645 | U158: 1000000000 | V158: 79432656.25 | X158: 11.09169601 | Y158: -49.10729571 | AA158: 38.65826188 | AB158: -17.0514398 | AD158: 0 | AE158: 0
A159: 8964.4 | B159: 8.9644 | C159: 1.032841756 | D159: 0.2528534276 | E159: 1.000162419 | F159: 0.01802204421 | G159: 1 | H159: 0 | I159: 29560.29965 | J159: 1.570762498 | K159: 1.377125205 | L159: 0.7580902055 | M159: 1.000872373 | N159: 0.04175497401 | O159: 1.000416332 | P159: 0.06444418901 | Q159: 12.0594355 | R159: -66.10230354 | S159: 113.8976965 | U159: 1000000000 | V159: 80360467.36 | X159: 11.06494227 | Y159: -48.95507631 | AA159: 38.65509709 | AB159: -17.14722723 | AD159: 0 | AE159: 0
A160: 9016.3 | B160: 9.0163 | C160: 1.033217004 | D160: 0.2542552271 | E160: 1.000164305 | F160: 0.01812636127 | G160: 1 | H160: 0 | I160: 29731.44101 | J160: 1.570762692 | K160: 1.380899805 | L160: 0.760972776 | M160: 1.000882499 | N160: 0.04199643393 | O160: 1.000421182 | P160: 0.06481750022 | Q160: 12.02979903 | R160: -66.04671963 | S160: 113.9532804 | U160: 1000000000 | V160: 81293665.69 | X160: 11.03848668 | Y160: -48.80376297 | AA160: 38.65191621 | AB160: -17.24295666 | AD160: 0 | AE160: 0
A161: 9068.2 | B161: 9.0682 | C161: 1.033594281 | D161: 0.2556560061 | E161: 1.000166202 | F161: 0.01823067793 | G161: 1 | H161: 0 | I161: 29902.58236 | J161: 1.570762885 | K161: 1.384685816 | L161: 0.7638396072 | M161: 1.000892683 | N161: 0.04223788895 | O161: 1.00042606 | P161: 0.06519081499 | Q161: 12.00044049 | R161: -65.99197886 | S161: 114.0080211 | U161: 1000000000 | V161: 82232251.24 | X161: 11.01232508 | Y161: -48.65335103 | AA161: 38.64871927 | AB161: -17.33862783 | AD161: 0 | AE161: 0
A162: 9120.1 | B162: 9.1201 | C162: 1.033973585 | D162: 0.25705576 | E162: 1.00016811 | F162: 0.01833499419 | G162: 1 | H162: 0 | I162: 30073.72371 | J162: 1.570763075 | K162: 1.388483146 | L162: 0.7666907809 | M162: 1.000902926 | N162: 0.04247933904 | O162: 1.000430967 | P162: 0.06556413337 | Q162: 11.97135581 | R162: -65.9380763 | S162: 114.0619237 | U162: 1000000000 | V162: 83176224.01 | X162: 10.98645336 | Y162: -48.50383579 | AA162: 38.64550631 | AB162: -17.43424051 | AD162: 0 | AE162: 0
A163: 9173.2 | B163: 9.1732 | C163: 1.034363754 | D163: 0.2584868129 | E163: 1.000170073 | F163: 0.01844172198 | G163: 1 | H163: 0 | I163: 30248.82209 | J163: 1.570763268 | K163: 1.392379892 | L163: 0.7695917584 | M163: 1.000913466 | N163: 0.04272636667 | O163: 1.000436016 | P163: 0.06594608713 | Q163: 11.94187793 | R163: -65.88378978 | S163: 114.1162102 | U163: 1000000000 | V163: 84147598.24 | X163: 10.96027926 | Y163: -48.35178669 | AA163: 38.64220253 | AB163: -17.53200309 | AD163: 0 | AE163: 0
A164: 9226.3 | B164: 9.2263 | C164: 1.03475604 | D164: 0.2599167836 | E164: 1.000172047 | F164: 0.01854844935 | G164: 1 | H164: 0 | I164: 30423.92047 | J164: 1.570763458 | K164: 1.396288291 | L164: 0.7724765195 | M164: 1.000924067 | N164: 0.04297338907 | O164: 1.000441095 | P164: 0.06632804469 | Q164: 11.91267833 | R164: -65.83037019 | S164: 114.1696298 | U164: 1000000000 | V164: 85124611.69 | X164: 10.93440014 | Y164: -48.20066629 | AA164: 38.63888205 | AB164: -17.6297039 | AD164: 0 | AE164: 0
A165: 9279.4 | B165: 9.2794 | C165: 1.03515044 | D165: 0.2613456676 | E165: 1.000174033 | F165: 0.0186551763 | G165: 1 | H165: 0 | I165: 30599.01885 | J165: 1.570763646 | K165: 1.400208245 | L165: 0.7753451524 | M165: 1.000934729 | N165: 0.04322040623 | O165: 1.000446204 | P165: 0.06671000609 | Q165: 11.88375289 | R165: -65.77781225 | S165: 114.2221878 | U165: 1000000000 | V165: 86107264.36 | X165: 10.90881182 | Y165: -48.05046955 | AA165: 38.63554492 | AB165: -17.7273427 | AD165: 0 | AE165: 0
A166: 9332.5 | B166: 9.3325 | C166: 1.035546951 | D166: 0.2627734603 | E166: 1.00017603 | F166: 0.01876190282 | G166: 1 | H166: 0 | I166: 30774.11723 | J166: 1.570763832 | K166: 1.404139656 | L166: 0.778197745 | M166: 1.000945453 | N166: 0.04346741811 | O166: 1.000451343 | P166: 0.06709197133 | Q166: 11.85509753 | R166: -65.72611063 | S166: 114.2738894 | U166: 1000000000 | V166: 87095556.25 | X166: 10.88351021 | Y166: -47.90119142 | AA166: 38.63219119 | AB166: -17.82491921 | AD166: 0 | AE166: 0
A167: 9386.85 | B167: 9.38685 | C167: 1.035954982 | D167: 0.2642337289 | E167: 1.000178086 | F167: 0.01887114129 | G167: 1 | H167: 0 | I167: 30953.33751 | J167: 1.57076402 | K167: 1.408175381 | L167: 0.78110097 | M167: 1.000956491 | N167: 0.04372023928 | O167: 1.000456633 | P167: 0.06748293223 | Q167: 11.82604315 | R167: -65.6740732 | S167: 114.3259268 | U167: 1000000000 | V167: 88112952.92 | X167: 10.85790567 | Y167: -47.74934525 | AA167: 38.62874134 | AB167: -17.92472795 | AD167: 0 | AE167: 0
A168: 9441.2 | B168: 9.4412 | C168: 1.036365219 | D168: 0.2656928446 | E168: 1.000180154 | F168: 0.01898037931 | G168: 1 | H168: 0 | I168: 31132.55779 | J168: 1.570764206 | K168: 1.412222906 | L168: 0.7839875775 | M168: 1.000967594 | N168: 0.04397305485 | O168: 1.000461954 | P168: 0.06787389722 | Q168: 11.79726333 | R168: -65.62292164 | S168: 114.3770784 | U168: 1000000000 | V168: 89136257.44 | X168: 10.83259302 | Y168: -47.59845075 | AA168: 38.62527417 | AB168: -18.02447089 | AD168: 0 | AE168: 0
A169: 9495.55 | B169: 9.49555 | C169: 1.036777662 | D169: 0.2671508025 | E169: 1.000182234 | F169: 0.01908961688 | G169: 1 | H169: 0 | I169: 31311.77807 | J169: 1.57076439 | K169: 1.416282132 | L169: 0.7868576621 | M169: 1.000978761 | N169: 0.0442258648 | O169: 1.000467307 | P169: 0.06826486631 | Q169: 11.76875393 | R169: -65.57265024 | S169: 114.4273498 | U169: 1000000000 | V169: 90165469.8 | X169: 10.80756806 | Y169: -47.44850249 | AA169: 38.62178973 | AB169: -18.12414775 | AD169: 0 | AE169: 0
A170: 9549.9 | B170: 9.5499 | C170: 1.037192306 | D170: 0.2686075978 | E170: 1.000184326 | F170: 0.01919885399 | G170: 1 | H170: 0 | I170: 31490.99835 | J170: 1.570764572 | K170: 1.420352957 | L170: 0.7897113184 | M170: 1.000989992 | N170: 0.04447866909 | O170: 1.00047269 | P170: 0.06865583952 | Q170: 11.7405109 | R170: -65.52325332 | S170: 114.4767467 | U170: 1000000000 | V170: 91200590.01 | X170: 10.78282671 | Y170: -47.29949506 | AA170: 38.61828805 | AB170: -18.22375826 | AD170: 0 | AE170: 0
A171: 9605.525 | B171: 9.605525 | C171: 1.037618955 | D171: 0.2700973593 | E171: 1.00018648 | F171: 0.01931065323 | G171: 1 | H171: 0 | I171: 31674.42297 | J171: 1.570764756 | K171: 1.424531188 | L171: 0.7926150065 | M171: 1.001001553 | N171: 0.04473739805 | O171: 1.000478233 | P171: 0.0690559889 | Q171: 11.71187695 | R171: -65.47359715 | S171: 114.5264028 | U171: 1000000000 | V171: 92266110.53 | X171: 10.75779438 | Y171: -47.1479606 | AA171: 38.61468643 | AB171: -18.32563655 | AD171: 0 | AE171: 0
A172: 9661.15 | B172: 9.66115 | C172: 1.038047905 | D172: 0.2715858929 | E172: 1.000188645 | F172: 0.01942245199 | G172: 1 | H172: 0 | I172: 31857.84759 | J172: 1.570764937 | K172: 1.428721359 | L172: 0.795501687 | M172: 1.00101318 | N172: 0.04499612101 | O172: 1.000483808 | P172: 0.06945614265 | Q172: 11.68351361 | R172: -65.42484491 | S172: 114.5751551 | U172: 1000000000 | V172: 93337819.32 | X172: 10.73305063 | Y172: -46.99740014 | AA172: 38.61106685 | AB172: -18.42744477 | AD172: 0 | AE172: 0
A173: 9716.775 | B173: 9.716775 | C173: 1.038479153 | D173: 0.2730731935 | E173: 1.000190824 | F173: 0.01953425026 | G173: 1 | H173: 0 | I173: 32041.27221 | J173: 1.570765117 | K173: 1.432923366 | L173: 0.798371461 | M173: 1.001024875 | N173: 0.04525483794 | O173: 1.000489415 | P173: 0.0698563008 | Q173: 11.65541676 | R173: -65.3769905 | S173: 114.6230095 | U173: 1000000000 | V173: 94415716.4 | X173: 10.70859127 | Y173: -46.84780788 | AA173: 38.60742935 | AB173: -18.52918262 | AD173: 0 | AE173: 0
A174: 9772.4 | B174: 9.7724 | C174: 1.038912697 | D174: 0.274559256 | E174: 1.000193015 | F174: 0.01964604804 | G174: 1 | H174: 0 | I174: 32224.69683 | J174: 1.570765295 | K174: 1.437137104 | L174: 0.8012244298 | M174: 1.001036636 | N174: 0.04551354881 | O174: 1.000495055 | P174: 0.07025646336 | Q174: 11.62758233 | R174: -65.33002785 | S174: 114.6699722 | U174: 1000000000 | V174: 95499801.76 | X174: 10.6844122 | Y174: -46.69917803 | AA174: 38.60377399 | AB174: -18.63084982 | AD174: 0 | AE174: 0
A175: 9829.3 | B175: 9.8293 | C175: 1.039358549 | D175: 0.276078095 | E175: 1.000195269 | F175: 0.01976040787 | G175: 1 | H175: 0 | I175: 32412.32579 | J175: 1.570765474 | K175: 1.441459459 | L175: 0.8041255106 | M175: 1.001048737 | N175: 0.04577818337 | O175: 1.000500858 | P175: 0.07066580279 | Q175: 11.59937724 | R175: -65.28290505 | S175: 114.717095 | U175: 1000000000 | V175: 96615138.49 | X175: 10.6599647 | Y175: -46.54813108 | AA175: 38.60001641 | AB175: -18.73477396 | AD175: 0 | AE175: 0
A176: 9886.2 | B176: 9.8862 | C176: 1.039806797 | D176: 0.277595628 | E176: 1.000197536 | F176: 0.01987476718 | G176: 1 | H176: 0 | I176: 32599.95475 | J176: 1.570765652 | K176: 1.445793872 | L176: 0.807009221 | M176: 1.001060907 | N176: 0.04604281152 | O176: 1.000506696 | P176: 0.07107514691 | Q176: 11.57143838 | R176: -65.23670248 | S176: 114.7632975 | U176: 1000000000 | V176: 97736950.44 | X176: 10.63580201 | Y176: -46.3980789 | AA176: 38.59624023 | AB176: -18.83862358 | AD176: 0 | AE176: 0
A177: 9943.1 | B177: 9.9431 | C177: 1.040257438 | D177: 0.2791118496 | E177: 1.000199816 | F177: 0.01998912598 | G177: 1 | H177: 0 | I177: 32787.58371 | J177: 1.570765827 | K177: 1.450140236 | L177: 0.8098756689 | M177: 1.001073148 | N177: 0.04630743321 | O177: 1.000512568 | P177: 0.07148449572 | Q177: 11.54376161 | R177: -65.19141366 | S177: 114.8085863 | U177: 1000000000 | V177: 98865237.61 | X177: 10.61191996 | Y177: -46.24901529 | AA177: 38.5924455 | AB177: -18.94239837 | AD177: 0 | AE177: 0
A178: 10000 | B178: 10 | C178: 1.040710468 | D178: 0.2806267547 | E178: 1.000202109 | F178: 0.02010348425 | G178: 1 | H178: 0 | I178: 32975.21267 | J178: 1.570766001 | K178: 1.454498445 | L178: 0.8127249623 | M178: 1.001085459 | N178: 0.04657204841 | O178: 1.000518473 | P178: 0.07189384927 | Q178: 11.51634288 | R178: -65.1470321 | S178: 114.8529679 | U178: 1000000000 | V178: 100000000 | X178: 10.58831446 | Y178: -46.10093408 | AA178: 38.58863228 | AB178: -19.04609802 | AD178: 0 | AE178: 0
A179: 10058.25 | B179: 10.05825 | C179: 1.041176718 | D179: 0.2821762329 | E179: 1.00020447 | F179: 0.02022055522 | G179: 1 | H179: 0 | I179: 33167.29329 | J179: 1.570766177 | K179: 1.458972213 | L179: 0.8156242001 | M179: 1.001098134 | N179: 0.04684293507 | O179: 1.000524555 | P179: 0.07231292 | Q179: 11.48853677 | R179: -65.10253061 | S179: 114.8974694 | U179: 1000000000 | V179: 101168393.1 | X179: 10.56443115 | Y179: -45.95035072 | AA179: 38.58470948 | AB179: -19.15217989 | AD179: 0 | AE179: 0
A180: 10116.5 | B180: 10.1165 | C180: 1.041645466 | D180: 0.2837243203 | E180: 1.000206845 | F180: 0.02033762563 | G180: 1 | H180: 0 | I180: 33359.3739 | J180: 1.57076635 | K180: 1.46345817 | L180: 0.8185056879 | M180: 1.001110883 | N180: 0.04711381485 | O180: 1.000530672 | P180: 0.07273199575 | Q180: 11.46099274 | R180: -65.05896625 | S180: 114.9410338 | U180: 1000000000 | V180: 102343572.2 | X180: 10.54082919 | Y180: -45.80078385 | AA180: 38.58076741 | AB180: -19.2581824 | AD180: 0 | AE180: 0
A181: 10174.75 | B181: 10.17475 | C181: 1.042116708 | D181: 0.2852710113 | E181: 1.000209234 | F181: 0.02045469549 | G181: 1 | H181: 0 | I181: 33551.45451 | J181: 1.570766522 | K181: 1.467956203 | L181: 0.8213695407 | M181: 1.001123706 | N181: 0.04738468771 | O181: 1.000536825 | P181: 0.07315107654 | Q181: 11.43370667 | R181: -65.01633209 | S181: 114.9836679 | U181: 1000000000 | V181: 103525537.6 | X181: 10.51750442 | Y181: -45.65222687 | AA181: 38.57680611 | AB181: -19.36410522 | AD181: 0 | AE181: 0
A182: 10233 | B182: 10.233 | C182: 1.042590441 | D182: 0.2868163004 | E182: 1.000211636 | F182: 0.02057176479 | G182: 1 | H182: 0 | I182: 33743.53513 | J182: 1.570766691 | K182: 1.472466203 | L182: 0.8242158734 | M182: 1.001136601 | N182: 0.04765555362 | O182: 1.000543014 | P182: 0.07357016241 | Q182: 11.40667452 | R182: -64.97462125 | S182: 115.0253787 | U182: 1000000000 | V182: 104714289 | X182: 10.49445273 | Y182: -45.50467321 | AA182: 38.57282565 | AB182: -19.46994804 | AD182: 0 | AE182: 0
A183: 10292.5 | B183: 10.2925 | C183: 1.043076908 | D183: 0.2883932973 | E183: 1.000214104 | F183: 0.02069134572 | G183: 1 | H183: 0 | I183: 33939.73764 | J183: 1.570766863 | K183: 1.477085223 | L183: 0.8271053173 | M183: 1.00114985 | N183: 0.04793222487 | O183: 1.000549373 | P183: 0.0739982468 | Q183: 11.3793203 | R183: -64.93296143 | S183: 115.0670386 | U183: 1000000000 | V183: 105935556.2 | X183: 10.47118412 | Y183: -45.35498219 | AA183: 38.56874004 | AB183: -19.57797925 | AD183: 0 | AE183: 0
A184: 10352 | B184: 10.352 | C184: 1.043565966 | D184: 0.2899688199 | E184: 1.000216586 | F184: 0.02081092606 | G184: 1 | H184: 0 | I184: 34135.94016 | J184: 1.570767032 | K184: 1.481716499 | L184: 0.8299767224 | M184: 1.001163175 | N184: 0.04820888877 | O184: 1.00055577 | P184: 0.07442633654 | Q184: 11.35222271 | R184: -64.8922505 | S184: 115.1077495 | U184: 1000000000 | V184: 107163904 | X184: 10.44819203 | Y184: -45.20632417 | AA184: 38.56463454 | AB184: -19.68592633 | AD184: 0 | AE184: 0
A185: 10411.5 | B185: 10.4115 | C185: 1.044057613 | D185: 0.2915428626 | E185: 1.000219083 | F185: 0.02093050581 | G185: 1 | H185: 0 | I185: 34332.14267 | J185: 1.5707672 | K185: 1.486359915 | L185: 0.8328302103 | M185: 1.001176577 | N185: 0.0484855453 | O185: 1.000562204 | P185: 0.07485443166 | Q185: 11.32537768 | R185: -64.85248116 | S185: 115.1475188 | U185: 1000000000 | V185: 108399332.2 | X185: 10.42547231 | Y185: -45.0586922 | AA185: 38.56050923 | AB185: -19.79378896 | AD185: 0 | AE185: 0
A186: 10471 | B186: 10.471 | C186: 1.044551843 | D186: 0.2931154197 | E186: 1.000221594 | F186: 0.02105008496 | G186: 1 | H186: 0 | I186: 34528.34519 | J186: 1.570767365 | K186: 1.491015358 | L186: 0.8356659021 | M186: 1.001190055 | N186: 0.04876219439 | O186: 1.000568675 | P186: 0.0752825322 | Q186: 11.29878119 | R186: -64.81364616 | S186: 115.1863538 | U186: 1000000000 | V186: 109641841 | X186: 10.40302091 | Y186: -44.91207933 | AA186: 38.55636414 | AB186: -19.90156682 | AD186: 0 | AE186: 0
A187: 10532 | B187: 10.532 | C187: 1.045061213 | D187: 0.2947260729 | E187: 1.000224183 | F187: 0.02117267808 | G187: 1 | H187: 0 | I187: 34729.49399 | J187: 1.570767533 | K187: 1.495800534 | L187: 0.8385547336 | M187: 1.001203952 | N187: 0.04904581007 | O187: 1.000575349 | P187: 0.07572143083 | Q187: 11.2717681 | R187: -64.77479449 | S187: 115.2252055 | U187: 1000000000 | V187: 110923024 | X187: 10.38027786 | Y187: -44.76282107 | AA187: 38.55209411 | AB187: -20.01197342 | AD187: 0 | AE187: 0
A188: 10593 | B188: 10.593 | C188: 1.045573291 | D188: 0.2963351526 | E188: 1.000226787 | F188: 0.02129527056 | G188: 1 | H188: 0 | I188: 34930.64278 | J188: 1.570767699 | K188: 1.500598113 | L188: 0.8414251172 | M188: 1.001217931 | N188: 0.04932941786 | O188: 1.000582062 | P188: 0.07616033522 | Q188: 11.24500796 | R188: -64.73690947 | S188: 115.2630905 | U188: 1000000000 | V188: 112211649 | X188: 10.3578084 | Y188: -44.61461924 | AA188: 38.54780342 | AB188: -20.12229024 | AD188: 0 | AE188: 0
A189: 10654 | B189: 10.654 | C189: 1.046088073 | D189: 0.2979426528 | E189: 1.000229406 | F189: 0.02141786241 | G189: 1 | H189: 0 | I189: 35131.79158 | J189: 1.570767863 | K189: 1.505407976 | L189: 0.8442771821 | M189: 1.001231989 | N189: 0.04961301771 | O189: 1.000588814 | P189: 0.0765992454 | Q189: 11.21849666 | R189: -64.69998334 | S189: 115.3000167 | U189: 1000000000 | V189: 113507716 | X189: 10.33560837 | Y189: -44.46746642 | AA189: 38.54349215 | AB189: -20.23251692 | AD189: 0 | AE189: 0
A190: 10715 | B190: 10.715 | C190: 1.046605556 | D190: 0.2995485675 | E190: 1.00023204 | F190: 0.02154045361 | G190: 1 | H190: 0 | I190: 35332.94038 | J190: 1.570768025 | K190: 1.510230007 | L190: 0.847111057 | M190: 1.001246128 | N190: 0.04989660957 | O190: 1.000595606 | P190: 0.07703816139 | Q190: 11.1922302 | R190: -64.66400838 | S190: 115.3359916 | U190: 1000000000 | V190: 114811225 | X190: 10.3136737 | Y190: -44.32135525 | AA190: 38.53916036 | AB190: -20.34265313 | AD190: 0 | AE190: 0
A191: 10777.5 | B191: 10.7775 | C191: 1.04713856 | D191: 0.3011923213 | E191: 1.000234755 | F191: 0.02166605868 | G191: 1 | H191: 0 | I191: 35539.03546 | J191: 1.570768189 | K191: 1.515183111 | L191: 0.8499958855 | M191: 1.001260699 | N191: 0.05018716667 | O191: 1.000602605 | P191: 0.07748787647 | Q191: 11.16556767 | R191: -64.62812728 | S191: 115.3718727 | U191: 1000000000 | V191: 116154506.2 | X191: 10.29147069 | Y191: -44.17272385 | AA191: 38.53470084 | AB191: -20.45540342 | AD191: 0 | AE191: 0
A192: 10840 | B192: 10.84 | C192: 1.047674391 | D192: 0.3028343982 | E192: 1.000237485 | F192: 0.02179166306 | G192: 1 | H192: 0 | I192: 35745.13054 | J192: 1.570768351 | K192: 1.520148742 | L192: 0.8528618907 | M192: 1.001275354 | N192: 0.05047771529 | O192: 1.000609647 | P192: 0.07793759773 | Q192: 11.13915387 | R192: -64.59322838 | S192: 115.4067716 | U192: 1000000000 | V192: 117505600 | X192: 10.26953782 | Y192: -44.02517035 | AA192: 38.53021991 | AB192: -20.56805802 | AD192: 0 | AE192: 0
A193: 10902.5 | B193: 10.9025 | C193: 1.048213044 | D193: 0.3044747918 | E193: 1.000240231 | F193: 0.02191726676 | G193: 1 | H193: 0 | I193: 35951.22561 | J193: 1.570768511 | K193: 1.525126779 | L193: 0.8557092099 | M193: 1.001290093 | N193: 0.05076825538 | O193: 1.000616729 | P193: 0.0783873252 | Q193: 11.11298472 | R193: -64.55930347 | S193: 115.4406965 | U193: 1000000000 | V193: 118864506.2 | X193: 10.24787094 | Y193: -43.87868689 | AA193: 38.52571765 | AB193: -20.68061658 | AD193: 0 | AE193: 0
A194: 10965 | B194: 10.965 | C194: 1.048754514 | D194: 0.3061134959 | E194: 1.000242993 | F194: 0.02204286976 | G194: 1 | H194: 0 | I194: 36157.32069 | J194: 1.57076867 | K194: 1.530117099 | L194: 0.8585379794 | M194: 1.001304917 | N194: 0.05105878689 | O194: 1.000623853 | P194: 0.07883705891 | Q194: 11.08705622 | R194: -64.52634438 | S194: 115.4736556 | U194: 1000000000 | V194: 120231225 | X194: 10.22646597 | Y194: -43.73326565 | AA194: 38.52119412 | AB194: -20.79307873 | AD194: 0 | AE194: 0
A195: 11028.75 | B195: 11.02875 | C195: 1.049309713 | D195: 0.3077832273 | E195: 1.000245827 | F195: 0.02217098411 | G195: 1 | H195: 0 | I195: 36367.53767 | J195: 1.57076883 | K195: 1.535219757 | L195: 0.8614043554 | M195: 1.001320125 | N195: 0.05135512014 | O195: 1.000631162 | P195: 0.07929579377 | Q195: 11.06085299 | R195: -64.49371266 | S195: 115.5062873 | U195: 1000000000 | V195: 121633326.6 | X195: 10.20489857 | Y195: -43.58602221 | AA195: 38.51655828 | AB195: -20.90769045 | AD195: 0 | AE195: 0
A196: 11092.5 | B196: 11.0925 | C196: 1.049867834 | D196: 0.309451188 | E196: 1.000248676 | F196: 0.02229909773 | G196: 1 | H196: 0 | I196: 36577.75465 | J196: 1.570768988 | K196: 1.540334944 | L196: 0.864251717 | M196: 1.00133542 | N196: 0.05165144437 | O196: 1.000638515 | P196: 0.07975453521 | Q196: 11.03489194 | R196: -64.46206872 | S196: 115.5379313 | U196: 1000000000 | V196: 123043556.2 | X196: 10.18359534 | Y196: -43.43986758 | AA196: 38.51190047 | AB196: -21.02220114 | AD196: 0 | AE196: 0
A197: 11156.25 | B197: 11.15625 | C197: 1.050428872 | D197: 0.3111173716 | E197: 1.000251543 | F197: 0.02242721062 | G197: 1 | H197: 0 | I197: 36787.97164 | J197: 1.570769144 | K197: 1.545462537 | L197: 0.8670802074 | M197: 1.001350804 | N197: 0.05194775952 | O197: 1.000645911 | P197: 0.08021328325 | Q197: 11.00916906 | R197: -64.43140401 | S197: 115.568596 | U197: 1000000000 | V197: 124461914.1 | X197: 10.16255217 | Y197: -43.29479358 | AA197: 38.50722075 | AB197: -21.13661042 | AD197: 0 | AE197: 0
A198: 11220 | B198: 11.22 | C198: 1.050992824 | D198: 0.3127817717 | E198: 1.000254425 | F198: 0.02255532277 | G198: 1 | H198: 0 | I198: 36998.18862 | J198: 1.570769298 | K198: 1.550602413 | L198: 0.8698899685 | M198: 1.001366275 | N198: 0.05224406554 | O198: 1.000653349 | P198: 0.08067203794 | Q198: 10.9836804 | R198: -64.40171001 | S198: 115.59829 | U198: 1000000000 | V198: 125888400 | X198: 10.14176505 | Y198: -43.15079206 | AA198: 38.50251921 | AB198: -21.25091795 | AD198: 0 | AE198: 0
A199: 11285.5 | B199: 11.2855 | C199: 1.051575285 | D199: 0.3144899969 | E199: 1.000257404 | F199: 0.02268695096 | G199: 1 | H199: 0 | I199: 37214.17626 | J199: 1.570769455 | K199: 1.555896048 | L199: 0.8727575017 | M199: 1.001382263 | N199: 0.05254849588 | O199: 1.000661037 | P199: 0.08114339286 | Q199: 10.95773194 | R199: -64.37220303 | S199: 115.627797 | U199: 1000000000 | V199: 127362510.2 | X199: 10.12066986 | Y199: -43.00394608 | AA199: 38.49766594 | AB199: -21.36825695 | AD199: 0 | AE199: 0
A200: 11351 | B200: 11.351 | C200: 1.052160812 | D200: 0.3161963258 | E200: 1.0002604 | F200: 0.02281857835 | G200: 1 | H200: 0 | I200: 37430.1639 | J200: 1.57076961 | K200: 1.56120239 | L200: 0.8756055653 | M200: 1.001398343 | N200: 0.05285291648 | O200: 1.000668771 | P200: 0.08161475487 | Q200: 10.93202254 | R200: -64.34370271 | S200: 115.6562973 | U200: 1000000000 | V200: 128845201 | X200: 10.0998366 | Y200: -42.85821495 | AA200: 38.49278979 | AB200: -21.48548776 | AD200: 0 | AE200: 0
A201: 11416.5 | B201: 11.4165 | C201: 1.052749399 | D201: 0.3179007518 | E201: 1.000263414 | F201: 0.02295020496 | G201: 1 | H201: 0 | I201: 37646.15154 | J201: 1.570769764 | K201: 1.566521309 | L201: 0.8784343112 | M201: 1.001414516 | N201: 0.05315732727 | O201: 1.00067655 | P201: 0.08208612402 | Q201: 10.90654815 | R201: -64.31619997 | S201: 115.6838 | U201: 1000000000 | V201: 130336472.2 | X201: 10.07926117 | Y201: -42.71358998 | AA201: 38.48789084 | AB201: -21.60260998 | AD201: 0 | AE201: 0
A202: 11482 | B202: 11.482 | C202: 1.053341041 | D202: 0.3196032679 | E202: 1.000266445 | F202: 0.02308183077 | G202: 1 | H202: 0 | I202: 37862.13919 | J202: 1.570769915 | K202: 1.571852679 | L202: 0.8812438906 | M202: 1.001430782 | N202: 0.0534617282 | O202: 1.000684375 | P202: 0.08255750035 | Q202: 10.88130482 | R202: -64.28968576 | S202: 115.7103142 | U202: 1000000000 | V202: 131836324 | X202: 10.05893951 | Y202: -42.57006251 | AA202: 38.48296917 | AB202: -21.71962325 | AD202: 0 | AE202: 0
... 433 more rows

Sheet Ch2 Stability Calculations (hidden)
A2: Divider Network & EA Poles/Zeros | E2: Modulator | J2: Power Stage Poles/Zeros | M2: Complex Pole Pair | P2: Total System
B3: Afb1 | C3: =Afb_Ch2 -> 0.24 | D3: V/V | E3: Acs | F3: =Acs_Ch2 -> 16.66666667 | G3: A/V | H3: gm | I3: =gm -> 0.0012 | J3: z_ESR | K3: =Fesr_Ch2 -> 397887.3582 | L3: Hz | M3: p3 | N3: =Fsw/2 -> 220000 | O3: Hz | P3: Adc | Q3: =Am_Ch2*Afb_Ch2*AEA -> 167054.4821 | R3: V/V
B4: EA zero, z1 | C4: =Fz1_u_Ch2 -> 4995.447058 | D4: Hz | E4: Am | F4: =Am_Ch2 -> 9.063285706 | G4: V/V | J4: p_dom | K4: =Fp_dominant_Ch2 -> 7316.834297 | L4: Hz | M4: pterm1 | N4: =Q_Ch2*pole3 -> 77149.99221 | P4: Crossover | Q4: =AE7 -> 120.23 | R4: kHz
B5: EA pole, p1 | C5: =Fp1_u_Ch2 -> 0.9208657667 | D5: Hz | E5: Q | F5: =Q_Ch2 -> 0.3506817828 | M5: pterm2 | N5: =pole3^2 -> 48400000000 | P5: Phase Margin | Q5: =AE9 -> 14.47316937 | R5: °
B6: Aea | C6: =AEA -> 76800 | D6: V/V | E6: mc | F6: =mc_Ch2 -> 2.432380952 | P6: radconv | Q6: =180/Pi -> 57.29577958 | AD6: XOVER SEARCH
B7: EA pole, p2 | C7: =Fp2_u_Ch2 -> 229261.9479 | D7: Hz | E7: k | F7: =k_Ch2 -> 1.407688686 | AD7: xover | AE7: =SUM(AD12:AD613)/1000 -> 120.23
AD9: phase margin | AE9: =SUM(AE13:AE613) -> 14.47316937
A10: Freq (Hz) | C10: Power Stage | I10: Error Amplifier | O10: Sampling Double Pole | Q10: System Response | X10: ERROR AMP Response | AA10: PLANT Response
C11: p_dom | E11: z_ESR | G11: z_RHP | I11: p1 | K11: z1 | M11: p2 | O11: p3
C12: Gain(V/V) | D12: Phase(rad) | E12: Gain(V/V) | F12: Phase(rad) | G12: Gain(V/V) | H12: Phase(rad) | I12: Gain(V/V) | J12: Phase(rad) | K12: Gain(V/V) | L12: Phase(rad) | M12: Gain(V/V) | N12: Phase(rad) | O12: Gain(V/V) | P12: Phase(rad) | Q12: Gain (dB) | R12: Phase (°) | S12: Phase Margin (°) | V12: Fsquare | X12: Gain(dB) | Y12: Phase(Deg) | AA12: Gain(dB) | AB12: Phase(Deg)
A13: 1 | B13: =A13/1000 -> 0.001 | C13: =SQRT(1+(A13/pole1)^2) -> 1.000000009 | D13: =ATAN(A13/pole1) -> 0.0001366711276 | E13: =SQRT(1+(A13/Zero1)^2) -> 1 | F13: =ATAN(A13/Zero1) -> 2.51327412e-06 | G13: =IF(VIN_nom>Vout, 1, SQRT(1+(A13/z_RHP)^2)) -> 1 | H13: =IF(VIN_nom>Vout, 0, -ATAN(A13/z_RHP)) -> 0 | I13: =SQRT(1+(A13/Pole2)^2) -> 1.476229643 | J13: =ATAN(A13/Pole2) -> 0.8265720503 | K13: =SQRT(1+(A13/Zero2)^2) -> 1.00000002 | L13: =ATAN(A13/Zero2) -> 0.000200182281 | M13: =SQRT(1+(A13/pole4)^2) -> 1 | N13: =ATAN(A13/pole4) -> 4.361822837e-06 | O13: =SQRT((1-(V13/pterm2))^2+(A13/pterm1)^2) -> 1 | P13: =IF((ATAN((A13/pterm1)/(1-A13^2/pterm2))>0),ATAN((A13/pterm1)/(1-A13^2/pterm2)),PI()+ATAN((A13/pterm1)/(1-A13^2/pterm2))) -> 1.296176411e-05 | Q13: =20*LOG10(((E13*K13*G13)/(C13*I13*O13*M13))*Adc) -> 101.0740843 | R13: =((F13+L13+H13)-(D13+J13+P13+N13))*radconv -> -47.35629964 | S13: =IF(R13>0,R13,R13+180) -> 132.6437004 | U13: =IF(Q13<0,A13,1000000000) -> 1000000000 | V13: =A13^2 -> 1 | X13: =20*LOG10((K13/(I13*M13))*AEA) -> 94.32414614 | Y13: =(L13-(J13+N13))*radconv -> -47.34787031 | AA13: =20*LOG10((E13*G13/(C13*O13))*Acs*Am) -> 38.93797758 | AB13: =(F13+H13-(D13+P13))*radconv -> -0.00842933318 | AD13: =SUM((Q14<0)*(Q13>0))*A13 -> 0 | AE13: =IF(AD13>0,S11,0) -> 0
A14: 1.0965 | B14: =A14/1000 -> 0.0010965 | C14: 1.000000011 | D14: 0.0001498598912 | E14: 1 | F14: 2.755805073e-06 | G14: 1 | H14: 0 | I14: 1.554937774 | J14: 0.8722403686 | K14: 1.000000024 | L14: 0.0002194998705 | M14: 1 | N14: 4.78273874e-06 | O14: 1 | P14: 1.421257434e-05 | Q14: 100.6229025 | R14: -49.97263228 | S14: 130.0273677 | U14: =IF(Q14<0,A14,1000000000) -> 1000000000 | V14: =A14^2 -> 1.20231225 | X14: 93.87296433 | Y14: -49.96338951 | AA14: 38.93797756 | AB14: -0.009242763821 | AD14: =SUM((Q15<0)*(Q14>0))*A14 -> 0 | AE14: 0
A15: 1.2023 | B15: 0.0012023 | C15: 1.000000014 | D15: 0.0001643196962 | E15: 1 | F15: 3.021709474e-06 | G15: 1 | H15: 0 | I15: 1.644579406 | J15: 0.9171839519 | K15: 1.000000029 | L15: 0.000240679155 | M15: 1 | N15: 5.244219596e-06 | O15: 1 | P15: 1.558392899e-05 | Q15: 100.1360658 | R15: -52.5474147 | S15: 127.4525853 | U15: 1000000000 | V15: 1.44552529 | X15: 93.3861277 | Y15: -52.53728011 | AA15: 38.93797754 | AB15: -0.01013458726 | AD15: 0 | AE15: 0
A16: 1.3183 | B16: 0.0013183 | C16: 1.000000016 | D16: 0.0001801735467 | E16: 1 | F16: 3.313249272e-06 | G16: 1 | H16: 0 | I16: 1.746265448 | J16: 0.9610608493 | K16: 1.000000035 | L16: 0.0002639002984 | M16: 1 | N16: 5.750191045e-06 | O16: 1 | P16: 1.708749362e-05 | Q16: 99.61495759 | R16: -55.06105206 | S16: 124.9389479 | U16: 1000000000 | V16: 1.73791489 | X16: 92.86501948 | Y16: -55.04993967 | AA16: 38.93797752 | AB16: -0.01111238988 | AD16: 0 | AE16: 0
A17: 1.4454 | B17: 0.0014454 | C17: 1.00000002 | D17: 0.0001975444465 | E17: 1 | F17: 3.632686413e-06 | G17: 1 | H17: 0 | I17: 1.86109515 | J17: 1.003542464 | K17: 1.000000042 | L17: 0.0002893434647 | M17: 1 | N17: 6.304578728e-06 | O17: 1 | P17: 1.873493384e-05 | Q17: 99.0617913 | R17: -57.49471466 | S17: 122.5052853 | U17: 1000000000 | V17: 2.08918116 | X17: 92.31185322 | Y17: -57.4825309 | AA17: 38.93797749 | AB17: -0.0121837581 | AD17: 0 | AE17: 0
A18: 1.5849 | B18: 0.0015849 | C18: 1.000000023 | D18: 0.0002166100681 | E18: 1 | F18: 3.983288153e-06 | G18: 1 | H18: 0 | I18: 1.990521908 | J18: 1.044446245 | K18: 1.00000005 | L18: 0.0003172688907 | M18: 1 | N18: 6.913053014e-06 | O18: 1 | P18: 2.054309993e-05 | Q18: 98.47782364 | R18: -59.83793941 | S18: 120.1620606 | U18: 1000000000 | V18: 2.51190801 | X18: 91.7278856 | Y18: -59.82457976 | AA18: 38.93797745 | AB18: -0.01335965004 | AD18: 0 | AE18: 0
A19: 1.7378 | B19: 0.0017378 | C19: 1.000000028 | D19: 0.0002375070825 | E19: 1 | F19: 4.367567766e-06 | G19: 1 | H19: 0 | I19: 2.135716889 | J19: 1.083513329 | K19: 1.000000061 | L19: 0.0003478767585 | M19: 1 | N19: 7.579975725e-06 | O19: 1 | P19: 2.252495366e-05 | Q19: 97.86628929 | R19: -62.07589177 | S19: 117.9241082 | U19: 1000000000 | V19: 3.01994884 | X19: 91.11635129 | Y19: -62.06124327 | AA19: 38.93797741 | AB19: -0.01464849503 | AD19: 0 | AE19: 0
A20: 1.9055 | B20: 0.0019055 | C20: 1.000000034 | D20: 0.0002604268294 | E20: 1 | F20: 4.789043836e-06 | G20: 1 | H20: 0 | I20: 2.29821428 | J20: 1.120624292 | K20: 1.000000073 | L20: 0.000381447323 | M20: 1 | N20: 8.311453415e-06 | O20: 1 | P20: 2.46986415e-05 | Q20: 97.22935261 | R20: -64.20172539 | S20: 115.7982746 | U20: 1000000000 | V20: 3.63093025 | X20: 90.47941466 | Y20: -64.18566329 | AA20: 38.93797736 | AB20: -0.01606209413 | AD20: 0 | AE20: 0
A21: 2.0893 | B21: 0.0020893 | C21: 1.000000041 | D21: 0.0002855469809 | E21: 1 | F21: 5.250983619e-06 | G21: 1 | H21: 0 | I21: 2.479445362 | J21: 1.155658553 | K21: 1.000000087 | L21: 0.0004182408209 | M21: 1 | N21: 9.113156452e-06 | O21: 1 | P21: 2.708101375e-05 | Q21: 96.5700722 | R21: -66.20852783 | S21: 113.7914722 | U21: 1000000000 | V21: 4.36517449 | X21: 89.82013431 | Y21: -66.19091642 | AA21: 38.9379773 | AB21: -0.01761140547 | AD21: 0 | AE21: 0
A22: 2.2909 | B22: 0.0022909 | C22: 1.000000049 | D22: 0.0003130998779 | E22: 1 | F22: 5.757659681e-06 | G22: 1 | H22: 0 | I22: 2.681228736 | J22: 1.188595574 | K22: 1.000000105 | L22: 0.0004585975615 | M22: 1 | N22: 9.992499936e-06 | O22: 1 | P22: 2.969410539e-05 | Q22: 95.89048583 | R22: -68.0951176 | S22: 111.9048824 | U22: 1000000000 | V22: 5.24822281 | X22: 89.14054801 | Y22: -68.07580684 | AA22: 38.93797723 | AB22: -0.01931075891 | AD22: 0 | AE22: 0
A23: 2.5119 | B23: 0.0025119 | C23: 1.000000059 | D23: 0.000343304194 | E23: 1 | F23: 6.313093262e-06 | G23: 1 | H23: 0 | I23: 2.905283094 | J23: 1.219409168 | K23: 1.000000126 | L23: 0.0005028378359 | M23: 1 | N23: 1.095646278e-05 | O23: 1 | P23: 3.255865526e-05 | Q23: 95.19339409 | R23: -69.8599898 | S23: 110.1400102 | U23: 1000000000 | V23: 6.30964161 | X23: 88.44345636 | Y23: -69.83881616 | AA23: 38.93797714 | AB23: -0.02117364137 | AD23: 0 | AE23: 0
A24: 2.7542 | B24: 0.0027542 | C24: 1.000000071 | D24: 0.0003764196042 | E24: 1 | F24: 6.922059581e-06 | G24: 1 | H24: 0 | I24: 3.153628013 | J24: 1.248131379 | K24: 1.000000152 | L24: 0.0005513419898 | M24: 1 | N24: 1.201333246e-05 | O24: 1 | P24: 3.56992907e-05 | Q24: 94.48095406 | R24: -71.50497521 | S24: 108.4950248 | U24: 1000000000 | V24: 7.58561764 | X24: 87.73101643 | Y24: -71.48175914 | AA24: 38.93797704 | AB24: -0.02321606856 | AD24: 0 | AE24: 0
A25: 3.02 | B25: 0.00302 | C25: 1.000000085 | D25: 0.0004127467844 | E25: 1 | F25: 7.590087842e-06 | G25: 1 | H25: 0 | I25: 3.428595604 | J25: 1.274829674 | K25: 1.000000183 | L25: 0.000604550423 | M25: 1 | N25: 1.317270497e-05 | O25: 1.000000001 | P25: 3.914452759e-05 | Q25: 93.75483821 | R25: -73.03393311 | S25: 106.9660669 | U25: 1000000000 | V25: 9.1204 | X25: 87.00490071 | Y25: -73.00847653 | AA25: 38.93797691 | AB25: -0.02545658501 | AD25: 0 | AE25: 0
A26: 3.3113 | B26: 0.0033113 | C26: 1.000000102 | D26: 0.0004525590767 | E26: 1 | F26: 8.322204593e-06 | G26: 1 | H26: 0 | I26: 3.732314961 | J26: 1.299552257 | K26: 1.00000022 | L26: 0.0006628634988 | M26: 1 | N26: 1.444330396e-05 | O26: 1.000000001 | P26: 4.292028947e-05 | Q26: 93.01759795 | R26: -74.44961996 | S26: 105.55038 | U26: 1000000000 | V26: 10.96470769 | X26: 86.2676606 | Y26: -74.42170791 | AA26: 38.93797676 | AB26: -0.02791204935 | AD26: 0 | AE26: 0
A27: 3.6308 | B27: 0.0036308 | C27: 1.000000123 | D27: 0.0004962254924 | E27: 1 | F27: 9.125195675e-06 | G27: 1 | H27: 0 | I27: 4.067648137 | J27: 1.322407754 | K27: 1.000000264 | L27: 0.0007268217075 | M27: 1 | N27: 1.583690635e-05 | O27: 1.000000001 | P27: 4.70615731e-05 | Q27: 92.2702963 | R27: -75.758252 | S27: 104.241748 | U27: 1000000000 | V27: 13.18270864 | X27: 85.52035913 | Y27: -75.72764678 | AA27: 38.93797658 | AB27: -0.03060522075 | AD27: 0 | AE27: 0
A28: 3.9811 | B28: 0.0039811 | C28: 1.000000148 | D28: 0.0005441013757 | E28: 1 | F28: 1.00055956e-05 | G28: 1 | H28: 0 | I28: 4.437361987 | J28: 1.343484703 | K28: 1.000000318 | L28: 0.0007969455208 | M28: 1 | N28: 1.736485289e-05 | O28: 1.000000001 | P28: 5.160207906e-05 | Q28: 91.51466694 | R28: -76.96489472 | S28: 103.0351053 | U28: 1000000000 | V28: 15.84915721 | X28: 84.76472998 | Y28: -76.9313367 | AA28: 38.93797636 | AB28: -0.03355801544 | AD28: 0 | AE28: 0
A29: 4.3652 | B29: 0.0043652 | C29: 1.000000178 | D29: 0.0005965967391 | E29: 1 | F29: 1.097094419e-05 | G29: 1 | H29: 0 | I29: 4.844651696 | J29: 1.362888548 | K29: 1.000000382 | L29: 0.0008738354822 | M29: 1 | N29: 1.904022904e-05 | O29: 1.000000001 | P29: 5.658069265e-05 | Q29: 90.75191322 | R29: -78.07558142 | S29: 101.9244186 | U29: 1000000000 | V29: 19.05497104 | X29: 84.00197653 | Y29: -78.0387857 | AA29: 38.9379761 | AB29: -0.03679572135 | AD29: 0 | AE29: 0
A30: 4.7863 | B30: 0.0047863 | C30: 1.000000214 | D30: 0.0006541489287 | E30: 1 | F30: 1.202928392e-05 | G30: 1 | H30: 0 | I30: 5.29293275 | J30: 1.380722722 | K30: 1.000000459 | L30: 0.0009581321711 | M30: 1 | N30: 2.087699264e-05 | O30: 1.000000001 | P30: 6.20388915e-05 | Q30: 89.98323724 | R30: -79.09622931 | S30: 100.9037707 | U30: 1000000000 | V30: 22.90866769 | X30: 83.23330087 | Y30: -79.05588399 | AA30: 38.93797579 | AB30: -0.04034531229 | AD30: 0 | AE30: 0
A31: 5.2481 | B31: 0.0052481 | C31: 1.000000257 | D31: 0.0007172636262 | E31: 1 | F31: 1.318991391e-05 | G31: 1 | H31: 0 | I31: 5.786161544 | J31: 1.397098053 | K31: 1.000000552 | L31: 0.001050576256 | M31: 1 | N31: 2.289128242e-05 | O31: 1.000000002 | P31: 6.802463415e-05 | Q31: 89.2093541 | R31: -80.03317806 | S31: 99.96682194 | U31: 1000000000 | V31: 27.54255361 | X31: 82.4594181 | Y31: -79.98894009 | AA31: 38.93797541 | AB31: -0.04423797667 | AD31: 0 | AE31: 0
A32: 5.7544 | B32: 0.0057544 | C32: 1.000000309 | D32: 0.0007864601793 | E32: 1 | F32: 1.44623846e-05 | G32: 1 | H32: 0 | I32: 6.328410317 | J32: 1.412113655 | K32: 1.000000663 | L32: 0.001151928424 | M32: 1 | N32: 2.509967333e-05 | O32: 1.000000002 | P32: 7.458717529e-05 | Q32: 88.43127311 | R32: -80.89209591 | S32: 99.10790409 | U32: 1000000000 | V32: 33.11311936 | X32: 81.68133756 | Y32: -80.84359016 | AA32: 38.93797495 | AB32: -0.04850574584 | AD32: 0 | AE32: 0
A33: 6.3096 | B33: 0.0063096 | C33: 1.000000372 | D33: 0.0008623399382 | E33: 1 | F33: 1.585775439e-05 | G33: 1 | H33: 0 | I33: 6.924401845 | J33: 1.425872752 | K33: 1.000000798 | L33: 0.001263069465 | M33: 1 | N33: 2.752135736e-05 | O33: 1.000000003 | P33: 8.17835467e-05 | Q33: 87.64952105 | R33: -81.67888491 | S33: 98.32111509 | U33: 1000000000 | V33: 39.81105216 | X33: 80.89958606 | Y33: -81.6256992 | AA33: 38.93797441 | AB33: -0.05318570869 | AD33: 0 | AE33: 0
A34: 6.9183 | B34: 0.0069183 | C34: 1.000000447 | D34: 0.0009455315861 | E34: 1 | F34: 1.738758434e-05 | G34: 1 | H34: 0 | I34: 7.579082052 | J34: 1.438468373 | K34: 1.000000959 | L34: 0.001384920208 | M34: 1 | N34: 3.017639892e-05 | O34: 1.000000003 | P34: 8.967337248e-05 | Q34: 86.86483489 | R34: -82.39886236 | S34: 97.60113764 | U34: 1000000000 | V34: 47.86287489 | X34: 80.11490055 | Y34: -82.34054572 | AA34: 38.93797375 | AB34: -0.05831663993 | AD34: 0 | AE34: 0
A35: 7.5858 | B35: 0.0075858 | C35: 1.000000537 | D35: 0.001036759475 | E35: 1 | F35: 1.906519482e-05 | G35: 1 | H35: 0 | I35: 8.298157407 | J35: 1.449994045 | K35: 1.000001153 | L35: 0.0015185416 | M35: 1.000000001 | N35: 3.308791566e-05 | O35: 1.000000004 | P35: 9.832534997e-05 | Q35: 86.07753459 | R35: -83.05737221 | S35: 96.94262779 | U35: 1000000000 | V35: 57.54436164 | X35: 79.32760104 | Y35: -82.99342899 | AA35: 38.93797296 | AB35: -0.06394321471 | AD35: 0 | AE35: 0
A36: 8.3176 | B36: 0.0083176 | C36: 1.000000646 | D36: 0.001136775288 | E36: 1 | F36: 2.090440882e-05 | G36: 1 | H36: 0 | I36: 9.087557506 | J36: 1.46053246 | K36: 1.000001386 | L36: 0.001665034624 | M36: 1.000000001 | N36: 3.627989761e-05 | O36: 1.000000004 | P36: 0.0001078107689 | Q36: 85.28822559 | R36: -83.65913691 | S36: 96.34086309 | U36: 1000000000 | V36: 69.18246976 | X36: 78.53829299 | Y36: -83.58902512 | AA36: 38.93797201 | AB36: -0.070111794 | AD36: 0 | AE36: 0
A37: 9.1201 | B37: 0.0091201 | C37: 1.000000777 | D37: 0.001246453713 | E37: 1 | F37: 2.29213113e-05 | G37: 1 | H37: 0 | I37: 9.954189648 | J37: 1.470166365 | K37: 1.000001667 | L37: 0.001825680417 | M37: 1.000000001 | N37: 3.978026043e-05 | O37: 1.000000005 | P37: 0.0001182125845 | Q37: 84.49705211 | R37: -84.20887976 | S37: 95.79112024 | U37: 1000000000 | V37: 83.17622401 | X37: 77.74712066 | Y37: -84.13200343 | AA37: 38.93797087 | AB37: -0.07687632498 | AD37: 0 | AE37: 0
A38: 10 | B38: 0.01 | C38: 1.000000934 | D38: 0.001366710433 | E38: 1 | F38: 2.513274119e-05 | G38: 1 | H38: 0 | I38: 10.90529211 | J38: 1.47896873 | K38: 1.000002004 | L38: 0.002001820163 | M38: 1.000000001 | N38: 4.361822834e-05 | O38: 1.000000006 | P38: 0.0001296176406 | Q38: 83.70442582 | R38: -84.71076293 | S38: 95.28923707 | U38: 1000000000 | V38: 100 | X38: 76.95449573 | Y38: -84.62646964 | AA38: 38.93796949 | AB38: -0.08429328351 | AD38: 0 | AE38: 0
A39: 10.965 | B39: 0.010965 | C39: 1.000001123 | D39: 0.001498597801 | E39: 1 | F39: 2.755805072e-05 | G39: 1 | H39: 0 | I39: 11.94919027 | J39: 1.487010652 | K39: 1.000002409 | L39: 0.002194995215 | M39: 1.000000001 | N39: 4.782738737e-05 | O39: 1.000000008 | P39: 0.0001421257428 | Q39: 82.91040421 | R39: -85.16883849 | S39: 94.83116151 | U39: 1000000000 | V39: 120.231225 | X39: 76.16047578 | Y39: -85.07641092 | AA39: 38.93796784 | AB39: -0.09242757455 | AD39: 0 | AE39: 0
A40: 12.023 | B40: 0.012023 | C40: 1.00000135 | D40: 0.001643195498 | E40: 1 | F40: 3.021709474e-05 | G40: 1 | H40: 0 | I40: 13.09443173 | J40: 1.494353561 | K40: 1.000002896 | L40: 0.002406786949 | M40: 1.000000001 | N40: 5.244219592e-05 | O40: 1.000000009 | P40: 0.0001558392891 | Q40: 82.11544288 | R40: -85.586604 | S40: 94.413396 | U40: 1000000000 | V40: 144.552529 | X40: 75.36551643 | Y40: -85.48525821 | AA40: 38.93796586 | AB40: -0.1013457886 | AD40: 0 | AE40: 0
A41: 13.183 | B41: 0.013183 | C41: 1.000001623 | D41: 0.001801733537 | E41: 1.000000001 | F41: 3.313249271e-05 | G41: 1 | H41: 0 | I41: 14.35075962 | J41: 1.501057088 | K41: 1.000003482 | L41: 0.002638996919 | M41: 1.000000002 | N41: 5.750191039e-05 | O41: 1.000000011 | P41: 0.0001708749352 | Q41: 81.31968089 | R41: -85.96745106 | S41: 94.03254894 | U41: 1000000000 | V41: 173.791489 | X41: 74.56975683 | Y41: -85.85632727 | AA41: 38.93796347 | AB41: -0.1111237882 | AD41: 0 | AE41: 0
A42: 14.454 | B42: 0.014454 | C42: 1.000001951 | D42: 0.001975441921 | E42: 1.000000001 | F42: 3.632686411e-05 | G42: 1 | H42: 0 | I42: 15.72792153 | J42: 1.507172218 | K42: 1.000004186 | L42: 0.002893426653 | M42: 1.000000002 | N42: 6.30457872e-05 | O42: 1.000000013 | P42: 0.000187349337 | Q42: 80.52375526 | R42: -86.31427575 | S42: 93.68572425 | U42: 1000000000 | V42: 208.918116 | X42: 73.77383407 | Y42: -86.19243831 | AA42: 38.9379606 | AB42: -0.1218374352 | AD42: 0 | AE42: 0
A43: 15.849 | B43: 0.015849 | C43: 1.000002346 | D43: 0.002166097327 | E43: 1.000000001 | F43: 3.983288151e-05 | G43: 1 | H43: 0 | I43: 17.24000426 | J43: 1.512759125 | K43: 1.000005033 | L43: 0.003172678368 | M43: 1.000000002 | N43: 6.913053003e-05 | O43: 1.000000016 | P43: 0.0002054309975 | Q43: 79.72643846 | R43: -86.63048949 | S43: 93.36951051 | U43: 1000000000 | V43: 251.190801 | X43: 72.97652072 | Y43: -86.49689319 | AA43: 38.93795715 | AB43: -0.1335963081 | AD43: 0 | AE43: 0
A44: 17.378 | B44: 0.017378 | C44: 1.00000282 | D44: 0.002375066404 | E44: 1.000000001 | F44: 4.367567763e-05 | G44: 1 | H44: 0 | I44: 18.8978481 | J44: 1.517855523 | K44: 1.000006051 | L44: 0.003478753692 | M44: 1.000000003 | N44: 7.579975711e-05 | O44: 1.000000019 | P44: 0.0002252495343 | Q44: 78.92894345 | R44: -86.91822526 | S44: 93.08177474 | U44: 1000000000 | V44: 301.994884 | X44: 72.17902986 | Y44: -86.77174056 | AA44: 38.937953 | AB44: -0.1464846968 | AD44: 0 | AE44: 0
A45: 19.055 | B45: 0.019055 | C45: 1.000003391 | D45: 0.002604262465 | E45: 1.000000001 | F45: 4.789043832e-05 | G45: 1 | H45: 0 | I45: 20.71663311 | J45: 1.52250717 | K45: 1.000007275 | L45: 0.003814454915 | M45: 1.000000003 | N45: 8.311453396e-05 | O45: 1.000000023 | P45: 0.0002469864119 | Q45: 78.13081267 | R45: -87.18006577 | S45: 92.81993423 | U45: 1000000000 | V45: 363.093025 | X45: 71.38090406 | Y45: -87.01944516 | AA45: 38.93794801 | AB45: -0.1606206072 | AD45: 0 | AE45: 0
A46: 20.893 | B46: 0.020893 | C46: 1.000004077 | D46: 0.002855462126 | E46: 1.000000001 | F46: 5.250983614e-05 | G46: 1 | H46: 0 | I46: 22.71045861 | J46: 1.526749509 | K46: 1.000008746 | L46: 0.004182384066 | M46: 1.000000004 | N46: 9.113156427e-05 | O46: 1.000000028 | P46: 0.0002708101333 | Q46: 77.33268485 | R46: -87.41800547 | S46: 92.58199453 | U46: 1000000000 | V46: 436.517449 | X46: 70.58278225 | Y46: -87.24189185 | AA46: 38.93794202 | AB46: -0.1761136143 | AD46: 0 | AE46: 0
A47: 22.909 | B47: 0.022909 | C47: 1.000004902 | D47: 0.00313098865 | E47: 1.000000002 | F47: 5.757659675e-05 | G47: 1 | H47: 0 | I47: 24.89776603 | J47: 1.530621274 | K47: 1.000010516 | L47: 0.004585943787 | M47: 1.000000005 | N47: 9.992499903e-05 | O47: 1.000000033 | P47: 0.0002969410484 | Q47: 76.53400346 | R47: -87.63421622 | S47: 92.36578378 | U47: 1000000000 | V47: 524.822281 | X47: 69.78410806 | Y47: -87.44110921 | AA47: 38.93793481 | AB47: -0.1931070084 | AD47: 0 | AE47: 0
A48: 25.119 | B48: 0.025119 | C48: 1.000005893 | D48: 0.003433028588 | E48: 1.000000002 | F48: 6.313093254e-05 | G48: 1 | H48: 0 | I48: 27.29591518 | J48: 1.534152608 | K48: 1.000012642 | L48: 0.005028336404 | M48: 1.000000006 | N48: 0.0001095646274 | O48: 1.00000004 | P48: 0.0003255865454 | Q48: 75.73526769 | R48: -87.83038048 | S48: 92.16961952 | U48: 1000000000 | V48: 630.964161 | X48: 68.98538096 | Y48: -87.61864483 | AA48: 38.93792614 | AB48: -0.2117356482 | AD48: 0 | AE48: 0
A49: 27.542 | B49: 0.027542 | C49: 1.000007085 | D49: 0.003764178441 | E49: 1.000000002 | F49: 6.92205957e-05 | G49: 1 | H49: 0 | I49: 29.92552362 | J49: 1.537373814 | K49: 1.000015199 | L49: 0.005513364592 | M49: 1.000000007 | N49: 0.000120133324 | O49: 1.000000048 | P49: 0.0003569928975 | Q49: 74.9363975 | R49: -88.00818145 | S49: 91.99181855 | U49: 1000000000 | V49: 758.561764 | X49: 68.18652119 | Y49: -87.77602178 | AA49: 38.93791573 | AB49: -0.2321596766 | AD49: 0 | AE49: 0
A50: 30.2 | B50: 0.0302 | C50: 1.000008518 | D50: 0.004127444641 | E50: 1.000000003 | F50: 7.590087828e-05 | G50: 1 | H50: 0 | I50: 32.81046756 | J50: 1.540313528 | K50: 1.000018274 | L50: 0.006045431317 | M50: 1.000000009 | N50: 0.0001317270489 | O50: 1.000000058 | P50: 0.0003914452634 | Q50: 74.13699845 | R50: -88.1691986 | S50: 91.8308014 | U50: 1000000000 | V50: 912.04 | X50: 67.38713466 | Y50: -87.91463408 | AA50: 38.9379032 | AB50: -0.2545645199 | AD50: 0 | AE50: 0
A51: 33.113 | B51: 0.033113 | C51: 1.00001024 | D51: 0.00452556018 | E51: 1.000000003 | F51: 8.322204574e-05 | G51: 1 | H51: 0 | I51: 35.97245469 | J51: 1.542993697 | K51: 1.000021969 | L51: 0.006628538877 | M51: 1.00000001 | N51: 0.0001444330386 | O51: 1.000000069 | P51: 0.0004292028783 | Q51: 73.33786237 | R51: -88.31463359 | S51: 91.68536641 | U51: 1000000000 | V51: 1096.470769 | X51: 66.58801364 | Y51: -88.03551485 | AA51: 38.93788814 | AB51: -0.2791187401 | AD51: 0 | AE51: 0
A52: 36.308 | B52: 0.036308 | C52: 1.000012312 | D52: 0.004962214602 | E52: 1.000000004 | F52: 9.12519565e-05 | G52: 1 | H52: 0 | I52: 39.4407928 | J52: 1.54543915 | K52: 1.000026413 | L52: 0.007268090373 | M52: 1.000000013 | N52: 0.0001583690622 | O52: 1.000000084 | P52: 0.0004706157093 | Q52: 72.53837161 | R52: -88.44583374 | S52: 91.55416626 | U52: 1000000000 | V52: 1318.270864 | X52: 65.78854099 | Y52: -88.13978384 | AA52: 38.93787003 | AB52: -0.306049896 | AD52: 0 | AE52: 0
A53: 39.811 | B53: 0.039811 | C53: 1.000014802 | D53: 0.005440960602 | E53: 1.000000005 | F53: 0.0001000559557 | G53: 1 | H53: 0 | I53: 43.24370637 | J53: 1.547669513 | K53: 1.000031756 | L53: 0.007969288182 | M53: 1.000000015 | N53: 0.0001736485272 | O53: 1.0000001 | P53: 0.000516020762 | Q53: 71.73885075 | R53: -88.56385113 | S53: 91.43614887 | U53: 1000000000 | V53: 1584.915721 | X53: 64.9890419 | Y53: -88.22827402 | AA53: 38.93784826 | AB53: -0.3355771072 | AD53: 0 | AE53: 0
A54: 43.652 | B54: 0.043652 | C54: 1.000017796 | D54: 0.005965897318 | E54: 1.000000006 | F54: 0.0001097094414 | G54: 1 | H54: 0 | I54: 47.41376389 | J54: 1.549703841 | K54: 1.000038179 | L54: 0.008738134639 | M54: 1.000000018 | N54: 0.0001904022882 | O54: 1.000000121 | P54: 0.0005658068887 | Q54: 70.93924988 | R54: -88.66969388 | S54: 91.33030612 | U54: 1000000000 | V54: 1905.497104 | X54: 64.1894672 | Y54: -88.30174068 | AA54: 38.93782209 | AB54: -0.3679531965 | AD54: 0 | AE54: 0
A55: 47.863 | B55: 0.047863 | C55: 1.000021395 | D55: 0.006541396917 | E55: 1.000000007 | F55: 0.0001202928386 | G55: 1 | H55: 0 | I55: 51.98570678 | J55: 1.551559084 | K55: 1.0000459 | L55: 0.009581031465 | M55: 1.000000022 | N55: 0.0002087699234 | O55: 1.000000145 | P55: 0.0006203888653 | Q55: 70.13969504 | R55: -88.76424406 | S55: 91.23575594 | U55: 1000000000 | V55: 2290.866769 | X55: 63.38994383 | Y55: -88.36079623 | AA55: 38.93779063 | AB55: -0.4034478276 | AD55: 0 | AE55: 0
A56: 52.481 | B56: 0.052481 | C56: 1.000025723 | D56: 0.007172514493 | E56: 1.000000009 | F56: 0.0001318991383 | G56: 1 | H56: 0 | I56: 56.9997065 | J56: 1.553251477 | K56: 1.000055184 | L56: 0.01050537994 | M56: 1.000000026 | N56: 0.0002289128203 | O56: 1.000000174 | P56: 0.0006802462759 | Q56: 69.33996448 | R56: -88.84832883 | S56: 91.15167117 | U56: 1000000000 | V56: 2754.255361 | X56: 62.59025109 | Y56: -88.40595604 | AA56: 38.93775279 | AB56: -0.4423727861 | AD56: 0 | AE56: 0
A57: 57.544 | B57: 0.057544 | C57: 1.000030926 | D57: 0.007864441274 | E57: 1.00000001 | F57: 0.000144623845 | G57: 1 | H57: 0 | I57: 62.49702164 | J57: 1.554794881 | K57: 1.000066345 | L57: 0.01151877986 | M57: 1.000000031 | N57: 0.000250996728 | O57: 1.00000021 | P57: 0.0007458716665 | Q57: 68.54028186 | R57: -88.92263666 | S57: 91.07736334 | U57: 1000000000 | V57: 3311.311936 | X57: 61.79061395 | Y57: -88.4375884 | AA57: 38.93770732 | AB57: -0.4850482564 | AD57: 0 | AE57: 0
A58: 63.096 | B58: 0.063096 | C58: 1.000037181 | D58: 0.008623187775 | E58: 1.000000013 | F58: 0.0001585775425 | G58: 1 | H58: 0 | I58: 68.52542661 | J58: 1.556202685 | K58: 1.000079764 | L58: 0.01263002976 | M58: 1.000000038 | N58: 0.0002752135667 | O58: 1.000000252 | P58: 0.0008178353531 | Q58: 67.74049513 | R58: -88.98781218 | S58: 91.01218782 | U58: 1000000000 | V58: 3981.105216 | X58: 60.99088191 | Y58: -88.45596722 | AA58: 38.93765263 | AB58: -0.5318449562 | AD58: 0 | AE58: 0
A59: 69.183 | B59: 0.069183 | C59: 1.000044701 | D59: 0.009455036916 | E59: 1.000000015 | F59: 0.0001738758417 | G59: 1 | H59: 0 | I59: 75.13486857 | J59: 1.557486534 | K59: 1.000095896 | L59: 0.0138483256 | M59: 1.000000046 | N59: 0.0003017639801 | O59: 1.000000303 | P59: 0.0008967335746 | Q59: 66.94077377 | R59: -89.04439475 | S59: 90.95560525 | U59: 1000000000 | V59: 4786.287489 | X59: 60.19122628 | Y59: -88.46124434 | AA59: 38.9375869 | AB59: -0.5831504084 | AD59: 0 | AE59: 0
A60: 75.858 | B60: 0.075858 | C60: 1.000053742 | D60: 0.01036722702 | E60: 1.000000018 | F60: 0.0001906519459 | G60: 1 | H60: 0 | I60: 82.38289649 | J60: 1.558657587 | K60: 1.000115292 | L60: 0.0151842606 | M60: 1.000000055 | N60: 0.0003308791447 | O60: 1.000000365 | P60: 0.0009832533017 | Q60: 66.14095259 | R60: -89.09287653 | S60: 90.90712347 | U60: 1000000000 | V60: 5754.436164 | X60: 59.39148414 | Y60: -88.45346546 | AA60: 38.93750786 | AB60: -0.639411067 | AD60: 0 | AE60: 0
A61: 83.176 | B61: 0.083176 | C61: 1.000064611 | D61: 0.01136726815 | E61: 1.000000022 | F61: 0.0002090440852 | G61: 1 | H61: 0 | I61: 90.32923194 | J61: 1.559725487 | K61: 1.000138608 | L61: 0.0166488232 | M61: 1.000000066 | N61: 0.0003627989603 | O61: 1.000000438 | P61: 0.001078107428 | Q61: 65.34123477 | R61: -89.13365742 | S61: 90.86634258 | U61: 1000000000 | V61: 6918.246976 | X61: 58.59186133 | Y61: -88.43256727 | AA61: 38.93741286 | AB61: -0.7010901519 | AD61: 0 | AE61: 0
A62: 91.201 | B62: 0.091201 | C62: 1.000077679 | D62: 0.01246389813 | E62: 1.000000026 | F62: 0.000229213109 | G62: 1 | H62: 0 | I62: 99.04337007 | J62: 1.560699568 | K62: 1.000166642 | L62: 0.01825479645 | M62: 1.000000079 | N62: 0.0003978025835 | O62: 1.000000527 | P62: 0.001182125501 | Q62: 64.54142205 | R62: -89.16709469 | S62: 90.83290531 | U62: 1000000000 | V62: 8317.622401 | X62: 57.79216284 | Y62: -88.39836807 | AA62: 38.93729862 | AB62: -0.7687266182 | AD62: 0 | AE62: 0
A63: 100 | B63: 0.1 | C63: 1.000093391 | D63: 0.01366626198 | E63: 1.000000032 | F63: 0.0002513274067 | G63: 1 | H63: 0 | I63: 108.5980644 | J63: 1.561587929 | K63: 1.000200345 | L63: 0.02001555504 | M63: 1.000000095 | N63: 0.000436182256 | O63: 1.000000633 | P63: 0.001296175953 | Q63: 63.74164375 | R63: -89.19346691 | S63: 90.80653309 | U63: 1000000000 | V63: 10000 | X63: 56.99252187 | Y63: -88.35058237 | AA63: 38.93716129 | AB63: -0.842884546 | AD63: 0 | AE63: 0
A64: 109.65 | B64: 0.10965 | C64: 1.000112284 | D64: 0.01498486753 | E64: 1.000000038 | F64: 0.0002755805003 | G64: 1 | H64: 0 | I64: 119.0769282 | J64: 1.562398296 | K64: 1.000240872 | L64: 0.02194646324 | M64: 1.000000114 | N64: 0.0004782738376 | O64: 1.000000762 | P64: 0.001421256831 | Q64: 62.94171962 | R64: -89.2130038 | S64: 90.7869962 | U64: 1000000000 | V64: 12023.1225 | X64: 56.19276289 | Y64: -88.28879171 | AA64: 38.93699614 | AB64: -0.9242120857 | AD64: 0 | AE64: 0
A65: 120.23 | B65: 0.12023 | C65: 1.000134996 | D65: 0.01643049108 | E65: 1.000000046 | F65: 0.0003021709383 | G65: 1 | H65: 0 | I65: 130.5657468 | J65: 1.563137275 | K65: 1.00028959 | L65: 0.02406327035 | M65: 1.000000138 | N65: 0.0005244219116 | O65: 1.000000916 | P65: 0.001558392103 | Q65: 62.14191126 | R65: -89.22586607 | S65: 90.77413393 | U65: 1000000000 | V65: 14455.2529 | X65: 55.39315305 | Y65: -88.21249211 | AA65: 38.93679762 | AB65: -1.013373966 | AD65: 0 | AE65: 0
A66: 131.83 | B66: 0.13183 | C66: 1.000162299 | D66: 0.01801540561 | E66: 1.000000055 | F66: 0.0003313249151 | G66: 1 | H66: 0 | I66: 143.1622512 | J66: 1.563811188 | K66: 1.000348156 | L66: 0.02638390671 | M66: 1.000000165 | N66: 0.0005750190412 | O66: 1.000001101 | P66: 0.001708748313 | Q66: 61.34219567 | R66: -89.23216807 | S66: 90.76783193 | U66: 1000000000 | V66: 17379.1489 | X66: 54.59367611 | Y66: -88.12104082 | AA66: 38.93655897 | AB66: -1.111127256 | AD66: 0 | AE66: 0
A67: 144.54 | B67: 0.14454 | C67: 1.0001951 | D67: 0.01975187586 | E67: 1.000000066 | F67: 0.0003632686253 | G67: 1 | H67: 0 | I67: 156.9641729 | J67: 1.564425403 | K67: 1.000418511 | L67: 0.02892627676 | M67: 1.000000199 | N67: 0.0006304577893 | O67: 1.000001323 | P67: 0.001873492001 | Q67: 60.54307921 | R67: -89.23197061 | S67: 90.76802939 | U67: 1000000000 | V67: 20891.8116 | X67: 53.79484633 | Y67: -88.01374206 | AA67: 38.93627229 | AB67: -1.218228551 | AD67: 0 | AE67: 0
A68: 158.49 | B68: 0.15849 | C68: 1.000234572 | D68: 0.02165762032 | E68: 1.000000079 | F68: 0.0003983287942 | G68: 1 | H68: 0 | I68: 172.1126802 | J68: 1.564986147 | K68: 1.000503171 | L68: 0.03171625118 | M68: 1.000000239 | N68: 0.0006913051912 | O68: 1.000001591 | P68: 0.00205430817 | Q68: 59.74322225 | R68: -89.22527372 | S68: 90.77472628 | U68: 1000000000 | V68: 25119.0801 | X68: 52.99533436 | Y68: -87.88950285 | AA68: 38.9359273 | AB68: -1.33577087 | AD68: 0 | AE68: 0
A69: 173.78 | B69: 0.17378 | C69: 1.000282008 | D69: 0.02374624432 | E69: 1.000000095 | F69: 0.0004367567488 | G69: 1 | H69: 0 | I69: 188.7163647 | J69: 1.565497344 | K69: 1.000604908 | L69: 0.03477365429 | M69: 1.000000287 | N69: 0.0007579974274 | O69: 1.000001913 | P69: 0.002252492963 | Q69: 58.94375656 | R69: -89.2120308 | S69: 90.7879692 | U69: 1000000000 | V69: 30199.4884 | X69: 52.19628325 | Y69: -87.7474372 | AA69: 38.93551272 | AB69: -1.464593602 | AD69: 0 | AE69: 0
A70: 190.55 | B70: 0.19055 | C70: 1.000339053 | D70: 0.02603679835 | E70: 1.000000115 | F70: 0.000478904347 | G70: 1 | H70: 0 | I70: 206.9272548 | J70: 1.565963692 | K70: 1.000727246 | L70: 0.03812624983 | M70: 1.000000345 | N70: 0.0008311451501 | O70: 1.0000023 | P70: 0.002469860981 | Q70: 58.14415675 | R70: -89.19213049 | S70: 90.80786951 | U70: 1000000000 | V70: 36309.3025 | X70: 51.39718196 | Y70: -87.58625842 | AA70: 38.9350142 | AB70: -1.605872072 | AD70: 0 | AE70: 0
A71: 208.93 | B71: 0.20893 | C71: 1.000407602 | D71: 0.02854694177 | E71: 1.000000138 | F71: 0.0005250983136 | G71: 1 | H71: 0 | I71: 226.8865202 | J71: 1.566388823 | K71: 1.000874245 | L71: 0.04179972311 | M71: 1.000000415 | N71: 0.000911315393 | O71: 1.000002765 | P71: 0.002708097197 | Q71: 57.34501295 | R71: -89.16543144 | S71: 90.83456856 | U71: 1000000000 | V71: 43651.7449 | X71: 50.59863719 | Y71: -87.40473553 | AA71: 38.93441517 | AB71: -1.760695906 | AD71: 0 | AE71: 0
A72: 229.09 | B72: 0.22909 | C72: 1.000490038 | D72: 0.03129976361 | E72: 1.000000166 | F72: 0.0005757659045 | G72: 1 | H72: 0 | I72: 248.7787678 | J72: 1.56677668 | K72: 1.001051006 | L72: 0.04582765038 | M72: 1.000000499 | N72: 0.000999249661 | O72: 1.000003324 | P72: 0.002969405032 | Q72: 56.54573339 | R72: -89.13170294 | S72: 90.86829706 | U72: 1000000000 | V72: 52482.2281 | X72: 49.80007795 | Y72: -87.20121316 | AA72: 38.93369485 | AB72: -1.930489776 | AD72: 0 | AE72: 0
A73: 251.19 | B73: 0.25119 | C73: 1.000589115 | D73: 0.03431694326 | E73: 1.000000199 | F73: 0.0006313092423 | G73: 1 | H73: 0 | I73: 272.7777457 | J73: 1.56713033 | K73: 1.001263432 | L73: 0.05024147184 | M73: 1.0000006 | N73: 0.00109564584 | O73: 1.000003997 | P73: 0.003255858266 | Q73: 55.74679735 | R73: -89.09069717 | S73: 90.90930283 | U73: 1000000000 | V73: 63096.4161 | X73: 49.00200757 | Y73: -86.97410557 | AA73: 38.93282919 | AB73: -2.116591599 | AD73: 0 | AE73: 0
A74: 275.42 | B74: 0.27542 | C74: 1.000708208 | D74: 0.03762419878 | E74: 1.00000024 | F74: 0.0006922058476 | G74: 1 | H74: 0 | I74: 299.0897799 | J74: 1.567452843 | K74: 1.001518737 | L74: 0.05507844094 | M74: 1.000000722 | N74: 0.001201332668 | O74: 1.000004805 | P74: 0.0035699195 | Q74: 54.9481176 | R74: -89.04209031 | S74: 90.95790969 | U74: 1000000000 | V74: 75856.1764 | X74: 48.20436825 | Y74: -86.72150167 | AA74: 38.93178877 | AB74: -2.320588647 | AD74: 0 | AE74: 0
A75: 302 | B75: 0.302 | C75: 1.000851437 | D75: 0.04125126621 | E75: 1.000000288 | F75: 0.0007590086385 | G75: 1 | H75: 0 | I75: 327.9537744 | J75: 1.567747112 | K75: 1.00182574 | L75: 0.06038156012 | M75: 1.000000868 | N75: 0.001317269735 | O75: 1.000005777 | P75: 0.003914440143 | Q75: 54.14930614 | R75: -88.98547476 | S75: 91.01452524 | U75: 1000000000 | V75: 91204 | X75: 47.40680791 | Y75: -86.44115839 | AA75: 38.93053764 | AB75: -2.544316364 | AD75: 0 | AE75: 0
A76: 331.13 | B76: 0.33113 | C76: 1.001023525 | D76: 0.0452250525 | E76: 1.000000346 | F76: 0.0008322202672 | G76: 1 | H76: 0 | I76: 359.5869153 | J76: 1.568015354 | K76: 1.002194533 | L76: 0.06618952993 | M76: 1.000001043 | N76: 0.001444329392 | O76: 1.000006945 | P76: 0.004292012317 | Q76: 53.35117357 | R76: -88.9204715 | S76: 91.0795285 | U76: 1000000000 | V76: 109647.0769 | X76: 46.61017832 | Y76: -86.13103538 | AA76: 38.92903466 | AB76: -2.789436122 | AD76: 0 | AE76: 0
A77: 363.08 | B77: 0.36308 | C77: =SQRT(1+(A77/pole1)^2) -> 1.001230442 | D77: =ATAN(A77/pole1) -> 0.04958188323 | E77: =SQRT(1+(A77/Zero1)^2) -> 1.000000416 | F77: =ATAN(A77/Zero1) -> 0.0009125193142 | G77: =IF(VIN_nom>Vout, 1, SQRT(1+(A77/z_RHP)^2)) -> 1 | H77: =IF(VIN_nom>Vout, 0, -ATAN(A77/z_RHP)) -> 0 | I77: =SQRT(1+(A77/Pole2)^2) -> 394.2824035 | J77: =ATAN(A77/Pole2) -> 1.568260071 | K77: =SQRT(1+(A77/Zero2)^2) -> 1.002637871 | L77: =ATAN(A77/Zero2) -> 0.07255460164 | M77: =SQRT(1+(A77/pole4)^2) -> 1.000001254 | N77: =ATAN(A77/pole4) -> 0.001583689312 | O77: =SQRT((1-(V77/pterm2))^2+(A77/pterm1)^2) -> 1.00000835 | P77: =IF((ATAN((A77/pterm1)/(1-A77^2/pterm2))>0),ATAN((A77/pterm1)/(1-A77^2/pterm2)),PI()+ATAN((A77/pterm1)/(1-A77^2/pterm2))) -> 0.004706135387 | Q77: =20*LOG10(((E77*K77*G77)/(C77*I77*O77*M77))*Adc) -> 52.55313611 | R77: =((F77+L77+H77)-(D77+J77+P77+N77))*radconv -> -88.84654044 | S77: =IF(R77>0,R77,R77+180) -> 91.15345956 | U77: 1000000000 | V77: 131827.0864 | X77: =20*LOG10((K77/(I77*M77))*AEA) -> 45.81394769 | Y77: =(L77-(J77+N77))*radconv -> -85.78834959 | AA77: =20*LOG10((E77*G77/(C77*O77))*Acs*Am) -> 38.92722783 | AB77: =(F77+H77-(D77+P77))*radconv -> -3.058190843 | AD77: 0 | AE77: =IF(AD77>0,S75,0) -> 0
A78: 398.11 | B78: =A78/1000 -> 0.39811 | C78: 1.001479138 | D78: 0.05435654503 | E78: 1.000000501 | F78: 0.001000559226 | G78: 1 | H78: 0 | I78: 432.322581 | J78: 1.568483237 | K78: 1.003170586 | L78: 0.07952648963 | M78: 1.000001508 | N78: 0.001736483544 | O78: 1.000010039 | P78: 0.005160179005 | Q78: 51.75556596 | R78: -88.76316007 | S78: 91.23683993 | U78: =IF(Q78<0,A78,1000000000) -> 1000000000 | V78: =A78^2 -> 158491.5721 | X78: 45.0185487 | Y78: -85.41043079 | AA78: 38.92505667 | AB78: -3.352729281 | AD78: =SUM((Q79<0)*(Q78>0))*A78 -> 0 | AE78: 0
A79: 436.52 | B79: 0.43652 | C79: 1.001778058 | D79: 0.05958904998 | E79: 1.000000602 | F79: 0.001097093979 | G79: 1 | H79: 0 | I79: 474.0332273 | J79: 1.568686768 | K79: 1.003810684 | L79: 0.08716216688 | M79: 1.000001813 | N79: 0.001904020604 | O79: 1.00001207 | P79: 0.005658031166 | Q79: 50.95847757 | R79: -88.66972288 | S79: 91.33027712 | U79: 1000000000 | V79: 190549.7104 | X79: 44.22406924 | Y79: -84.99419936 | AA79: 38.92244775 | AB79: -3.675523524 | AD79: 0 | AE79: 0
A80: 478.63 | B80: 0.47863 | C80: 1.002137271 | D80: 0.06532183519 | E80: 1.000000724 | F80: 0.001202927812 | G80: 1 | H80: 0 | I80: 519.7618406 | J80: 1.568872368 | K80: 1.004579603 | L80: 0.09552165663 | M80: 1.000002179 | N80: 0.002087696231 | O80: 1.000014511 | P80: 0.006203838928 | Q80: 50.16207896 | R80: -88.56559033 | S80: 91.43440967 | U80: 1000000000 | V80: 229086.6769 | X80: 43.43080476 | Y80: -84.53639376 | AA80: 38.91931362 | AB80: -4.029196572 | AD80: 0 | AE80: 0
A81: 524.81 | B81: 0.52481 | C81: 1.002569036 | D81: 0.0716037503 | E81: 1.00000087 | F81: 0.001318990626 | G81: 1 | H81: 0 | I81: 569.9102159 | J81: 1.569041664 | K81: 1.005503413 | L81: 0.1046736928 | M81: 1.00000262 | N81: 0.002289124244 | O81: 1.000017446 | P81: 0.006802397208 | Q81: 49.3662523 | R81: -88.45003038 | S81: 91.54996962 | U81: 1000000000 | V81: 275425.5361 | X81: 42.63874378 | Y81: -84.03326163 | AA81: 38.91554793 | AB81: -4.416768749 | AD81: 0 | AE81: 0
A82: 575.44 | B82: 0.57544 | C82: 1.003087832 | D82: 0.07848448614 | E82: 1.000001046 | F82: 0.001446237451 | G82: 1 | H82: 0 | I82: 624.8910076 | J82: 1.569196047 | K82: 1.006612837 | L82: 0.1146873982 | M82: 1.00000315 | N82: 0.002509962062 | O82: 1.000020974 | P82: 0.007458630254 | Q82: 48.57134673 | R82: -88.32233172 | S82: 91.67766828 | U82: 1000000000 | V82: 331131.1936 | X82: 41.84836083 | Y82: -83.48101717 | AA82: 38.91102532 | AB82: -4.841314551 | AD82: 0 | AE82: 0
A83: 630.96 | B83: 0.63096 | C83: 1.003711266 | D83: 0.08602120973 | E83: 1.000001257 | F83: 0.00158577411 | G83: 1 | H83: 0 | I83: 685.1820263 | J83: 1.56933686 | K83: 1.007945168 | L83: 0.1256416926 | M83: 1.000003787 | N83: 0.002752128789 | O83: 1.000025217 | P83: 0.008178239618 | Q83: 47.77736457 | R83: -88.18169818 | S83: 91.81830182 | U83: 1000000000 | V83: 398110.5216 | X83: 41.05981041 | Y83: -82.87532546 | AA83: 38.90559357 | AB83: -5.306372722 | AD83: 0 | AE83: 0
A84: 691.83 | B84: 0.69183 | C84: 1.004460206 | D84: 0.0942729106 | E84: 1.000001512 | F84: 0.001738756682 | G84: 1 | H84: 0 | I84: 751.2828013 | J84: 1.56946527 | K84: 1.009544484 | L84: 0.1376167321 | M84: 1.000004553 | N84: 0.003017630733 | O84: 1.000030317 | P84: 0.008967185582 | Q84: 46.98465845 | R84: -88.02737408 | S84: 91.97262592 | U84: 1000000000 | V84: 478628.7489 | X84: 40.27362512 | Y84: -82.2117757 | AA84: 38.89907275 | AB84: -5.815598375 | AD84: 0 | AE84: 0
A85: 758.58 | B85: 0.75858 | C85: 1.00535999 | D85: 0.103306901 | E85: 1.000001817 | F85: 0.001906517172 | G85: 1 | H85: 0 | I85: 823.7688774 | J85: 1.569582394 | K85: 1.011464147 | L85: 0.150702926 | M85: 1.000005474 | N85: 0.003308779492 | O85: 1.000036449 | P85: 0.009832335062 | Q85: 46.19328461 | R85: -87.85854967 | S85: 92.14145033 | U85: 1000000000 | V85: 575443.6164 | X85: 39.49007912 | Y85: -81.48538433 | AA85: 38.8912449 | AB85: -6.373165343 | AD85: 0 | AE85: 0
A86: 831.76 | B86: 0.83176 | C86: 1.006440555 | D86: 0.1131916701 | E86: 1.000002185 | F86: 0.002090437837 | G86: 1 | H86: 0 | I86: 903.2375182 | J86: 1.569689198 | K86: 1.013766962 | L86: 0.1649900296 | M86: 1.000006581 | N86: 0.003627973845 | O86: 1.000043821 | P86: 0.01078081333 | Q86: 45.40370458 | R86: -87.67452834 | S86: 92.32547166 | U86: 1000000000 | V86: 691824.6976 | X86: 38.70989054 | Y86: -80.69120152 | AA86: 38.88185344 | AB86: -6.983326821 | AD86: 0 | AE86: 0
A87: 912.01 | B87: 0.91201 | C87: 1.007738302 | D87: 0.12400587 | E87: 1.000002627 | F87: 0.002292127116 | G87: 1 | H87: 0 | I87: 990.3837213 | J87: 1.569786617 | K87: 1.016528978 | L87: 0.1805794645 | M87: 1.000007912 | N87: 0.003978005062 | O87: 1.000052685 | P87: 0.01182091101 | Q87: 44.61602924 | R87: -87.47460179 | S87: 92.52539821 | U87: 1000000000 | V87: 831762.2401 | X87: 37.93348108 | Y87: -79.8236297 | AA87: 38.87058757 | AB87: -7.650972096 | AD87: 0 | AE87: 0
A88: 1000 | B88: 1 | C88: 1.009296288 | D88: 0.1358295802 | E88: 1.000003158 | F88: 0.002513268828 | G88: 1 | H88: 0 | I88: 1085.935063 | J88: 1.569875461 | K88: 1.019839667 | L88: 0.1975708265 | M88: 1.000009513 | N88: 0.004361795175 | O88: 1.000063341 | P88: 0.01296130606 | Q88: 43.83074466 | R88: -87.25826645 | S88: 92.74173355 | U88: 1000000000 | V88: 1000000 | X88: 37.16170266 | Y88: -78.87717633 | AA88: 38.85708142 | AB88: -8.381090124 | AD88: 0 | AE88: 0
A89: 1096.5 | B89: 1.0965 | C89: 1.011166647 | D89: 0.1487529202 | E89: 1.000003797 | F89: 0.002755798096 | G89: 1 | H89: 0 | I89: 1190.727711 | J89: 1.569956504 | K89: 1.023806717 | L89: 0.2160732176 | M89: 1.000011437 | N89: 0.004782702273 | O89: 1.000076155 | P89: 0.01421197049 | Q89: 43.0480904 | R89: -87.02513187 | S89: 92.97486813 | U89: 1000000000 | V89: 1202312.25 | X89: 36.39523534 | Y89: -77.84582702 | AA89: 38.84089447 | AB89: -9.179304855 | AD89: 0 | AE89: 0
A90: 1202.3 | B90: 1.2023 | C90: 1.01341056 | D90: 0.1628642746 | E90: 1.000004565 | F90: 0.003021700278 | G90: 1 | H90: 0 | I90: 1305.619555 | J90: 1.570030407 | K90: 1.02855552 | L90: 0.2361870523 | M90: 1.000013751 | N90: 0.005244171522 | O90: 1.000091559 | P90: 0.01558313294 | Q90: 42.26880098 | R90: -86.77521639 | S90: 93.22478361 | U90: 1000000000 | V90: 1445525.29 | X90: 35.63532683 | Y90: -76.72406373 | AA90: 38.82151356 | AB90: -10.05115266 | AD90: 0 | AE90: =IF(AD90>0,S90,0) -> 0
A91: 1318.3 | B91: 1.3183 | C91: 1.016101623 | D91: 0.1782610353 | E91: 1.000005489 | F91: 0.003313237149 | G91: 1 | H91: 0 | I91: 1431.587935 | J91: 1.570097802 | K91: 1.034235646 | L91: 0.2580179143 | M91: 1.000016532 | N91: 0.005750127671 | O91: 1.000110078 | P91: 0.01708644424 | Q91: 41.4933972 | R91: -86.50884969 | S91: 93.49115031 | U91: 1000000000 | V91: 1737914.89 | X91: 34.88311025 | Y91: -75.50609807 | AA91: 38.79832636 | AB91: -11.00275162 | AD91: 0 | AE91: 0
A92: 1445.4 | B92: 1.4454 | C92: 1.019325174 | D92: 0.1950333421 | E92: 1.000006598 | F92: 0.003632670434 | G92: 1 | H92: 0 | I92: 1569.610192 | J92: 1.570159226 | K92: 1.041018561 | L92: 0.2816517191 | M92: 1.000019874 | N92: 0.006304495199 | O92: 1.000132326 | P92: 0.01873355077 | Q92: 40.72297631 | R92: -86.22706715 | S92: 93.77293285 | U92: 1000000000 | V92: 2089181.16 | X92: 34.14038504 | Y92: -74.18726306 | AA92: 38.77063068 | AB92: -12.03980409 | AD92: 0 | AE92: 0
A93: 1584.9 | B93: 1.5849 | C93: 1.023191049 | D93: 0.213314584 | E93: 1.000007933 | F93: 0.003983267086 | G93: 1 | H93: 0 | I93: 1721.098041 | J93: 1.570215302 | K93: 1.049123232 | L93: 0.3072235724 | M93: 1.000023895 | N93: 0.006912942891 | O93: 1.000159099 | P93: 0.02054127658 | Q93: 39.95692543 | R93: -85.93090767 | S93: 94.06909233 | U93: 1000000000 | V93: 2511908.01 | X93: 33.40743473 | Y93: -72.76017822 | AA93: 38.73753011 | AB93: -13.17072945 | AD93: 0 | AE93: 0
A94: 1737.8 | B94: 1.7378 | C94: 1.027817891 | D94: 0.2331865092 | E94: 1.000009538 | F94: 0.004367539995 | G94: 1 | H94: 0 | I94: 1887.137417 | J94: 1.570266424 | K94: 1.058781493 | L94: 0.3347820519 | M94: 1.000028728 | N94: 0.007579830559 | O94: 1.000191275 | P94: 0.02252255014 | Q94: 39.19706759 | R94: -85.62314083 | S94: 94.37685917 | U94: 1000000000 | V94: 3019948.84 | X94: 32.68703119 | Y94: -71.22233254 | AA94: 38.69807581 | AB94: -14.40080829 | AD94: 0 | AE94: 0
A95: 1905.5 | B95: 1.9055 | C95: 1.033354797 | D95: 0.2547678252 | E95: 1.000011467 | F95: 0.004789007224 | G95: 1 | H95: 0 | I95: 2069.248626 | J95: 1.57031306 | K95: 1.070281306 | L95: 0.3644111182 | M95: 1.00003454 | N95: 0.008311262037 | O95: 1.000229969 | P95: 0.02469547298 | Q95: 38.44368109 | R95: -85.30696969 | S95: 94.69303031 | U95: 1000000000 | V95: 3630930.25 | X95: 31.98062969 | Y95: -69.56929206 | AA95: 38.65109081 | AB95: -15.73767763 | AD95: 0 | AE95: 0
A96: 2089.3 | B96: 2.0893 | C96: 1.039969751 | D96: 0.2781449813 | E96: 1.000013786 | F96: 0.005250935358 | G96: 1 | H96: 0 | I96: 2268.843385 | J96: 1.570355574 | K96: 1.083939761 | L96: 0.3961316816 | M96: 1.000041524 | N96: 0.009112904184 | O96: 1.000276467 | P96: 0.02707683728 | Q96: 37.69811913 | R96: -84.98726984 | S96: 95.01273016 | U96: 1000000000 | V96: 4365174.49 | X96: 31.29087632 | Y96: -67.80020424 | AA96: 38.59528223 | AB96: -17.18706561 | AD96: 0 | AE96: 0
A97: 2290.9 | B97: 2.2909 | C97: 1.047870001 | D97: 0.3034312923 | E97: 1.000016575 | F97: 0.005757596059 | G97: 1 | H97: 0 | I97: 2487.767781 | J97: 1.57039436 | K97: 1.100141697 | L97: 0.4299806416 | M97: 1.000049924 | N97: 0.009992167372 | O97: 1.000332386 | P97: 0.02968859989 | Q97: 36.96061398 | R97: -84.66988002 | S97: 95.33011998 | U97: 1000000000 | V97: 5248222.81 | X97: 30.61956651 | Y97: -65.91340205 | AA97: 38.52908689 | AB97: -18.75647796 | AD97: 0 | AE97: 0
A98: 2511.9 | B98: 2.5119 | C98: 1.057287936 | D98: 0.3306973396 | E98: 1.000019927 | F98: 0.006313009394 | G98: 1 | H98: 0 | I98: 2727.75931 | J98: 1.570429726 | K98: 1.119306005 | L98: 0.4659153336 | M98: 1.00006002 | N98: 0.0109560244 | O98: 1.000399597 | P98: 0.03255139835 | Q98: 36.23233446 | R98: -84.36265793 | S98: 95.63734207 | U98: 1000000000 | V98: 6309641.61 | X98: 29.96955882 | Y98: -63.9117471 | AA98: 38.45081505 | AB98: -20.45091082 | AD98: 0 | AE98: 0
A99: 2754.2 | B99: 2.7542 | C99: 1.068499758 | D99: 0.3600146891 | E99: 1.000023957 | F99: 0.006921949028 | G99: 1 | H99: 0 | I99: 2990.881248 | J99: 1.570461977 | K99: 1.141918583 | L99: 0.5038729883 | M99: 1.000072157 | N99: 0.01201275458 | O99: 1.000480389 | P99: 0.03568972558 | Q99: 35.51380326 | R99: -84.0749222 | S99: 95.9250778 | U99: 1000000000 | V99: 7585617.64 | X99: 29.34331709 | Y99: -61.79932774 | AA99: 38.35852558 | AB99: -22.27559445 | AD99: 0 | AE99: 0
A100: 3020 | B100: 3.02 | C100: 1.081831746 | D100: 0.3914464795 | E100: 1.000028804 | F100: 0.007589942094 | G100: 1 | H100: 0 | I100: 3279.522651 | J100: 1.570491404 | K100: 1.168538105 | L100: 0.5437587375 | M100: 1.000086756 | N100: 0.01317194314 | O100: 1.00057756 | P100: 0.03913191874 | Q100: 34.80509459 | R100: -83.81759867 | S100: 96.18240133 | U100: 1000000000 | V100: 9120400 | X100: 28.74311576 | Y100: -59.58214532 | AA100: 38.25001824 | AB100: -24.23545335 | AD100: 0 | AE100: 0
A101: 3311.3 | B101: 3.3113 | C101: 1.097638258 | D101: 0.4249800428 | E101: 1.000034629 | F101: 0.008322012472 | G101: 1 | H101: 0 | I101: 3595.855387 | J101: 1.570518229 | K101: 1.199745034 | L101: 0.585365085 | M101: 1.000104299 | N101: 0.01444229975 | O101: 1.000694317 | P101: 0.04290367099 | Q101: 34.10707903 | R101: -83.60354615 | S101: 96.39645385 | U101: 1000000000 | V101: 10964707.69 | X101: 28.17205339 | Y101: -57.27260021 | AA101: 38.12306505 | AB101: -26.33094594 | AD101: 0 | AE101: 0
A102: 3630.8 | B102: 3.6308 | C102: 1.116351101 | D102: 0.4606234789 | E102: 1.000041634 | F102: 0.009124942405 | G102: 1 | H102: 0 | I102: 3942.81148 | J102: 1.570542701 | K102: 1.236232171 | L102: 0.6285013156 | M102: 1.000125396 | N102: 0.01583558255 | O102: 1.000834715 | P102: 0.04703966867 | Q102: 33.41905242 | R102: -83.44644272 | S102: 96.55355728 | U102: 1000000000 | V102: 13182708.64 | X102: 27.63201587 | Y102: -54.8823076 | AA102: 37.97507597 | AB102: -28.56413512 | AD102: 0 | AE102: 0
A103: 3981.1 | B103: 3.9811 | C103: 1.138440321 | D103: 0.4983032811 | E103: 1.000050055 | F103: 0.01000526173 | G103: 1 | H103: 0 | I103: 4323.21436 | J103: 1.570565017 | K103: 1.278719059 | L103: 0.672875781 | M103: 1.000150758 | N103: 0.01736310782 | O103: 1.001003475 | P103: 0.05157320891 | Q103: 32.74073832 | R103: -83.36098032 | S103: 96.63901968 | U103: 1000000000 | V103: 15849157.21 | X103: 27.1252824 | Y103: -52.42863742 | AA103: 37.80349532 | AB103: -30.9323429 | AD103: 0 | AE103: 0
A104: 4365.2 | B104: 4.3652 | C104: 1.164443109 | D104: 0.5379133971 | E104: 1.000060179 | F104: 0.01097050406 | G104: 1 | H104: 0 | I104: 4740.321831 | J104: 1.570585371 | K104: 1.328001822 | L104: 0.7181701951 | M104: 1.000181249 | N104: 0.01903792866 | O104: 1.00120634 | P104: 0.05654264305 | Q104: 32.07109072 | R104: -83.36184364 | S104: 96.63815636 | U104: 1000000000 | V104: 19054971.04 | X104: 26.6534671 | Y104: -49.93058497 | AA104: 37.60566303 | AB104: -33.43125867 | AD104: 0 | AE104: 0
A105: 4786.3 | B105: 4.7863 | C105: 1.194952276 | D105: 0.5792864046 | E105: 1.000072349 | F105: 0.01202870374 | G105: 1 | H105: 0 | I105: 5197.608882 | J105: 1.570603931 | K105: 1.384925203 | L105: 0.7640200605 | M105: 1.000217901 | N105: 0.02087396036 | O105: 1.001450153 | P105: 0.06198874802 | Q105: 31.40875508 | R105: -83.46300731 | S105: 96.53699269 | U105: 1000000000 | V105: 22908667.69 | X105: 26.2177864 | Y105: -47.40984147 | AA105: 37.37900809 | AB105: -36.05316584 | AD105: 0 | AE105: 0
A106: 5248.1 | B106: 5.2481 | C106: 1.230636943 | D106: 0.6222186518 | E106: 1.000086983 | F106: 0.01318914909 | G106: 1 | H106: 0 | I106: 5699.093473 | J106: 1.57062086 | K106: 1.450417623 | L106: 0.8100577589 | M106: 1.000261971 | N106: 0.02288728526 | O106: 1.001743257 | P106: 0.06795855366 | Q106: 30.75166123 | R106: -83.67695912 | S106: 96.32304088 | U106: 1000000000 | V106: 27542553.61 | X106: 25.81869501 | Y106: -44.88840066 | AA106: 37.12100563 | AB106: -38.78855846 | AD106: 0 | AE106: 0
A107: 5370.3 | B107: 5.3703 | C107: 1.240445309 | D107: 0.6331594519 | E107: 1.000091081 | F107: 0.01349621651 | G107: 1 | H107: 0 | I107: 5831.79468 | J107: 1.570624853 | K107: 1.468233181 | L107: 0.8215450677 | M107: 1.000274311 | N107: 0.0234200143 | O107: 1.001825317 | P107: 0.06953776368 | Q107: 30.58803514 | R107: -83.74928677 | S107: 96.25071323 | U107: 1000000000 | V107: 28840122.09 | X107: 25.72469828 | Y107: -44.26097824 | AA107: 37.05137627 | AB107: -39.48830853 | AD107: 0 | AE107: 0
A108: 5432.85 | B108: 5.43285 | C108: 1.245522643 | D108: 0.6386926607 | E108: 1.000093215 | F108: 0.01365339284 | G108: 1 | H108: 0 | I108: 5899.719888 | J108: 1.570626827 | K108: 1.477425954 | L108: 0.8273174436 | M108: 1.000280738 | N108: 0.02369269495 | O108: 1.00186805 | P108: 0.07034602289 | Q108: 30.5057777 | R108: -83.78862437 | S108: 96.21137563 | U108: 1000000000 | V108: 29515859.12 | X108: 25.67827292 | Y108: -43.94598203 | AA108: 37.01554419 | AB108: -39.84264234 | AD108: 0 | AE108: 0
A109: 5495.4 | B109: 5.4954 | C109: 1.2506378 | D109: 0.6441807744 | E109: 1.000095373 | F109: 0.01381056849 | G109: 1 | H109: 0 | I109: 5967.645096 | J109: 1.570628757 | K109: 1.486667345 | L109: 0.8330182433 | M109: 1.000287238 | N109: 0.02396537208 | O109: 1.001911275 | P109: 0.0711542241 | Q109: 30.42449645 | R109: -83.82947317 | S109: 96.17052683 | U109: 1000000000 | V109: 30199421.16 | X109: 25.63294614 | Y109: -43.63508406 | AA109: 36.97958972 | AB109: -40.19438911 | AD109: 0 | AE109: 0
A110: 5559.4 | B110: 5.5594 | C110: 1.255910201 | D110: 0.6497496672 | E110: 1.000097608 | F110: 0.013971387 | G110: 1 | H110: 0 | I110: 6037.14491 | J110: 1.570630686 | K110: 1.496172347 | L110: 0.838778112 | M110: 1.000293967 | N110: 0.02424436657 | O110: 1.001956013 | P110: 0.07198109987 | Q110: 30.34231302 | R110: -83.87278905 | S110: 96.12721095 | U110: 1000000000 | V110: 30906928.36 | X110: 25.58767188 | Y110: -43.32116362 | AA110: 36.94268055 | AB110: -40.55162543 | AD110: 0 | AE110: 0
A111: 5623.4 | B111: 5.6234 | C111: 1.261221224 | D111: 0.6552718287 | E111: 1.000099868 | F111: 0.01413220479 | G111: 1 | H111: 0 | I111: 6106.644723 | J111: 1.570632571 | K111: 1.505726359 | L111: 0.8444650734 | M111: 1.000300773 | N111: 0.02452335728 | O111: 1.002001267 | P111: 0.07280791353 | Q111: 30.26109511 | R111: -83.91759847 | S111: 96.08240153 | U111: 1000000000 | V111: 31622627.56 | X111: 25.5434803 | Y111: -43.01141774 | AA111: 36.90565423 | AB111: -40.90618073 | AD111: 0 | AE111: 0
A112: 5688.9 | B112: 5.6889 | C112: 1.266696209 | D112: 0.660875293 | E112: 1.000102208 | F112: 0.01429679098 | G112: 1 | H112: 0 | I112: 6177.773439 | J112: 1.570634456 | K112: 1.515554072 | L112: 0.8502108911 | M112: 1.000307819 | N112: 0.02480888289 | O112: 1.002048117 | P112: 0.07365404058 | Q112: 30.17894533 | R112: -83.96495908 | S112: 96.03504092 | U112: 1000000000 | V112: 32363583.21 | X112: 25.4993403 | Y112: -42.69867407 | AA112: 36.86764444 | AB112: -41.26628501 | AD112: 0 | AE112: 0
A113: 5754.4 | B113: 5.7544 | C113: 1.272210623 | D113: 0.6664303539 | E113: 1.000104575 | F113: 0.0144613764 | G113: 1 | H113: 0 | I113: 6248.902154 | J113: 1.570636299 | K113: 1.525431174 | L113: 0.8558824861 | M113: 1.000314947 | N113: 0.02509440444 | O113: 1.002095506 | P113: 0.07450010107 | Q113: 30.09775097 | R113: -84.01379256 | S113: 95.98620744 | U113: 1000000000 | V113: 33113119.36 | X113: 25.45626709 | Y113: -42.39018036 | AA113: 36.82952329 | AB113: -41.6236122 | AD113: 0 | AE113: 0
A114: 5821.4 | B114: 5.8214 | C114: 1.277891584 | D114: 0.6720628494 | E114: 1.000107024 | F114: 0.01462973014 | G114: 1 | H114: 0 | I114: 6321.659772 | J114: 1.57063814 | K114: 1.535584575 | L114: 0.8616082898 | M114: 1.000322323 | N114: 0.02538646043 | O114: 1.002144541 | P114: 0.07536546736 | Q114: 30.01565794 | R114: -84.06522137 | S114: 95.93477863 | U114: 1000000000 | V114: 33888697.96 | X114: 25.41327764 | Y114: -42.07895508 | AA114: 36.79041971 | AB114: -41.98626629 | AD114: 0 | AE114: 0
A115: 5888.4 | B115: 5.8884 | C115: 1.283612726 | D115: 0.6776453119 | E115: 1.000109502 | F115: 0.01479808306 | G115: 1 | H115: 0 | I115: 6394.417389 | J115: 1.57063994 | K115: 1.545787657 | L115: 0.8672586896 | M115: 1.000329784 | N115: 0.02567851208 | O115: 1.00219414 | P115: 0.07623076241 | Q115: 29.93450934 | R115: -84.11809715 | S115: 95.88190285 | U115: 1000000000 | V115: 34673254.56 | X115: 25.37133749 | Y115: -41.77204747 | AA115: 36.75121126 | AB115: -42.34604968 | AD115: 0 | AE115: 0
A116: 5957 | B116: 5.957 | C116: 1.289511566 | D116: 0.6833095821 | E116: 1.000112068 | F116: 0.01497045547 | G116: 1 | H116: 0 | I116: 6468.912502 | J116: 1.570641741 | K116: 1.55628485 | L116: 0.8729670737 | M116: 1.000337511 | N116: 0.02597753357 | O116: 1.00224551 | P116: 0.07711664659 | Q116: 29.85237394 | R116: -84.17368668 | S116: 95.82631332 | U116: 1000000000 | V116: 35485849 | X116: 25.32944957 | Y116: -41.46221701 | AA116: 36.71096379 | AB116: -42.71146967 | AD116: 0 | AE116: 0
A117: 6025.6 | B117: 6.0256 | C117: 1.295451402 | D117: 0.688922088 | E117: 1.000114664 | F117: 0.01514282699 | G117: 1 | H117: 0 | I117: 6543.407615 | J117: 1.570643501 | K117: 1.566832075 | L117: 0.8785987866 | M117: 1.000345328 | N117: 0.0262765504 | O117: 1.002297473 | P117: 0.07800245437 | Q117: 29.77117394 | R117: -84.23069632 | S117: 95.76930368 | U117: 1000000000 | V117: 36307855.36 | X117: 25.28859501 | Y117: -41.15677687 | AA117: 36.67061835 | AB117: -43.07391946 | AD117: 0 | AE117: 0
A118: 6095.8 | B118: 6.0958 | C118: 1.30157163 | D118: 0.6946122815 | E118: 1.000117351 | F118: 0.0153192179 | G118: 1 | H118: 0 | I118: 6619.640223 | J118: 1.570645261 | K118: 1.577676049 | L118: 0.8842837125 | M118: 1.00035342 | N118: 0.02658253653 | O118: 1.002351261 | P118: 0.07890884242 | Q118: 29.68902129 | R118: -84.29045644 | S118: 95.70954356 | U118: 1000000000 | V118: 37158777.64 | X118: 25.2478241 | Y118: -40.84868716 | AA118: 36.6292366 | AB118: -43.44176928 | AD118: 0 | AE118: 0
A119: 6166 | B119: 6.166 | C119: 1.307733607 | D119: 0.7002490323 | E119: 1.000120069 | F119: 0.01549560787 | G119: 1 | H119: 0 | I119: 6695.872831 | J119: 1.570646981 | K119: 1.588570313 | L119: 0.8898908441 | M119: 1.000361605 | N119: 0.02688851767 | O119: 1.002405669 | P119: 0.07981514865 | Q119: 29.60779413 | R119: -84.35160459 | S119: 95.64839541 | U119: 1000000000 | V119: 38019556 | X119: 25.20806902 | Y119: -40.54505215 | AA119: 36.58776453 | AB119: -43.80655244 | AD119: 0 | AE119: 0
A120: 6237.8 | B120: 6.2378 | C120: 1.3140786 | D120: 0.7059593853 | E120: 1.000122881 | F120: 0.01567601712 | G120: 1 | H120: 0 | I120: 6773.842935 | J120: 1.5706487 | K120: 1.599763833 | L120: 0.8955465926 | M120: 1.000370074 | N120: 0.02720146754 | O120: 1.002461959 | P120: 0.08074202583 | Q120: 29.52564624 | R120: -84.41553186 | S120: 95.58446814 | U120: 1000000000 | V120: 38910148.84 | X120: 25.16842561 | Y120: -40.23903084 | AA120: 36.54526005 | AB120: -44.17650103 | AD120: 0 | AE120: 0
A121: 6309.6 | B121: 6.3096 | C121: 1.320466031 | D121: 0.7116146764 | E121: 1.000125726 | F121: 0.01585642535 | G121: 1 | H121: 0 | I121: 6851.813039 | J121: 1.57065038 | K121: 1.611007812 | L121: 0.9011235691 | M121: 1.000378641 | N121: 0.02751441207 | O121: 1.002518898 | P121: 0.08166881547 | Q121: 29.44441324 | R121: -84.48081011 | S121: 95.51918989 | U121: 1000000000 | V121: 39811052.16 | X121: 25.12977904 | Y121: -39.93752027 | AA121: 36.50267361 | AB121: -44.54328984 | AD121: 0 | AE121: 0
A122: 6383.05 | B122: 6.38305 | C122: 1.32704352 | D122: 0.7173434091 | E122: 1.00012867 | F122: 0.01604097838 | G122: 1 | H122: 0 | I122: 6931.574934 | J122: 1.570652059 | K122: 1.622561303 | L122: 0.9067485489 | M122: 1.000387506 | N122: 0.02783454265 | O122: 1.002577816 | P122: 0.08261681158 | Q122: 29.36223372 | R122: -84.54893513 | S122: 95.45106487 | U122: 1000000000 | V122: 40743327.3 | X122: 25.09124305 | Y122: -39.63367102 | AA122: 36.45903007 | AB122: -44.91526411 | AD122: 0 | AE122: 0
A123: 6456.5 | B123: 6.4565 | C123: 1.33366413 | D123: 0.7230154489 | E123: 1.000131648 | F123: 0.01622553032 | G123: 1 | H123: 0 | I123: 7011.33683 | J123: 1.570653701 | K123: 1.634165406 | L123: 0.9122938169 | M123: 1.000396474 | N123: 0.02815466752 | O123: 1.002637414 | P123: 0.08356471397 | Q123: 29.2809591 | R123: -84.61837123 | S123: 95.38162877 | U123: 1000000000 | V123: 41686392.25 | X123: 25.05368498 | Y123: -39.33438641 | AA123: 36.41531353 | AB123: -45.28398482 | AD123: 0 | AE123: 0
A124: 6531.7 | B124: 6.5317 | C124: 1.340486487 | D124: 0.7287643932 | E124: 1.000134733 | F124: 0.0164144782 | G124: 1 | H124: 0 | I124: 7092.999111 | J124: 1.570655343 | K124: 1.646097302 | L124: 0.9178900298 | M124: 1.000405761 | N124: 0.02848241362 | O124: 1.002699134 | P124: 0.08453510265 | Q124: 29.19865951 | R124: -84.6907679 | S124: 95.3092321 | U124: 1000000000 | V124: 42663104.89 | X124: 25.01621267 | Y124: -39.03261958 | AA124: 36.37048625 | AB124: -45.65814832 | AD124: 0 | AE124: 0
A125: 6606.9 | B125: 6.6069 | C125: 1.3473527 | D125: 0.7344549299 | E125: 1.000137853 | F125: 0.01660342491 | G125: 1 | H125: 0 | I125: 7174.661392 | J125: 1.570656947 | K125: 1.658080007 | L125: 0.9234055273 | M125: 1.000415156 | N125: 0.0288101536 | O125: 1.002761565 | P125: 0.08550539086 | Q125: 29.11725662 | R125: -84.76443453 | S125: 95.23556547 | U125: 1000000000 | V125: 43651127.61 | X125: 24.97970061 | Y125: -38.73547491 | AA125: 36.32559542 | AB125: -46.02895963 | AD125: 0 | AE125: 0
A126: 6683.85 | B126: 6.68385 | C126: 1.354423398 | D126: 0.7402179756 | E126: 1.000141082 | F126: 0.01679676742 | G126: 1 | H126: 0 | I126: 7258.224059 | J126: 1.570658552 | K126: 1.67039302 | L126: 0.9289672887 | M126: 1.000424881 | N126: 0.0291455141 | O126: 1.002826186 | P126: 0.08649815374 | Q126: 29.03486195 | R126: -84.84107737 | S126: 95.15892263 | U126: 1000000000 | V126: 44673850.82 | X126: 24.94330064 | Y126: -38.43611613 | AA126: 36.27960073 | AB126: -46.40496124 | AD126: 0 | AE126: 0
A127: 6760.8 | B127: 6.7608 | C127: 1.361538612 | D127: 0.7459209753 | E127: 1.000144349 | F127: 0.01699010867 | G127: 1 | H127: 0 | I127: 7341.786726 | J127: 1.57066012 | K127: 1.682756947 | L127: 0.9344474884 | M127: 1.000434718 | N127: 0.02948086804 | O127: 1.002891551 | P127: 0.08749080901 | Q127: 28.95335513 | R127: -84.91894441 | S127: 95.08105559 | U127: 1000000000 | V127: 45708416.64 | X127: 24.90784186 | Y127: -38.14142803 | AA127: 36.23355267 | AB127: -46.77751637 | AD127: 0 | AE127: 0
A128: 6839.55 | B128: 6.83955 | C128: 1.36886563 | D128: 0.7516958023 | E128: 1.000147731 | F128: 0.01718797121 | G128: 1 | H128: 0 | I128: 7427.304075 | J128: 1.570661688 | K128: 1.69546164 | L128: 0.9399729561 | M128: 1.000444902 | N128: 0.02982405965 | O128: 1.002959216 | P128: 0.08850657163 | Q128: 28.87083565 | R128: -84.99984714 | S128: 95.00015286 | U128: 1000000000 | V128: 46779444.2 | X128: 24.87249617 | Y128: -37.84459534 | AA128: 36.18637889 | AB128: -47.15525181 | AD128: 0 | AE128: 0
A129: 6918.3 | B129: 6.9183 | C129: 1.376237811 | D129: 0.7574089493 | E129: 1.000151153 | F129: 0.01738583241 | G129: 1 | H129: 0 | I129: 7512.821424 | J129: 1.570663221 | K129: 1.708217326 | L129: 0.9454160679 | M129: 1.000455204 | N129: 0.03016724424 | O129: 1.00302766 | P129: 0.089522219 | Q129: 28.78919572 | R129: -85.08192556 | S129: 94.91807444 | U129: 1000000000 | V129: 47862874.89 | X129: 24.83807258 | Y129: -37.55247884 | AA129: 36.13916255 | AB129: -47.52944672 | AD129: 0 | AE129: 0
A130: 6998.9 | B130: 6.9989 | C130: 1.383829193 | D130: 0.7631930823 | E130: 1.000154695 | F130: 0.01758834036 | G130: 1 | H130: 0 | I130: 7600.347753 | J130: 1.570664754 | K130: 1.72132429 | L130: 0.9509033469 | M130: 1.00046587 | N130: 0.03051848357 | O130: 1.003098519 | P130: 0.09056160532 | Q130: 28.70652378 | R130: -85.16709599 | S130: 94.83290401 | U130: 1000000000 | V130: 48984601.21 | X130: 24.80376352 | Y130: -37.25829327 | AA130: 36.09079967 | AB130: -47.90880272 | AD130: 0 | AE130: 0
A131: 7079.5 | B131: 7.0795 | C131: 1.391466367 | D131: 0.7689139116 | E131: 1.000158278 | F131: 0.01779084688 | G131: 1 | H131: 0 | I131: 7687.874081 | J131: 1.570666252 | K131: 1.7344823 | L131: 0.9563075321 | M131: 1.000476659 | N131: 0.03086971538 | O131: 1.003170194 | P131: 0.09160086816 | Q131: 28.62472365 | R131: -85.2533909 | S131: 94.7466091 | U131: 1000000000 | V131: 50119320.25 | X131: 24.7703574 | Y131: -36.96886619 | AA131: 36.04240566 | AB131: -48.2845247 | AD131: 0 | AE131: 0
A132: 7161.95 | B132: 7.16195 | C132: 1.399325434 | D132: 0.7747012439 | E132: 1.000161986 | F132: 0.01799799998 | G132: 1 | H132: 0 | I132: 7777.409388 | J132: 1.570667749 | K132: 1.747993937 | L132: 0.9617514135 | M132: 1.000487823 | N132: 0.03122900107 | O132: 1.003244359 | P132: 0.09266385583 | Q132: 28.54192353 | R132: -85.34277625 | S132: 94.65722375 | U132: 1000000000 | V132: 51293527.8 | X132: 24.73708749 | Y132: -36.67762612 | AA132: 35.99287545 | AB132: -48.66515013 | AD132: 0 | AE132: 0
A133: 7244.4 | B133: 7.2444 | C133: 1.407230844 | D133: 0.7804237431 | E133: 1.000165737 | F133: 0.01820515154 | G133: 1 | H133: 0 | I133: 7866.944695 | J133: 1.570669213 | K133: 1.761556583 | L133: 0.9671116242 | M133: 1.000499117 | N133: 0.0315882787 | O133: 1.003319378 | P133: 0.09372671136 | Q133: 28.459987 | R133: -85.43323101 | S133: 94.56676899 | U133: 1000000000 | V133: 52481331.36 | X133: 24.70470022 | Y133: -36.39117761 | AA133: 35.94332619 | AB133: -49.04205341 | AD133: 0 | AE133: 0
A134: 7328.75 | B134: 7.32875 | C134: 1.415365577 | D134: 0.786211767 | E134: 1.000169618 | F134: 0.01841707514 | G134: 1 | H134: 0 | I134: 7958.543278 | J134: 1.570670676 | K134: 1.775483335 | L134: 0.972510454 | M134: 1.000510805 | N134: 0.03195582717 | O134: 1.003397009 | P134: 0.09481392132 | Q134: 28.37703189 | R134: -85.52682321 | S134: 94.47317679 | U134: 1000000000 | V134: 53710576.56 | X134: 24.6724491 | Y134: -36.10299024 | AA134: 35.8926222 | AB134: -49.42383296 | AD134: 0 | AE134: 0
A135: 7413.1 | B135: 7.4131 | C135: 1.423547184 | D135: 0.7919334493 | E135: 1.000173545 | F135: 0.01862899708 | G135: 1 | H135: 0 | I135: 8050.141861 | J135: 1.570672105 | K135: 1.789461031 | L135: 0.9778250949 | M135: 1.000522628 | N135: 0.03232336701 | O135: 1.003475532 | P135: 0.09590098983 | Q135: 28.29493276 | R135: -85.62142757 | S135: 94.37857243 | U135: 1000000000 | V135: 54954051.61 | X135: 24.64106033 | Y135: -35.81962415 | AA135: 35.84191184 | AB135: -49.80180342 | AD135: 0 | AE135: 0
A136: 7499.45 | B136: 7.49945 | C136: 1.431970497 | D136: 0.7977228767 | E136: 1.000177611 | F136: 0.01884594211 | G136: 1 | H136: 0 | I136: 8143.912313 | J136: 1.570673536 | K136: 1.803821682 | L136: 0.9831802766 | M136: 1.000534871 | N136: 0.03269961244 | O136: 1.003556843 | P136: 0.09701368536 | Q136: 28.21174998 | R136: -85.71926996 | S136: 94.28073004 | U136: 1000000000 | V136: 56241750.3 | X136: 24.6097901 | Y136: -35.53443407 | AA136: 35.78999929 | AB136: -50.1848359 | AD136: 0 | AE136: 0
A137: 7585.8 | B137: 7.5858 | C137: 1.440441244 | D137: 0.8034444027 | E137: 1.000181724 | F137: 0.01906288537 | G137: 1 | H137: 0 | I137: 8237.682765 | J137: 1.570674933 | K137: 1.818233246 | L137: 0.9884507156 | M137: 1.000547255 | N137: 0.0330758486 | O137: 1.003639089 | P137: 0.0981262293 | Q137: 28.12941715 | R137: -85.81806631 | S137: 94.18193369 | U137: 1000000000 | V137: 57544361.64 | X137: 24.57936293 | Y137: -35.25409698 | AA137: 35.73809364 | AB137: -50.56396933 | AD137: 0 | AE137: 0
A138: 7674.15 | B138: 7.67415 | C138: 1.449156414 | D138: 0.8092290241 | E138: 1.000185982 | F138: 0.01928485152 | G138: 1 | H138: 0 | I138: 8333.625087 | J138: 1.570676331 | K138: 1.833030045 | L138: 0.9937572997 | M138: 1.000560073 | N138: 0.03346078929 | O138: 1.003724209 | P138: 0.0992643828 | Q138: 28.04603379 | R138: -85.92008505 | S138: 94.07991495 | U138: 1000000000 | V138: 58892578.22 | X138: 24.54907353 | Y138: -34.97218766 | AA138: 35.68499967 | AB138: -50.94789739 | AD138: 0 | AE138: 0
A139: 7762.5 | B139: 7.7625 | C139: 1.457919495 | D139: 0.814944296 | E139: 1.000190288 | F139: 0.01950681576 | G139: 1 | H139: 0 | I139: 8429.567408 | J139: 1.570677697 | K139: 1.847877635 | L139: 0.9989787527 | M139: 1.00057304 | N139: 0.03384572005 | O139: 1.003810308 | P139: 0.100402374 | Q139: 27.96349392 | R139: -86.02299642 | S139: 93.97700358 | U139: 1000000000 | V139: 60256406.25 | X139: 24.51960689 | Y139: -34.6951536 | AA139: 35.63192644 | AB139: -51.32784283 | AD139: 0 | AE139: 0
A140: 7852.9 | B140: 7.8529 | C140: 1.466934602 | D140: 0.8207213088 | E140: 1.000194746 | F140: 0.01973392829 | G140: 1 | H140: 0 | I140: 8527.735896 | J140: 1.570679062 | K140: 1.863121042 | L140: 1.004235073 | M140: 1.000586461 | N140: 0.03423957204 | O140: 1.003899417 | P140: 0.1015666004 | Q140: 27.87988906 | R140: -86.1291669 | S140: 93.8708331 | U140: 1000000000 | V140: 61668038.41 | X140: 24.49027854 | Y140: -34.41663295 | AA140: 35.57764993 | AB140: -51.71253395 | AD140: 0 | AE140: 0
A141: 7943.3 | B141: 7.9433 | C141: =SQRT(1+(A141/pole1)^2) -> 1.475998067 | D141: =ATAN(A141/pole1) -> 0.8264275618 | E141: =SQRT(1+(A141/Zero1)^2) -> 1.000199255 | F141: =ATAN(A141/Zero1) -> 0.01996103878 | G141: =IF(VIN_nom>Vout, 1, SQRT(1+(A141/z_RHP)^2)) -> 1 | H141: =IF(VIN_nom>Vout, 0, -ATAN(A141/z_RHP)) -> 0 | I141: =SQRT(1+(A141/Pole2)^2) -> 8625.904383 | J141: =ATAN(A141/Pole2) -> 1.570680397 | K141: =SQRT(1+(A141/Zero2)^2) -> 1.878415088 | L141: =ATAN(A141/Zero2) -> 1.00940594 | M141: =SQRT(1+(A141/pole4)^2) -> 1.000600037 | N141: =ATAN(A141/pole4) -> 0.03463341341 | O141: =SQRT((1-(V141/pterm2))^2+(A141/pterm1)^2) -> 1.003989551 | P141: =IF((ATAN((A141/pterm1)/(1-A141^2/pterm2))>0),ATAN((A141/pterm1)/(1-A141^2/pterm2)),PI()+ATAN((A141/pterm1)/(1-A141^2/pterm2))) -> 0.102730653 | Q141: =20*LOG10(((E141*K141*G141)/(C141*I141*O141*M141))*Adc) -> 27.79712182 | R141: =((F141+L141+H141)-(D141+J141+P141+N141))*radconv -> -86.236167 | S141: =IF(R141>0,R141,R141+180) -> 93.763833 | U141: 1000000000 | V141: 63096014.89 | X141: =20*LOG10((K141/(I141*M141))*AEA) -> 24.46175267 | Y141: =(L141-(J141+N141))*radconv -> -34.14300601 | AA141: =20*LOG10((E141*G141/(C141*O141))*Acs*Am) -> 35.52340855 | AB141: =(F141+H141-(D141+P141))*radconv -> -52.09316099 | AD141: 0 | AE141: 0
A142: 8035.8 | B142: =A142/1000 -> 8.0358 | C142: 1.485321211 | D142: 0.8321940944 | E142: 1.000203922 | F142: 0.02019342294 | G142: 1 | H142: 0 | I142: 8726.353333 | J142: 1.570681731 | K142: 1.894115554 | L142: 1.014610347 | M142: 1.000614088 | N142: 0.03503639261 | O142: 1.004082839 | P142: 0.1039215647 | Q142: 27.71327642 | R142: -86.34645945 | S142: 93.65354055 | U142: =IF(Q142<0,A142,1000000000) -> 1000000000 | V142: =A142^2 -> 64574081.64 | X142: 24.43336567 | Y142: -33.86798089 | AA142: 35.46795017 | AB142: -52.47847856 | AD142: =SUM((Q143<0)*(Q142>0))*A142 -> 0 | AE142: 0
A143: 8128.3 | B143: 8.1283 | C143: 1.494693129 | D143: 0.8378885005 | E143: 1.000208643 | F143: 0.02042580491 | G143: 1 | H143: 0 | I143: 8826.802283 | J143: 1.570683035 | K143: 1.90986648 | L143: 1.019729048 | M143: 1.000628303 | N143: 0.03543936044 | O143: 1.0041772 | P143: 0.1051122905 | Q143: 27.63026332 | R143: -86.45751703 | S143: 93.54248297 | U143: 1000000000 | V143: 66069260.89 | X143: 24.4057609 | Y143: -33.59786398 | AA143: 35.41254183 | AB143: -52.85965305 | AD143: 0 | AE143: 0
A144: 8222.95 | B144: 8.22295 | C144: 1.504332417 | D144: 0.8436416273 | E144: 1.00021353 | F144: 0.02066358592 | G144: 1 | H144: 0 | I144: 8929.585993 | J144: 1.57068434 | K144: 1.926034449 | L144: 1.024879925 | M144: 1.000643016 | N144: 0.03585168262 | O144: 1.004274863 | P144: 0.1063304979 | Q144: 27.54616017 | R144: -86.57189677 | S144: 93.42810323 | U144: 1000000000 | V144: 67616906.7 | X144: 24.37829556 | Y144: -33.32643954 | AA144: 35.35590402 | AB144: -53.24545722 | AD144: 0 | AE144: 0
A145: 8270.275 | B145: 8.270275 | C145: 1.509170554 | D145: 0.846490584 | E145: 1.000215995 | F145: 0.02078247554 | G145: 1 | H145: 0 | I145: 8980.977847 | J145: 1.57068498 | K145: 1.934137356 | L145: 1.027423036 | M145: 1.000650436 | N145: 0.03605783915 | O145: 1.004324115 | P145: 0.106939527 | Q145: 27.50442025 | R145: -86.62935196 | S145: 93.37064804 | U145: 1000000000 | V145: 68397448.58 | X145: 24.36485038 | Y145: -33.19257862 | AA145: 35.32760928 | AB145: -53.43677335 | AD145: 0 | AE145: 0
A146: 8317.6 | B146: 8.3176 | C146: 1.514020862 | D146: 0.8493213098 | E146: 1.000218473 | F146: 0.02090136458 | G146: 1 | H146: 0 | I146: 9032.369702 | J146: 1.570685614 | K146: 1.942252667 | L146: 1.029944912 | M146: 1.000657899 | N146: 0.03626399261 | O146: 1.004373648 | P146: 0.1075485061 | Q146: 27.46288456 | R146: -86.68697588 | S146: 93.31302412 | U146: 1000000000 | V146: 69182469.76 | X146: 24.35159226 | Y146: -33.0599338 | AA146: 35.29933171 | AB146: -53.62704208 | AD146: 0 | AE146: 0
A147: 8366.05 | B147: 8.36605 | C147: 1.518998956 | D147: 0.852200576 | E147: 1.000221026 | F147: 0.02102307921 | G147: 1 | H147: 0 | I147: 9084.983233 | J147: 1.570686255 | K147: 1.950573583 | L147: 1.032504982 | M147: 1.000665583 | N147: 0.03647504351 | O147: 1.004424649 | P147: 0.1081719095 | Q147: 27.42057039 | R147: -86.74613819 | S147: 93.25386181 | U147: 1000000000 | V147: 69990792.6 | X147: 24.3382093 | Y147: -32.92538166 | AA147: 35.2704005 | AB147: -53.82075653 | AD147: 0 | AE147: 0
A148: 8414.5 | B148: 8.4145 | C148: 1.523989562 | D148: 0.8550610084 | E148: 1.000223593 | F148: 0.02114479322 | G148: 1 | H148: 0 | I148: 9137.596764 | J148: 1.570686889 | K148: =SQRT(1+(A148/Zero2)^2) -> 1.958907173 | L148: =ATAN(A148/Zero2) -> 1.035043286 | M148: 1.000673312 | N148: 0.03668609117 | O148: 1.004475944 | P148: 0.1087952599 | Q148: 27.37846488 | R148: -86.80546487 | S148: 93.19453513 | U148: 1000000000 | V148: 70803810.25 | X148: 24.3250154 | Y148: -32.79207599 | AA148: 35.24148889 | AB148: -54.01338888 | AD148: 0 | AE148: 0
A149: 8462.95 | B149: 8.46295 | C149: 1.528992555 | D149: 0.8579027448 | E149: 1.000226175 | F149: 0.02126650661 | G149: 1 | H149: 0 | I149: 9190.210295 | J149: 1.570687515 | K149: 1.967253278 | L149: 1.037560069 | M149: 1.000681086 | N149: 0.03689713555 | O149: 1.004527532 | P149: 0.1094185569 | Q149: 27.3365654 | R149: -86.86494981 | S149: 93.13505019 | U149: 1000000000 | V149: 71621522.7 | X149: 24.31200715 | Y149: -32.6600028 | AA149: 35.21259766 | AB149: -54.20494701 | AD149: 0 | AE149: 0
A150: 8511.4 | B150: 8.5114 | C150: 1.534007815 | D150: 0.8607259223 | E150: 1.000228772 | F150: 0.02138821936 | G150: 1 | H150: 0 | I150: 9242.823827 | J150: 1.570688135 | K150: 1.975611739 | L150: 1.040055571 | M150: 1.000688904 | N150: 0.03710817664 | O150: 1.004579415 | P150: 0.1100418003 | Q150: 27.29486935 | R150: -86.92458705 | S150: 93.07541295 | U150: 1000000000 | V150: 72443929.96 | X150: 24.29918118 | Y150: -32.5291483 | AA150: 35.18372758 | AB150: -54.39543876 | AD150: 0 | AE150: 0
A151: 8560.95 | B151: 8.56095 | C151: 1.539149503 | D151: 0.8635941436 | E151: 1.000231443 | F151: 0.0215126948 | G151: 1 | H151: 0 | I151: 9296.631886 | J151: 1.570688761 | K151: 1.984172586 | L151: 1.042585969 | M151: 1.000696945 | N151: 0.03732400576 | O151: 1.004632779 | P151: 0.1106791378 | Q151: 27.25243441 | R151: -86.98572975 | S151: 93.01427025 | U151: 1000000000 | V151: 73289864.9 | X151: 24.28624912 | Y151: -32.39656919 | AA151: 35.1542247 | AB151: -54.58916057 | AD151: 0 | AE151: 0
A152: 8610.5 | B152: 8.6105 | C152: 1.544303769 | D152: 0.8664432423 | E152: 1.000234129 | F152: 0.02163716957 | G152: 1 | H152: 0 | I152: 9350.439945 | J152: 1.57068938 | K152: 1.992746027 | L152: 1.045094609 | M152: 1.000705033 | N152: 0.03753983139 | O152: 1.00468645 | P152: 0.1113164187 | Q152: 27.21020695 | R152: -87.04701958 | S152: 92.95298042 | U152: 1000000000 | V152: 74140710.25 | X152: 24.27350085 | Y152: -32.26523606 | AA152: 35.12474551 | AB152: -54.78178352 | AD152: 0 | AE152: 0
A153: 8660.05 | B153: 8.66005 | C153: 1.549470487 | D153: 0.8692733631 | E153: 1.000236831 | F153: 0.02176164368 | G153: 1 | H153: 0 | I153: 9404.248004 | J153: 1.570689992 | K153: 2.001331903 | L153: 1.04758174 | M153: 1.000713168 | N153: 0.03775565353 | O153: 1.004740429 | P153: 0.1119536424 | Q153: 27.16818437 | R153: -87.10845059 | S153: 92.89154941 | U153: 1000000000 | V153: 74996466 | X153: 24.260933 | Y153: -32.13513471 | AA153: 35.09529078 | AB153: -54.97331589 | AD153: 0 | AE153: 0
A154: 8709.6 | B154: 8.7096 | C154: 1.554649533 | D154: 0.8720846503 | E154: 1.000239549 | F154: 0.02188611711 | G154: 1 | H154: 0 | I154: 9458.056064 | J154: 1.570690597 | K154: 2.009930052 | L154: 1.050047607 | M154: 1.00072135 | N154: 0.03797147214 | O154: 1.004794715 | P154: 0.1125908088 | Q154: 27.12636413 | R154: -87.170017 | S154: 92.829983 | U154: 1000000000 | V154: 75857132.16 | X154: 24.24854229 | Y154: -32.00625108 | AA154: 35.06586125 | AB154: -55.16376592 | AD154: 0 | AE154: =IF(AD154>0,S154,0) -> 0
A155: 8760.325 | B155: 8.760325 | C155: 1.559964034 | D155: 0.8749432434 | E155: 1.000242347 | F155: 0.02201354152 | G155: 1 | H155: 0 | I155: 9513.140096 | J155: 1.570691209 | K155: 2.018744643 | L155: 1.052550175 | M155: 1.000729773 | N155: 0.03819240489 | O155: 1.004850606 | P155: 0.1132430248 | Q155: 27.08375919 | R155: -87.23317769 | S155: 92.76682231 | U155: 1000000000 | V155: 76743294.11 | X155: 24.23603788 | Y155: -31.87555811 | AA155: 35.03576072 | AB155: -55.35761958 | AD155: 0 | AE155: 0
A156: 8811.05 | B156: 8.81105 | C156: 1.565291196 | D156: 0.8777824022 | E156: 1.000245161 | F156: 0.02214096523 | G156: 1 | H156: 0 | I156: 9568.224128 | J156: 1.570691814 | K156: 2.027571767 | L156: 1.055030968 | M156: 1.000738246 | N156: 0.03841333391 | O156: 1.004906818 | P156: 0.11389518 | Q156: 27.04136108 | R156: -87.29646842 | S156: 92.70353158 | U156: 1000000000 | V156: 77634602.1 | X156: 24.22371235 | Y156: -31.74611212 | AA156: 35.00568813 | AB156: -55.5503563 | AD156: 0 | AE156: 0
A157: 8861.775 | B157: 8.861775 | C157: 1.570630889 | D157: 0.880602279 | E157: 1.000247992 | F157: 0.02226838821 | G157: 1 | H157: 0 | I157: 9623.308161 | J157: 1.570692412 | K157: 2.036411262 | L157: 1.057490239 | M157: 1.000746767 | N157: 0.03863425918 | O157: 1.004963353 | P157: 0.1145472741 | Q157: 26.99916724 | R157: -87.3598834 | S157: 92.6401166 | U157: 1000000000 | V157: 78531056.15 | X157: 24.21156242 | Y157: -31.61789862 | AA157: 34.97564423 | AB157: -55.74198478 | AD157: 0 | AE157: 0
A158: 8912.5 | B158: 8.9125 | C158: 1.575982987 | D158: 0.8834030251 | E158: 1.000250839 | F158: 0.02239581047 | G158: 1 | H158: 0 | I158: 9678.392193 | J158: 1.570693004 | K158: =SQRT(1+(A158/Zero2)^2) -> 2.045262966 | L158: =ATAN(A158/Zero2) -> 1.059928237 | M158: 1.000755338 | N158: 0.03885518067 | O158: 1.005020209 | P158: 0.1151993067 | Q158: 26.95717519 | R158: -87.42341701 | S158: 92.57658299 | U158: 1000000000 | V158: 79432656.25 | X158: 24.19958485 | Y158: -31.49090334 | AA158: 34.94562975 | AB158: -55.93251367 | AD158: 0 | AE158: 0
A159: 8964.4 | B159: 8.9644 | C159: 1.581471769 | D159: 0.8862490046 | E159: 1.000253768 | F159: 0.0225261836 | G159: 1 | H159: 0 | I159: 9734.752199 | J159: 1.570693602 | K159: 2.054332185 | L159: 1.06240095 | M159: 1.000764157 | N159: 0.03908121569 | O159: 1.005078715 | P159: 0.115866379 | Q159: 26.91441671 | R159: -87.48853936 | S159: 92.51146064 | U159: 1000000000 | V159: 80360467.36 | X159: 24.18750494 | Y159: -31.36221248 | AA159: 34.91495119 | AB159: -56.12632688 | AD159: 0 | AE159: 0
A160: 9016.3 | B160: 9.0163 | C160: 1.586973272 | D160: 0.8890752746 | E160: 1.000256715 | F160: 0.02265655597 | G160: 1 | H160: 0 | I160: 9791.112204 | J160: 1.570694193 | K160: 2.063413854 | L160: 1.064851911 | M160: 1.000773027 | N160: 0.03930724671 | O160: 1.005137558 | P160: 0.1165333863 | Q160: 26.87186434 | R160: -87.5537744 | S160: 92.4462256 | U160: 1000000000 | V160: 81293665.69 | X160: 24.17559885 | Y160: -31.23476726 | AA160: 34.8843049 | AB160: -56.31900714 | AD160: 0 | AE160: 0
A161: 9068.2 | B161: 9.0682 | C161: 1.592487364 | D161: 0.8918819947 | E161: 1.000259678 | F161: 0.02278692756 | G161: 1 | H161: 0 | I161: 9847.47221 | J161: 1.570694778 | K161: 2.072507809 | L161: 1.067281377 | M161: 1.000781949 | N161: 0.03953327371 | O161: 1.005196737 | P161: 0.1172003281 | Q161: 26.82951556 | R161: -87.61911653 | S161: 92.38088347 | U161: 1000000000 | V161: 82232251.24 | X161: 24.16386337 | Y161: -31.10855297 | AA161: 34.8536916 | AB161: -56.51056357 | AD161: 0 | AE161: 0
A162: 9120.1 | B162: 9.1201 | C162: 1.598013914 | D162: 0.8946693232 | E162: 1.000262659 | F162: 0.02291729838 | G162: 1 | H162: 0 | I162: 9903.832215 | J162: 1.570695356 | K162: 2.081613891 | L162: 1.069689602 | M162: 1.000790922 | N162: 0.03975929668 | O162: 1.005256253 | P162: 0.1178672042 | Q162: 26.7873679 | R162: -87.68456032 | S162: 92.31543968 | U162: 1000000000 | V162: 83176224.01 | X162: 24.15229532 | Y162: -30.98355511 | AA162: 34.82311199 | AB162: -56.70100521 | AD162: 0 | AE162: 0
A163: 9173.2 | B163: 9.1732 | C163: 1.603681005 | D163: 0.8975011934 | E163: 1.000265726 | F163: 0.02305068275 | G163: 1 | H163: 0 | I163: 9961.495342 | J163: 1.57069594 | K163: 2.090942902 | L163: 1.072131786 | M163: 1.000800155 | N163: 0.0399905414 | O163: 1.005317493 | P163: 0.1185494308 | Q163: 26.74445138 | R163: -87.75161692 | S163: 92.24838308 | U163: 1000000000 | V163: 84147598.24 | X163: 24.14062987 | Y163: -30.85691115 | AA163: 34.79186092 | AB163: -56.89470576 | AD163: 0 | AE163: 0
A164: 9226.3 | B164: 9.2263 | C164: 1.609360866 | D164: 0.9003130971 | E164: 1.000268811 | F164: 0.0231840663 | G164: 1 | H164: 0 | I164: 10019.15847 | J164: 1.570696518 | K164: 2.100284273 | L164: 1.074552259 | M164: 1.000809441 | N164: 0.04022178184 | O164: 1.005379086 | P164: 0.1192315878 | Q164: 26.70174035 | R164: -87.81876883 | S164: 92.18123117 | U164: 1000000000 | V164: 85124611.69 | X164: 24.12913322 | Y164: -30.73151044 | AA164: 34.76064654 | AB164: -57.08725839 | AD164: 0 | AE164: 0
A165: 9279.4 | B165: 9.2794 | C165: 1.615053362 | D165: 0.9031052009 | E165: 1.000271913 | F165: 0.02331744902 | G165: 1 | H165: 0 | I165: 10076.8216 | J165: 1.570697089 | K165: 2.10963784 | L165: 1.076951283 | M165: 1.000818782 | N165: 0.04045301797 | O165: 1.00544103 | P165: 0.1199136748 | Q165: 26.65923233 | R165: -87.88601066 | S165: 92.11398934 | U165: 1000000000 | V165: 86107264.36 | X165: 24.1178022 | Y165: -30.60733807 | AA165: 34.72946954 | AB165: -57.27867259 | AD165: 0 | AE165: 0
A166: 9332.5 | B166: 9.3325 | C166: 1.620758361 | D166: 0.9058776699 | E166: 1.000275034 | F166: 0.02345083092 | G166: 1 | H166: 0 | I166: 10134.48472 | J166: 1.570697654 | K166: 2.119003441 | L166: 1.079329114 | M166: 1.000828175 | N166: 0.04068424978 | O166: 1.005503327 | P166: 0.1205956914 | Q166: 26.61692491 | R166: -87.95333716 | S166: 92.04666284 | U166: 1000000000 | V166: 87095556.25 | X166: 24.10663373 | Y166: -30.48437934 | AA166: 34.69833059 | AB166: -57.46895781 | AD166: 0 | AE166: 0
A167: 9386.85 | B167: 9.38685 | C167: 1.626610468 | D167: 0.9086952422 | E167: 1.000278246 | F167: 0.02358735182 | G167: 1 | H167: 0 | I167: 10193.50527 | J167: 1.570698225 | K167: 2.12860181 | L167: 1.081741238 | M167: 1.000837845 | N167: 0.04092092039 | O167: 1.005567454 | P167: 0.1212936896 | Q167: 26.57382682 | R167: -88.02233091 | S167: 91.97766909 | U167: 1000000000 | V167: 88112952.92 | X167: 24.09536752 | Y167: -30.35976781 | AA167: 34.66649871 | AB167: -57.6625631 | AD167: 0 | AE167: 0
A168: 9441.2 | B168: 9.4412 | C168: 1.632475395 | D168: 0.9114925915 | E168: 1.000281477 | F168: 0.02372387185 | G168: 1 | H168: 0 | I168: 10252.52581 | J168: 1.57069879 | K168: 2.138212453 | L168: 1.084131691 | M168: 1.000847572 | N168: 0.04115758642 | O168: 1.00563195 | P168: 0.1219916133 | Q168: 26.5309339 | R168: -88.09140269 | S168: 91.90859731 | U168: 1000000000 | V168: 89136257.44 | X168: 24.08426527 | Y168: -30.23639723 | AA168: 34.63470804 | AB168: -57.85500546 | AD168: 0 | AE168: 0
A169: 9495.55 | B169: 9.49555 | C169: 1.638353006 | D169: 0.9142698913 | E169: 1.000284727 | F169: 0.02386039099 | G169: 1 | H169: 0 | I169: 10311.54636 | J169: 1.570699348 | K169: 2.147835204 | L169: 1.086500739 | M169: 1.000857354 | N169: 0.04139424783 | O169: 1.005696815 | P169: 0.1226894619 | Q169: 26.48824372 | R169: -88.16054732 | S169: 91.83945268 | U169: 1000000000 | V169: 90165469.8 | X169: 24.07332386 | Y169: -30.11425249 | AA169: 34.60295927 | AB169: -58.04629483 | AD169: 0 | AE169: 0
A170: 9549.9 | B170: 9.5499 | C170: 1.644243163 | D170: 0.917027314 | E170: 1.000287995 | F170: 0.02399690924 | G170: 1 | H170: 0 | I170: 10370.56691 | J170: 1.5706999 | K170: 2.157469903 | L170: 1.08884864 | M170: 1.000867192 | N170: 0.0416309046 | O170: 1.005762049 | P170: 0.1233872351 | Q170: 26.4457539 | R170: -88.22975975 | S170: 91.77024025 | U170: 1000000000 | V170: 91200590.01 | X170: 24.06254029 | Y170: -29.9933187 | AA170: 34.57125302 | AB170: -58.23644106 | AD170: 0 | AE170: 0
A171: 9605.525 | B171: 9.605525 | C171: 1.650284349 | D171: 0.9198290199 | E171: 1.000291359 | F171: 0.02413662915 | G171: 1 | H171: 0 | I171: 10430.97202 | J171: 1.570700458 | K171: 2.167342827 | L171: 1.091229993 | M171: 1.00087732 | N171: 0.04187310829 | O171: 1.005829194 | P171: 0.124101299 | Q171: 26.40247232 | R171: -88.30066095 | S171: 91.69933905 | U171: 1000000000 | V171: 92266110.53 | X171: 24.05166409 | Y171: -29.87078648 | AA171: 34.53884765 | AB171: -58.42987446 | AD171: 0 | AE171: 0
A172: 9661.15 | B172: 9.66115 | C172: 1.656338395 | D172: 0.9226102666 | E172: 1.000294743 | F172: 0.02427634812 | G172: 1 | H172: 0 | I172: 10491.37713 | J172: 1.57070101 | K172: 2.17722793 | L172: 1.093589735 | M172: 1.000887505 | N172: 0.04211530706 | O172: 1.005896725 | P172: 0.1248152829 | Q172: 26.35939571 | R172: -88.37162293 | S172: 91.62837707 | U172: 1000000000 | V172: 93337819.32 | X172: 24.04094701 | Y172: -29.74949181 | AA172: 34.50648811 | AB172: -58.62213112 | AD172: 0 | AE172: 0
A173: 9716.775 | B173: 9.716775 | C173: 1.66240516 | D173: 0.9253712348 | E173: 1.000298146 | F173: 0.02441606615 | G173: 1 | H173: 0 | I173: 10551.78224 | J173: 1.570701556 | K173: 2.187125047 | L173: 1.095928134 | M173: 1.00089775 | N173: 0.04235750089 | O173: 1.005964642 | P173: 0.1255291865 | Q173: 26.31652166 | R173: -88.44264074 | S173: 91.55735926 | U173: 1000000000 | V173: 94415716.4 | X173: 24.03038602 | Y173: -29.62941938 | AA173: 34.47417504 | AB173: -58.81322136 | AD173: 0 | AE173: 0
A174: 9772.4 | B174: 9.7724 | C174: 1.668484505 | D174: 0.9281121039 | E174: 1.000301569 | F174: 0.02455578322 | G174: 1 | H174: 0 | I174: 10612.18735 | J174: 1.570702096 | K174: 2.197034015 | L174: 1.098245452 | M174: 1.000908053 | N174: 0.04259968974 | O174: 1.006032945 | P174: 0.1262430094 | Q174: 26.2738478 | R174: -88.51370957 | S174: 91.48629043 | U174: 1000000000 | V174: 95499801.76 | X174: 24.01997817 | Y174: -29.51055414 | AA174: 34.44190904 | AB174: -59.00315543 | AD174: 0 | AE174: 0
A175: 9829.3 | B175: 9.8293 | C175: 1.67471607 | D175: 0.9308951874 | E175: 1.00030509 | F175: 0.0246987018 | G175: 1 | H175: 0 | I175: 10673.97703 | J175: 1.570702641 | K175: 2.207182207 | L175: 1.100594346 | M175: 1.000918654 | N175: 0.04284742472 | O175: 1.006103213 | P175: 0.1269731101 | Q175: 26.23040054 | R175: -88.5864553 | S175: 91.4135447 | U175: 1000000000 | V175: 96615138.49 | X175: 24.00948719 | Y175: -29.39019788 | AA175: 34.40895276 | AB175: -59.19625742 | AD175: 0 | AE175: 0
A176: 9886.2 | B176: 9.8862 | C176: 1.680960511 | D176: 0.933657615 | E176: 1.000308632 | F176: 0.02484161937 | G176: 1 | H176: 0 | I176: 10735.76671 | J176: 1.57070318 | K176: 2.217342464 | L176: 1.102921726 | M176: 1.000929315 | N176: 0.04309515443 | O176: 1.006173884 | P176: 0.1277031253 | Q176: 26.18715794 | R176: -88.65924466 | S176: 91.34075534 | U176: 1000000000 | V176: 97736950.44 | X176: 23.99915039 | Y176: -29.27107358 | AA176: 34.37604696 | AB176: -59.38817108 | AD176: 0 | AE176: 0
A177: 9943.1 | B177: 9.9431 | C177: 1.687217683 | D177: 0.9363995741 | E177: 1.000312195 | F177: 0.02498453593 | G177: 1 | H177: 0 | I177: 10797.55639 | J177: 1.570703713 | K177: 2.227514623 | L177: 1.105227862 | M177: 1.000940038 | N177: 0.04334287885 | O177: 1.006244959 | P177: 0.1284330546 | Q177: 26.14411762 | R177: -88.73207293 | S177: 91.26792707 | U177: 1000000000 | V177: 98865237.61 | X177: 23.98896483 | Y177: -29.15316581 | AA177: 34.3431922 | AB177: -59.57890712 | AD177: 0 | AE177: 0
A178: 10000 | B178: 10 | C178: 1.693487448 | D178: 0.9391212504 | E178: 1.000315777 | F178: 0.02512745147 | G178: 1 | H178: 0 | I178: 10859.34607 | J178: 1.57070424 | K178: 2.237698521 | L178: 1.107513019 | M178: 1.000950823 | N178: 0.04359059795 | O178: 1.006316436 | P178: 0.1291628976 | Q178: 26.10127727 | R178: -88.80493553 | S178: 91.19506447 | U178: 1000000000 | V178: 100000000 | X178: 23.97892761 | Y178: -29.03645938 | AA178: 34.31038907 | AB178: -59.76847615 | AD178: 0 | AE178: 0
A179: 10058.25 | B179: 10.05825 | C179: 1.699918864 | D179: 0.9418866831 | E179: 1.000319466 | F179: 0.02527375673 | G179: 1 | H179: 0 | I179: 10922.60176 | J179: 1.570704774 | K179: 2.248136033 | L179: 1.109830936 | M179: 1.000961927 | N179: 0.04384418884 | O179: 1.006390028 | P179: 0.1299099667 | Q179: 26.05762526 | R179: -88.87955779 | S179: 91.12044221 | U179: 1000000000 | V179: 101168393.1 | X179: 23.96880297 | Y179: -28.91821279 | AA179: 34.2768617 | AB179: -59.961345 | AD179: 0 | AE179: 0
A180: 10116.5 | B180: 10.1165 | C180: 1.706363184 | D180: 0.9446312485 | E180: 1.000323177 | F180: 0.02542006091 | G180: 1 | H180: 0 | I180: 10985.85745 | J180: 1.570705301 | K180: 2.258585512 | L180: 1.112127417 | M180: 1.000973095 | N180: 0.0440977741 | O180: 1.006464042 | P180: 0.1306569443 | Q180: 26.01417804 | R180: -88.95420677 | S180: 91.04579323 | U180: 1000000000 | V180: 102343572.2 | X180: 23.95882788 | Y180: -28.8011937 | AA180: 34.24338957 | AB180: -60.15301307 | AD180: 0 | AE180: 0
A181: 10174.75 | B181: 10.17475 | C181: 1.71282026 | D181: 0.9473551411 | E181: 1.000326909 | F181: 0.02556636401 | G181: 1 | H181: 0 | I181: 11049.11314 | J181: 1.570705822 | K181: 2.269046793 | L181: 1.114402734 | M181: 1.000984328 | N181: 0.04435135367 | O181: 1.006538479 | P181: 0.1314038299 | Q181: 25.97093328 | R181: -89.02887798 | S181: 90.97112202 | U181: 1000000000 | V181: 103525537.6 | X181: 23.94899947 | Y181: -28.68538652 | AA181: 34.20997322 | AB181: -60.34349147 | AD181: 0 | AE181: 0
A182: 10233 | B182: 10.233 | C182: 1.719289948 | D182: 0.9500585537 | E182: 1.000330662 | F182: 0.025712666 | G182: 1 | H182: 0 | I182: 11112.36883 | J182: 1.570706337 | K182: 2.279519713 | L182: 1.116657156 | M182: 1.000995625 | N182: 0.04460492754 | O182: 1.006613338 | P182: 0.1321506229 | Q182: 25.92788867 | R182: -89.10356711 | S182: 90.89643289 | U182: 1000000000 | V182: 104714289 | X182: 23.93931491 | Y182: -28.57077591 | AA182: 34.17661318 | AB182: -60.5327912 | AD182: 0 | AE182: 0
A183: 10292.5 | B183: 10.2925 | C183: 1.725911346 | D183: 0.952799034 | E183: 1.000334517 | F183: 0.02586210639 | G183: 1 | H183: 0 | I183: 11176.98194 | J183: 1.570706857 | K183: 2.290229224 | L183: 1.118938657 | M183: 1.001007231 | N183: 0.04486393699 | O183: 1.006690239 | P183: 0.1329133456 | Q183: 25.88412468 | R183: -89.17987311 | S183: 90.82012689 | U183: 1000000000 | V183: 105935556.2 | X183: 23.92956817 | Y183: -28.45492548 | AA183: 34.14259592 | AB183: -60.72494763 | AD183: 0 | AE183: 0
A184: 10352 | B184: 10.352 | C184: 1.732545607 | D184: 0.9555185469 | E184: 1.000338396 | F184: 0.02601154563 | G184: 1 | H184: 0 | I184: 11241.59505 | J184: 1.570707371 | K184: 2.300950545 | L184: 1.121198908 | M184: 1.001018904 | N184: 0.04512294041 | O184: 1.006767581 | P184: 0.1336759706 | Q184: 25.84056483 | R184: -89.25618909 | S184: 90.74381091 | U184: 1000000000 | V184: 107163904 | X184: 23.91996577 | Y184: -28.34029188 | AA184: 34.10863847 | AB184: -60.9158972 | AD184: 0 | AE184: 0
A185: 10411.5 | B185: 10.4115 | C185: 1.739192583 | D185: 0.9582172923 | E185: 1.000342296 | F185: 0.0261609837 | G185: 1 | H185: 0 | I185: 11306.20815 | J185: 1.57070788 | K185: 2.311683513 | L185: 1.123438182 | M185: 1.001030645 | N185: 0.04538193777 | O185: 1.006845364 | P185: 0.1344384975 | Q185: 25.79720682 | R185: -89.33251082 | S185: 90.66748918 | U185: 1000000000 | V185: 108399332.2 | X185: 23.91050492 | Y185: -28.2268595 | AA185: 34.07474131 | AB185: -61.10565133 | AD185: 0 | AE185: 0
A186: 10471 | B186: 10.471 | C186: 1.745852129 | D186: 0.9608954684 | E186: 1.000346219 | F186: 0.0263104206 | G186: 1 | H186: 0 | I186: 11370.82126 | J186: 1.570708382 | K186: 2.322427964 | L186: 1.125656748 | M186: 1.001042452 | N186: 0.04564092904 | O186: 1.006923587 | P186: 0.1352009257 | Q186: 25.7540484 | R186: -89.40883427 | S186: 90.59116573 | U186: 1000000000 | V186: 109641841 | X186: 23.90118288 | Y186: -28.11461294 | AA186: 34.04090493 | AB186: -61.29422133 | AD186: 0 | AE186: 0
A187: 10532 | B187: 10.532 | C187: 1.752692463 | D187: 0.9636200134 | E187: 1.000350264 | F187: 0.0264636236 | G187: 1 | H187: 0 | I187: 11437.06327 | J187: 1.570708892 | K187: 2.333455041 | L187: 1.127910023 | M187: 1.001054627 | N187: 0.04590644314 | O187: 1.007004239 | P187: 0.1359824718 | Q187: 25.71000684 | R187: -89.48707949 | S187: 90.51292051 | U187: 1000000000 | V187: 110923024 | X187: 23.89176713 | Y187: -28.00075182 | AA187: 34.00627912 | AB187: -61.48632767 | AD187: 0 | AE187: 0
A188: 10593 | B188: 10.593 | C188: 1.759545707 | D188: 0.9663233546 | E188: 1.000354332 | F188: 0.02661682536 | G188: 1 | H188: 0 | I188: 11503.30528 | J188: 1.570709395 | K188: 2.344493853 | L188: 1.13014209 | M188: 1.001066872 | N188: 0.04617195076 | O188: 1.007085354 | P188: 0.136763913 | Q188: 25.6661704 | R188: -89.56531828 | S188: 90.43468172 | U188: 1000000000 | V188: 112211649 | X188: 23.88249166 | Y188: -27.8881051 | AA188: 33.97171815 | AB188: -61.67721319 | AD188: 0 | AE188: 0
A189: 10654 | B189: 10.654 | C189: 1.766411709 | D189: 0.9690056997 | E189: 1.000358424 | F189: 0.02677002587 | G189: 1 | H189: 0 | I189: 11569.54729 | J189: 1.570709893 | K189: 2.355544237 | L189: 1.132353227 | M189: 1.001079188 | N189: 0.04643745187 | O189: 1.007166931 | P189: 0.1375452489 | Q189: 25.62253679 | R189: -89.64354669 | S189: 90.35645331 | U189: 1000000000 | V189: 113507716 | X189: 23.87335372 | Y189: -27.77665694 | AA189: 33.93722248 | AB189: -61.86688974 | AD189: 0 | AE189: 0
A190: 10715 | B190: 10.715 | C190: 1.773290322 | D190: 0.9716672541 | E190: 1.00036254 | F190: 0.02692322512 | G190: 1 | H190: 0 | I190: 11635.7893 | J190: 1.570710385 | K190: 2.36660603 | L190: 1.134543703 | M190: 1.001091575 | N190: 0.04670294643 | O190: 1.007248971 | P190: 0.1383264788 | Q190: 25.57910377 | R190: -89.72176088 | S190: 90.27823912 | U190: 1000000000 | V190: 114811225 | X190: 23.86435063 | Y190: -27.6663918 | AA190: 33.90279254 | AB190: -62.05536908 | AD190: 0 | AE190: 0
A191: 10777.5 | B191: 10.7775 | C191: 1.780351009 | D191: 0.9743729056 | E191: 1.00036678 | F191: 0.02708019025 | G191: 1 | H191: 0 | I191: 11703.66022 | J191: 1.570710883 | K191: 2.3779515 | L191: 1.136766895 | M191: 1.001104339 | N191: 0.04697496271 | O191: 1.007333507 | P191: 0.1391268087 | Q191: 25.53480846 | R191: -89.80187977 | S191: 90.19812023 | U191: 1000000000 | V191: 116154506.2 | X191: 23.85526328 | Y191: -27.5546262 | AA191: 33.86758458 | AB191: -62.24725358 | AD191: 0 | AE191: 0
A192: 10840 | B192: 10.84 | C192: 1.787424625 | D192: 0.9770571617 | E192: 1.000371046 | F192: 0.02723715405 | G192: 1 | H192: 0 | I192: 11771.53113 | J192: 1.570711376 | K192: 2.389308612 | L192: 1.138968964 | M192: 1.001117177 | N192: 0.04724697203 | O192: 1.007418529 | P192: 0.1399270261 | Q192: 25.49071909 | R192: -89.88197603 | S192: 90.11802397 | U192: 1000000000 | V192: 117505600 | X192: 23.846312 | Y192: -27.44407019 | AA192: 33.8324465 | AB192: -62.43790584 | AD192: 0 | AE192: 0
A193: 10902.5 | B193: 10.9025 | C193: 1.794511019 | D193: 0.9797202369 | E193: 1.000375336 | F193: 0.02739411651 | G193: 1 | H193: 0 | I193: 11839.40204 | J193: 1.570711863 | K193: 2.400677201 | L193: 1.141150186 | M193: 1.00113009 | N193: 0.04751897435 | O193: 1.007504036 | P193: 0.1407271304 | Q193: 25.44683338 | R193: -89.96204596 | S193: 90.03795404 | U193: 1000000000 | V193: 118864506.2 | X193: 23.8374941 | Y193: -27.33470783 | AA193: 33.79737869 | AB193: -62.62733813 | AD193: 0 | AE193: 0
A194: 10965 | B194: 10.965 | C194: 1.801610039 | D194: 0.9823623438 | E194: 1.000379651 | F194: 0.02755107762 | G194: 1 | H194: 0 | I194: 11907.27295 | J194: 1.570712345 | K194: 2.412057103 | L194: 1.143310837 | M194: 1.001143076 | N194: 0.04779096964 | O194: 1.007590028 | P194: 0.141527121 | Q194: 25.4031491 | R194: -90.04208599 | S194: 89.95791401 | U194: 1000000000 | V194: 120231225 | X194: 23.82880696 | Y194: -27.22652341 | AA194: 33.76238156 | AB194: -62.81556258 | AD194: 0 | AE194: 0
A195: 11028.75 | B195: 11.02875 | C195: 1.808863893 | D195: 0.9850359092 | E195: 1.000384078 | F195: 0.02771117655 | G195: 1 | H195: 0 | I195: 11976.50128 | J195: 1.57071283 | K195: 2.423676095 | L195: 1.145493788 | M195: 1.001156399 | N195: 0.04806839755 | O195: 1.00767824 | P195: 0.1423429936 | Q195: 25.35879639 | R195: -90.12369244 | S195: 89.87630756 | U195: 1000000000 | V195: 121633326.6 | X195: 23.82007813 | Y195: -27.11737279 | AA195: 33.72675767 | AB195: -63.00631965 | AD195: 0 | AE195: 0
A196: 11092.5 | B196: 11.0925 | C196: 1.816130574 | D196: 0.9876880985 | E196: 1.00038853 | F196: 0.02787127406 | G196: 1 | H196: 0 | I196: 12045.72962 | J196: 1.57071331 | K196: 2.435306525 | L196: 1.147655899 | M196: 1.001169798 | N196: 0.04834581805 | O196: 1.007766956 | P196: 0.1431587467 | Q196: 25.31464868 | R196: -90.20526068 | S196: 89.79473932 | U196: 1000000000 | V196: 123043556.2 | X196: 23.81148004 | Y196: -27.00941548 | AA196: 33.69120806 | AB196: -63.1958452 | AD196: 0 | AE196: 0
A197: 11156.25 | B197: 11.15625 | C197: 1.823409927 | D197: 0.9903191302 | E197: 1.000393008 | F197: 0.02803137014 | G197: 1 | H197: 0 | I197: 12114.95795 | J197: 1.570713784 | K197: 2.446948231 | L197: 1.149797447 | M197: 1.001183275 | N197: 0.0486232311 | O197: 1.007856176 | P197: 0.1439743795 | Q197: 25.27070376 | R197: -90.28678732 | S197: 89.71321268 | U197: 1000000000 | V197: 124461914.1 | X197: 23.80301009 | Y197: -26.90263561 | AA197: 33.65573308 | AB197: -63.3841517 | AD197: 0 | AE197: 0
A198: 11220 | B198: 11.22 | C198: 1.830701803 | D198: 0.9929292205 | E198: 1.000397511 | F198: 0.02819146478 | G198: 1 | H198: 0 | I198: 12184.18628 | J198: 1.570714253 | K198: 2.458601054 | L198: 1.151918704 | M198: 1.001196829 | N198: 0.04890063666 | O198: 1.007945901 | P198: 0.1447898914 | Q198: 25.22695942 | R198: -90.36826908 | S198: 89.63173092 | U198: 1000000000 | V198: 125888400 | X198: 23.79466576 | Y198: -26.79701757 | AA198: 33.62033307 | AB198: -63.5712515 | AD198: 0 | AE198: 0
A199: 11285.5 | B199: 11.2855 | C199: 1.838206732 | D199: 0.9955893736 | E199: 1.000402165 | F199: 0.02835595267 | G199: 1 | H199: 0 | I199: 12255.31499 | J199: 1.57071473 | K199: 2.47058517 | L199: 1.15407734 | M199: 1.001210835 | N199: 0.04918564943 | O199: 1.008038613 | P199: 0.1456276632 | Q199: 25.18222092 | R199: -90.45193755 | S199: 89.54806245 | U199: 1000000000 | V199: 127362510.2 | X199: 23.78622063 | Y199: -26.68969417 | AA199: 33.5840397 | AB199: -63.76224338 | AD199: 0 | AE199: 0
A200: 11351 | B200: 11.351 | C200: 1.845724564 | D200: 0.9982278751 | E200: 1.000406846 | F200: 0.02852043903 | G200: 1 | H200: 0 | I200: 12326.44371 | J200: 1.5707152 | K200: 2.482580688 | L200: 1.156215125 | M200: 1.001224922 | N200: 0.04947065421 | O200: 1.008131858 | P200: 0.1464653061 | Q200: 25.13768961 | R200: -90.53555206 | S200: 89.46444794 | U200: 1000000000 | V200: 128845201 | X200: 23.77790289 | Y200: -26.58356465 | AA200: 33.54782613 | AB200: -63.95198741 | AD200: 0 | AE200: 0
A201: 11416.5 | B201: 11.4165 | C201: 1.853255142 | D201: 1.000844952 | E201: 1.000411554 | F201: 0.02868492384 | G201: 1 | H201: 0 | I201: 12397.57243 | J201: 1.570715666 | K201: 2.494587442 | L201: 1.158332341 | M201: 1.001239091 | N201: 0.04975565094 | O201: 1.008225634 | P201: 0.1473028193 | Q201: 25.09336325 | R201: -90.61910944 | S201: 89.38089056 | U201: 1000000000 | V201: 130336472.2 | X201: 23.76971001 | Y201: -26.47861289 | AA201: 33.51169265 | AB201: -64.14049655 | AD201: 0 | AE201: 0
A202: 11482 | B202: 11.482 | C202: 1.860798309 | D202: 1.003440829 | E202: 1.000416289 | F202: 0.02884940711 | G202: 1 | H202: 0 | I202: 12468.70114 | J202: 1.570716126 | K202: 2.506605271 | L202: 1.160429264 | M202: 1.00125334 | N202: 0.05004063958 | O202: 1.008319942 | P202: 0.148140202 | Q202: 25.04923964 | R202: -90.70260666 | S202: 89.29739334 | U202: 1000000000 | V202: 131836324 | X202: 23.7616395 | Y202: -26.37482304 | AA202: 33.47563955 | AB202: -64.32778362 | AD202: 0 | AE202: 0
... 433 more rows

Sheet Bode Plot Management (hidden)
J1: Single or dual output (MODE) | N1: 3.3V or 5V fixed (FB1/2)
A2: =CHOOSE(BODE_PLOT_TYPE, "BODE_PLOT_Ch1", "BODE_PLOT_Ch2") -> BODE_PLOT_Ch1 | J2: With/without dither (DITH) | N2: With/without VOUT connected to VCCX
J3: FPWM or DEM (DEMB)
J4: Shunt or inductor DCR current sensing
F6: =INDIRECT(A2) -> 0

Sheet Efficiency Calculations (hidden)
A1: BUCK CONTROLLER POWER DESIGN TOOL
H2: =AV19 -> 0.9400434573 | I2: 10% load
H3: =AV59 -> 0.9038780863 | I3: 50% load | AP3: =IF(MODE=1, (Qg_Q1+Qg_Q2)*Fsw*Vin, (Qg_Q1+Qg_Q2+Qg_Q3+Qg_Q4)*Fsw*Vin) -> 0.17952
H4: =AV109 -> 0.6550601171 | I4: 100% load | AO4: I_VCC | AP4: =(Qg_Q1+Qg_Q2)*Fsw*1000 -> 14.96 | AQ4: mA | AR4: =AP4*5/1000 -> 0.0748
A6: Enter the values of your design and MOSFET datasheet specifications below. Note that thermal resistance (θJA) will change when components are placed on the PCB
G7: Operating Point Condtions | R7: Filter Inductor | V7: Cout | Y7: Cin | AB7: High-side BUCK "Control" MOSFET Losses | AH7: Low-side BUCK "Sync" MOSFET Losses | AL7: External Diode | AM7: Diode/FET | AN7: Sense Rs | AO7: Controller IC Losses | AT7: RESULTS | AZ7: Consolidated Buck/Boost Efficiency & Losses
A8: Input Parameters | G8: Step | H8: Vin | I8: Mode | J8: Iout | K8: Iout/ phase | L8: Iin | M8: Duty Cycle BUCK Leg | N8: Ripple Current pk-pk | O8: Peak Inductor Current | P8: Valley Inductor Current | Q8: SW node voltage at Q1 turn-on | R8: Irms Lf | S8: DCR Loss | T8: Core Loss | U8: Total Inductor Loss | V8: Irms Cout | W8: Cout ESR Loss | X8: Total Cout Loss | Y8: Irms Cin | Z8: Cin ESR Loss | AA8: Total Cin Loss | AB8: Irms | AC8: RDS(on) Loss | AD8: Transition Loss (not including capacitive loss) | AE8: MOSFET Output Capacitance Loss | AF8: Dead Time Loss | AG8: Total Control MOSFET Loss | AH8: Irms | AI8: RDS(on) Loss | AJ8: Deadtime Loss | AK8: Total Sync MOSFET Loss | AL8: Deadtime Loss | AM8: Reverse Recovery Loss | AN8: Isense Shunt Loss | AO8: IQ Loss | AP8: Switching Current Loss | AQ8: Switching Current Diss | AR8: LDO Loss Saved from Gate Drive Current (ext VCC) | AS8: Total IC Loss | AT8: Total Loss | AU8: Pout | AV8: EFF, h | AW8: =IF(Vin>Vout, "Buck ''CONTROL'' MOSFET Temp Rise", "Boost ''CONTROL'' MOSFET Temp Rise") -> Buck ''CONTROL'' MOSFET Temp Rise | AX8: =IF(Vin>Vout, "Buck ''SYNC'' MOSFET Temp Rise", "Boost ''SYNC'' MOSFET Temp Rise") -> Buck ''SYNC'' MOSFET Temp Rise | AZ8: h | BA8: Inductor Cu & Core Loss | BB8: Total MOSFET Loss | BC8: Control MOSFET Loss | BD8: SYNC MOSFET Loss | BE8: Shunt Loss
A9: Design | B9: Input Value | C9: Units | D9: Description | G9: 0 | H9: =Vin -> 12 | I9: =MODE -> 1 | J9: 0 | K9: =Iout*G9/100/Number_of_Phases -> 0 | L9: =Vout*K9/(Vin*Efficiency) -> 0 | M9: =(Vout+(Rdson2+Rs+Rdcr)*K9)/(Vin+(Rs+Rdson2-Rdson1)*K9) -> 0.275 | N9: =(Vin-(Rdson1+Rdcr)*K9-Vout)*M9/(Fsw*Lf) -> 5.4375 | O9: =K9+N9/2 -> 2.71875 | P9: =K9-N9/2 -> -2.71875 | Q9: =IF(MIN(Vin, -P9/(Coss_Q1+Coss_Q2)*0.00000002)<0, 0, MIN(Vin, -P9/(Coss_Q1+Coss_Q2)*0.00000002)) -> 12 | R9: =SQRT(K9^2+(N9^2)/12) -> 1.569671044 | S9: =R9^2*Rdcr -> 0.00985546875 | T9: =Core_Loss_Ch1 -> 0.15 | U9: =(T9+S9*(1+Ltc*(Ta-25)))/(1-S9*Ltc*ThetaCa) -> 0.1599816042 | V9: =N9/SQRT(12) -> 1.569671044 | W9: =RCoutEsr*V9^2 -> 0.0197109375 | X9: =W9 -> 0.0197109375 | Y9: =SQRT(M9*(1-M9))*SQRT(K9^2+(N9^2)/12) -> 0.7008805323 | Z9: =RCinEsr*Y9^2 -> 0.004912335205 | AA9: =Z9 -> 0.004912335205 | AB9: =SQRT(M9)*SQRT(K9^2+(N9^2)/12) -> 0.82314244 | AC9: =Rdson1*AB9^2 -> 0.006707878418 | AD9: =(Vin*K9/2)*Fsw*(Tr_buck+Tf_buck) -> 0 | AE9: =(0.5*Coss_Q1*(Vin-Q9)^2-0.5*Coss_Q2*(Vin-Q9)^2+(Qoss_Q2*(Vin-Q9)/Vin)*Vin)*Fsw -> 0 | AF9: =IF(K9>N9/2,0,ABS(K9-N9/2)*Vsd_Q1*Deadtime*Fsw) -> 0.013398 | AG9: =(AF9+AE9+AD9+AC9*(1+RdsonTopTc*Ta-RdsonTopTc*25))/(1-AC9*RdsonTopTc*ThetaJA_Q1) -> 0.02013288821 | AH9: =SQRT((1-M9))*SQRT(K9^2+(N9^2)/12) -> 1.336526734 | AI9: =Rdson2*AH9^2 -> 0.01768440674 | AJ9: =IF(K9<N9/2,Deadtime*Fsw*IF(VfdSky_Q2>0,0,Vsd_Q2)*(K9+N9/2),2*Deadtime*Fsw*IF(VfdSky_Q2>0,0,Vsd_Q2)*K9) -> 0.013398 | AK9: =(AJ9+AI9*(1+RdsonBotTc*Ta-RdsonBotTc*25))/(1-AI9*RdsonBotTc*ThetaJA_Q2) -> 0.03119273173 | AL9: =2*Deadtime*Fsw*IF(VfdSky_Q2>0,VfdSky_Q2,Vsd_Q2)*K9 -> 0 | AM9: =IF(QrrSky_Q2>0,QrrSky_Q2,Qrr_Q2*K9/(Iout/Number_of_Phases))*Fsw*Vin -> 0 | AN9: =Rs*R9^2 -> 0.007391601562 | AO9: =Iq*Vin -> 0.00042 | AP9: =IF(Ext_VCC=1, (Qg_Q1+Qg_Q2)*Fsw*VCC, (Qg_Q1+Qg_Q2)*Fsw*Vin) -> 0.0748 | AQ9: =(Vin-VCC)*Fsw*(Qg_Q1+Qg_Q2)+(RdsonDRT+RdsonDRT2)*Fsw*Qg_Q1*VCC/(RdsonDRT+2*Rgate1+RdsonDRT2)+(RdsonDRB+RdsonDRB2)*Fsw*Qg_Q2*VCC/(RdsonDRB+2*Rgate2+RdsonDRB2) -> 0.1496 | AR9: =(Qg_Q1+Qg_Q2)*Fsw*(Vin-VCC) -> 0.10472 | AS9: =SUM(AO9:AP9) -> 0.07522 | AT9: =SUM(U9,X9,AA9,AG9,AK9,AL9,AM9,AS9,AN9) -> 0.3185420985 | AU9: =Vout*K9 -> 0 | AV9: =AU9/(AU9+AT9) -> 0 | AW9: =ThetaJA_Q1*BC9 -> 1.006644411 | AX9: =ThetaJA_Q2*BD9 -> 1.559636586 | AZ9: =AV9*100 -> 0 | BA9: =U9 -> 0.1599816042 | BB9: =AG9+AK9+AM9 -> 0.05132561994 | BC9: =AG9+AM9*0.66 -> 0.02013288821 | BD9: =AK9+AM9*0.33 -> 0.03119273173 | BE9: =AN9 -> 0.007391601562
G10: 1 | H10: 12 | I10: 1 | J10: =Iout*G10/100 -> 0.25 | K10: 0.25 | L10: 0.07638888889 | M10: 0.2753348749 | N10: 5.44194687 | O10: =K10+N10/2 -> 2.970973435 | P10: =K10-N10/2 -> -2.470973435 | Q10: 12 | R10: =SQRT(K10^2+(N10^2)/12) -> 1.590722732 | S10: 0.01012159525 | T10: 0.15 | U10: 0.1602513552 | V10: =N10/SQRT(12) -> 1.570954745 | W10: 0.01974319049 | X10: =W10 -> 0.01974319049 | Y10: =SQRT(M10*(1-M10))*SQRT(K10^2+(N10^2)/12) -> 0.710548587 | Z10: 0.005048792945 | AA10: =Z10 -> 0.005048792945 | AB10: =SQRT(M10)*SQRT(K10^2+(N10^2)/12) -> 0.8346897868 | AC10: 0.006897399699 | AD10: 0.003331996522 | AE10: 0 | AF10: 0.01217695709 | AG10: 0.02243730512 | AH10: 1.354138756 | AI10: 0.01815354854 | AJ10: 0.01464095709 | AK10: 0.03291400683 | AL10: 0.002464 | AM10: 0.0028512 | AN10: 0.007591196435 | AO10: 0.00042 | AP10: 0.0748 | AQ10: 0.1496 | AR10: 0.10472 | AS10: 0.07522 | AT10: 0.328521047 | AU10: 0.825 | AV10: =AU10/(AU10+AT10) -> 0.7152015146 | AW10: 1.215954856 | AX10: 1.692745141 | AZ10: =AV10*100 -> 71.52015146 | BA10: 0.1602513552 | BB10: 0.05820251195 | BC10: 0.02431909712 | BD10: 0.03385490283 | BE10: 0.007591196435
A11: Vin | B11: =Vin -> 12 | C11: V | D11: Vin | G11: 2 | H11: 12 | I11: 1 | J11: 0.5 | K11: 0.5 | L11: 0.1527777778 | M11: 0.275669708 | N11: 5.446387624 | O11: 3.223193812 | P11: -2.223193812 | Q11: 12 | R11: 1.649826712 | S11: 0.01088771272 | T11: 0.15 | U11: 0.1610279708 | V11: 1.572236681 | W11: 0.01977542544 | X11: 0.01977542544 | Y11: 0.7372269078 | Z11: 0.005435035136 | AA11: 0.005435035136 | AB11: 0.8662292689 | AC11: 0.007428496149 | AD11: 0.006663993045 | AE11: 0 | AF11: 0.01095589911 | AG11: 0.02508565804 | AH11: 1.404127855 | AI11: 0.01951859283 | AJ11: 0.01588389911 | AK11: 0.03554123491 | AL11: 0.004928 | AM11: 0.0057024 | AN11: 0.008165784539 | AO11: 0.00042 | AP11: 0.0748 | AQ11: 0.1496 | AR11: 0.10472 | AS11: 0.07522 | AT11: 0.3408815089 | AU11: 1.65 | AV11: 0.8287786052 | AW11: 1.442462102 | AX11: 1.871151346 | AZ11: 82.87786052 | BA11: 0.1610279708 | BB11: 0.06632929296 | BC11: 0.02884924204 | BD11: 0.03742302691 | BE11: 0.008165784539
A12: Vout | B12: =Vout -> 3.3 | C12: V | D12: Vout | G12: 3 | H12: 12 | I12: 1 | J12: 0.75 | K12: 0.75 | L12: 0.2291666667 | M12: 0.2760044992 | N12: 5.450822263 | O12: 3.475411132 | P12: -1.975411132 | Q12: 12 | R12: 1.743116542 | S12: 0.01215382111 | T12: 0.15 | U12: 0.1623116376 | V12: 1.57351685 | W12: 0.01980764223 | X12: 0.01980764223 | Y12: 0.7792062705 | Z12: 0.006071624119 | AA12: 0.006071624119 | AB12: 0.9157659785 | AC12: 0.008302410541 | AD12: 0.009995989567 | AE12: 0 | AF12: 0.009734826056 | AG12: 0.02807985226 | AH12: 1.483181699 | AI12: 0.02177829672 | AJ12: 0.01712682606 | AK12: 0.03907532156 | AL12: 0.007392 | AM12: 0.0085536 | AN12: 0.009115365836 | AO12: 0.00042 | AP12: 0.0748 | AQ12: 0.1496 | AR12: 0.10472 | AS12: 0.07522 | AT12: 0.3556270436 | AU12: 2.475 | AV12: 0.8743645708 | AW12: 1.686261413 | AX12: 2.094900478 | AZ12: 87.43645708 | BA12: 0.1623116376 | BB12: 0.07570877382 | BC12: 0.03372522826 | BD12: 0.04189800956 | BE12: 0.009115365836
A13: Fsw | B13: =Fsw/1000 -> 440 | C13: kHz | D13: Switching Frequency | G13: 4 | H13: 12 | I13: 1 | J13: 1 | K13: 1 | L13: 0.3055555556 | M13: 0.2763392485 | N13: 5.455250788 | O13: 3.727625394 | P13: -1.727625394 | Q13: 12 | R13: 1.865470476 | S13: 0.01391992039 | T13: 0.15 | U13: 0.1641026641 | V13: 1.574795255 | W13: 0.01983984077 | X13: 0.01983984077 | Y13: 0.8342134267 | Z13: 0.006959120413 | AA13: 0.006959120413 | AB13: 0.9806401403 | AC13: 0.009520385339 | AD13: 0.01332798609 | AE13: 0 | AF13: 0.008513737941 | AG13: 0.03142193916 | AH13: 1.586923127 | AI13: 0.02493141762 | AJ13: 0.01836973794 | AK13: 0.04351814939 | AL13: 0.009856 | AM13: 0.0114048 | AN13: 0.01043994029 | AO13: 0.00042 | AP13: 0.0748 | AQ13: 0.1496 | AR13: 0.10472 | AS13: 0.07522 | AT13: 0.3727624541 | AU13: 3.3 | AV13: 0.8985062446 | AW13: 1.947455358 | AX13: 2.364086669 | AZ13: 89.85062446 | BA13: 0.1641026641 | BB13: 0.08634488855 | BC13: 0.03894910716 | BD13: 0.04728173339 | BE13: 0.01043994029
A14: Iout | B14: =Iout -> 25 | C14: A | D14: Max Output Current | G14: 5 | H14: 12 | I14: 1 | J14: 1.25 | K14: 1.25 | L14: 0.3819444444 | M14: 0.2766739561 | N14: 5.459673199 | O14: 3.9798366 | P14: -1.4798366 | Q14: 12 | R14: 2.011592061 | S14: 0.01618601048 | T14: 0.15 | U14: 0.1664014806 | V14: 1.576071896 | W14: 0.01987202096 | X14: 0.01987202096 | Y14: 0.8998934779 | Z14: 0.008098082715 | AA14: 0.008098082715 | AB14: 1.058093516 | AC14: 0.01108366269 | AD14: 0.01665998261 | AE14: 0 | AF14: 0.007292634763 | AG14: 0.03511411868 | AH14: 1.710830422 | AI14: 0.02897671325 | AJ14: 0.01961263476 | AK14: 0.04887258137 | AL14: 0.01232 | AM14: 0.014256 | AN14: 0.01213950786 | AO14: 0.00042 | AP14: 0.0748 | AQ14: 0.1496 | AR14: 0.10472 | AS14: 0.07522 | AT14: 0.3922937922 | AU14: 4.125 | AV14: 0.9131573437 | AW14: 2.226153934 | AX14: 2.678853068 | AZ14: 91.31573437 | BA14: 0.1664014806 | BB14: 0.09824270004 | BC14: 0.04452307868 | BD14: 0.05357706137 | BE14: 0.01213950786
A15: Ta | B15: =Ta -> 25 | C15: °C | D15: Ambient Temperature | G15: 6 | H15: 12 | I15: 1 | J15: 1.5 | K15: 1.5 | L15: 0.4583333333 | M15: 0.2770086218 | N15: 5.464089499 | O15: 4.23204475 | P15: -1.23204475 | Q15: 12 | R15: 2.176699988 | S15: 0.01895209135 | T15: 0.15 | U15: 0.16920864 | V15: 1.577346772 | W15: 0.0199041827 | X15: 0.0199041827 | Y15: 0.9741184684 | Z15: 0.009489067906 | AA15: 0.009489067906 | AB15: 1.145632217 | AC15: 0.01299348444 | AD15: 0.01999197913 | AE15: 0 | AF15: 0.006071516526 | AG15: 0.03915874181 | AH15: 1.850824049 | AI15: 0.03391294165 | AJ15: 0.02085551653 | AK15: 0.05514246683 | AL15: 0.014784 | AM15: 0.0171072 | AN15: 0.01421406851 | AO15: 0.00042 | AP15: 0.0748 | AQ15: 0.1496 | AR15: 0.10472 | AS15: 0.07522 | AT15: 0.4142283677 | AU15: 4.95 | AV15: 0.9227795054 | AW15: 2.52247469 | AX15: 3.039392141 | AZ15: 92.27795054 | BA15: 0.16920864 | BB15: 0.1114084086 | BC15: 0.05044949381 | BD15: 0.06078784283 | BE15: 0.01421406851
A16: Vcc | B16: =VCC -> 5 | C16: V | D16: Subregulated VCC Voltage | G16: 7 | H16: 12 | I16: 1 | J16: 1.75 | K16: 1.75 | L16: 0.5347222222 | M16: 0.2773432457 | N16: 5.468499688 | O16: 4.484249844 | P16: -0.9842498441 | Q16: 12 | R16: 2.356807319 | S16: 0.02221816295 | T16: 0.15 | U16: 0.1725248177 | V16: 1.578619884 | W16: 0.01993632589 | X16: 0.01993632589 | Y16: 1.05511284 | Z16: 0.01113263105 | AA16: 0.01113263105 | AB16: 1.241174587 | AC16: 0.01525109213 | AD16: 0.02332397566 | AE16: 0 | AF16: 0.004850383232 | AG16: 0.04355831338 | AH16: 2.003503526 | AI16: 0.03973886117 | AJ16: 0.02209838323 | AK16: 0.06233265011 | AL16: 0.017248 | AM16: 0.0199584 | AN16: 0.01666362221 | AO16: 0.00042 | AP16: 0.0748 | AQ16: 0.1496 | AR16: 0.10472 | AS16: 0.07522 | AT16: 0.4385747603 | AU16: 5.775 | AV16: 0.929416676 | AW16: 2.836542869 | AX16: 3.445946105 | AZ16: 92.9416676 | BA16: 0.1725248177 | BB16: 0.1258493635 | BC16: 0.05673085738 | BD16: 0.06891892211 | BE16: 0.01666362221
A17: Components | B17: Input Value | C17: Units | D17: Description | G17: 8 | H17: 12 | I17: 1 | J17: 2 | K17: 2 | L17: 0.6111111111 | M17: 0.2776778278 | N17: 5.472903768 | O17: 4.736451884 | P17: -0.7364518839 | Q17: 12 | R17: 2.548736217 | S17: 0.02598422522 | T17: 0.15 | U17: 0.1763508124 | V17: 1.579891232 | W17: 0.01996845043 | X17: 0.01996845043 | Y17: 1.141460704 | Z17: 0.01302932538 | AA17: 0.01302932538 | AB17: 1.343060238 | AC17: 0.01785772696 | AD17: 0.02665597218 | AE17: 0 | AF17: 0.003629234884 | AG17: 0.048315495 | AH17: 2.166159159 | AI17: 0.04645323046 | AJ17: 0.02334123488 | AK17: 0.0704489819 | AL17: 0.019712 | AM17: 0.0228096 | AN17: 0.01948816891 | AO17: 0.00042 | AP17: 0.0748 | AQ17: 0.1496 | AR17: 0.10472 | AS17: 0.07522 | AT17: 0.465342834 | AU17: 6.6 | AV17: 0.9341372606 | AW17: 3.16849155 | AX17: 3.898807495 | AZ17: 93.41372606 | BA17: 0.1763508124 | BB17: 0.1415740769 | BC17: 0.063369831 | BD17: 0.0779761499 | BE17: 0.01948816891
A18: L | B18: =Lf*1000000 -> 1 | C18: uH | D18: Filter Inductance | G18: 9 | H18: 12 | I18: 1 | J18: 2.25 | K18: 2.25 | L18: 0.6875 | M18: 0.278012368 | N18: 5.477301739 | O18: 4.98865087 | P18: -0.4886508695 | Q18: 12 | R18: 2.750012641 | S18: 0.03025027811 | T18: 0.15 | U18: 0.180687546 | V18: 1.581160817 | W18: 0.02000055623 | X18: 0.02000055623 | Y18: 1.232059347 | Z18: 0.01517970233 | AA18: 0.01517970233 | AB18: 1.449995815 | AC18: 0.02081462984 | AD18: 0.0299879687 | AE18: 0 | AF18: 0.002408071485 | AG18: 0.0534331081 | AH18: 2.336681764 | AI18: 0.05405480849 | AJ18: 0.02458407148 | AK18: 0.07949833341 | AL18: 0.022176 | AM18: 0.0256608 | AN18: 0.02268770859 | AO18: 0.00042 | AP18: 0.0748 | AQ18: 0.1496 | AR18: 0.10472 | AS18: 0.07522 | AT18: 0.4945437547 | AU18: 7.425 | AV18: 0.9375540094 | AW18: 3.518461805 | AX18: 4.39831987 | AZ18: 93.75540094 | BA18: 0.180687546 | BB18: 0.1585922415 | BC18: 0.0703692361 | BD18: 0.08796639741 | BE18: 0.02268770859
A19: Rdcr | B19: =Rdcr*1000 -> 4 | C19: mW | D19: Inductor DCR at 25°C | G19: 10 | H19: 12 | I19: 1 | J19: 2.5 | K19: 2.5 | L19: 0.7638888889 | M19: 0.2783468665 | N19: 5.481693603 | O19: 5.240846801 | P19: -0.2408468015 | Q19: 12 | R19: 2.958729524 | S19: 0.03501632159 | T19: 0.15 | U19: 0.1855360648 | V19: 1.582428639 | W19: 0.02003264317 | X19: 0.02003264317 | Y19: 1.326058503 | Z19: 0.01758431153 | AA19: 0.01758431153 | AB19: 1.560983936 | AC19: 0.02412304139 | AD19: 0.03331996522 | AE19: 0 | AF19: 0.001186893038 | AG19: 0.05891413729 | AH19: 2.513445752 | AI19: 0.06254235453 | AJ19: 0.02582689304 | AK19: 0.08948861328 | AL19: 0.02464 | AM19: 0.028512 | AN19: 0.02626224119 | AO19: 0.00042 | AP19: 0.0748 | AQ19: 0.1496 | AR19: 0.10472 | AS19: 0.07522 | AT19: 0.5261900113 | AU19: 8.25 | AV19: 0.9400434573 | AW19: 3.886602865 | AX19: 4.944878664 | AZ19: 94.00434573 | BA19: 0.1855360648 | BB19: 0.1769147506 | BC19: 0.07773205729 | BD19: 0.09889757328 | BE19: 0.02626224119
A20: LTc | B20: =Ltc*1000000 -> 4000 | C20: ppm | D20: Inductor Series Resistance Temp Co | G20: 11 | H20: 12 | I20: 1 | J20: 2.75 | K20: 2.75 | L20: 0.8402777778 | M20: 0.2786813233 | N20: 5.486079361 | O20: 5.49303968 | P20: 0.006960319598 | Q20: 0 | R20: 3.173419118 | S20: 0.04028235558 | T20: 0.15 | U20: 0.1908975398 | V20: 1.583694698 | W20: 0.02006471117 | X20: 0.02006471117 | Y20: 1.422803597 | Z20: 0.02024370075 | AA20: 0.02024370075 | AB20: 1.675256709 | AC20: 0.02778420189 | AD20: 0.03665196175 | AE20: 0.10032 | AF20: 0 | AG20: 0.1656768032 | AH20: 2.695200151 | AI20: 0.07191462818 | AJ20: 0.027104 | AK20: 0.1004635885 | AL20: 0.027104 | AM20: 0.0313632 | AN20: 0.03021176669 | AO20: 0.00042 | AP20: 0.0748 | AQ20: 0.1496 | AR20: 0.10472 | AS20: 0.07522 | AT20: 0.6612453101 | AU20: 9.075 | AV20: 0.9320841568 | AW20: 9.318825759 | AX20: 5.540672225 | AZ20: 93.20841568 | BA20: 0.1908975398 | BB20: 0.2975035917 | BC20: 0.1863765152 | BD20: 0.1108134445 | BE20: 0.03021176669
A21: ThetaCa | B21: =ThetaCa -> 20 | C21: °C/W | D21: Core to Ambient Thermal Resistance | G21: 12 | H21: 12 | I21: 1 | J21: 3 | K21: 3 | L21: 0.9166666667 | M21: 0.2790157382 | N21: 5.490459014 | O21: 5.745229507 | P21: 0.2547704932 | Q21: 0 | R21: 3.392947836 | S21: 0.04604838006 | T21: 0.15 | U21: 0.1967732673 | V21: 1.584958995 | W21: 0.02009676012 | X21: 0.02009676012 | Y21: 1.521788947 | Z21: 0.023158416 | AA21: 0.023158416 | AB21: 1.792220882 | AC21: 0.03179935132 | AD21: 0.03998395827 | AE21: 0.10032 | AF21: 0 | AG21: 0.1732048701 | AH21: 2.880978883 | AI21: 0.08217038933 | AJ21: 0.029568 | AK21: 0.1136053891 | AL21: 0.029568 | AM21: 0.0342144 | AN21: 0.03453628505 | AO21: 0.00042 | AP21: 0.0748 | AQ21: 0.1496 | AR21: 0.10472 | AS21: 0.07522 | AT21: 0.7003773877 | AU21: 9.9 | AV21: 0.9339290138 | AW21: 9.789318705 | AX21: 6.244807057 | AZ21: 93.39290138 | BA21: 0.1967732673 | BB21: 0.3210246592 | BC21: 0.1957863741 | BD21: 0.1248961411 | BE21: 0.03453628505
A22: Cin | B22: =Cin*1000000 -> 300 | C22: μF | D22: Input Capacitance | G22: 13 | H22: 12 | I22: 1 | J22: 3.25 | K22: 3.25 | L22: 0.9930555556 | M22: 0.2793501114 | N22: 5.494832563 | O22: 5.997416281 | P22: 0.5025837186 | Q22: 0 | R22: 3.616434534 | S22: 0.05231439496 | T22: 0.15 | U22: 0.2031646699 | V22: 1.58622153 | W22: 0.02012878993 | X22: 0.02012878993 | Y22: 1.62262138 | Z22: 0.02632900144 | AA22: 0.02632900144 | AB22: 1.911415186 | AC22: 0.03616972935 | AD22: 0.04331595479 | AE22: 0.10032 | AF22: 0 | AG22: 0.1811158665 | AH22: 3.070031063 | AI22: 0.09330839819 | AJ22: 0.032032 | AK22: 0.1277239415 | AL22: 0.032032 | AM22: 0.0370656 | AN22: 0.03923579622 | AO22: 0.00042 | AP22: 0.0748 | AQ22: 0.1496 | AR22: 0.10472 | AS22: 0.07522 | AT22: 0.7420156655 | AU22: 10.725 | AV22: 0.935291301 | AW22: 10.27895813 | AX22: 6.997779473 | AZ22: 93.5291301 | BA22: 0.2031646699 | BB22: 0.345905408 | BC22: 0.2055791625 | BD22: 0.1399555895 | BE22: 0.03923579622
A23: RCinEsr | B23: =RCinEsr*1000 -> 10 | C23: mW | D23: Input Capacitor ESR | G23: 14 | H23: 12 | I23: 1 | J23: 3.5 | K23: 3.5 | L23: 1.069444444 | M23: 0.2796844428 | N23: 5.499200009 | O23: 6.249600005 | P23: 0.7503999954 | Q23: 0 | R23: 3.843188788 | S23: 0.05908040025 | T23: 0.15 | U23: 0.2100732974 | V23: 1.587482303 | W23: 0.02016080049 | X23: 0.02016080049 | Y23: 1.724992738 | Z23: 0.02975599945 | AA23: 0.02975599945 | AB23: 2.032478095 | AC23: 0.04089657534 | AD23: 0.04664795131 | AE23: 0.10032 | AF23: 0 | AG23: 0.1894138018 | AH23: 3.261768363 | AI23: 0.1053274153 | AJ23: 0.034496 | AK23: 0.1428322455 | AL23: 0.034496 | AM23: 0.0399168 | AN23: 0.04431030019 | AO23: 0.00042 | AP23: 0.0748 | AQ23: 0.1496 | AR23: 0.10472 | AS23: 0.07522 | AT23: 0.7861792449 | AU23: 11.55 | AV23: 0.9362704425 | AW23: 10.78794449 | AX23: 7.800239476 | AZ23: 93.62704425 | BA23: 0.2100732974 | BB23: 0.3721628473 | BC23: 0.2157588898 | BD23: 0.1560047895 | BE23: 0.04431030019
A24: Cout | B24: =Cout*1000000 -> 40 | C24: μF | D24: Output Capcitance | G24: 15 | H24: 12 | I24: 1 | J24: 3.75 | K24: 3.75 | L24: 1.145833333 | M24: 0.2800187324 | N24: 5.503561354 | O24: 6.501780677 | P24: 0.998219323 | Q24: 0 | R24: 4.072664848 | S24: 0.06634639586 | T24: 0.15 | U24: 0.2175008275 | V24: 1.588741315 | W24: 0.02019279172 | X24: 0.02019279172 | Y24: 1.828659361 | Z24: 0.03343995057 | AA24: 0.03343995057 | AB24: 2.155123759 | AC24: 0.04598112833 | AD24: 0.04997994784 | AE24: 0.10032 | AF24: 0 | AG24: 0.1981028749 | AH24: 3.455725763 | AI24: 0.1182262014 | AJ24: 0.03696 | AK24: 0.1589444819 | AL24: 0.03696 | AM24: 0.042768 | AN24: 0.04975979689 | AO24: 0.00042 | AP24: 0.0748 | AQ24: 0.1496 | AR24: 0.10472 | AS24: 0.07522 | AT24: 0.8328887235 | AU24: 12.375 | AV24: 0.936940056 | AW24: 11.31648775 | AX24: 8.652896094 | AZ24: 93.6940056 | BA24: 0.2175008275 | BB24: 0.3998153568 | BC24: 0.2263297549 | BD24: 0.1730579219 | BE24: 0.04975979689
A25: RCoutEsr | B25: =Cout_ESR*1000 -> 8 | C25: mW | D25: Output Capacitor ESR | G25: 16 | H25: 12 | I25: 1 | J25: 4 | K25: 4 | L25: 1.222222222 | M25: 0.2803529804 | N25: 5.507916599 | O25: 6.753958299 | P25: 1.246041701 | Q25: 0 | R25: 4.304427423 | S25: 0.07411238175 | T25: 0.15 | U25: 0.2254490671 | V25: 1.589998565 | W25: 0.0202247635 | X25: 0.0202247635 | Y25: 1.933426843 | Z25: 0.03738139355 | AA25: 0.03738139355 | AB25: 2.279124125 | AC25: 0.05142462709 | AD25: 0.05331194436 | AE25: 0.10032 | AF25: 0 | AG25: 0.2071874792 | AH25: 3.651532372 | AI25: 0.1320035178 | AJ25: 0.039424 | AK25: 0.1760760493 | AL25: 0.039424 | AM25: 0.0456192 | AN25: 0.05558428631 | AO25: 0.00042 | AP25: 0.0748 | AQ25: 0.1496 | AR25: 0.10472 | AS25: 0.07522 | AT25: 0.8821662391 | AU25: 13.2 | AV25: 0.9373557857 | AW25: 11.86480756 | AX25: 9.556519267 | AZ25: 93.73557857 | BA25: 0.2254490671 | BB25: 0.4288827285 | BC25: 0.2372961512 | BD25: 0.1911303853 | BE25: 0.05558428631
A26: Top Driver | B26: Input Value | C26: Units | D26: Description | G26: 17 | H26: 12 | I26: 1 | J26: 4.25 | K26: 4.25 | L26: 1.298611111 | M26: 0.2806871865 | N26: 5.512265744 | O26: 7.006132872 | P26: 1.493867128 | Q26: 0 | R26: 4.538126207 | S26: 0.08237835788 | T26: 0.15 | U26: 0.2339199532 | V26: 1.591254056 | W26: 0.02025671575 | X26: 0.02025671575 | Y26: 2.039138675 | Z26: 0.04158086534 | AA26: 0.04158086534 | AB26: 2.404295609 | AC26: 0.05722831002 | AD26: 0.05664394088 | AE26: 0.10032 | AF26: 0 | AG26: 0.2166722078 | AH26: 3.848889722 | AI26: 0.1466581257 | AJ26: 0.041888 | AK26: 0.1942436064 | AL26: 0.041888 | AM26: 0.0484704 | AN26: 0.06178376841 | AO26: 0.00042 | AP26: 0.0748 | AQ26: 0.1496 | AR26: 0.10472 | AS26: 0.07522 | AT26: 0.9340355168 | AU26: 14.025 | AV26: 0.9375604453 | AW26: 12.43313359 | AX26: 10.51194192 | AZ26: 93.75604453 | BA26: 0.2339199532 | BB26: 0.4593862141 | BC26: 0.2486626718 | BD26: 0.2102388384 | BE26: 0.06178376841
A27: RdsonDRT | B27: 0.7 | C27: W | D27: Drain to Source Resistance of pullup Top FET Driver | G27: 18 | H27: 12 | I27: 1 | J27: 4.5 | K27: 4.5 | L27: 1.375 | M27: 0.281021351 | N27: 5.516608791 | O27: 7.258304395 | P27: 1.741695605 | Q27: 0 | R27: 4.77347683 | S27: 0.09114432418 | T27: 0.15 | U27: 0.2429155541 | V27: 1.592507785 | W27: 0.02028864837 | X27: 0.02028864837 | Y27: 2.145667753 | Z27: 0.04603890107 | AA27: 0.04603890107 | AB27: 2.530489138 | AC27: 0.06339341526 | AD27: 0.0599759374 | AE27: 0.10032 | AF27: 0 | AG27: 0.2265618587 | AH27: 4.04755553 | AI27: 0.1621887871 | AJ27: 0.044352 | AK27: 0.2134651168 | AL27: 0.044352 | AM27: 0.0513216 | AN27: 0.06835824314 | AO27: 0.00042 | AP27: 0.0748 | AQ27: 0.1496 | AR27: 0.10472 | AS27: 0.07522 | AT27: 0.9885219221 | AU27: 14.85 | AV27: 0.9375874891 | AW27: 13.02170573 | AX27: 11.52006224 | AZ27: 93.75874891 | BA27: 0.2429155541 | BB27: 0.4913485754 | BC27: 0.2604341147 | BD27: 0.2304012448 | BE27: 0.06835824314
A28: RdsonDRT2 | B28: =RdsonDRT2 -> 0.5 | C28: W | D28: Drain to Source Resistance of pulldown Top FET Driver | G28: 19 | H28: 12 | I28: 1 | J28: 4.75 | K28: 4.75 | L28: 1.451388889 | M28: 0.2813554737 | N28: 5.520945741 | O28: 7.510472871 | P28: 1.989527129 | Q28: 0 | R28: 5.010246517 | S28: 0.1004102806 | T28: 0.15 | U28: 0.2524380708 | V28: 1.593759755 | W28: 0.02032056125 | X28: 0.02032056125 | Y28: 2.252909986 | Z28: 0.05075603407 | AA28: 0.05075603407 | AB28: 2.657582645 | AC28: 0.06992118062 | AD28: 0.06330793393 | AE28: 0.10032 | AF28: 0 | AG28: 0.2368614409 | AH28: 4.247331473 | AI28: 0.1785942639 | AJ28: 0.046816 | AK28: 0.2337598994 | AL28: 0.046816 | AM28: 0.0541728 | AN28: 0.07530771047 | AO28: 0.00042 | AP28: 0.0748 | AQ28: 0.1496 | AR28: 0.10472 | AS28: 0.07522 | AT28: 1.045652517 | AU28: 15.675 | AV28: 0.9374634144 | AW28: 13.63077444 | AX28: 12.58184617 | AZ28: 93.74634144 | BA28: 0.2524380708 | BB28: 0.5247941402 | BC28: 0.2726154889 | BD28: 0.2516369234 | BE28: 0.07530771047
A29: Bottom Driver | B29: Input Value | C29: Units | D29: Description | G29: 20 | H29: 12 | I29: 1 | J29: 5 | K29: 5 | L29: 1.527777778 | M29: 0.2816895547 | N29: 5.525276596 | O29: 7.762638298 | P29: 2.237361702 | Q29: 0 | R29: 5.24824321 | S29: 0.1101762272 | T29: 0.15 | U29: 0.2624898384 | V29: 1.595009965 | W29: 0.0203524543 | X29: 0.0203524543 | Y29: 2.360779444 | Z29: 0.05573279585 | AA29: 0.05573279585 | AB29: 2.78547538 | AC29: 0.07681284361 | AD29: 0.06663993045 | AE29: 0.10032 | AF29: 0 | AG29: 0.2475761801 | AH29: 4.448053922 | AI29: 0.1958733186 | AJ29: 0.04928 | AK29: 0.2551486824 | AL29: 0.04928 | AM29: 0.057024 | AN29: 0.08263217036 | AO29: 0.00042 | AP29: 0.0748 | AQ29: 0.1496 | AR29: 0.10472 | AS29: 0.07522 | AT29: 1.105456121 | AU29: 16.5 | AV29: 0.9372094586 | AW29: 14.26060101 | AX29: 13.69833012 | AZ29: 93.72094586 | BA29: 0.2624898384 | BB29: 0.5597488626 | BC29: 0.2852120201 | BD29: 0.2739666024 | BE29: 0.08263217036
A30: RdsonDRB | B30: 0.7 | C30: W | D30: Drain to Source Resistance of pullup Bottom FET Driver | G30: 21 | H30: 12 | I30: 1 | J30: 5.25 | K30: 5.25 | L30: 1.604166667 | M30: 0.282023594 | N30: 5.529601355 | O30: 8.014800678 | P30: 2.485199322 | Q30: 0 | R30: 5.487307257 | S30: 0.1204421637 | T30: 0.15 | U30: 0.2730733271 | V30: 1.596258415 | W30: 0.02038432743 | X30: 0.02038432743 | Y30: 2.469204652 | Z30: 0.06096971615 | AA30: 0.06096971615 | AB30: 2.914083556 | AC30: 0.08406964141 | AD30: 0.06997192697 | AE30: 0.10032 | AF30: 0 | AG30: 0.2587115254 | AH30: 4.649586859 | AI30: 0.2140247138 | AJ30: 0.051744 | AK30: 0.2776536629 | AL30: 0.051744 | AM30: 0.0598752 | AN30: 0.09033162279 | AO30: 0.00042 | AP30: 0.0748 | AQ30: 0.1496 | AR30: 0.10472 | AS30: 0.07522 | AT30: 1.167963382 | AU30: 17.325 | AV30: 0.9368428219 | AW30: 14.91145787 | AX30: 14.87062395 | AZ30: 93.68428219 | BA30: 0.2730733271 | BB30: 0.5962403884 | BC30: 0.2982291574 | BD30: 0.2974124789 | BE30: 0.09033162279
A31: RdsonDRB2 | B31: 0.5 | C31: W | D31: Drain to Source Resistance of pulldown Bottom FET Driver | G31: 22 | H31: 12 | I31: 1 | J31: 5.5 | K31: 5.5 | L31: 1.680555556 | M31: 0.2823575916 | N31: 5.533920021 | O31: 8.266960011 | P31: 2.733039989 | Q31: 0 | R31: 5.727305 | S31: 0.1312080903 | T31: 0.15 | U31: 0.2841911445 | V31: 1.597505107 | W31: 0.02041618054 | X31: 0.02041618054 | Y31: 2.578125732 | Z31: 0.06646732289 | AA31: 0.06646732289 | AB31: 3.043337 | AC31: 0.09169281092 | AD31: 0.07330392349 | AE31: 0.10032 | AF31: 0 | AG31: 0.2702731555 | AH31: 4.85181641 | AI31: 0.2330472125 | AJ31: 0.054208 | AK31: 0.3012985709 | AL31: 0.054208 | AM31: 0.0627264 | AN31: 0.0984060677 | AO31: 0.00042 | AP31: 0.0748 | AQ31: 0.1496 | AR31: 0.10472 | AS31: 0.07522 | AT31: 1.233206842 | AU31: 18.15 | AV31: 0.9363775637 | AW31: 15.58362897 | AX31: 16.09991415 | AZ31: 93.63775637 | BA31: 0.2841911445 | BB31: 0.6342981264 | BC31: 0.3116725795 | BD31: 0.3219982829 | BE31: 0.0984060677
A32: Deadtime | B32: Input Value | C32: Units | D32: Description | G32: 23 | H32: 12 | I32: 1 | J32: 5.75 | K32: 5.75 | L32: 1.756944444 | M32: 0.2826915476 | N32: 5.538232595 | O32: 8.519116298 | P32: 2.980883702 | Q32: 0 | R32: 5.9681238 | S32: 0.1424740068 | T32: 0.15 | U32: 0.2958460364 | V32: 1.59875004 | W32: 0.02044801352 | X32: 0.02044801352 | Y32: 2.68749218 | Z32: 0.07222614217 | AA32: 0.07222614217 | AB32: 3.173176542 | AC32: 0.09968358871 | AD32: 0.07663592002 | AE32: 0.10032 | AF32: 0 | AG32: 0.282266986 | AH32: 5.054646607 | AI32: 0.252939578 | AJ32: 0.056672 | AK32: 0.3261087394 | AL32: 0.056672 | AM32: 0.0655776 | AN32: 0.1068555051 | AO32: 0.00042 | AP32: 0.0748 | AQ32: 0.1496 | AR32: 0.10472 | AS32: 0.07522 | AT32: 1.301221022 | AU32: 18.975 | AV32: 0.9358252694 | AW32: 16.2774101 | AX32: 17.38746737 | AZ32: 93.58252694 | BA32: 0.2958460364 | BB32: 0.6739533254 | BC32: 0.325548202 | BD32: 0.3477493474 | BE32: 0.1068555051
A33: Deadtime | B33: =Deadtime*1000000000 -> 14 | C33: ns | D33: Total Deadtime | G33: 24 | H33: 12 | I33: 1 | J33: 6 | K33: 6 | L33: 1.833333333 | M33: 0.2830254618 | N33: 5.542539078 | O33: 8.771269539 | P33: 3.228730461 | Q33: 0 | R33: 6.20966813 | S33: 0.1542399131 | T33: 0.15 | U33: 0.3080408891 | V33: 1.599993214 | W33: 0.02047982629 | X33: 0.02047982629 | Y33: 2.797261131 | Z33: 0.07824669833 | AA33: 0.07824669833 | AB33: 3.303551977 | AC33: 0.108043211 | AD33: 0.07996791654 | AE33: 0.10032 | AF33: 0 | AG33: 0.2946991767 | AH33: 5.257996065 | AI33: 0.273700574 | AJ33: 0.059136 | AK33: 0.3521111804 | AL33: 0.059136 | AM33: 0.0684288 | AN33: 0.1156799349 | AO33: 0.00042 | AP33: 0.0748 | AQ33: 0.1496 | AR33: 0.10472 | AS33: 0.07522 | AT33: 1.372042506 | AU33: 19.8 | AV33: 0.935195553 | AW33: 16.99310923 | AX33: 18.73463422 | AZ33: 93.5195553 | BA33: 0.3080408891 | BB33: 0.7152391571 | BC33: 0.3398621847 | BD33: 0.3746926844 | BE33: 0.1156799349
A34: IQ | B34: Input Value | C34: Units | D34: Description | G34: 25 | H34: 12 | I34: 1 | J34: 6.25 | K34: 6.25 | L34: 1.909722222 | M34: 0.2833593344 | N34: 5.54683947 | O34: 9.023419735 | P34: 3.476580265 | Q34: 0 | R34: 6.451856504 | S34: 0.1665058094 | T34: 0.15 | U34: 0.3207787311 | V34: 1.601234631 | W34: 0.02051161874 | X34: 0.02051161874 | Y34: 2.907395981 | Z34: 0.08452951388 | AA34: 0.08452951388 | AB34: 3.43442045 | AC34: 0.1167729139 | AD34: 0.08329991306 | AE34: 0.10032 | AF34: 0 | AG34: 0.3075761394 | AH34: 5.461795356 | AI34: 0.2953289643 | AJ34: 0.0616 | AK34: 0.3793346672 | AL34: 0.0616 | AM34: 0.07128 | AN34: 0.124879357 | AO34: 0.00042 | AP34: 0.0748 | AQ34: 0.1496 | AR34: 0.10472 | AS34: 0.07522 | AT34: 1.445710027 | AU34: 20.625 | AV34: 0.9344964423 | AW34: 17.73104697 | AX34: 20.14285336 | AZ34: 93.44964423 | BA34: 0.3207787311 | BB34: 0.7581908065 | BC34: 0.3546209394 | BD34: 0.4028570672 | BE34: 0.124879357
A35: IQ | B35: =Iq*1000 -> 0.035 | C35: mA | D35: Quiescent Current Of Controller (Not Switching!) | G35: 26 | H35: 12 | I35: 1 | J35: 6.5 | K35: 6.5 | L35: 1.986111111 | M35: 0.2836931653 | N35: 5.551133774 | O35: 9.275566887 | P35: 3.724433113 | Q35: 0 | R35: 6.694619022 | S35: 0.1792716954 | T35: 0.15 | U35: 0.3340627348 | V35: 1.602474289 | W35: 0.02054339078 | X35: 0.02054339078 | Y35: 3.017865298 | Z35: 0.09107510955 | AA35: 0.09107510955 | AB35: 3.565745178 | AC35: 0.1258739329 | AD35: 0.08663190958 | AE35: 0.10032 | AF35: 0 | AG35: 0.3209045459 | AH35: 5.665984925 | AI35: 0.3178235132 | AJ35: 0.064064 | AK35: 0.4078098233 | AL35: 0.064064 | AM35: 0.0741312 | AN35: 0.1344537715 | AO35: 0.00042 | AP35: 0.0748 | AQ35: 0.1496 | AR35: 0.10472 | AS35: 0.07522 | AT35: 1.522264576 | AU35: 21.45 | AV35: 0.9337346751 | AW35: 18.4915569 | AX35: 21.61365597 | AZ35: 93.37346751 | BA35: 0.3340627348 | BB35: 0.8028455693 | BC35: 0.3698311379 | BD35: 0.4322731193 | BE35: 0.1344537715
A36: High-side FET | B36: Input Value | C36: Units | D36: Description | G36: 27 | H36: 12 | I36: 1 | J36: 6.75 | K36: 6.75 | L36: 2.0625 | M36: 0.2840269545 | N36: 5.555421989 | O36: 9.527710995 | P36: 3.972289005 | Q36: 0 | R36: 6.937895415 | S36: 0.1925375712 | T36: 0.15 | U36: 0.3478962186 | V36: 1.60371219 | W36: 0.02057514232 | X36: 0.02057514232 | Y36: 3.128641946 | Z36: 0.09788400426 | AA36: 0.09788400426 | AB36: 3.697494421 | AC36: 0.1353475034 | AD36: 0.08996390611 | AE36: 0.10032 | AF36: 0 | AG36: 0.3346913369 | AH36: 5.870513419 | AI36: 0.3411829852 | AJ36: 0.066528 | AK36: 0.4375692197 | AL36: 0.066528 | AM36: 0.0769824 | AN36: 0.1444031784 | AO36: 0.00042 | AP36: 0.0748 | AQ36: 0.1496 | AR36: 0.10472 | AS36: 0.07522 | AT36: 1.6017495 | AU36: 22.275 | AV36: 0.9329159315 | AW36: 19.27498604 | AX36: 23.14867059 | AZ36: 93.29159315 | BA36: 0.3478962186 | BB36: 0.8492429566 | BC36: 0.3854997209 | BD36: 0.4629734117 | BE36: 0.1444031784
A37: RdsonTop | B37: =Rdson1*1000 -> 9.9 | C37: mW | D37: Drain-Source Resistance of Top FET | G37: 28 | H37: 12 | I37: 1 | J37: 7 | K37: 7 | L37: 2.138888889 | M37: 0.2843607021 | N37: 5.559704118 | O37: 9.779852059 | P37: 4.220147941 | Q37: 0 | R37: 7.18163346 | S37: 0.2063034366 | T37: 0.15 | U37: 0.3622826491 | V37: 1.604948335 | W37: 0.02060687325 | X37: 0.02060687325 | Y37: 3.239702381 | Z37: 0.1049567152 | AA37: 0.1049567152 | AB37: 3.829640652 | AC37: 0.1451948605 | AD37: 0.09329590263 | AE37: 0.10032 | AF37: 0 | AG37: 0.3489437303 | AH37: 6.075336339 | AI37: 0.3654061452 | AJ37: 0.068992 | AK37: 0.4686474789 | AL37: 0.068992 | AM37: 0.0798336 | AN37: 0.1547275775 | AO37: 0.00042 | AP37: 0.0748 | AQ37: 0.1496 | AR37: 0.10472 | AS37: 0.07522 | AT37: 1.684210624 | AU37: 23.1 | AV37: 0.9320450165 | AW37: 20.08169532 | AX37: 24.74962835 | AZ37: 93.20450165 | BA37: 0.3622826491 | BB37: 0.8974248093 | BC37: 0.4016339063 | BD37: 0.4949925669 | BE37: 0.1547275775
A38: RdsonTopTc | B38: =RdsonTopTc*1000000 -> 4000 | C38: ppm | D38: Drain to Source Resistance Temp Co | G38: 29 | H38: 12 | I38: 1 | J38: 7.25 | K38: 7.25 | L38: 2.215277778 | M38: 0.2846944081 | N38: 5.563980162 | O38: 10.03199008 | P38: 4.468009919 | Q38: 0 | R38: 7.425787698 | S38: 0.2205692917 | T38: 0.15 | U38: 0.3772256432 | V38: 1.606182722 | W38: 0.02063858349 | X38: 0.02063858349 | Y38: 3.351026075 | Z38: 0.1122937576 | AA38: 0.1122937576 | AB38: 3.962159889 | AC38: 0.1554172388 | AD38: 0.09662789915 | AE38: 0.10032 | AF38: 0 | AG38: 0.3636692315 | AH38: 6.28041495 | AI38: 0.3904917583 | AJ38: 0.071456 | AK38: 0.5010813888 | AL38: 0.071456 | AM38: 0.0826848 | AN38: 0.1654269688 | AO38: 0.00042 | AP38: 0.0748 | AQ38: 0.1496 | AR38: 0.10472 | AS38: 0.07522 | AT38: 1.769696373 | AU38: 23.925 | AV38: 0.9311260056 | AW38: 20.91205997 | AX38: 26.41836864 | AZ38: 93.11260056 | BA38: 0.3772256432 | BB38: 0.9474354203 | BC38: 0.4182411995 | BD38: 0.5283673728 | BE38: 0.1654269688
A39: QgTop | B39: =Qg_Q1*1000000000 -> 17 | C39: nC | D39: Gate Charge Of Top FET | G39: 30 | H39: 12 | I39: 1 | J39: 7.5 | K39: 7.5 | L39: 2.291666667 | M39: 0.2850280724 | N39: 5.568250121 | O39: 10.28412506 | P39: 4.71587494 | Q39: 0 | R39: 7.670318384 | S39: 0.2353351365 | T39: 0.15 | U39: 0.3927289705 | V39: 1.607415353 | W39: 0.02067027294 | X39: 0.02067027294 | Y39: 3.462595053 | Z39: 0.119895645 | AA39: 0.119895645 | AB39: 4.095031145 | AC39: 0.1660158728 | AD39: 0.09995989567 | AE39: 0.10032 | AF39: 0 | AG39: 0.3788756425 | AH39: 6.485715384 | AI39: 0.41643859 | AJ39: 0.07392 | AK39: 0.5349100253 | AL39: 0.07392 | AM39: 0.085536 | AN39: 0.1765013524 | AO39: 0.00042 | AP39: 0.0748 | AQ39: 0.1496 | AR39: 0.10472 | AS39: 0.07522 | AT39: 1.858257909 | AU39: 24.75 | AV39: 0.9301623611 | AW39: 21.76647013 | AX39: 28.15684527 | AZ39: 93.01623611 | BA39: 0.3927289705 | BB39: 0.9993216679 | BC39: 0.4353294025 | BD39: 0.5631369053 | BE39: 0.1765013524
A40: QgdTop | B40: =Qgd_Q1*1000000000 -> 3.5 | C40: nC | D40: Gate to Drain Charge | G40: 31 | H40: 12 | I40: 1 | J40: 7.75 | K40: 7.75 | L40: 2.368055556 | M40: 0.285361695 | N40: 5.572513996 | O40: 10.536257 | P40: 4.963743002 | Q40: 0 | R40: 7.915190629 | S40: 0.2506009707 | T40: 0.15 | U40: 0.4087965558 | V40: 1.608646228 | W40: 0.02070194149 | X40: 0.02070194149 | Y40: 3.574393505 | Z40: 0.1277628893 | AA40: 0.1277628893 | AB40: 4.228235974 | AC40: 0.1769919965 | AD40: 0.1032918922 | AE40: 0.10032 | AF40: 0 | AG40: 0.3945710731 | AH40: 6.691207906 | AI40: 0.4432454061 | AJ40: 0.076384 | AK40: 0.5701748858 | AL40: 0.076384 | AM40: 0.0883872 | AN40: 0.1879507281 | AO40: 0.00042 | AP40: 0.0748 | AQ40: 0.1496 | AR40: 0.10472 | AS40: 0.07522 | AT40: 1.949949274 | AU40: 25.575 | AV40: 0.9291570257 | AW40: 22.64533126 | AX40: 29.96713309 | AZ40: 92.91570257 | BA40: 0.4087965558 | BB40: 1.053133159 | BC40: 0.4529066251 | BD40: 0.5993426618 | BE40: 0.1879507281
A41: QgsTop | B41: =Qgs_Q1*1000000000 -> 3.2 | C41: nC | G41: 32 | H41: =Vin -> 12 | I41: =MODE -> 1 | J41: 8 | K41: =Iout*G41/100/Number_of_Phases -> 8 | L41: =Vout*K41/(Vin*Efficiency) -> 2.444444444 | M41: =(Vout+(Rdson2+Rs+Rdcr)*K41)/(Vin+(Rs+Rdson2-Rdson1)*K41) -> 0.2856952761 | N41: =(Vin-(Rdson1+Rdcr)*K41-Vout)*M41/(Fsw*Lf) -> 5.57677179 | O41: 10.78838589 | P41: 5.211614105 | Q41: =IF(MIN(Vin, -P41/(Coss_Q1+Coss_Q2)*0.00000002)<0, 0, MIN(Vin, -P41/(Coss_Q1+Coss_Q2)*0.00000002)) -> 0 | R41: 8.160373682 | S41: =R41^2*Rdcr -> 0.2663667945 | T41: =Core_Loss_Ch1 -> 0.15 | U41: =(T41+S41*(1+Ltc*(Ta-25)))/(1-S41*Ltc*ThetaCa) -> 0.4254324814 | V41: 1.609875347 | W41: 0.02073358906 | X41: 0.02073358906 | Y41: 3.68640747 | Z41: 0.1358960003 | AA41: 0.1358960003 | AB41: 4.361758101 | AC41: =Rdson1*AB41^2 -> 0.1883468439 | AD41: =(Vin*K41/2)*Fsw*(Tr_buck+Tf_buck) -> 0.1066238887 | AE41: =(0.5*Coss_Q1*(Vin-Q41)^2-0.5*Coss_Q2*(Vin-Q41)^2+(Qoss_Q2*(Vin-Q41)/Vin)*Vin)*Fsw -> 0.10032 | AF41: =IF(K41>N41/2,0,ABS(K41-N41/2)*Vsd_Q1*Deadtime*Fsw) -> 0 | AG41: =(AF41+AE41+AD41+AC41*(1+RdsonTopTc*Ta-RdsonTopTc*25))/(1-AC41*RdsonTopTc*ThetaJA_Q1) -> 0.4107639514 | AH41: =SQRT((1-M41))*SQRT(K41^2+(N41^2)/12) -> 6.896866311 | AI41: =Rdson2*AH41^2 -> 0.4709109726 | AJ41: =IF(K41<N41/2,Deadtime*Fsw*IF(VfdSky_Q2>0,0,Vsd_Q2)*(K41+N41/2),2*Deadtime*Fsw*IF(VfdSky_Q2>0,0,Vsd_Q2)*K41) -> 0.078848 | AK41: =(AJ41+AI41*(1+RdsonBotTc*Ta-RdsonBotTc*25))/(1-AI41*RdsonBotTc*ThetaJA_Q2) -> 0.6069200332 | AL41: =2*Deadtime*Fsw*IF(VfdSky_Q2>0,VfdSky_Q2,Vsd_Q2)*K41 -> 0.078848 | AM41: =IF(QrrSky_Q2>0,QrrSky_Q2,Qrr_Q2*K41/(Iout/Number_of_Phases))*Fsw*Vin -> 0.0912384 | AN41: =Rs*R41^2 -> 0.1997750959 | AO41: =Iq*Vin -> 0.00042 | AP41: =IF(Ext_VCC=1, (Qg_Q1+Qg_Q2)*Fsw*VCC, (Qg_Q1+Qg_Q2)*Fsw*Vin) -> 0.0748 | AQ41: 0.1496 | AR41: =(Qg_Q1+Qg_Q2)*Fsw*(Vin-VCC) -> 0.10472 | AS41: =SUM(AO41:AP41) -> 0.07522 | AT41: =SUM(U41,X41,AA41,AG41,AK41,AL41,AM41,AS41,AN41) -> 2.044827551 | AU41: =Vout*K41 -> 26.4 | AV41: 0.9281124996 | AW41: =ThetaJA_Q1*BC41 -> 23.54906477 | AX41: =ThetaJA_Q2*BD41 -> 31.85143526 | AZ41: 92.81124996 | BA41: =U41 -> 0.4254324814 | BB41: =AG41+AK41+AM41 -> 1.108922385 | BC41: =AG41+AM41*0.66 -> 0.4709812954 | BD41: =AK41+AM41*0.33 -> 0.6370287052 | BE41: =AN41 -> 0.1997750959
A42: RGateTop | B42: =Rgate1 -> 0.5 | C42: W | D42: Gate Resistance | G42: 33 | H42: 12 | I42: 1 | J42: =Iout*G42/100 -> 8.25 | K42: 8.25 | L42: 2.520833333 | M42: 0.2860288156 | N42: 5.581023502 | O42: 11.04051175 | P42: 5.459488249 | Q42: 0 | R42: 8.405840347 | S42: 0.2826326078 | T42: 0.15 | U42: 0.44264099 | V42: 1.611102711 | W42: 0.02076521556 | X42: 0.02076521556 | Y42: 3.798624571 | Z42: 0.1442954863 | AA42: 0.1442954863 | AB42: 4.495583111 | AC42: 0.2000816484 | AD42: 0.1099558852 | AE42: 0.10032 | AF42: 0 | AG42: 0.4274630353 | AH42: 7.102667417 | AI42: 0.4994340559 | AJ42: 0.081312 | AK42: 0.6451922526 | AL42: 0.081312 | AM42: 0.0940896 | AN42: 0.2119744558 | AO42: 0.00042 | AP42: 0.0748 | AQ42: 0.1496 | AR42: 0.10472 | AS42: 0.07522 | AT42: 2.142953036 | AU42: 27.225 | AV42: 0.9270309023 | AW42: 24.47810857 | AX42: 33.81209103 | AZ42: 92.70309023 | BA42: 0.44264099 | BB42: 1.166744888 | BC42: 0.4895621713 | BD42: 0.6762418206 | BE42: 0.2119744558
A43: GfsTop | B43: =Gfs_Q1 -> 72 | C43: S | D43: Transconductance of Top FET | G43: 34 | H43: 12 | I43: 1 | J43: 8.5 | K43: 8.5 | L43: 2.597222222 | M43: 0.2863623134 | N43: 5.585269135 | O43: 11.29263457 | P43: 5.707365432 | Q43: 0 | R43: 8.651566483 | S43: 0.2993984104 | T43: 0.15 | U43: 0.4604264871 | V43: 1.612328319 | W43: 0.02079682087 | X43: 0.02079682087 | Y43: 3.911033797 | Z43: 0.1529618536 | AA43: 0.1529618536 | AB43: 4.629698193 | AC43: 0.2121976431 | AD43: 0.1132878818 | AE43: 0.10032 | AF43: 0 | AG43: 0.4446774252 | AH43: 7.308590647 | AI43: 0.5288134228 | AJ43: 0.083776 | AK43: 0.6850412213 | AL43: 0.083776 | AM43: 0.0969408 | AN43: 0.2245488078 | AO43: 0.00042 | AP43: 0.0748 | AQ43: 0.1496 | AR43: 0.10472 | AS43: 0.07522 | AT43: 2.244389416 | AU43: 28.05 | AV43: 0.9259140237 | AW43: 25.43291766 | AX43: 35.85158427 | AZ43: 92.59140237 | BA43: 0.4604264871 | BB43: 1.226659447 | BC43: 0.5086583532 | BD43: 0.7170316853 | BE43: 0.2245488078
A44: VthTop | B44: =Vth_Q1 -> 1.9 | C44: V | D44: Threshold Voltage of Top FET | G44: 35 | H44: 12 | I44: 1 | J44: 8.75 | K44: 8.75 | L44: 2.673611111 | M44: 0.2866957697 | N44: 5.589508689 | O44: 11.54475434 | P44: 5.955245656 | Q44: 0 | R44: 8.897530591 | S44: 0.3166642025 | T44: 0.15 | U44: 0.4787935445 | V44: 1.613552173 | W44: 0.02082840492 | X44: 0.02082840492 | Y44: 4.023625317 | Z44: 0.1618956069 | AA44: 0.1618956069 | AB44: 4.764091919 | AC44: 0.2246960609 | AD44: 0.1166198783 | AE44: 0.10032 | AF44: 0 | AG44: 0.4624165759 | AH44: 7.514617675 | AI44: 0.5590478401 | AJ44: 0.08624 | AK44: 0.7265196932 | AL44: 0.08624 | AM44: 0.099792 | AN44: 0.2374981518 | AO44: 0.00042 | AP44: 0.0748 | AQ44: 0.1496 | AR44: 0.10472 | AS44: 0.07522 | AT44: 2.349203977 | AU44: 28.875 | AV44: 0.9247633669 | AW44: 26.41396479 | AX44: 37.97255266 | AZ44: 92.47633669 | BA44: 0.4787935445 | BB44: 1.288728269 | BC44: 0.5282792959 | BD44: 0.7594510532 | BE44: 0.2374981518
A45: VspTop | B45: =Vsp_Q1 -> 2.247222222 | C45: V | G45: 36 | H45: 12 | I45: 1 | J45: 9 | K45: 9 | L45: 2.75 | M45: 0.2870291843 | N45: 5.593742165 | O45: 11.79687108 | P45: 6.203128917 | Q45: 0 | R45: 9.143713466 | S45: 0.3344299838 | T45: 0.15 | U45: 0.4977469029 | V45: 1.614774272 | W45: 0.02085996761 | X45: 0.02085996761 | Y45: 4.136390321 | Z45: 0.1710972489 | AA45: 0.1710972489 | AB45: 4.898754063 | AC45: 0.2375781345 | AD45: 0.1199518748 | AE45: 0.10032 | AF45: 0 | AG45: 0.4806903108 | AH45: 7.720732127 | AI45: 0.5901360754 | AJ45: 0.088704 | AK45: 0.7696836988 | AL45: 0.088704 | AM45: 0.1026432 | AN45: 0.2508224879 | AO45: 0.00042 | AP45: 0.0748 | AQ45: 0.1496 | AR45: 0.10472 | AS45: 0.07522 | AT45: 2.457467817 | AU45: 29.7 | AV45: 0.9235801827 | AW45: 27.42174114 | AX45: 40.17779774 | AZ45: 92.35801827 | BA45: 0.4977469029 | BB45: 1.35301721 | BC45: 0.5484348228 | BD45: 0.8035559548 | BE45: 0.2508224879
A46: VsdTop | B46: =Vsd_Q1 -> 0.8 | C46: V | G46: 37 | H46: 12 | I46: 1 | J46: 9.25 | K46: 9.25 | L46: 2.826388889 | M46: 0.2873625574 | N46: 5.597969565 | O46: 12.04898478 | P46: 6.451015217 | Q46: 0 | R46: 9.390097902 | S46: 0.3526957544 | T46: 0.15 | U46: 0.517291475 | V46: 1.615994618 | W46: 0.02089150884 | X46: 0.02089150884 | Y46: 4.249320894 | Z46: 0.1805672806 | AA46: 0.1805672806 | AB46: 5.033675446 | AC46: 0.2508450961 | AD46: 0.1232838713 | AE46: 0.10032 | AF46: 0 | AG46: 0.4995088358 | AH46: 7.926919333 | AI46: 0.6220768961 | AJ46: 0.091168 | AK46: 0.8145927637 | AL46: 0.091168 | AM46: 0.1054944 | AN46: 0.2645218158 | AO46: 0.00042 | AP46: 0.0748 | AQ46: 0.1496 | AR46: 0.10472 | AS46: 0.07522 | AT46: 2.56925608 | AU46: 30.525 | AV46: 0.9223654983 | AW46: 28.45675699 | AX46: 42.47029578 | AZ46: 92.23654983 | BA46: 0.517291475 | BB46: 1.419596 | BC46: 0.5691351398 | BD46: 0.8494059157 | BE46: 0.2645218158
A47: θJATop | B47: =ThetaJA_Q1 -> 50 | C47: °C/W | D47: Junction to Ambient Resistance | G47: 38 | H47: 12 | I47: 1 | J47: 9.5 | K47: 9.5 | L47: 2.902777778 | M47: 0.2876958889 | N47: 5.60219089 | O47: 12.30109544 | P47: 6.698904555 | Q47: 0 | R47: 9.636668437 | S47: 0.3714615143 | T47: 0.15 | U47: 0.537432349 | V47: 1.617213209 | W47: 0.02092302851 | X47: 0.02092302851 | Y47: 4.362409899 | Z47: 0.1903062013 | AA47: 0.1903062013 | AB47: 5.168847806 | AC47: 0.2644981776 | AD47: 0.1266158679 | AE47: 0.10032 | AF47: 0 | AG47: 0.518882754 | AH47: 8.133166107 | AI47: 0.6548690702 | AJ47: 0.093632 | AK47: 0.8613101449 | AL47: 0.093632 | AM47: 0.1083456 | AN47: 0.2785961357 | AO47: 0.00042 | AP47: 0.0748 | AQ47: 0.1496 | AR47: 0.10472 | AS47: 0.07522 | AT47: 2.684648213 | AU47: 31.35 | AV47: 0.9211201421 | AW47: 29.5195425 | AX47: 44.85320965 | AZ47: 92.11201421 | BA47: 0.537432349 | BB47: 1.488538499 | BC47: 0.59039085 | BD47: 0.8970641929 | BE47: 0.2785961357
A48: Low-side FET | B48: Input Value | C48: Units | D48: Description | G48: 39 | H48: 12 | I48: 1 | J48: 9.75 | K48: 9.75 | L48: 2.979166667 | M48: 0.2880291789 | N48: 5.60640614 | O48: 12.55320307 | P48: 6.94679693 | Q48: 0 | R48: 9.883411143 | S48: 0.3907272633 | T48: 0.15 | U48: 0.558174792 | V48: 1.618430047 | W48: 0.02095452654 | X48: 0.02095452654 | Y48: 4.475650885 | Z48: 0.2003145085 | AA48: 0.2003145085 | AB48: 5.304263681 | AC48: 0.2785386107 | AD48: 0.1299478644 | AE48: 0.10032 | AF48: 0 | AG48: 0.5388230816 | AH48: 8.339460571 | AI48: 0.6885113659 | AJ48: 0.096096 | AK48: 0.9099030897 | AL48: 0.096096 | AM48: 0.1111968 | AN48: 0.2930454475 | AO48: 0.00042 | AP48: 0.0748 | AQ48: 0.1496 | AR48: 0.10472 | AS48: 0.07522 | AT48: 2.803728246 | AU48: 32.175 | AV48: 0.9198447632 | AW48: 30.61064848 | AX48: 47.32990169 | AZ48: 91.98447632 | BA48: 0.558174792 | BB48: 1.559922971 | BC48: 0.6122129696 | BD48: 0.9465980337 | BE48: 0.2930454475
A49: RdsonBot | B49: =Rdson2*1000 -> 9.9 | C49: mW | D49: Drain-Source Resistance of Low-side FET | G49: 40 | H49: 12 | I49: 1 | J49: 10 | K49: 10 | L49: 3.055555556 | M49: 0.2883624273 | N49: 5.610615318 | O49: 12.80530766 | P49: 7.194692341 | Q49: 0 | R49: 10.13031344 | S49: 0.4104930014 | T49: 0.15 | U49: 0.5795242534 | V49: 1.619645132 | W49: 0.02098600283 | X49: 0.02098600283 | Y49: 4.589038001 | Z49: 0.2105926977 | AA49: 0.2105926977 | AB49: 5.43991632 | AC49: 0.2929676267 | AD49: 0.1332798609 | AE49: 0.10032 | AF49: 0 | AG49: 0.5593412641 | AH49: 8.545791993 | AI49: 0.7230025518 | AJ49: 0.09856 | AK49: 0.9604431166 | AL49: 0.09856 | AM49: 0.114048 | AN49: 0.3078697511 | AO49: 0.00042 | AP49: 0.0748 | AQ49: 0.1496 | AR49: 0.10472 | AS49: 0.07522 | AT49: 2.926585086 | AU49: 33 | AV49: 0.9185398479 | AW49: 31.73064721 | AX49: 49.90394783 | AZ49: 91.85398479 | BA49: 0.5795242534 | BB49: 1.633832381 | BC49: 0.6346129441 | BD49: 0.9980789566 | BE49: 0.3078697511
A50: RdsonBotTc | B50: =RdsonBotTc*1000000 -> 4000 | C50: ppm | D50: Drain To Source Resitance Temp Co | G50: 41 | H50: 12 | I50: 1 | J50: 10.25 | K50: 10.25 | L50: 3.131944444 | M50: 0.2886956341 | N50: 5.614818423 | O50: 13.05740921 | P50: 7.442590788 | Q50: 0 | R50: 10.37736393 | S50: 0.4307587286 | T50: 0.15 | U50: 0.6014863689 | V50: 1.620858464 | W50: 0.02101745728 | X50: 0.02101745728 | Y50: 4.702565927 | Z50: 0.221141263 | AA50: 0.221141263 | AB50: 5.575799591 | AC50: 0.3077864567 | AD50: 0.1366118574 | AE50: 0.10032 | AF50: 0 | AG50: 0.5804491942 | AH50: 8.752150655 | AI50: 0.7583413967 | AJ50: 0.101024 | AK50: 1.013006323 | AL50: 0.101024 | AM50: 0.1168992 | AN50: 0.3230690465 | AO50: 0.00042 | AP50: 0.0748 | AQ50: 0.1496 | AR50: 0.10472 | AS50: 0.07522 | AT50: 3.053312853 | AU50: 33.825 | AV50: 0.9172057338 | AW50: 32.88013331 | AX50: 52.57915293 | AZ50: 91.72057338 | BA50: 0.6014863689 | BB50: 1.710354717 | BC50: 0.6576026662 | BD50: 1.051583059 | BE50: 0.3230690465
A51: QgBot | B51: =Qg_Q2*1000000000 -> 17 | C51: nC | D51: Gate Charge Of Top FET | G51: 42 | H51: 12 | I51: 1 | J51: 10.5 | K51: 10.5 | L51: 3.208333333 | M51: 0.2890287994 | N51: 5.619015458 | O51: 13.30950773 | P51: 7.690492271 | Q51: 0 | R51: 10.62455228 | S51: 0.4515244449 | T51: 0.15 | U51: 0.6240669641 | V51: 1.622070044 | W51: 0.02104888981 | X51: 0.02104888981 | Y51: 4.816229816 | Z51: 0.2319606964 | AA51: 0.2319606964 | AB51: 5.711907917 | AC51: 0.3229963313 | AD51: 0.1399438539 | AE51: 0.10032 | AF51: 0 | AG51: 0.6021592297 | AH51: 8.958527735 | AI51: 0.7945266698 | AJ51: 0.103488 | AK51: 1.067673719 | AL51: 0.103488 | AM51: 0.1197504 | AN51: 0.3386433337 | AO51: 0.00042 | AP51: 0.0748 | AQ51: 0.1496 | AR51: 0.10472 | AS51: 0.07522 | AT51: 3.184011232 | AU51: 34.65 | AV51: 0.9158426207 | AW51: 34.05972468 | AX51: 55.35956753 | AZ51: 91.58426207 | BA51: 0.6240669641 | BB51: 1.789583348 | BC51: 0.6811944937 | BD51: 1.107191351 | BE51: 0.3386433337
A52: RGateBot | B52: =Rgate2 -> 0.5 | C52: W | D52: Gate Resistance | G52: 43 | H52: 12 | I52: 1 | J52: 10.75 | K52: 10.75 | L52: 3.284722222 | M52: 0.2893619232 | N52: 5.623206423 | O52: 13.56160321 | P52: 7.938396788 | Q52: 0 | R52: 10.87186909 | S52: 0.4727901502 | T52: 0.15 | U52: 0.6472720585 | V52: 1.623279871 | W52: 0.02108030032 | X52: 0.02108030032 | Y52: 4.930025236 | Z52: 0.2430514883 | AA52: 0.2430514883 | AB52: 5.848236211 | AC52: 0.3385984811 | AD52: 0.1432758505 | AE52: 0.10032 | AF52: 0 | AG52: 0.6244842127 | AH52: 9.164915208 | AI52: 0.8315571406 | AJ52: 0.105952 | AK52: 1.124531596 | AL52: 0.105952 | AM52: 0.1226016 | AN52: 0.3545926126 | AO52: 0.00042 | AP52: 0.0748 | AQ52: 0.1496 | AR52: 0.10472 | AS52: 0.07522 | AT52: 3.318785869 | AU52: 35.475 | AV52: 0.9144505803 | AW52: 35.27006344 | AX52: 58.24950622 | AZ52: 91.44505803 | BA52: 0.6472720585 | BB52: 1.871617409 | BC52: 0.7054012687 | BD52: 1.164990124 | BE52: 0.3545926126
A53: VsdBot | B53: =Vsd_Q2 -> 0.8 | C53: V | D53: Diode Forward Voltage of Bottom FET Body Diode | G53: 44 | H53: 12 | I53: 1 | J53: 11 | K53: 11 | L53: 3.361111111 | M53: 0.2896950054 | N53: 5.62739132 | O53: 13.81369566 | P53: 8.18630434 | Q53: 0 | R53: 11.11930578 | S53: 0.4945558444 | T53: 0.15 | U53: 0.6711078699 | V53: 1.624487947 | W53: 0.02111168871 | X53: 0.02111168871 | Y53: 5.043948128 | Z53: 0.2544141272 | AA53: 0.2544141272 | AB53: 5.984779821 | AC53: 0.3545941361 | AD53: 0.146607847 | AE53: 0.10032 | AF53: 0 | AG53: 0.6474374906 | AH53: 9.371305757 | AI53: 0.8694315787 | AJ53: 0.108416 | AK53: 1.18367193 | AL53: 0.108416 | AM53: 0.1254528 | AN53: 0.3709168833 | AO53: 0.00042 | AP53: 0.0748 | AQ53: 0.1496 | AR53: 0.10472 | AS53: 0.07522 | AT53: 3.457748789 | AU53: 36.3 | AV53: 0.9130295629 | AW53: 36.51181693 | AX53: 61.25356768 | AZ53: 91.30295629 | BA53: 0.6711078699 | BB53: 1.95656222 | BC53: 0.7302363386 | BD53: 1.225071354 | BE53: 0.3709168833
A54: QrrBot | B54: =Qrr_Q2*1000000000 -> 54 | C54: nC | D54: Reverse Recovery Charge of Body Diode | G54: 45 | H54: 12 | I54: 1 | J54: 11.25 | K54: 11.25 | L54: 3.4375 | M54: 0.2900280461 | N54: 5.631570149 | O54: 14.06578507 | P54: 8.434214926 | Q54: 0 | R54: 11.36685453 | S54: 0.5168215274 | T54: 0.15 | U54: 0.6955808187 | V54: 1.625694271 | W54: 0.02114305489 | X54: 0.02114305489 | Y54: 5.157994764 | Z54: 0.2660490998 | AA54: 0.2660490998 | AB54: 6.121534485 | AC54: 0.3709845261 | AD54: 0.1499398435 | AE54: 0.10032 | AF54: 0 | AG54: 0.6710329368 | AH54: 9.577692698 | AI54: 0.9081487544 | AJ54: 0.11088 | AK54: 1.245192815 | AL54: 0.11088 | AM54: 0.128304 | AN54: 0.3876161456 | AO54: 0.00042 | AP54: 0.0748 | AQ54: 0.1496 | AR54: 0.10472 | AS54: 0.07522 | AT54: 3.601018871 | AU54: 37.125 | AV54: 0.9115794038 | AW54: 37.78567884 | AX54: 64.37665676 | AZ54: 91.15794038 | BA54: 0.6955808187 | BB54: 2.044529752 | BC54: 0.7557135768 | BD54: 1.287533135 | BE54: 0.3876161456
A55: TrrBot | B55: =Trr_Q2*1000000000 -> 40 | C55: ns | D55: Reverse Recovery Time of Body Diode | G55: 46 | H55: 12 | I55: 1 | J55: 11.5 | K55: 11.5 | L55: 3.513888889 | M55: 0.2903610453 | N55: 5.635742912 | O55: 14.31787146 | P55: 8.682128544 | Q55: 0 | R55: 11.61450816 | S55: 0.5395871994 | T55: 0.15 | U55: 0.7206975324 | V55: 1.626898844 | W55: 0.02117439878 | X55: 0.02117439878 | Y55: 5.272161713 | Z55: 0.2779568913 | AA55: 0.2779568913 | AB55: 6.25849629 | AC55: 0.3877708806 | AD55: 0.15327184 | AE55: 0.10032 | AF55: 0 | AG55: 0.6952849739 | AH55: 9.784069911 | AI55: 0.9477074379 | AJ55: 0.113344 | AK55: 1.309198955 | AL55: 0.113344 | AM55: 0.1311552 | AN55: 0.4046903995 | AO55: 0.00042 | AP55: 0.0748 | AQ55: 0.1496 | AR55: 0.10472 | AS55: 0.07522 | AT55: 3.748722351 | AU55: 37.95 | AV55: 0.910099827 | AW55: 39.0923703 | AX55: 67.62400857 | AZ55: 91.0099827 | BA55: 0.7206975324 | BB55: 2.135639129 | BC55: 0.7818474059 | BD55: 1.352480171 | BE55: 0.4046903995
A56: θJABot | B56: =ThetaJA_Q2 -> 50 | C56: °C/W | D56: Junction to Ambient Resistance | G56: 47 | H56: 12 | I56: 1 | J56: 11.75 | K56: 11.75 | L56: 3.590277778 | M56: 0.290694003 | N56: 5.63990961 | O56: 14.5699548 | P56: 8.930045195 | Q56: 0 | R56: 11.86226011 | S56: 0.5628528601 | T56: 0.15 | U56: 0.7464648502 | V56: 1.628101666 | W56: 0.02120572027 | X56: 0.02120572027 | Y56: 5.386445811 | Z56: 0.2901379847 | AA56: 0.2901379847 | AB56: 6.395661636 | AC56: 0.4049544288 | AD56: 0.1566038366 | AE56: 0.10032 | AF56: 0 | AG56: 0.7202085976 | AH56: 9.990431786 | AI56: 0.9881064 | AJ56: 0.115808 | AK56: 1.37580219 | AL56: 0.115808 | AM56: 0.1340064 | AN56: 0.4221396451 | AO56: 0.00042 | AP56: 0.0748 | AQ56: 0.1496 | AR56: 0.10472 | AS56: 0.07522 | AT56: 3.900993388 | AU56: 38.775 | AV56: 0.9085904491 | AW56: 40.43264108 | AX56: 71.00121509 | AZ56: 90.85904491 | BA56: 0.7464648502 | BB56: 2.230017187 | BC56: 0.8086528216 | BD56: 1.420024302 | BE56: 0.4221396451
A57: Bottom Schottky | B57: Input Value | C57: Units | D57: Std Units | G57: 48 | H57: 12 | I57: 1 | J57: 12 | K57: 12 | L57: 3.666666667 | M57: 0.2910269192 | N57: 5.644070244 | O57: 14.82203512 | P57: 9.177964878 | Q57: 0 | R57: 12.11010435 | S57: 0.5866185096 | T57: 0.15 | U57: 0.772889828 | V57: 1.629302737 | W57: 0.02123701928 | X57: 0.02123701928 | Y57: 5.500844132 | Z57: 0.3025928616 | AA57: 0.3025928616 | AB57: 6.533027201 | AC57: 0.4225363996 | AD57: 0.1599358331 | AE57: 0.10032 | AF57: 0 | AG57: 0.7458194017 | AH57: 10.19677317 | AI57: 1.029344412 | AJ57: 0.118272 | AK57: 1.445122079 | AL57: 0.118272 | AM57: 0.1368576 | AN57: 0.4399638822 | AO57: 0.00042 | AP57: 0.0748 | AQ57: 0.1496 | AR57: 0.10472 | AS57: 0.07522 | AT57: 4.057974672 | AU57: 39.6 | AV57: 0.9070507805 | AW57: 41.80727088 | AX57: 74.51425435 | AZ57: 90.70507805 | BA57: 0.772889828 | BB57: 2.327799081 | BC57: 0.8361454177 | BD57: 1.490285087 | BE57: 0.4399638822
A58: VfdSky | B58: =VfdSky_Q2 -> 0 | C58: V | D58: Diode Forward Voltage | G58: 49 | H58: 12 | I58: 1 | J58: 12.25 | K58: 12.25 | L58: 3.743055556 | M58: 0.291359794 | N58: 5.648224815 | O58: 15.07411241 | P58: 9.425887593 | Q58: 0 | R58: 12.35803532 | S58: 0.6108841479 | T58: 0.15 | U58: 0.7999797434 | V58: 1.630502059 | W58: 0.02126829571 | X58: 0.02126829571 | Y58: 5.615353966 | Z58: 0.3153220016 | AA58: 0.3153220016 | AB58: 6.670589919 | AC58: 0.4405180217 | AD58: 0.1632678296 | AE58: 0.10032 | AF58: 0 | AG58: 0.7721336049 | AH58: 10.40308931 | AI58: 1.071420244 | AJ58: 0.120736 | AK58: 1.517286549 | AL58: 0.120736 | AM58: 0.1397088 | AN58: 0.4581631109 | AO58: 0.00042 | AP58: 0.0748 | AQ58: 0.1496 | AR58: 0.10472 | AS58: 0.07522 | AT58: 4.219818106 | AU58: 40.425 | AV58: 0.9054802263 | AW58: 43.21707064 | AX58: 78.16952267 | AZ58: 90.54802263 | BA58: 0.7999797434 | BB58: 2.429128954 | BC58: 0.8643414129 | BD58: 1.563390453 | BE58: 0.4581631109
A59: QrrSky | B59: =QrrSky_Q2*1000000000 -> 0 | C59: nC | D59: Diode Reverse Recovery Charge | G59: 50 | H59: 12 | I59: 1 | J59: 12.5 | K59: 12.5 | L59: 3.819444444 | M59: 0.2916926272 | N59: 5.652373324 | O59: 15.32618666 | P59: 9.673813338 | Q59: 0 | R59: 12.6060479 | S59: 0.6356497747 | T59: 0.15 | U59: 0.8277421011 | V59: 1.63169963 | W59: 0.02129954947 | X59: 0.02129954947 | Y59: 5.729972799 | Z59: 0.3283258827 | AA59: 0.3283258827 | AB59: 6.80834695 | AC59: 0.4589005231 | AD59: 0.1665998261 | AE59: 0.10032 | AF59: 0 | AG59: 0.7991680792 | AH59: 10.60937583 | AI59: 1.114332669 | AJ59: 0.1232 | AK59: 1.592432604 | AL59: 0.1232 | AM59: 0.14256 | AN59: 0.476737331 | AO59: 0.00042 | AP59: 0.0748 | AQ59: 0.1496 | AR59: 0.10472 | AS59: 0.07522 | AT59: 4.386685548 | AU59: 41.25 | AV59: 0.9038780863 | AW59: 44.66288396 | AX59: 81.97387021 | AZ59: 90.38780863 | BA59: 0.8277421011 | BB59: 2.534160683 | BC59: 0.8932576792 | BD59: 1.639477404 | BE59: 0.476737331
A60: Ireverse | B60: =Ireverse -> 0 | C60: mA | D60: Reverse Leakage Current | G60: 51 | H60: 12 | I60: 1 | J60: 12.75 | K60: 12.75 | L60: 3.895833333 | M60: 0.292025419 | N60: 5.656515773 | O60: 15.57825789 | P60: 9.921742113 | Q60: 0 | R60: 12.85413737 | S60: 0.6609153902 | T60: 0.15 | U60: 0.8561846386 | V60: 1.632895452 | W60: 0.02133078046 | X60: 0.02133078046 | Y60: 5.84469829 | Z60: 0.341604981 | AA60: 0.341604981 | AB60: 6.946295663 | AC60: 0.477685132 | AD60: 0.1699318226 | AE60: 0.10032 | AF60: 0 | AG60: 0.8269403795 | AH60: 10.8156287 | AI60: 1.158080459 | AJ60: 0.125664 | AK60: 1.67070711 | AL60: 0.125664 | AM60: 0.1454112 | AN60: 0.4956865427 | AO60: 0.00042 | AP60: 0.0748 | AQ60: 0.1496 | AR60: 0.10472 | AS60: 0.07522 | AT60: 4.558749632 | AU60: 42.075 | AV60: 0.9022435539 | AW60: 46.14558858 | AX60: 85.93464031 | AZ60: 90.22435539 | BA60: 0.8561846386 | BB60: 2.64305869 | BC60: 0.9229117715 | BD60: 1.718692806 | BE60: 0.4956865427
A61: Controller | B61: Input Value | C61: Units | D61: Std Units | G61: 52 | H61: 12 | I61: 1 | J61: 13 | K61: 13 | L61: 3.972222222 | M61: 0.2923581693 | N61: 5.660652163 | O61: 15.83032608 | P61: 10.16967392 | Q61: 0 | R61: 13.10229936 | S61: 0.6866809943 | T61: 0.15 | U61: 0.8853153313 | V61: 1.634089525 | W61: 0.0213619886 | X61: 0.0213619886 | Y61: 5.95952826 | Z61: 0.3551597708 | AA61: 0.3551597708 | AB61: 7.084433611 | AC61: 0.496873076 | AD61: 0.1732638192 | AE61: 0.10032 | AF61: 0 | AG61: 0.8554687755 | AH61: 11.02184417 | AI61: 1.202662385 | AJ61: 0.128128 | AK61: 1.752267667 | AL61: 0.128128 | AM61: 0.1482624 | AN61: 0.5150107457 | AO61: 0.00042 | AP61: 0.0748 | AQ61: 0.1496 | AR61: 0.10472 | AS61: 0.07522 | AT61: 4.736194679 | AU61: 42.9 | AV61: 0.9005757133 | AW61: 47.66609798 | AX61: 90.05971296 | AZ61: 90.05757133 | BA61: 0.8853153313 | BB61: 2.755998843 | BC61: 0.9533219595 | BD61: 1.801194259 | BE61: 0.5150107457
A62: θJA | B62: 30 | C62: °C/W | D62: Junction to Ambient Resistance | G62: 53 | H62: 12 | I62: 1 | J62: 13.25 | K62: 13.25 | L62: 4.048611111 | M62: 0.2926908781 | N62: 5.664782494 | O62: 16.08239125 | P62: 10.41760875 | Q62: 0 | R62: 13.35052983 | S62: 0.7129465869 | T62: 0.15 | U62: 0.9151423989 | V62: 1.635281849 | W62: 0.0213931738 | X62: 0.0213931738 | Y62: 6.074460674 | Z62: 0.3689907248 | AA62: 0.3689907248 | AB62: 7.22275852 | AC62: 0.5164655824 | AD62: 0.1765958157 | AE62: 0.10032 | AF62: 0 | AG62: 0.8847722847 | AH62: 11.2280188 | AI62: 1.24807722 | AJ62: 0.130592 | AK62: 1.837283576 | AL62: 0.130592 | AM62: 0.1511136 | AN62: 0.5347099402 | AO62: 0.00042 | AP62: 0.0748 | AQ62: 0.1496 | AR62: 0.10472 | AS62: 0.07522 | AT62: 4.919217698 | AU62: 43.725 | AV62: 0.8988735367 | AW62: 49.22536304 | AX62: 94.35755319 | AZ62: 89.88735367 | BA62: 0.9151423989 | BB62: 2.873169461 | BC62: 0.9845072607 | BD62: 1.887151064 | BE62: 0.5347099402
A63: Theta Ja | B63: 2 | C63: °C/W | D63: Junction to Ambient Resistance | G63: 54 | H63: 12 | I63: 1 | J63: 13.5 | K63: 13.5 | L63: 4.125 | M63: 0.2930235455 | N63: 5.668906768 | O63: 16.33445338 | P63: 10.66554662 | Q63: 0 | R63: 13.59882502 | S63: 0.739712168 | T63: 0.15 | U63: 0.9456743116 | V63: 1.636472424 | W63: 0.02142433596 | X63: 0.02142433596 | Y63: 6.189493628 | Z63: 0.3830983138 | AA63: 0.3830983138 | AB63: 7.361268269 | AC63: 0.5364638783 | AD63: 0.1799278122 | AE63: 0.10032 | AF63: 0 | AG63: 0.9148707081 | AH63: 11.43414935 | AI63: 1.294323737 | AJ63: 0.133056 | AK63: 1.925936909 | AL63: 0.133056 | AM63: 0.1539648 | AN63: 0.554784126 | AO63: 0.00042 | AP63: 0.0748 | AQ63: 0.1496 | AR63: 0.10472 | AS63: 0.07522 | AT63: 5.108029505 | AU63: 44.55 | AV63: 0.89713588 | AW63: 50.82437381 | AX63: 98.83726466 | AZ63: 89.713588 | BA63: 0.9456743116 | BB63: 2.994772417 | BC63: 1.016487476 | BD63: 1.976745293 | BE63: 0.554784126
G64: 55 | H64: 12 | I64: 1 | J64: 13.75 | K64: 13.75 | L64: 4.201388889 | M64: 0.2933561715 | N64: 5.673024986 | O64: 16.58651249 | P64: 10.91348751 | Q64: 0 | R64: 13.84718146 | S64: 0.7669777375 | T64: 0.15 | U64: 0.9769197963 | V64: 1.637661251 | W64: 0.02145547499 | X64: 0.02145547499 | Y64: 6.30462534 | Z64: 0.3974830068 | AA64: 0.3974830068 | AB64: 7.499960878 | AC64: 0.5568691904 | AD64: 0.1832598087 | AE64: 0.10032 | AF64: 0 | AG64: 0.9457846676 | AH64: 11.64023287 | AI64: 1.34140071 | AJ64: 0.13552 | AK64: 2.018423709 | AL64: 0.13552 | AM64: 0.156816 | AN64: 0.5752333031 | AO64: 0.00042 | AP64: 0.0748 | AQ64: 0.1496 | AR64: 0.10472 | AS64: 0.07522 | AT64: 5.302855958 | AU64: 45.375 | AV64: 0.8953614778 | AW64: 52.46416138 | AX64: 103.5086495 | AZ64: 89.53614778 | BA64: 0.9769197963 | BB64: 3.121024377 | BC64: 1.049283228 | BD64: 2.070172989 | BE64: 0.5752333031
G65: 56 | H65: 12 | I65: 1 | J65: 14 | K65: 14 | L65: 4.277777778 | M65: 0.293688756 | N65: 5.677137149 | O65: 16.83856857 | P65: 11.16143143 | Q65: 0 | R65: 14.0955959 | S65: 0.7947432954 | T65: 0.15 | U65: 1.008887843 | V65: 1.638848331 | W65: 0.0214865908 | X65: 0.0214865908 | Y65: 6.419854135 | Z65: 0.4121452711 | AA65: 0.4121452711 | AB65: 7.638834495 | AC65: 0.5776827452 | AD65: 0.1865918053 | AE65: 0.10032 | AF65: 0 | AG65: 0.9775356455 | AH65: 11.84626656 | AI65: 1.389306911 | AJ65: 0.137984 | AK65: 2.114955319 | AL65: 0.137984 | AM65: 0.1596672 | AN65: 0.5960574716 | AO65: 0.00042 | AP65: 0.0748 | AQ65: 0.1496 | AR65: 0.10472 | AS65: 0.07522 | AT65: 5.503939341 | AU65: 46.2 | AV65: 0.8935489363 | AW65: 54.14579988 | AX65: 108.3822748 | AZ65: 89.35489363 | BA65: 1.008887843 | BB65: 3.252158165 | BC65: 1.082915998 | BD65: 2.167645495 | BE65: 0.5960574716
A66: Outputs | G66: 57 | H66: 12 | I66: 1 | J66: 14.25 | K66: 14.25 | L66: 4.354166667 | M66: 0.2940212991 | N66: 5.681243258 | O66: 17.09062163 | P66: 11.40937837 | Q66: 0 | R66: 14.34406534 | S66: 0.8230088417 | T66: 0.15 | U66: 1.041587713 | V66: 1.640033662 | W66: 0.0215176833 | X66: 0.0215176833 | Y66: 6.535178439 | Z66: 0.4270855723 | AA66: 0.4270855723 | AB66: 7.777887387 | AC66: 0.5989057688 | AD66: 0.1899238018 | AE66: 0.10032 | AF66: 0 | AG66: 1.010146027 | AH66: 12.05224785 | AI66: 1.438041114 | AJ66: 0.140448 | AK66: 2.215759874 | AL66: 0.140448 | AM66: 0.1625184 | AN66: 0.6172566312 | AO66: 0.00042 | AP66: 0.0748 | AQ66: 0.1496 | AR66: 0.10472 | AS66: 0.07522 | AT66: 5.711539901 | AU66: 47.025 | AV66: 0.8916967266 | AW66: 55.87040856 | AX66: 113.4695473 | AZ66: 89.16967266 | BA66: 1.041587713 | BB66: 3.388424301 | BC66: 1.117408171 | BD66: 2.269390946 | BE66: 0.6172566312
A67: Design | B67: Value | C67: Units | G67: 58 | H67: 12 | I67: 1 | J67: 14.5 | K67: 14.5 | L67: 4.430555556 | M67: 0.2943538008 | N67: 5.685343315 | O67: 17.34267166 | P67: 11.65732834 | Q67: 0 | R67: 14.59258696 | S67: 0.8517743762 | T67: 0.15 | U67: 1.075028945 | V67: 1.641217247 | W67: 0.0215487524 | X67: 0.0215487524 | Y67: 6.650596772 | Z67: 0.4423043742 | AA67: 0.4423043742 | AB67: 7.917117927 | AC67: 0.620539487 | AD67: 0.1932557983 | AE67: 0.10032 | AF67: 0 | AG67: 1.043639145 | AH67: 12.25817433 | AI67: 1.487602094 | AJ67: 0.142912 | AK67: 2.321083968 | AL67: 0.142912 | AM67: 0.1653696 | AN67: 0.6388307822 | AO67: 0.00042 | AP67: 0.0748 | AQ67: 0.1496 | AR67: 0.10472 | AS67: 0.07522 | AT67: 5.925937567 | AU67: 47.85 | AV67: 0.8898031753 | AW67: 57.63915407 | AX67: 118.7827968 | AZ67: 88.98031753 | BA67: 1.075028945 | BB67: 3.530092714 | BC67: 1.152783081 | BD67: 2.375655936 | BE67: 0.6388307822
